Workbook

Sheet Page1
C1: ="GM DE MEXICO - REPORTE DE OPERACION "&OR_VEH!C597 -> GM DE MEXICO - REPORTE DE OPERACION v211r7 | S1: =TBIn!$E$2591&" - "&TBIn!$AH$10&" - PAGINA 1" -> 122112 - 201801 - PAGINA 1
B2: Lin. | C2: Método de captura/Proveedor de Sistemas del Dist. | S2: Lin.
B3: No. | C3: Sin Proveedor de Sistemas del Distribuidor (captura manual de datos) | S3: No.
B4: 1 | S4: 1
B5: 2 | C5: NUMERO BAC | S5: 2
B6: 3 | C6: =TBIn!E2591 -> 122112 | I6: NOMBRE | J6: =TBIn!E2595 -> QUERETARO MOTORS, S.A. | S6: 3
B7: 4 | C7: DE | E7: =VLOOKUP(TBIn!E4,D95:E106,2,FALSE) -> Enero | F7: =TBIn!E3 -> 1 | G7: =TBIn!E5 -> 2018 | I7: DIRECCION | J7: =TBIn!E2596 -> CONSTITUYENTES NO. 50 OTE. | S7: 4
B8: 5 | C8: A | E8: =IF(ISERROR(VLOOKUP(TBIn!E2593,D95:E106,2,FALSE))=TRUE,0,VLOOKUP(TBIn!E2593,D95:E106,2,FALSE)) -> Enero | F8: =TBIn!E2592 -> 31 | G8: =TBIn!E2594 -> 2018 | I8: CIUDAD Y ESTADO | J8: =TBIn!E2598 -> QUERETARO | M8: =TBIn!E2599 -> QA | P8: =TBIn!E2600&IF(TBIn!E2601>0,"-"&TBIn!E2601,"") -> 76000- | S8: 5
B9: 6 | C9: ACTIVO | H9: NO. | I9: IMPORTE | J9: P A S I V O C O R R I E N T E | K9: PASIVO | Q9: NO. | R9: IMPORTE | S9: 6
B10: 7 | C10: A C T I V O C O R R I E N T E Y D E T R A B A J O | D10: EFECTIVO | E10: CAJA CHICA | H10: 200 | I10: 0 | K10: C U E N T A S Y N O T A S | L10: BANCOS SALDO ACREEDOR | Q10: 202 | R10: =TBIn!E1259 -> 0 | S10: 7
B11: 8 | E11: BANCOS | H11: 202 | I11: 7703087 | L11: CUENTAS POR PAGAR ACREEDORES Y PROVEEDORES | Q11: 300 | R11: 2472301 | S11: 8
B12: 9 | E12: CONTRATOS EN TRANSITO | H12: 205 | I12: =TBIn!E1198 -> 0 | L12: CUENTAS POR COBRAR CLIENTES SALDOS ACREEDORES | Q12: 220 | R12: =IF(Flag=TRUE,TBIn!E1261*-1,TBIn!E1261) -> 0 | S12: 9
B13: 10 | E13: VALORES | H13: 260 | I13: 5136293 | L13: DEPOSITOS DE CLIENTES | Q13: 220 | R13: =IF(Flag=TRUE,TBIn!E1262*-1,TBIn!E1262) -> 0 | S13: 10
B14: 11 | L14: ANTICIPOS POR RECLAMACIONES POR GARANTIA | Q14: 305 | R14: =TBIn!E1263 -> 0 | S14: 11
B15: 12 | E15: TOTAL EFECTIVO Y CONTRATOS | H15: (Lineas 7 a 10) | I15: =SUM(I10:I14) -> 12839380 | L15: DOC POR PAGAR VEH NUEVOS Y DEMOS (PLAN PISO) | Q15: 310 | R15: 51408813 | S15: 12
B16: 13 | D16: POR COBRAR | E16: NETO CUENTAS POR COBRAR A CLIENTES | G16: (de la pág 7) | H16: 210/220 | I16: =Page7!I63 -> 23577173 | L16: *INF ADIC: PAGOS DIFERIDOS - CUENTA. 310 | S16: 13
B17: 14 | E17: CUENTAS POR COBRAR A GM (NO GARANTIAS) | H17: 261 | I17: 233205 | N17: $ | O17: =TBIn!E154 -> 0 | S17: 14
B18: 15 | E18: ADEUDOS DE COMPAÑIAS FINANCIERAS | H18: 262 | I18: 9486736 | L18: CUENTAS POR PAGAR VEHICULOS USADOS | Q18: 311 | R18: =TBIn!E1265 -> 0 | S18: 15
B19: 16 | E19: RECLAMACIONES DE GARANTIA | H19: 263 | I19: 1478386 | L19: DOC POR PAGAR VEH. EN ARRENDAMIENTO Y ALQUILER | Q19: 312 | R19: =TBIn!E1266 -> 0 | S19: 16
B20: 17 | E20: COMISIONES SOBRE SEGUROS POR COBRAR | H20: 264 | I20: =TBIn!E1212 -> 0 | L20: DOCUMENTOS POR PAGAR OTROS | Q20: 314 | R20: 0 | S20: 17
B21: 18 | S21: 18
B22: 19 | E22: TOTAL POR COBRAR | G22: Unidades | H22: (Lineas 13 a 18) | I22: =SUM(I16:I21) -> 34775500 | K22: A C U M U L A D O P O R P A G A R | L22: INTERESES POR PAGAR | Q22: 320 | R22: =TBIn!E1268 -> 0 | S22: 19
B23: 20 | D23: I N V E N T A R I O S | E23: DEMOSTRADORES | G23: =Page7!E26 -> 0 | H23: 230 | I23: =Page7!F26 -> 0 | L23: SUELDOS , JORNALES Y COMISIONES POR PAGAR | Q23: 321 | R23: =TBIn!E1269 -> 0 | S23: 20
B24: 21 | E24: AUTOS NUEVOS | G24: =Page7!E27 -> 149 | H24: 231 | I24: =Page7!F27 -> 25781998 | L24: SEGUROS POR PAGAR | Q24: 322 | R24: =TBIn!E1270 -> 0 | S24: 21
B25: 22 | E25: COMERCIALES Y CAMIONES NUEVOS | G25: =Page7!E28 -> 53 | H25: 237 | I25: =Page7!F28 -> 16971380 | L25: IMPUESTOS Y RETENCIONES | Q25: 323 | R25: 82167 | S25: 22
B26: 23 | E26: KODIAK NUEVOS | G26: =Page7!E29 -> 0 | H26: 235 | I26: =Page7!F29 -> 0 | L26: IMPUESTOS SOBRE VENTAS Y SERVICIOS (IVA e ISAN) | Q26: 324 | R26: 282537 | S26: 23
B27: 24 | E27: OTROS VEHICULOS AUTOMOTORES | H27: 238 | I27: =TBIn!E27 -> 0 | L27: OTROS IMPUESTOS POR PAGAR | Q27: 325 | R27: =TBIn!E1273 -> 0 | S27: 24
B28: 25 | E28: AUTOS USADOS | G28: =Page7!J33 -> 22 | H28: 240 | I28: =Page7!K33 -> 3372886 | L28: IMPUESTOS SOBRE LA RENTA POR PAGAR | Q28: 327 | R28: =TBIn!E1274 -> 0 | S28: 25
B29: 26 | E29: COMERCIALES USADOS | G29: =Page7!J34 -> 0 | H29: 241 | I29: =Page7!K34 -> 0 | L29: BONIFICACIONES Y GRATIF A EMPLEADOS Y PERSONAL | Q29: 328 | R29: =TBIn!E1275 -> 0 | S29: 26
B30: 27 | E30: PARTES Y ACCESORIOS | H30: 242 | I30: =IF(Flag=TRUE,SUM(Page7!F36:F37),TBIn!E1220) -> 5710411 | L30: BONIFICACIONES Y GRATIF A PROPIETARIOS Y FUNC. | Q30: 329 | R30: =TBIn!E1276 -> 0 | S30: 27
B31: 28 | E31: LLANTAS | H31: 243 | I31: =TBIn!E1221 -> 0 | L31: FONDO PARA PRESTACIONES | Q31: 330 | R31: =TBIn!E1277 -> 0 | S31: 28
B32: 29 | E32: GASOLINA Y LUBRICANTES | H32: 244 | I32: =TBIn!E1222 -> 0 | L32: OTRAS CUENTAS POR PAGAR | Q32: 331 | R32: 0 | S32: 29
B33: 30 | E33: PINTURA Y MATERIALES DE CARROCERIA | H33: 245 | I33: =TBIn!E1223 -> 0 | S33: 30
B34: 31 | E34: TRABAJOS EN OTROS TALLERES | H34: 246 | I34: =TBIn!E1224 -> 0 | K34: TOTAL PASIVO CORRIENTE | Q34: (Lineas 7 a 30) | R34: =SUM(R10:R33) -> 54245818 | S34: 31
B35: 32 | E35: TRABAJOS EN PROCESO MANO DE OBRA | H35: 247 | I35: =TBIn!E1225 -> 0 | J35: PASIVOS A LARGO PLAZO | L35: INTERESES COBRADOS POR ANTICIPADO | Q35: 332 | R35: =TBIn!E1279 -> 0 | S35: 32
B36: 33 | E36: MERCANCIAS VARIAS | H36: 252 | I36: =TBIn!E1226 -> 0 | S36: 33
B37: 34 | E37: OTRAS MERCANCIAS RECIBIDAS A CAMBIO | H37: 258 | I37: =TBIn!E1227 -> 0 | L37: PRESTAMOS A LARGO PLAZO | Q37: 334 | R37: 18363147 | S37: 34
B38: 35 | E38: RESERVA OBSOLESCENCIA INVENTARIOS | I38: =Page7!I39*-1 -> 0 | S38: 35
B39: 36 | E39: TOTAL INVENTARIOS | H39: (Lineas 20 a 35) | I39: =SUM(I23:I38) -> 51836675 | L39: IMPUESTOS POR PAGAR A LARGO PLAZO | Q39: 333 | R39: =TBIn!E1281 -> 0 | S39: 36
B40: 37 | D40: OTROS | E40: GASTOS ANTICIPADOS: | G40: IMPUESTOS | H40: 270 | I40: 2030859 | L40: TOTAL | Q40: (Lineas 31 a 36) | R40: =SUM(R34:R39) -> 72608965 | S40: 37
B41: 38 | G41: SEGUROS | H41: 271 | I41: =TBIn!E1229 -> 0 | S41: 38
B42: 39 | G42: OTROS | H42: 274 | I42: 3612934 | L42: HIPOTECAS POR PAGAR - PROPIEDADES | Q42: 335 | R42: =TBIn!E1282 -> 0 | S42: 39
B43: 40 | D43: TOTAL DE ACTIVO CORRIENTE | G43: (Linea 12,19,36 a 39) | I43: =SUM(I39:I42)+I22+I15 -> 105095348 | L43: PROVISION PRIMA DE ANTIGÜEDAD | Q43: 336 | R43: =TBIn!E1283 -> 0 | S43: 40
B44: 41 | C44: ACT D | D44: TRAB | E44: VEH. ENTR. DE CONDUCTORES | G44: =TBIn!$E$150 -> 0 | H44: 275 | I44: =TBIn!E1231 -> 0 | Q44: =IF(R44="","",345) ->  | S44: 41
B45: 42 | E45: VEH. DE ARREND Y ALQUILER | G45: =Page8!F45 -> 0 | H45: 277 | I45: =Page8!H45 -> 0 | L45: TOTAL PASIVO | Q45: (Lineas 37 a 41) | R45: =SUM(R40:R44) -> 72608965 | S45: 42
B46: 43 | E46: DEP ACUM. DE ARREND Y ALQ. | G46: =Page8!E45*-1 -> 0 | J46: CAPITAL | L46: D.L.P. CALIFICADA $ | P46: 18363147 | S46: 43
B47: 44 | C47: TOTAL DE ACTIVO CORRIENTE Y DE TRABAJO | H47: (Lineas 40 a 42) | I47: =SUM(I43:I45) -> 105095348 | J47: NETO DE | L47: DISTRIBUIDOR | P47: =I47-R40+R39+P46 -> 50849530 | S47: 44
B48: 45 | C48: ACTIVOS FIJOS | J48: TRABAJO | L48: ESTANDAR | P48: =TBIn!$AT$3 -> 49334849.84 | S48: 45
B49: 46 | D49: CUENTA | F49: COSTO | G49: DEP ACUM | S49: 46
B50: 47 | C50: ACTIVO FIJO NEGOCIO AUTOM | D50: TERRENO | F50: 869368 | H50: 280 | I50: =F50+G50 -> 869368 | J50: RESUMEN DE UTILIDAD O PERDIDA | S50: 47
B51: 48 | D51: EDIFICOS Y MEJORAS | F51: 9338751 | G51: -6622638 | H51: 281/351 | I51: =F51+G51 -> 2716113 | J51: M E S. | K51: TOT. | L51: NOVOS. | M51: USADOS. | N51: UTILIDAD/ | P51: CAPITAL | Q51: NO. | S51: 48
B52: 49 | D52: INMUEBLES ARRENDADOS | F52: 29641504 | G52: -9250994 | H52: 286/356 | I52: =F52+G52 -> 20390510 | K52: NOVS | L52: MEN. | M52: MEN. | N52: PERDIDA | R52: 40006500 | S52: 49
B53: 50 | D53: EQUIPO DE COMPUTO | F53: 3085361 | G53: -2456559 | H53: 287/357 | I53: 628802 | J53: J | K53: =IF(TBIn!AM18=0,"",TBIn!AM18) -> 92 | L53: =IF(TBIn!AN18=0,"",TBIn!AN18) -> 92 | M53: =IF(TBIn!AO18=0,"",TBIn!AO18) -> 32 | N53: =IF(TBIn!AP18=0,"",TBIn!AP18) -> 982346 | P53: CAPITAL SOCIAL | Q53: 360 | S53: 50
B54: 51 | D54: PROGRAMAS Y LICENCIAS DE COMPUTO | F54: =TBIn!E1238 -> 0 | G54: =IF(Flag=TRUE,TBIn!E1247*-1,TBIn!E1247) -> 0 | H54: 288/358 | I54: 0 | J54: F | K54: =IF(TBIn!AM19=0,"",TBIn!AM19) ->  | L54: =IF(TBIn!AN19=0,"",TBIn!AN19) ->  | M54: =IF(TBIn!AO19=0,"",TBIn!AO19) ->  | N54: =IF(TBIn!AP19=0,"",TBIn!AP19) ->  | S54: 51
B55: 52 | D55: MAQ Y EQ DE TALLER | F55: 4794524 | G55: -1592603 | H55: 282/352 | I55: 3201921 | J55: M | K55: =IF(TBIn!AM20=0,"",TBIn!AM20) ->  | L55: =IF(TBIn!AN20=0,"",TBIn!AN20) ->  | M55: =IF(TBIn!AO20=0,"",TBIn!AO20) ->  | N55: =IF(TBIn!AP20=0,"",TBIn!AP20) ->  | P55: UTILIDADES RETENIDAS | Q55: 370 | R55: 24439005 | S55: 52
B56: 53 | D56: EQUIPO PARA PARTES Y ACCESORIOS | F56: 9865 | G56: -9865 | H56: 283/353 | I56: 0 | J56: A | K56: =IF(TBIn!AM21=0,"",TBIn!AM21) ->  | L56: =IF(TBIn!AN21=0,"",TBIn!AN21) ->  | M56: =IF(TBIn!AO21=0,"",TBIn!AO21) ->  | N56: =IF(TBIn!AP21=0,"",TBIn!AP21) ->  | S56: 53
B57: 54 | D57: MUEBLES Y ENSERES | F57: 3487026 | G57: -1869971 | H57: 284/354 | I57: 1617055 | J57: M | K57: =IF(TBIn!AM22=0,"",TBIn!AM22) ->  | L57: =IF(TBIn!AN22=0,"",TBIn!AN22) ->  | M57: =IF(TBIn!AO22=0,"",TBIn!AO22) ->  | N57: =IF(TBIn!AP22=0,"",TBIn!AP22) ->  | P57: DIVIDENDOS | Q57: 375 | R57: =TBIn!E1286 -> 0 | S57: 54
B58: 55 | D58: VEH USO COMPAÑÍA | F58: 5063962 | G58: -2708613 | H58: 285/355 | I58: 2355349 | J58: J | K58: =IF(TBIn!AM23=0,"",TBIn!AM23) ->  | L58: =IF(TBIn!AN23=0,"",TBIn!AN23) ->  | M58: =IF(TBIn!AO23=0,"",TBIn!AO23) ->  | N58: =IF(TBIn!AP23=0,"",TBIn!AP23) ->  | S58: 55
B59: 56 | D59: OTROS | F59: =TBIn!E1243 -> 0 | G59: =IF(Flag=TRUE,TBIn!E1252*-1,TBIn!E1252) -> 0 | H59: 289/359 | I59: 0 | J59: J | K59: =IF(TBIn!AM24=0,"",TBIn!AM24) ->  | L59: =IF(TBIn!AN24=0,"",TBIn!AN24) ->  | M59: =IF(TBIn!AO24=0,"",TBIn!AO24) ->  | N59: =IF(TBIn!AP24=0,"",TBIn!AP24) ->  | P59: INVERSIONES | Q59: 380 | R59: 0 | S59: 56
B60: 57 | C60: TOTALES | F60: =SUM(F50:F59) -> 56290361 | G60: =SUM(G51:G59) -> -24511243 | H60: (Lineas 47 a 56) | I60: =IF(Flag=TRUE,SUM(I50:I59),TBIn!E1253) -> 31779118 | J60: A | K60: =IF(TBIn!AM25=0,"",TBIn!AM25) ->  | L60: =IF(TBIn!AN25=0,"",TBIn!AN25) ->  | M60: =IF(TBIn!AO25=0,"",TBIn!AO25) ->  | N60: =IF(TBIn!AP25=0,"",TBIn!AP25) ->  | P60: EXCESO O (INSUFICIENCIA) | R60: 0 | S60: 57
B61: 58 | C61: *INF ADIC: VEH COMPAÑIA - AUTOS | F61: 4 | G61: COMERCIALES | H61: 4 | J61: S | K61: =IF(TBIn!AM26=0,"",TBIn!AM26) ->  | L61: =IF(TBIn!AN26=0,"",TBIn!AN26) ->  | M61: =IF(TBIn!AO26=0,"",TBIn!AO26) ->  | N61: =IF(TBIn!AP26=0,"",TBIn!AP26) ->  | P61: POR REEXPRESIÓN | Q61: 385 | S61: 58
B62: 59 | C62: OTROS | D62: ACTIVOS | E62: SEGUROS DE VIDA - VALOR DE RESCATE | H62: 291 | I62: =TBIn!E1254 -> 0 | J62: O | K62: =IF(TBIn!AM27=0,"",TBIn!AM27) ->  | L62: =IF(TBIn!AN27=0,"",TBIn!AN27) ->  | M62: =IF(TBIn!AO27=0,"",TBIn!AO27) ->  | N62: =IF(TBIn!AP27=0,"",TBIn!AP27) ->  | S62: 59
B63: 60 | E63: DOC Y CTAS POR COBRAR - FUNCIONARIOS | H63: 293 | I63: =TBIn!E1255 -> 0 | J63: N | K63: =IF(TBIn!AM28=0,"",TBIn!AM28) ->  | L63: =IF(TBIn!AN28=0,"",TBIn!AN28) ->  | M63: =IF(TBIn!AO28=0,"",TBIn!AO28) ->  | N63: =IF(TBIn!AP28=0,"",TBIn!AP28) ->  | P63: RETIROS | Q63: 390 | R63: =TBIn!E1289 -> 0 | S63: 60
B64: 61 | E64: DOC Y CTAS POR COBRAR - OTROS | H64: 294 | I64: 1162350 | J64: D | K64: =IF(TBIn!AM29=0,"",TBIn!AM29) ->  | L64: =IF(TBIn!AN29=0,"",TBIn!AN29) ->  | M64: =IF(TBIn!AO29=0,"",TBIn!AO29) ->  | N64: =IF(TBIn!AP29=0,"",TBIn!AP29) ->  | P64: REDONDEO | R64: =IF(OR(I68-(SUM(R52:R63)+R66+R45)<-100,I68-(SUM(R52:R63)+R66+R45)>100),0,I68-(SUM(R52:R63)+R66+R45)) -> 0 | S64: 61
B65: 62 | E65: OTRAS INVERSIONES Y ACTIVOS VARIOS | H65: 296 | I65: =IF(Flag=TRUE,Page7!M30,TBIn!E1257) -> 0 | J65: Tot | K65: =SUM(K53:K64) -> 92 | L65: =SUM(L53:L64) -> 92 | M65: =SUM(M53:M64) -> 32 | N65: =SUM(N53:N64) -> 982346 | S65: 62
B66: 63 | J66: UTILIDAD O PERDIDA | Q66: 399 | R66: =Page2!J68 -> 982346 | S66: 63
B67: 64 | E67: TOTAL OTROS ACTIVOS | H67: (Lineas 59 a 63) | I67: =SUM(I62:I66) -> 1162350 | J67: TOTAL CAPITAL NETO (VALIA) | P67: (Lineas 48 a 63) | R67: =SUM(R52:R63)+R66+R64 -> 65427851 | S67: 64
B68: 65 | C68: TOTAL ACTIVOS | I68: =IF(Flag=TRUE,I47+I60+I67,TBIn!E1258) -> 138036816 | J68: TOTAL PASIVO Y CAPITAL NETO | P68: (Lineas 42 a 64) | R68: =IF(Flag=TRUE,R45+R67,TBIn!E1290) -> 138036816 | S68: 65
E91: Mth Count | G91: =TBIn!E2593-TBIn!E4+1 -> 1 | I91: Manual Input Flag
E92: From/Thru Date Table(s) | I92: TRUE
E93: Mes | I93: =C3 -> Sin Proveedor de Sistemas del Distribuidor (captura manual de datos) | M93: =IFERROR(VLOOKUP(I93,$I$94:$M$158,5,FALSE),0) -> 999 | N93: <--To TBOut | O93: =IF(OR(TBIn!$AT$5="",TBIn!$AT$5=0),"Elige un método de captura/Proveedor de Sistemas del Dist.",VLOOKUP(TBIn!$AT$5,$H$94:$I$123,2,FALSE)) -> Elige un método de captura/Proveedor de Sistemas del Dist. | S93: <--from TBIn
D94: 0 | E94: 0 | F94: 2004 | G94: 1 | H94: =M94 -> 0 | I94: Elige un método de captura/Proveedor de Sistemas del Distribuidor | M94: 0
D95: 1 | E95: Enero | F95: 2005 | G95: 2 | H95: =M95 -> 999 | I95: Sin Proveedor de Sistemas del Distribuidor (captura manual de datos) | M95: 999
D96: 2 | E96: Febrero | F96: 2006 | G96: 3 | H96: 0 | M96: 0
D97: 3 | E97: Marzo | F97: 2007 | G97: 4 | H97: 100 | I97: Autoflex | M97: 100
D98: 4 | E98: Abril | F98: 2008 | G98: 5 | H98: 101 | I98: Automagic | M98: 101
D99: 5 | E99: Mayo | F99: 2009 | G99: 6 | H99: 102 | I99: Autosis | M99: 102
D100: 6 | E100: Junio | F100: 2010 | G100: 7 | H100: 103 | I100: Autum | M100: 103
D101: 7 | E101: Julio | F101: 2011 | G101: 8 | H101: 104 | I101: Crescendo | M101: 104
D102: 8 | E102: Agosto | F102: 2012 | G102: 9 | H102: 105 | I102: Duxys | M102: 105
D103: 9 | E103: Septiembre | F103: 2013 | G103: 10 | H103: 106 | I103: Dyse | M103: 106
D104: 10 | E104: Octubre | F104: 2014 | G104: 11 | H104: 107 | I104: Eurocom | M104: 107
D105: 11 | E105: Noviembre | F105: 2015 | G105: 12 | H105: 108 | I105: GDS | M105: 108
D106: 12 | E106: Diciembre | F106: 2016 | G106: 13 | H106: 109 | I106: MacroPro | M106: 109
F107: 2017 | G107: 14 | H107: 110 | I107: Magic | M107: 110
D108: Del año | F108: 2018 | G108: 15 | H108: 111 | I108: Microsip | M108: 111
E109: =G7 -> 2018 | F109: 2019 | G109: 16 | H109: 112 | I109: Misicom | M109: 112
E110: =E109+1 -> 2019 | F110: 2020 | G110: 17 | H110: 113 | I110: Morelos | M110: 113
F111: 2021 | G111: 18 | H111: 114 | I111: Multimarca | M111: 114
F112: 2022 | G112: 19 | H112: 115 | I112: Proactive | M112: 115
F113: 2023 | G113: 20 | H113: 116 | I113: Sisnf | M113: 116
F114: 2024 | G114: 21 | H114: 117 | I114: Softcar | M114: 117
F115: 2025 | G115: 22 | H115: 118 | I115: Starautos | M115: 118
F116: 2026 | G116: 23 | H116: 119 | I116: Universal Computer Services (UCS) | M116: 119
F117: 2027 | G117: 24 | H117: 120 | I117: Zabers | M117: 120
F118: 2028 | G118: 25 | H118: 0 | M118: 0
F119: 2029 | G119: 26 | H119: 0 | M119: 0
F120: 2030 | G120: 27 | H120: 0 | M120: 0
F121: 2031 | G121: 28 | H121: 0 | M121: 0
F122: 2032 | G122: 29 | H122: 0 | M122: 0
F123: 2033 | G123: 30 | H123: 0 | M123: 0
F124: 2034 | G124: 31 | H124: 0 | M124: 0
H125: 0 | M125: 0
E126: System Enviroment Information | H126: 0 | M126: 0
E127: Used Memory | G127: =INFO("memused") ->  | H127: 0 | M127: 0
E128: Available Mem | G128: =INFO("memAvail") ->  | H128: 0 | M128: 0
E129: Total Memory | G129: =INFO("totmem") ->  | H129: 0 | M129: 0
E130: Recal Mode | G130: =INFO("recalc") -> Automáticamente | H130: 0 | M130: 0
E131: Operating System | G131: =INFO("osversion") -> Windows (32-bit) NT 6.01 | H131: 0 | M131: 0
E132: Excel Version | G132: =INFO("release") -> 14.0 | H132: 0 | M132: 0
E133: Directory = | G133: =INFO("directory") -> C:\Users\cqqcontabilidad\Documents\ | H133: 0 | M133: 0
E134: Report Version No. | G134: =OR_VEH!C597 -> v211r7 | H134: 0 | M134: 0
E135: File Name | G135: =MID(CELL("filename",$A$1),FIND("[",CELL("filename",$A$1))+1,FIND("]",CELL("filename",$A$1))-FIND("[",CELL("filename",$A$1))-5) -> Balanza FACTS ENERO 2018. | H135: 0 | M135: 0
H136: 0 | M136: 0
H137: 0 | M137: 0
H138: 0 | M138: 0
H139: 0 | M139: 0
H140: 0 | M140: 0
H141: 0 | M141: 0
H142: 0 | M142: 0
H143: 0 | M143: 0
H144: 0 | M144: 0
H145: 0 | M145: 0
H146: 0 | M146: 0
H147: 0 | M147: 0
H148: 0 | M148: 0
H149: 0 | M149: 0
H150: 0 | M150: 0
H151: 0 | M151: 0
H152: 0 | M152: 0
H153: 0 | M153: 0
H154: 0 | M154: 0
H155: 0 | M155: 0
H156: 0 | M156: 0
H157: 0 | M157: 0
H158: 0 | M158: 0

Sheet Page2
C1: ANALISIS DE GASTOS DEL TOTAL DE LA OPERACION | U1: =TBIn!$E$2591&" - "&TBIn!$AH$10&" - PAGINA 2" -> 122112 - 201801 - PAGINA 2
B2: Lin. | G2: TOTAL DEL DISTRIBUIDOR | M2: OPERACION VARIABLE | Q2: OPERACION FIJA | U2: Lin.
B3: No. | C3: TOTAL DE INGRESOS Y GASTOS | G3: MES | H3: POR VEH. VEND. MENUDEO | I3: % DE LAS VENTAS | J3: AÑO A LA FECHA | K3: POR VEH. VEND. MENUDEO | L3: % DE LAS VENTAS | M3: MES | O3: AÑO A LA FECHA | Q3: MES | S3: AÑO A LA FECHA | U3: No.
B4: 1 | C4: VENTAS NETAS | G4: =Page3!D4+Page3!H4+Page3!L4+Page4!D4+Page4!H4+Page4!L4+Page3!P4 -> 30933639 | H4: =IF(H$73>0,G4/H$73,0) -> 249464.8306 | J4: =Page3!F4+Page3!J4+Page3!N4+Page4!F4+Page4!J4+Page4!N4+Page3!Q4 -> 30933639 | K4: =IF(K$73>0,J4/K$73,0) -> 249464.8306 | M4: =Page3!D4+Page3!H4+Page3!L4+Page3!P4 -> 25076845 | N4: % Vtas. | O4: =Page3!F4+Page3!J4+Page3!N4+Page3!Q4 -> 25076845 | P4: % Vtas. | Q4: =Page4!D4+Page4!H4+Page4!L4 -> 5856794 | R4: % Vtas. | S4: =Page4!F4+Page4!J4+Page4!N4 -> 5856794 | T4: % Vtas. | U4: 1
B5: 2 | C5: UTILIDAD BRUTA / INGRESOS | G5: =M5+Q5 -> 5515318 | H5: =IF(H$73>0,G5/H$73,0) -> 44478.37097 | I5: =IF(G$4>0,G5/G$4,0) -> 0.1782951563 | J5: =O5+S5 -> 5515318 | K5: =IF(K$73>0,J5/K$73,0) -> 44478.37097 | L5: =IF(J$4>0,J5/J$4,0) -> 0.1782951563 | M5: =Page3!D5+Page3!H5+Page3!L5+Page3!P5 -> 3041868 | N5: =IFERROR(M5/M4,0) -> 0.1213018623 | O5: =Page3!F5+Page3!J5+Page3!N5+Page3!Q5 -> 3041868 | P5: =IFERROR(O5/O4,0) -> 0.1213018623 | Q5: =Page4!D5+Page4!H5+Page4!L5 -> 2473450 | R5: =IFERROR(Q5/Q4,0) -> 0.4223214953 | S5: =Page4!F5+Page4!J5+Page4!N5 -> 2473450 | T5: =IFERROR(S5/S4,0) -> 0.4223214953 | U5: 2
B6: 3 | C6: VARIABLES DE VENTAS | E6: GASTOS | F6: NO | H6: % UTIL. BTA. | I6: PUVM | K6: % UTIL. BTA. | L6: PUVM | N6: % Util. | P6: % Util. | U6: 3
B7: 4 | E7: COMPENSACIONES A VENDEDORES VEHICULOS NUEVOS, USADOS Y ARR Y ALQ. | F7: 11 | G7: =Page3!D7+Page3!H7+Page3!L7 -> 1091559 | H7: =IF(G$5>0,G7/G$5,0) -> 0.1979140641 | I7: =IF(H$73>0,G7/H$73,0) -> 8802.895161 | J7: =Page3!F7+Page3!J7+Page3!N7 -> 1091559 | K7: =IF(J$5>0,J7/J$5,0) -> 0.1979140641 | L7: =IF(K$73>0,J7/K$73,0) -> 8802.895161 | M7: =Page3!D7+Page3!H7+Page3!L7 -> 1091559 | N7: =IFERROR(M7/M$5,0) -> 0.3588449597 | O7: =Page3!F7+Page3!J7+Page3!N7 -> 1091559 | P7: =IFERROR(O7/O$5,0) -> 0.3588449597 | U7: 4
B8: 5 | E8: GASTOS DE ENTREGA | F8: 13 | G8: =Page3!D8+Page3!H8+Page3!L8 -> 45521 | H8: =IF(G$5>0,G8/G$5,0) -> 0.008253558544 | I8: =IF(H$73>0,G8/H$73,0) -> 367.1048387 | J8: =Page3!F8+Page3!J8+Page3!N8 -> 45521 | K8: =IF(J$5>0,J8/J$5,0) -> 0.008253558544 | L8: =IF(K$73>0,J8/K$73,0) -> 367.1048387 | M8: =Page3!D8+Page3!H8+Page3!L8 -> 45521 | N8: 0.01496481767 | O8: =Page3!F8+Page3!J8+Page3!N8 -> 45521 | P8: 0.01496481767 | U8: 5
B9: 6 | E9: CORTESIAS A CLIENTES | F9: 15 | G9: =Page3!D9+Page3!H9+Page3!L9 -> 39545 | H9: 0.007170030812 | I9: =IF(H$73>0,G9/H$73,0) -> 318.9112903 | J9: =Page3!$F9+Page3!$J9+Page3!$N9 -> 39545 | K9: 0.007170030812 | L9: =IF(K$73>0,J9/K$73,0) -> 318.9112903 | M9: =Page3!D9+Page3!H9+Page3!L9 -> 39545 | N9: 0.01300023538 | O9: =Page3!F9+Page3!J9+Page3!N9 -> 39545 | P9: 0.01300023538 | U9: 6
B10: 7 | E10: TOTAL VARIABLES | F10: (Lineas 4 a 6) | G10: =SUM(G7:G9) -> 1176625 | H10: 0.2133376534 | I10: =IF(H$73>0,G10/H$73,0) -> 9488.91129 | J10: =SUM(J7:J9) -> 1176625 | K10: 0.2133376534 | L10: =IF(K$73>0,J10/K$73,0) -> 9488.91129 | M10: =SUM(M7:M9) -> 1176625 | N10: 0.3868100128 | O10: =SUM(O7:O9) -> 1176625 | P10: 0.3868100128 | R10: % Util. | T10: % Util. | U10: 7
B11: 8 | C11: G A S T O S S E M I F I J O S G E N E R A L E S | D11: P E R S O N A L | E11: REMUNERACIONES - PROPIETARIOS, GERENTES GENERALES Y OPERADORES | F11: 20 | G11: =Page3!D11+Page3!H11+Page3!L11+Page4!D11+Page4!H11+Page4!L11+Page4!P11 -> 0 | H11: 0 | I11: =IF(G$4>0,G11/G$4,0) -> 0 | J11: =Page3!F11+Page3!J11+Page3!N11+Page4!F11+Page4!J11+Page4!N11+Page4!R11 -> 0 | K11: 0 | L11: =IF(J$4>0,J11/J$4,0) -> 0 | M11: =Page3!D11+Page3!H11+Page3!L11 -> 0 | N11: 0 | O11: =Page3!F11+Page3!J11+Page3!N11 -> 0 | P11: 0 | Q11: =Page4!D11+Page4!H11+Page4!L11 -> 0 | R11: =IFERROR(Q11/Q$5,0) -> 0 | S11: =Page4!F11+Page4!J11+Page4!N11 -> 0 | T11: =IFERROR(S11/S$5,0) -> 0 | U11: 8
B12: 9 | E12: REMUNERACIONES SUPERVISORES | F12: 21 | G12: =Page3!D12+Page3!H12+Page3!L12+Page4!D12+Page4!H12+Page4!L12+Page4!P12 -> 724254 | H12: 0.1313168162 | I12: =IF(G$4>0,G12/G$4,0) -> 0.02341315226 | J12: =Page3!F12+Page3!J12+Page3!N12+Page4!F12+Page4!J12+Page4!N12+Page4!R12 -> 724254 | K12: 0.1313168162 | L12: =IF(J$4>0,J12/J$4,0) -> 0.02341315226 | M12: =Page3!D12+Page3!H12+Page3!L12 -> 256522 | N12: 0.08433041802 | O12: =Page3!F12+Page3!J12+Page3!N12 -> 256522 | P12: 0.08433041802 | Q12: =Page4!D12+Page4!H12+Page4!L12 -> 311783 | R12: 0.1260518709 | S12: =Page4!F12+Page4!J12+Page4!N12 -> 311783 | T12: 0.1260518709 | U12: 9
B13: 10 | E13: REMUNERACIONES EMPLEADOS DE OFICINA Y ADMINISTRATIVOS | F13: 22 | G13: =Page3!D13+Page3!H13+Page3!L13+Page4!D13+Page4!H13+Page4!L13+Page4!P13 -> 469929 | H13: 0.08520433455 | I13: 0.01519152014 | J13: =Page3!F13+Page3!J13+Page3!N13+Page4!F13+Page4!J13+Page4!N13+Page4!R13 -> 469929 | K13: 0.08520433455 | L13: 0.01519152014 | M13: =Page3!D13+Page3!H13+Page3!L13 -> 107445 | N13: 0.03532204553 | O13: =Page3!F13+Page3!J13+Page3!N13 -> 107445 | P13: 0.03532204553 | Q13: =Page4!D13+Page4!H13+Page4!L13 -> 199952 | R13: 0.08083931351 | S13: =Page4!F13+Page4!J13+Page4!N13 -> 199952 | T13: 0.08083931351 | U13: 10
B14: 11 | E14: OTRAS REMUNERACIONES | F14: 23 | G14: =Page3!D14+Page3!H14+Page3!L14+Page4!D14+Page4!H14+Page4!L14+Page4!P14 -> 118329 | H14: 0.0214546106 | I14: 0.003825253149 | J14: =Page3!F14+Page3!J14+Page3!N14+Page4!F14+Page4!J14+Page4!N14+Page4!R14 -> 118329 | K14: 0.0214546106 | L14: 0.003825253149 | M14: =Page3!D14+Page3!H14+Page3!L14 -> 49826 | N14: 0.01638006646 | O14: =Page3!F14+Page3!J14+Page3!N14 -> 49826 | P14: 0.01638006646 | Q14: =Page4!D14+Page4!H14+Page4!L14 -> 68503 | R14: 0.02769532434 | S14: =Page4!F14+Page4!J14+Page4!N14 -> 68503 | T14: 0.02769532434 | U14: 11
B15: 12 | E15: REMUNERACIONES A PERSONAL AUSENTE | F15: 24 | G15: =Page3!D15+Page3!H15+Page3!L15+Page4!D15+Page4!H15+Page4!L15+Page4!P15 -> 94240 | H15: 0.01708695673 | I15: 0.00304652162 | J15: =Page3!F15+Page3!J15+Page3!N15+Page4!F15+Page4!J15+Page4!N15+Page4!R15 -> 94240 | K15: 0.01708695673 | L15: 0.00304652162 | M15: =Page3!D15+Page3!H15+Page3!L15 -> 34214 | N15: 0.01124769385 | O15: =Page3!F15+Page3!J15+Page3!N15 -> 34214 | P15: 0.01124769385 | Q15: =Page4!D15+Page4!H15+Page4!L15 -> 25736 | R15: 0.01040490004 | S15: =Page4!F15+Page4!J15+Page4!N15 -> 25736 | T15: 0.01040490004 | U15: 12
B16: 13 | E16: INCENTIVOS-SUPERVISORES | F16: 26 | G16: =Page3!D16+Page3!H16+Page3!L16+Page4!D16+Page4!H16+Page4!L16+Page4!P16 -> 0 | H16: 0 | I16: 0 | J16: =Page3!F16+Page3!J16+Page3!N16+Page4!F16+Page4!J16+Page4!N16+Page4!R16 -> 0 | K16: 0 | L16: 0 | M16: =Page3!D16+Page3!H16+Page3!L16 -> 0 | N16: 0 | O16: =Page3!F16+Page3!J16+Page3!N16 -> 0 | P16: 0 | Q16: =Page4!D16+Page4!H16+Page4!L16 -> 0 | R16: 0 | S16: =Page4!F16+Page4!J16+Page4!N16 -> 0 | T16: 0 | U16: 13
B17: 14 | E17: CUOTAS E IMPUESTOS SOBRE NOMINAS | F17: 25 | G17: =Page3!D17+Page3!H17+Page3!L17+Page4!D17+Page4!H17+Page4!L17+Page4!P17 -> 333012 | H17: 0.06037947404 | I17: 0.01076536776 | J17: =Page3!F17+Page3!J17+Page3!N17+Page4!F17+Page4!J17+Page4!N17+Page4!R17 -> 333012 | K17: 0.06037947404 | L17: 0.01076536776 | M17: =Page3!D17+Page3!H17+Page3!L17 -> 175907 | N17: 0.05782861058 | O17: =Page3!F17+Page3!J17+Page3!N17 -> 175907 | P17: 0.05782861058 | Q17: =Page4!D17+Page4!H17+Page4!L17 -> 102335 | R17: 0.04137338535 | S17: =Page4!F17+Page4!J17+Page4!N17 -> 102335 | T17: 0.04137338535 | U17: 14
B18: 15 | E18: PRESTACIONES A EMPLEADOS Y TRABAJADORES | F18: 27 | G18: =Page3!D18+Page3!H18+Page3!L18+Page4!D18+Page4!H18+Page4!L18+Page4!P18 -> 88412 | H18: 0.01603026335 | I18: 0.002858118309 | J18: =Page3!F18+Page3!J18+Page3!N18+Page4!F18+Page4!J18+Page4!N18+Page4!R18 -> 88412 | K18: 0.01603026335 | L18: 0.002858118309 | M18: =Page3!D18+Page3!H18+Page3!L18 -> 31414 | N18: 0.01032720683 | O18: =Page3!F18+Page3!J18+Page3!N18 -> 31414 | P18: 0.01032720683 | Q18: =Page4!D18+Page4!H18+Page4!L18 -> 26115 | R18: 0.01055812731 | S18: =Page4!F18+Page4!J18+Page4!N18 -> 26115 | T18: 0.01055812731 | U18: 15
B19: 16 | E19: FONDO PARA PRESTACIONES | F19: 29 | G19: =Page3!D19+Page3!H19+Page3!L19+Page4!D19+Page4!H19+Page4!L19+Page4!P19 -> 0 | H19: 0 | I19: 0 | J19: =Page3!$F19+Page3!$J19+Page3!$N19+Page4!$F19+Page4!$J19+Page4!$N19+Page4!$R19 -> 0 | K19: 0 | L19: 0 | M19: =Page3!D19+Page3!H19+Page3!L19 -> 0 | N19: 0 | O19: =Page3!F19+Page3!J19+Page3!N19 -> 0 | P19: 0 | Q19: =Page4!D19+Page4!H19+Page4!L19 -> 0 | R19: 0 | S19: =Page4!F19+Page4!J19+Page4!N19 -> 0 | T19: 0 | U19: 16
B20: 17 | E20: TOTAL PERSONAL | F20: (Lineas 8 a 16) | G20: =SUM(G11:G19) -> 1828176 | H20: 0.3314724554 | I20: 0.05909993325 | J20: =SUM(J11:J19) -> 1828176 | K20: 0.3314724554 | L20: 0.05909993325 | M20: =SUM(M11:M19) -> 655328 | N20: 0.2154360413 | O20: =SUM(O11:O19) -> 655328 | P20: 0.2154360413 | Q20: =SUM(Q11:Q19) -> 734424 | R20: 0.2969229214 | S20: =SUM(S11:S19) -> 734424 | T20: 0.2969229214 | U20: 17
B21: 18 | D21: S E M I F I J O S | E21: GASTOS VEHICULOS COMPAÑIA | F21: 51 | G21: =Page3!D21+Page3!H21+Page3!L21+Page4!D21+Page4!H21+Page4!L21+Page4!P21 -> 18861 | H21: 0.003419748417 | I21: 0.0006097245785 | J21: =Page3!F21+Page3!J21+Page3!N21+Page4!F21+Page4!J21+Page4!N21+Page4!R21 -> 18861 | K21: 0.003419748417 | L21: 0.0006097245785 | M21: =Page3!D21+Page3!H21+Page3!L21 -> 0 | N21: 0 | O21: =Page3!F21+Page3!J21+Page3!N21 -> 0 | P21: 0 | Q21: =Page4!D21+Page4!H21+Page4!L21 -> 10059 | R21: 0.004066789302 | S21: =Page4!F21+Page4!J21+Page4!N21 -> 10059 | T21: 0.004066789302 | U21: 18
B22: 19 | E22: PAPELERIA Y ARTICULOS DE ESCRITORIO | F22: 60 | G22: =Page3!D22+Page3!H22+Page3!L22+Page4!D22+Page4!H22+Page4!L22+Page4!P22 -> 38642 | H22: 0.007006304985 | I22: 0.001249190242 | J22: =Page3!F22+Page3!J22+Page3!N22+Page4!F22+Page4!J22+Page4!N22+Page4!R22 -> 38642 | K22: 0.007006304985 | L22: 0.001249190242 | M22: =Page3!D22+Page3!H22+Page3!L22 -> 15758 | N22: 0.005180369431 | O22: =Page3!F22+Page3!J22+Page3!N22 -> 15758 | P22: 0.005180369431 | Q22: =Page4!D22+Page4!H22+Page4!L22 -> 18993 | R22: 0.007678748307 | S22: =Page4!F22+Page4!J22+Page4!N22 -> 18993 | T22: 0.007678748307 | U22: 19
B23: 20 | E23: OTROS ARTICULOS DE CONSUMO | F23: 61 | G23: =Page3!D23+Page3!H23+Page3!L23+Page4!D23+Page4!H23+Page4!L23+Page4!P23 -> 51143 | H23: 0.009272901399 | I23: 0.001653313404 | J23: =Page3!F23+Page3!J23+Page3!N23+Page4!F23+Page4!J23+Page4!N23+Page4!R23 -> 51143 | K23: 0.009272901399 | L23: 0.001653313404 | M23: =Page3!D23+Page3!H23+Page3!L23 -> 17802 | N23: 0.005852324953 | O23: =Page3!F23+Page3!J23+Page3!N23 -> 17802 | P23: 0.005852324953 | Q23: =Page4!D23+Page4!H23+Page4!L23 -> 32196 | R23: 0.01301663668 | S23: =Page4!F23+Page4!J23+Page4!N23 -> 32196 | T23: 0.01301663668 | U23: 20
B24: 21 | E24: PUBLICIDAD Y HONORARIOS / COMERCIO ELECTRONICO | F24: 63 | G24: =Page3!D24+Page3!H24+Page3!L24+Page4!D24+Page4!H24+Page4!L24+Page4!P24 -> 47137 | H24: =IF(G$5>0,G24/G$5,0) -> 0.008546560688 | I24: 0.001523810374 | J24: =Page3!F24+Page3!J24+Page3!N24+Page4!F24+Page4!J24+Page4!N24+Page4!R24 -> 47137 | K24: =IF(J$5>0,J24/J$5,0) -> 0.008546560688 | L24: 0.001523810374 | M24: =Page3!D24+Page3!H24+Page3!L24 -> 20065 | N24: 0.00659627571 | O24: =Page3!F24+Page3!J24+Page3!N24 -> 20065 | P24: 0.00659627571 | Q24: =Page4!D24+Page4!H24+Page4!L24 -> 15320 | R24: 0.006193777922 | S24: =Page4!F24+Page4!J24+Page4!N24 -> 15320 | T24: 0.006193777922 | U24: 21
B25: 22 | E25: PUBLICIDAD | F25: 65 | G25: =Page3!D25+Page3!H25+Page3!L25+Page4!D25+Page4!H25+Page4!L25+Page4!P25 -> 172105 | H25: 0.03120490967 | I25: 0.005563684247 | J25: =Page3!F25+Page3!J25+Page3!N25+Page4!F25+Page4!J25+Page4!N25+Page4!R25 -> 172105 | K25: 0.03120490967 | L25: 0.005563684247 | M25: =Page3!D25+Page3!H25+Page3!L25 -> 172105 | N25: 0.05657872071 | O25: =Page3!F25+Page3!J25+Page3!N25 -> 172105 | P25: 0.05657872071 | Q25: =Page4!D25+Page4!H25+Page4!L25 -> 0 | R25: 0 | S25: =Page4!F25+Page4!J25+Page4!N25 -> 0 | T25: 0 | U25: 22
B26: 23 | E26: SU PRESTADORA DE SERVICIO (REEMBOLSO FONDO DE PUBLICIDAD) | F26: 64 | G26: =Page3!D26+Page3!H26+Page3!L26+Page4!D26+Page4!H26+Page4!L26+Page4!P26 -> 0 | H26: 0 | I26: 0 | J26: =Page3!F26+Page3!J26+Page3!N26+Page4!F26+Page4!J26+Page4!N26+Page4!R26 -> 0 | K26: 0 | L26: 0 | M26: =Page3!D26+Page3!H26+Page3!L26 -> 0 | N26: 0 | O26: =Page3!F26+Page3!J26+Page3!N26 -> 0 | P26: 0 | Q26: =Page4!D26+Page4!H26+Page4!L26 -> 0 | R26: 0 | S26: =Page4!F26+Page4!J26+Page4!N26 -> 0 | T26: 0 | U26: 23
B27: 24 | E27: DONATIVOS Y CONTRIBUCIONES | F27: 66 | G27: =Page3!D27+Page3!H27+Page3!L27+Page4!D27+Page4!H27+Page4!L27+Page4!P27 -> 30299 | H27: 0.005493608891 | I27: 0.0009794838557 | J27: =Page3!F27+Page3!J27+Page3!N27+Page4!F27+Page4!J27+Page4!N27+Page4!R27 -> 30299 | K27: 0.005493608891 | L27: 0.0009794838557 | M27: =Page3!D27+Page3!H27+Page3!L27 -> 0 | N27: 0 | O27: =Page3!F27+Page3!J27+Page3!N27 -> 0 | P27: 0 | Q27: =Page4!D27+Page4!H27+Page4!L27 -> 0 | R27: 0 | S27: =Page4!F27+Page4!J27+Page4!N27 -> 0 | T27: 0 | U27: 24
B28: 25 | E28: TRABAJOS DE CORTESÍA Y/O GARANTIA SERVICIO Y REFACCIONES | F28: 67 | G28: =Page3!D28+Page3!H28+Page3!L28+Page4!D28+Page4!H28+Page4!L28+Page4!P28 -> 520 | H28: 9.428286819e-05 | I28: 1.681017872e-05 | J28: =Page3!F28+Page3!J28+Page3!N28+Page4!F28+Page4!J28+Page4!N28+Page4!R28 -> 520 | K28: 9.428286819e-05 | L28: 1.681017872e-05 | Q28: =Page4!D28+Page4!H28+Page4!L28 -> 520 | R28: 0.000210232671 | S28: =Page4!F28+Page4!J28+Page4!N28 -> 520 | T28: 0.000210232671 | U28: 25
B29: 26 | E29: SERVICIOS POR CONTRATO-PROCESAMIENTO DE DATOS | F29: 68 | G29: =Page3!D29+Page3!H29+Page3!L29+Page4!D29+Page4!H29+Page4!L29+Page4!P29 -> 0 | H29: 0 | I29: 0 | J29: =Page3!F29+Page3!J29+Page3!N29+Page4!F29+Page4!J29+Page4!N29+Page4!R29 -> 0 | K29: 0 | L29: 0 | M29: =Page3!D29+Page3!H29+Page3!L29 -> 0 | N29: =IFERROR(M29/M$5,0) -> 0 | O29: =Page3!F29+Page3!J29+Page3!N29 -> 0 | P29: =IFERROR(O29/O$5,0) -> 0 | Q29: =Page4!D29+Page4!H29+Page4!L29 -> 0 | R29: 0 | S29: =Page4!F29+Page4!J29+Page4!N29 -> 0 | T29: 0 | U29: 26
B30: 27 | E30: OTROS SERVICIOS POR CONTRATO | F30: 69 | G30: =Page3!D30+Page3!H30+Page3!L30+Page4!D30+Page4!H30+Page4!L30+Page4!P30 -> 23937 | H30: 0.004340094261 | I30: 0.0007738177846 | J30: =Page3!F30+Page3!J30+Page3!N30+Page4!F30+Page4!J30+Page4!N30+Page4!R30 -> 23937 | K30: 0.004340094261 | L30: 0.0007738177846 | M30: =Page3!D30+Page3!H30+Page3!L30 -> 0 | N30: 0 | O30: =Page3!F30+Page3!J30+Page3!N30 -> 0 | P30: 0 | Q30: =Page4!D30+Page4!H30+Page4!L30 -> 23937 | R30: 0.009677575856 | S30: =Page4!F30+Page4!J30+Page4!N30 -> 23937 | T30: 0.009677575856 | U30: 27
B31: 28 | E31: GASTOS DE VIAJE Y REPRESENTACION | F31: 70 | G31: =Page3!D31+Page3!H31+Page3!L31+Page4!D31+Page4!H31+Page4!L31+Page4!P31 -> 0 | H31: 0 | I31: 0 | J31: =Page3!F31+Page3!J31+Page3!N31+Page4!F31+Page4!J31+Page4!N31+Page4!R31 -> 0 | K31: 0 | L31: 0 | M31: =Page3!D31+Page3!H31+Page3!L31 -> 0 | N31: 0 | O31: =Page3!F31+Page3!J31+Page3!N31 -> 0 | P31: 0 | Q31: =Page4!D31+Page4!H31+Page4!L31 -> 0 | R31: 0 | S31: =Page4!F31+Page4!J31+Page4!N31 -> 0 | T31: 0 | U31: 28
B32: 29 | E32: CUOTAS Y SUSCRIPCIONES | F32: 71 | G32: =Page3!D32+Page3!H32+Page3!L32+Page4!D32+Page4!H32+Page4!L32+Page4!P32 -> 3809 | H32: 0.0006906220095 | I32: 0.0001231345591 | J32: =Page3!F32+Page3!J32+Page3!N32+Page4!F32+Page4!J32+Page4!N32+Page4!R32 -> 3809 | K32: 0.0006906220095 | L32: 0.0001231345591 | M32: =Page3!D32+Page3!H32+Page3!L32 -> 770 | N32: 0.0002531339295 | O32: =Page3!F32+Page3!J32+Page3!N32 -> 770 | P32: 0.0002531339295 | Q32: =Page4!D32+Page4!H32+Page4!L32 -> 3039 | R32: 0.001228648244 | S32: =Page4!F32+Page4!J32+Page4!N32 -> 3039 | T32: 0.001228648244 | U32: 29
B33: 30 | E33: LEGALES Y DE AUDITORIA | F33: 72 | G33: =Page3!D33+Page3!H33+Page3!L33+Page4!D33+Page4!H33+Page4!L33+Page4!P33 -> 48643 | H33: 0.008819618379 | I33: 0.001572495237 | J33: =Page3!F33+Page3!J33+Page3!N33+Page4!F33+Page4!J33+Page4!N33+Page4!R33 -> 48643 | K33: 0.008819618379 | L33: 0.001572495237 | M33: =Page3!D33+Page3!H33+Page3!L33 -> 2764 | N33: 0.0009086521835 | O33: =Page3!F33+Page3!J33+Page3!N33 -> 2764 | P33: 0.0009086521835 | Q33: =Page4!D33+Page4!H33+Page4!L33 -> 5528 | R33: 0.00223493501 | S33: =Page4!F33+Page4!J33+Page4!N33 -> 5528 | T33: 0.00223493501 | U33: 30
B34: 31 | E34: TELEFONO | F34: 74 | G34: =Page3!D34+Page3!H34+Page3!L34+Page4!D34+Page4!H34+Page4!L34+Page4!P34 -> 56803 | H34: 0.01029913416 | I34: 0.001836285734 | J34: =Page3!F34+Page3!J34+Page3!N34+Page4!F34+Page4!J34+Page4!N34+Page4!R34 -> 56803 | K34: 0.01029913416 | L34: 0.001836285734 | M34: =Page3!D34+Page3!H34+Page3!L34 -> 37271 | N34: 0.01225266843 | O34: =Page3!F34+Page3!J34+Page3!N34 -> 37271 | P34: 0.01225266843 | Q34: =Page4!D34+Page4!H34+Page4!L34 -> 12319 | R34: 0.004980492834 | S34: =Page4!F34+Page4!J34+Page4!N34 -> 12319 | T34: 0.004980492834 | U34: 31
B35: 32 | E35: GASTOS DE CAPACITACION | F35: 75 | G35: =Page3!D35+Page3!H35+Page3!L35+Page4!D35+Page4!H35+Page4!L35+Page4!P35 -> 39337 | H35: 0.007132317665 | I35: 0.001271657693 | J35: =Page3!F35+Page3!J35+Page3!N35+Page4!F35+Page4!J35+Page4!N35+Page4!R35 -> 39337 | K35: 0.007132317665 | L35: 0.001271657693 | M35: =Page3!D35+Page3!H35+Page3!L35 -> 39337 | N35: 0.01293185635 | O35: =Page3!F35+Page3!J35+Page3!N35 -> 39337 | P35: 0.01293185635 | Q35: =Page4!D35+Page4!H35+Page4!L35 -> 0 | R35: 0 | S35: =Page4!F35+Page4!J35+Page4!N35 -> 0 | T35: 0 | U35: 32
B36: 33 | E36: INTERESES PLAN PISO | F36: 76 | G36: =Page3!D36+Page3!H36+Page3!L36+Page4!D36+Page4!H36+Page4!L36+Page4!P36 -> 350888 | H36: 0.06362062895 | I36: 0.01134324998 | J36: =Page3!F36+Page3!J36+Page3!N36+Page4!F36+Page4!J36+Page4!N36+Page4!R36 -> 350888 | K36: 0.06362062895 | L36: 0.01134324998 | M36: =Page3!D36+Page3!H36+Page3!L36 -> 350888 | N36: 0.1153528029 | O36: =Page3!F36+Page3!J36+Page3!N36 -> 350888 | P36: 0.1153528029 | U36: 33
B37: 34 | U37: 34
B38: 35 | E38: GASTOS POR INTERESES Y COMISIONES DIVERSOS | F38: 79 | G38: =Page3!D38+Page3!H38+Page3!L38+Page4!D38+Page4!H38+Page4!L38+Page4!P38 -> 51310 | H38: 0.009303180705 | I38: 0.001658712058 | J38: =Page3!F38+Page3!J38+Page3!N38+Page4!F38+Page4!J38+Page4!N38+Page4!R38 -> 51310 | K38: 0.009303180705 | L38: 0.001658712058 | M38: =Page3!D38+Page3!H38+Page3!L38 -> 0 | N38: =IFERROR(M38/M$5,0) -> 0 | O38: =Page3!F38+Page3!J38+Page3!N38 -> 0 | P38: =IFERROR(O38/O$5,0) -> 0 | Q38: =Page4!D38+Page4!H38+Page4!L38 -> 0 | R38: =IFERROR(Q38/Q$5,0) -> 0 | S38: =Page4!F38+Page4!J38+Page4!N38 -> 0 | T38: =IFERROR(S38/S$5,0) -> 0 | U38: 35
B39: 36 | E39: SEGUROS SOBRE INVENTARIO | F39: 56 | G39: =Page3!D39+Page3!H39+Page3!L39+Page4!D39+Page4!H39+Page4!L39+Page4!P39 -> 0 | H39: 0 | I39: 0 | J39: =Page3!F39+Page3!J39+Page3!N39+Page4!F39+Page4!J39+Page4!N39+Page4!R39 -> 0 | K39: 0 | L39: 0 | M39: =Page3!D39+Page3!H39+Page3!L39 -> 0 | N39: 0 | O39: =Page3!F39+Page3!J39+Page3!N39 -> 0 | P39: 0 | U39: 36
B40: 37 | E40: RESERVA PARA CUENTAS INCOBRABLES | F40: 57 | G40: =Page3!D40+Page3!H40+Page3!L40+Page4!D40+Page4!H40+Page4!L40+Page4!P40 -> 0 | H40: =IF(G$5>0,G40/G$5,0) -> 0 | I40: 0 | J40: =Page3!F40+Page3!J40+Page3!N40+Page4!F40+Page4!J40+Page4!N40+Page4!R40 -> 0 | K40: =IF(J$5>0,J40/J$5,0) -> 0 | L40: 0 | M40: =Page3!D40+Page3!H40+Page3!L40 -> 0 | N40: 0 | O40: =Page3!F40+Page3!J40+Page3!N40 -> 0 | P40: 0 | Q40: =Page4!D40+Page4!H40+Page4!L40 -> 0 | R40: =IFERROR(Q40/Q$5,0) -> 0 | S40: =Page4!F40+Page4!J40+Page4!N40 -> 0 | T40: =IFERROR(S40/S$5,0) -> 0 | U40: 37
B41: 38 | E41: EMBARQUES | F41: 33 | G41: =Page3!D41+Page3!H41+Page3!L41+Page4!D41+Page4!H41+Page4!L41+Page4!P41 -> 7500 | H41: 0.00135984906 | I41: 0.0002424545007 | J41: =Page3!F41+Page3!J41+Page3!N41+Page4!F41+Page4!J41+Page4!N41+Page4!R41 -> 7500 | K41: 0.00135984906 | L41: 0.0002424545007 | M41: =Page3!D41+Page3!H41+Page3!L41 -> 0 | N41: 0 | O41: =Page3!F41+Page3!J41+Page3!N41 -> 0 | P41: 0 | Q41: =Page4!D41+Page4!H41+Page4!L41 -> 7500 | R41: 0.003032201985 | S41: =Page4!F41+Page4!J41+Page4!N41 -> 7500 | T41: 0.003032201985 | U41: 38
B42: 39 | E42: GASTOS DIVERSOS | F42: 77 | G42: =Page3!D42+Page3!H42+Page3!L42+Page4!D42+Page4!H42+Page4!L42+Page4!P42 -> 50215 | H42: 0.009104642742 | I42: 0.001623313701 | J42: =Page3!F42+Page3!J42+Page3!N42+Page4!F42+Page4!J42+Page4!N42+Page4!R42 -> 50215 | K42: 0.009104642742 | L42: 0.001623313701 | M42: =Page3!D42+Page3!H42+Page3!L42 -> 21378 | N42: 0.007027918371 | O42: =Page3!F42+Page3!J42+Page3!N42 -> 21378 | P42: 0.007027918371 | Q42: =Page4!D42+Page4!H42+Page4!L42 -> 18110 | R42: 0.00732175706 | S42: =Page4!F42+Page4!J42+Page4!N42 -> 18110 | T42: 0.00732175706 | U42: 39
B43: 40 | E43: TOTAL SEMI-FIJOS | F43: (Lineas 18 a 39) | G43: =SUM(G21:G42) -> 991149 | H43: 0.1797084048 | I43: 0.03204113813 | J43: =SUM(J21:J42) -> 991149 | K43: 0.1797084048 | L43: 0.03204113813 | M43: =SUM(M21:M42) -> 678138 | N43: 0.222934723 | O43: =SUM(O21:O42) -> 678138 | P43: 0.222934723 | Q43: =SUM(Q21:Q42) -> 147521 | R43: 0.05964179587 | S43: =SUM(S21:S42) -> 147521 | T43: 0.05964179587 | U43: 40
B44: 41 | D44: F I J O S | E44: RENTA | F44: 80 | G44: =Page3!D44+Page3!H44+Page3!L44+Page4!D44+Page4!H44+Page4!L44+Page4!P44 -> 329621 | H44: 0.05976464095 | I44: 0.010655746 | J44: =Page3!F44+Page3!J44+Page3!N44+Page4!F44+Page4!J44+Page4!N44+Page4!R44 -> 329621 | K44: 0.05976464095 | L44: 0.010655746 | M44: =Page3!D44+Page3!H44+Page3!L44 -> 172278 | N44: 0.05663559365 | O44: =Page3!F44+Page3!J44+Page3!N44 -> 172278 | P44: 0.05663559365 | Q44: =Page4!D44+Page4!H44+Page4!L44 -> 131119 | R44: 0.05301057228 | S44: =Page4!F44+Page4!J44+Page4!N44 -> 131119 | T44: 0.05301057228 | U44: 41
B45: 42 | E45: AMORTIZACION DE INVERSIONES EN INMUEBLES ARRENDADOS | F45: 81 | G45: =Page3!D45+Page3!H45+Page3!L45+Page4!D45+Page4!H45+Page4!L45+Page4!P45 -> 112338 | H45: 0.02036836317 | I45: 0.003631580494 | J45: =Page3!F45+Page3!J45+Page3!N45+Page4!F45+Page4!J45+Page4!N45+Page4!R45 -> 112338 | K45: 0.02036836317 | L45: 0.003631580494 | M45: =Page3!D45+Page3!H45+Page3!L45 -> 56169 | N45: 0.0184652983 | O45: =Page3!F45+Page3!J45+Page3!N45 -> 56169 | P45: 0.0184652983 | Q45: =Page4!D45+Page4!H45+Page4!L45 -> 0 | R45: 0 | S45: =Page4!F45+Page4!J45+Page4!N45 -> 0 | T45: 0 | U45: 42
B46: 43 | E46: MANTENIMIENTO DE EDIFICIOS | F46: 82 | G46: =Page3!D46+Page3!H46+Page3!L46+Page4!D46+Page4!H46+Page4!L46+Page4!P46 -> 5530 | H46: 0.001002662041 | I46: 0.0001787697852 | J46: =Page3!F46+Page3!J46+Page3!N46+Page4!F46+Page4!J46+Page4!N46+Page4!R46 -> 5530 | K46: 0.001002662041 | L46: 0.0001787697852 | M46: =Page3!D46+Page3!H46+Page3!L46 -> 3790 | N46: 0.001245944926 | O46: =Page3!F46+Page3!J46+Page3!N46 -> 3790 | P46: 0.001245944926 | Q46: =Page4!D46+Page4!H46+Page4!L46 -> 1160 | R46: 0.0004689805737 | S46: =Page4!F46+Page4!J46+Page4!N46 -> 1160 | T46: 0.0004689805737 | U46: 43
B47: 44 | E47: DEPRECIACION DE EDIFICIOS Y MEJORAS | F47: 83 | G47: =Page3!D47+Page3!H47+Page3!L47+Page4!D47+Page4!H47+Page4!L47+Page4!P47 -> 21414 | H47: 0.003882641037 | I47: 0.0006922560905 | J47: =Page3!F47+Page3!J47+Page3!N47+Page4!F47+Page4!J47+Page4!N47+Page4!R47 -> 21414 | K47: 0.003882641037 | L47: 0.0006922560905 | M47: =Page3!D47+Page3!H47+Page3!L47 -> 10707 | N47: 0.003519876602 | O47: =Page3!F47+Page3!J47+Page3!N47 -> 10707 | P47: 0.003519876602 | Q47: =Page4!D47+Page4!H47+Page4!L47 -> 0 | R47: 0 | S47: =Page4!F47+Page4!J47+Page4!N47 -> 0 | T47: 0 | U47: 44
B48: 45 | E48: IMPUESTOS SOBRE PROPIEDADES (PREDIAL) | F48: 84 | G48: =Page3!D48+Page3!H48+Page3!L48+Page4!D48+Page4!H48+Page4!L48+Page4!P48 -> 0 | H48: 0 | I48: 0 | J48: =Page3!F48+Page3!J48+Page3!N48+Page4!F48+Page4!J48+Page4!N48+Page4!R48 -> 0 | K48: 0 | L48: 0 | M48: =Page3!D48+Page3!H48+Page3!L48 -> 0 | N48: 0 | O48: =Page3!F48+Page3!J48+Page3!N48 -> 0 | P48: 0 | Q48: =Page4!D48+Page4!H48+Page4!L48 -> 0 | R48: 0 | S48: =Page4!F48+Page4!J48+Page4!N48 -> 0 | T48: 0 | U48: 45
B49: 46 | E49: SEGUROS EDIFICIOS Y MEJORAS | F49: 85 | G49: =Page3!D49+Page3!H49+Page3!L49+Page4!D49+Page4!H49+Page4!L49+Page4!P49 -> 2313 | H49: 0.0004193774502 | I49: 7.477296803e-05 | J49: =Page3!F49+Page3!J49+Page3!N49+Page4!F49+Page4!J49+Page4!N49+Page4!R49 -> 2313 | K49: 0.0004193774502 | L49: 7.477296803e-05 | M49: =Page3!D49+Page3!H49+Page3!L49 -> 0 | N49: 0 | O49: =Page3!F49+Page3!J49+Page3!N49 -> 0 | P49: 0 | Q49: =Page4!D49+Page4!H49+Page4!L49 -> 2313 | R49: 0.0009351310922 | S49: =Page4!F49+Page4!J49+Page4!N49 -> 2313 | T49: 0.0009351310922 | U49: 46
B50: 47 | E50: INTERESES SOBRE HIPOTECAS | F50: 86 | G50: =Page3!D50+Page3!H50+Page3!L50+Page4!D50+Page4!H50+Page4!L50+Page4!P50 -> 0 | H50: 0 | I50: 0 | J50: =Page3!F50+Page3!J50+Page3!N50+Page4!F50+Page4!J50+Page4!N50+Page4!R50 -> 0 | K50: 0 | L50: 0 | M50: =Page3!D50+Page3!H50+Page3!L50 -> 0 | N50: 0 | O50: =Page3!F50+Page3!J50+Page3!N50 -> 0 | P50: 0 | Q50: =Page4!D50+Page4!H50+Page4!L50 -> 0 | R50: 0 | S50: =Page4!F50+Page4!J50+Page4!N50 -> 0 | T50: 0 | U50: 47
B51: 48 | E51: LUZ, FUERZA, AGUA Y CALEFACCION | F51: 87 | G51: =Page3!D51+Page3!H51+Page3!L51+Page4!D51+Page4!H51+Page4!L51+Page4!P51 -> 47592 | H51: =IF(G$5>0,G51/G$5,0) -> 0.008629058198 | I51: =IF(G$4>0,G51/G$4,0) -> 0.00153851928 | J51: =Page3!F51+Page3!J51+Page3!N51+Page4!F51+Page4!J51+Page4!N51+Page4!R51 -> 47592 | K51: =IF(J$5>0,J51/J$5,0) -> 0.008629058198 | L51: =IF(J$4>0,J51/J$4,0) -> 0.00153851928 | M51: =Page3!D51+Page3!H51+Page3!L51 -> 17237 | N51: 0.005666583823 | O51: =Page3!F51+Page3!J51+Page3!N51 -> 17237 | P51: 0.005666583823 | Q51: =Page4!D51+Page4!H51+Page4!L51 -> 25596 | R51: 0.01034829893 | S51: =Page4!F51+Page4!J51+Page4!N51 -> 25596 | T51: 0.01034829893 | U51: 48
B52: 49 | E52: SUB-TOTAL INMUEBLE Y EQUIVALENTES | F52: (Lineas 41 a 48) | G52: =SUM(G44:G51) -> 518808 | H52: 0.09406674284 | I52: 0.01677164462 | J52: =SUM(J44:J51) -> 518808 | K52: 0.09406674284 | L52: 0.01677164462 | M52: =SUM(M44:M51) -> 260181 | N52: 0.0855332973 | O52: =SUM(O44:O51) -> 260181 | P52: 0.0855332973 | Q52: =SUM(Q44:Q51) -> 160188 | R52: 0.06476298288 | S52: =SUM(S44:S51) -> 160188 | T52: 0.06476298288 | U52: 49
B53: 50 | E53: OTROS SEGUROS | F53: 88 | G53: =Page3!D53+Page3!H53+Page3!L53+Page4!D53+Page4!H53+Page4!L53+Page4!P53 -> 39530 | H53: 0.007167311114 | I53: 0.001277896855 | J53: =Page3!F53+Page3!J53+Page3!N53+Page4!F53+Page4!J53+Page4!N53+Page4!R53 -> 39530 | K53: 0.007167311114 | L53: 0.001277896855 | M53: =Page3!D53+Page3!H53+Page3!L53 -> 29705 | N53: 0.009765381009 | O53: =Page3!F53+Page3!J53+Page3!N53 -> 29705 | P53: 0.009765381009 | Q53: =Page4!D53+Page4!H53+Page4!L53 -> 2313 | R53: 0.0009351310922 | S53: =Page4!F53+Page4!J53+Page4!N53 -> 2313 | T53: 0.0009351310922 | U53: 50
B54: 51 | E54: OTROS IMPUESTOS | F54: 89 | G54: =Page3!D54+Page3!H54+Page3!L54+Page4!D54+Page4!H54+Page4!L54+Page4!P54 -> 47309 | H54: 0.00857774656 | I54: 0.001529370663 | J54: =Page3!F54+Page3!J54+Page3!N54+Page4!F54+Page4!J54+Page4!N54+Page4!R54 -> 47309 | K54: 0.00857774656 | L54: 0.001529370663 | M54: =Page3!D54+Page3!H54+Page3!L54 -> 0 | N54: 0 | O54: =Page3!F54+Page3!J54+Page3!N54 -> 0 | P54: 0 | Q54: =Page4!D54+Page4!H54+Page4!L54 -> 0 | R54: 0 | S54: =Page4!F54+Page4!J54+Page4!N54 -> 0 | T54: 0 | U54: 51
B55: 52 | E55: MANTENIMIENTO EN EQUIPO | F55: 90 | G55: =Page3!D55+Page3!H55+Page3!L55+Page4!D55+Page4!H55+Page4!L55+Page4!P55 -> 30905 | H55: 0.005603484695 | I55: 0.0009990741794 | J55: =Page3!F55+Page3!J55+Page3!N55+Page4!F55+Page4!J55+Page4!N55+Page4!R55 -> 30905 | K55: 0.005603484695 | L55: 0.0009990741794 | M55: =Page3!D55+Page3!H55+Page3!L55 -> 22421 | N55: 0.007370799785 | O55: =Page3!F55+Page3!J55+Page3!N55 -> 22421 | P55: 0.007370799785 | Q55: =Page4!D55+Page4!H55+Page4!L55 -> 0 | R55: 0 | S55: =Page4!F55+Page4!J55+Page4!N55 -> 0 | T55: 0 | U55: 52
B56: 53 | E56: DEPRECIACION DE EQUIPO | F56: 91 | G56: =Page3!D56+Page3!H56+Page3!L56+Page4!D56+Page4!H56+Page4!L56+Page4!P56 -> 171855 | H56: =IF(G$5>0,G56/G$5,0) -> 0.03115958137 | I56: 0.00555560243 | J56: =Page3!F56+Page3!J56+Page3!N56+Page4!F56+Page4!J56+Page4!N56+Page4!R56 -> 171855 | K56: =IF(J$5>0,J56/J$5,0) -> 0.03115958137 | L56: 0.00555560243 | M56: =Page3!D56+Page3!H56+Page3!L56 -> 78996 | N56: 0.0259695687 | O56: =Page3!F56+Page3!J56+Page3!N56 -> 78996 | P56: 0.0259695687 | Q56: =Page4!D56+Page4!H56+Page4!L56 -> 64184 | R56: 0.02594918029 | S56: =Page4!F56+Page4!J56+Page4!N56 -> 64184 | T56: 0.02594918029 | U56: 53
B57: 54 | E57: ARRENDAMIENTO DE EQUIPO | F57: 92 | G57: =Page3!D57+Page3!H57+Page3!L57+Page4!D57+Page4!H57+Page4!L57+Page4!P57 -> 16991 | H57: 0.003080692718 | I57: 0.0005492725896 | J57: =Page3!F57+Page3!J57+Page3!N57+Page4!F57+Page4!J57+Page4!N57+Page4!R57 -> 16991 | K57: 0.003080692718 | L57: 0.0005492725896 | M57: =Page3!D57+Page3!H57+Page3!L57 -> 6796 | N57: 0.002234153487 | O57: =Page3!F57+Page3!J57+Page3!N57 -> 6796 | P57: 0.002234153487 | Q57: =Page4!D57+Page4!H57+Page4!L57 -> 5947 | R57: 0.002404334027 | S57: =Page4!F57+Page4!J57+Page4!N57 -> 5947 | T57: 0.002404334027 | U57: 54
B58: 55 | E58: TOTAL FIJOS | F58: (Lineas 50 a 54) | G58: =SUM(G52:G57) -> 825398 | H58: 0.1496555593 | I58: 0.02668286133 | J58: =SUM(J52:J57) -> 825398 | K58: 0.1496555593 | L58: 0.02668286133 | M58: =SUM(M52:M57) -> 398099 | N58: 0.1308732003 | O58: =SUM(O52:O57) -> 398099 | P58: 0.1308732003 | Q58: =SUM(Q52:Q57) -> 232632 | R58: 0.09405162829 | S58: =SUM(S52:S57) -> 232632 | T58: 0.09405162829 | U58: 55
B59: 56 | C59: TOTAL GASTOS FIJOS GENERALES (Lineas 17,40 y 55) | G59: =G58+G43+G20 -> 3644723 | H59: 0.6608364196 | I59: 0.1178239327 | J59: =J58+J43+J20 -> 3644723 | K59: 0.6608364196 | L59: 0.1178239327 | M59: =M58+M43+M20 -> 1731565 | N59: 0.5692439646 | O59: =O58+O43+O20 -> 1731565 | P59: 0.5692439646 | Q59: =Page4!D59+Page4!H59+Page4!L59 -> 1114577 | R59: 0.4506163456 | S59: =Page4!F59+Page4!J59+Page4!N59 -> 1114577 | T59: 0.4506163456 | U59: 56
B60: 57 | C60: T O T A L E S | D60: GASTOS TOTALES (INCLUYENDO PRORATEO DE GENERALES Y DE ADMINISTRACION) | F60: (Lineas 7 y 56) | G60: =G59+G10 -> 4821348 | H60: 0.874174073 | I60: 0.155861003 | J60: =J59+J10 -> 4821348 | K60: 0.874174073 | L60: 0.155861003 | M60: =M59+M10+((Page3!D63+Page3!H63+Page3!L63)*-1) -> 3551010 | N60: 1.167378072 | O60: =O59+O10+((Page3!F63+Page3!J63+Page3!N63)*-1) -> 3551010 | P60: 1.167378072 | Q60: =Q59+Q10+((Page4!D63+Page4!H63+Page4!L63)*-1) -> 1270338 | R60: 0.5135895207 | S60: =S59+S10+((Page4!F63+Page4!J63+Page4!N63)*-1) -> 1270338 | T60: 0.5135895207 | U60: 57
B61: 58 | D61: UTILIDAD O PERDIDA EN OPERACION | F61: (Lineas 2 - 57) | G61: =G5-G60 -> 693970 | H61: 0.125825927 | I61: 0.02243415332 | J61: =J5-J60 -> 693970 | K61: 0.125825927 | L61: 0.02243415332 | M61: =M5-M60 -> -509142 | N61: -0.1673780716 | O61: =O5-O60 -> -509142 | P61: -0.1673780716 | Q61: =Q5-Q60 -> 1203112 | R61: 0.4864104793 | S61: =S5-S60 -> 1203112 | T61: 0.4864104793 | U61: 58
B62: 59 | D62: NETO DE INGRESOS Y DEDUCCIONES | F62: (de pág. 3 Linea 67) | G62: =Page3!L70 -> 288376 | H62: 0.05228637768 | I62: 0.009322407881 | J62: =Page3!N70 -> 288376 | K62: 0.05228637768 | L62: 0.009322407881 | U62: 59
B63: 60 | D63: UTILIDAD O PERDIDA NETA ANTES DE GRATIF. Y BONIF. E IMPUESTOS SOBRE LA RENTA | F63: (Lineas 58 y 59) | G63: =G61+G62 -> 982346 | H63: 0.1781123047 | I63: 0.0317565612 | J63: =J61+J62 -> 982346 | K63: 0.1781123047 | L63: 0.0317565612 | U63: 60
B64: 61 | D64: GRATIFICACIONES Y BONOS A EMPLEADOS Y TRABAJADORES | F64: 97 | G64: =IF(Flag=TRUE,(J64-TBIn!E1338),TBIn!D1338) -> 0 | H64: 0 | I64: 0 | J64: =TBIn!E1338 -> 0 | K64: 0 | L64: 0 | U64: 61
B65: 62 | D65: GRATIFICACIONES Y BONOS A PROPIETARIOS | F65: 98 | G65: =IF(Flag=TRUE,(J65-TBIn!E1339),TBIn!D1339) -> 0 | H65: 0 | I65: 0 | J65: =TBIn!E1339 -> 0 | K65: 0 | L65: 0 | U65: 62
B66: 63 | D66: UTILIDAD O PERDIDA NETA ANTES DE IMPUESTOS SOBRE LA RENTA | F66: (Lineas 60 - 61 - 62) | G66: =G63-G64-G65 -> 982346 | H66: 0.1781123047 | I66: 0.0317565612 | J66: =J63-J64-J65 -> 982346 | K66: 0.1781123047 | L66: 0.0317565612 | U66: 63
B67: 64 | D67: IMPUESTO SOBRE LA RENTA | F67: 99 | G67: =IF(Flag=TRUE,(J67-TBIn!E1340),TBIn!D1340) -> 0 | H67: 0 | I67: 0 | J67: =TBIn!E1340 -> 0 | K67: 0 | L67: 0 | U67: 64
B68: 65 | D68: UTILIDAD O PERDIDA NETA DESPUES DE IMPUESTOS SOBRE LA RENTA | F68: (Lineas 63 - 64) | G68: =G66-G67 -> 982346 | H68: 0.1781123047 | I68: 0.0317565612 | J68: =J66-J67 -> 982346 | K68: 0.1781123047 | L68: 0.0317565612 | U68: 65
E73: N+U Reatil Units | H73: =(Page6!F4+Page6!F5+Page6!F7+Page6!F8+Page7!E66+Page7!E70) -> 124 | K73: =(Page6!K4+Page6!K5+Page6!K7+Page6!K8+Page7!J66+Page7!J70) -> 124

Sheet Page3
B1: OPERACIONES VARIABLES - RENTABILIDAD DEPARTAMENTAL | R1: =TBIn!$E$2591&" - "&TBIn!$AH$10&" - PAGINA 3" -> 122112 - 201801 - PAGINA 3
A2: Lin. | D2: DEPTO. VEHICULOS NUEVOS. (01) | H2: DEPTO. VEHICULOS USADOS (02) | L2: DEPTO. DE ARRENDAMIENTO Y ALQUILER (03) | P2: F&I, & PLANES DE PROTECCION (04) | R2: Lin.
A3: No. | D3: MES | F3: AÑO A LA FECHA | H3: MES | J3: AÑO A LA FECHA | L3: MES | N3: AÑO A LA FECHA | P3: MES | Q3: AÑO A LA FECHA | R3: No.
A4: 1 | B4: VENTAS NETAS | D4: =Page7!F76 -> 18954326 | E4: % Vtas. | F4: =Page7!K76 -> 18954326 | G4: % Vtas. | H4: =Page6!G17 -> 5216600 | I4: % Vtas. | J4: =Page6!L17 -> 5216600 | K4: % Vtas. | L4: =Page8!H12+Page8!H26 -> 0 | M4: % Vtas. | N4: =Page8!J12+Page8!J26 -> 0 | O4: % Vtas. | P4: =Page7!F22+Page8!H54 -> 905919 | Q4: =Page7!K22+Page8!O54 -> 905919 | R4: 1
A5: 2 | B5: UTILIDAD BRUTA / INGRESOS | D5: =Page7!H76 -> 1415159 | E5: =IFERROR(D5/D4,0) -> 0.07466153109 | F5: =Page7!M76 -> 1415159 | G5: =IFERROR(F5/F4,0) -> 0.07466153109 | H5: =Page6!I17 -> 743517 | I5: =IFERROR(H5/H4,0) -> 0.1425290419 | J5: =Page6!N17 -> 743517 | K5: =IFERROR(J5/J4,0) -> 0.1425290419 | L5: =Page8!H27 -> 0 | M5: =IFERROR(L5/L4,0) -> 0 | N5: =Page8!J27 -> 0 | O5: =IFERROR(N5/N4,0) -> 0 | P5: =Page7!H22+Page8!K54 -> 883192 | Q5: =Page7!M22+Page8!Q54 -> 883192 | R5: 2
A6: 3 | B6: GASTOS | E6: % UTIL. BTA. | G6: % UTIL BTA | I6: % UTIL. BTA. | K6: % UTIL BTA | M6: % UTIL. BTA. | O6: % UTIL BTA | P6: NUEVOS - COMP. VENDEDORES PUNV | R6: 3
A7: 4 | B7: COMPENSACIONES A VENDEDORES VEHICULOS NUEVOS, USADOS Y ARR Y ALQ. | C7: 11 | D7: =IF(Flag=TRUE,(F7-TBIn!E1291),TBIn!D1291) -> 975986 | E7: =IFERROR(D7/(D$5+D$62),0) -> 0.424646192 | F7: 975986 | G7: =IFERROR(F7/(F$5+F$62),0) -> 0.424646192 | H7: =IF(Flag=TRUE,(J7-TBIn!E1341),TBIn!D1341) -> 115573 | I7: =IFERROR(H7/(H$5+H$62),0) -> 0.155440965 | J7: 115573 | K7: =IFERROR(J7/(J$5+J$62),0) -> 0.155440965 | L7: =IF(Flag=TRUE,(N7-TBIn!E1388),TBIn!D1388) -> 0 | M7: =IFERROR(L7/(L$5+L$62),0) -> 0 | N7: =TBIn!E1388 -> 0 | O7: =IFERROR(N7/(N$5+N$62),0) -> 0 | P7: =IF(Page7!E77=0,0,D7/Page7!E77) -> 10608.54348 | Q7: =IF(Page7!J77=0,0,F7/Page7!J77) -> 10608.54348 | R7: 4
A8: 5 | B8: GASTOS DE ENTREGA | C8: 13 | D8: =IF(Flag=TRUE,(F8-TBIn!E1292),TBIn!D1292) -> 32947 | E8: 0.01433506022 | F8: 32947 | G8: 0.01433506022 | H8: =IF(Flag=TRUE,(J8-TBIn!E1342),TBIn!D1342) -> 12574 | I8: 0.01691151648 | J8: 12574 | K8: 0.01691151648 | L8: =IF(Flag=TRUE,(N8-TBIn!E1389),TBIn!D1389) -> 0 | M8: 0 | N8: =TBIn!E1389 -> 0 | O8: 0 | P8: USADOS - COMP. VENDEDORES PUUV | R8: 5
A9: 6 | B9: CORTESIAS A CLIENTES | C9: 15 | D9: =IF(Flag=TRUE,(F9-TBIn!E1293),TBIn!D1293) -> 35589 | E9: 0.01548458003 | F9: 35589 | G9: 0.01548458003 | H9: =IF(Flag=TRUE,(J9-TBIn!E1343),TBIn!D1343) -> 3956 | I9: 0.005320658438 | J9: 3956 | K9: 0.005320658438 | L9: =IF(Flag=TRUE,(N9-TBIn!E1390),TBIn!D1390) -> 0 | M9: 0 | N9: =TBIn!E1390 -> 0 | O9: 0 | P9: =IF(Page6!F10=0,0,H7/Page6!F10) -> 3611.65625 | Q9: =IF(Page6!K10=0,0,J7/Page6!K10) -> 3611.65625 | R9: 6
A10: 7 | B10: TOTAL VARIABLES | C10: (Lineas 4 a 6) | D10: =SUM(D7:D9) -> 1044522 | E10: 0.4544658322 | F10: =SUM(F7:F9) -> 1044522 | G10: 0.4544658322 | H10: =SUM(H7:H9) -> 132103 | I10: 0.17767314 | J10: =SUM(J7:J9) -> 132103 | K10: 0.17767314 | L10: =SUM(L7:L9) -> 0 | M10: 0 | N10: =SUM(N7:N9) -> 0 | O10: 0 | P10: USADOS - TRAB CORTESIA PUUV | R10: 7
A11: 8 | B11: REMUNERACIONES - PROPIETARIOS, GERENTES GENERALES Y OPERADORES | C11: 20 | D11: =IF(Flag=TRUE,(F11-TBIn!E1294),TBIn!D1294) -> 0 | E11: 0 | F11: =TBIn!E1294 -> 0 | G11: 0 | H11: =IF(Flag=TRUE,(J11-TBIn!E1344),TBIn!D1344) -> 0 | I11: 0 | J11: =TBIn!E1344 -> 0 | K11: 0 | L11: =IF(Flag=TRUE,(N11-TBIn!E1391),TBIn!D1391) -> 0 | M11: 0 | N11: =TBIn!E1391 -> 0 | O11: 0 | P11: =IF((Page6!$F$4+Page6!$F$5+Page6!$F$7+Page6!$F$8)=0,0,H9/(Page6!$F$4+Page6!$F$5+Page6!$F$7+Page6!$F$8)) -> 123.625 | Q11: =IF((Page6!$K$4+Page6!$K$5+Page6!$K$7+Page6!$K$8)=0,0,J9/(Page6!$K$4+Page6!$K$5+Page6!$K$7+Page6!$K$8)) -> 123.625 | R11: 8
A12: 9 | B12: REMUNERACIONES SUPERVISORES | C12: 21 | D12: =IF(Flag=TRUE,(F12-TBIn!E1295),TBIn!D1295) -> 256522 | E12: 0.1116113248 | F12: 256522 | G12: 0.1116113248 | H12: =IF(Flag=TRUE,(J12-TBIn!E1345),TBIn!D1345) -> 0 | I12: 0 | J12: =TBIn!E1345 -> 0 | K12: 0 | L12: =IF(Flag=TRUE,(N12-TBIn!E1392),TBIn!D1392) -> 0 | M12: 0 | N12: =TBIn!E1392 -> 0 | O12: 0 | R12: 9
A13: 10 | B13: REMUNERACIONES EMPLEADOS DE OFICINA Y ADMINISTRATIVOS | C13: 22 | D13: =IF(Flag=TRUE,(F13-TBIn!E1296),TBIn!D1296) -> 107445 | E13: 0.0467487342 | F13: 107445 | G13: 0.0467487342 | H13: =IF(Flag=TRUE,(J13-TBIn!E1346),TBIn!D1346) -> 0 | I13: 0 | J13: =TBIn!E1346 -> 0 | K13: 0 | L13: =IF(Flag=TRUE,(N13-TBIn!E1393),TBIn!D1393) -> 0 | M13: 0 | N13: =TBIn!E1393 -> 0 | O13: 0 | R13: 10
A14: 11 | B14: OTRAS REMUNERACIONES | C14: 23 | D14: =IF(Flag=TRUE,(F14-TBIn!E1297),TBIn!D1297) -> 49826 | E14: 0.02167902118 | F14: 49826 | G14: 0.02167902118 | H14: =IF(Flag=TRUE,(J14-TBIn!E1347),TBIn!D1347) -> 0 | I14: 0 | J14: =TBIn!E1347 -> 0 | K14: 0 | L14: =IF(Flag=TRUE,(N14-TBIn!E1394),TBIn!D1394) -> 0 | M14: 0 | N14: =TBIn!E1394 -> 0 | O14: 0 | R14: 11
A15: 12 | B15: REMUNERACIONES A PERSONAL AUSENTE | C15: 24 | D15: =IF(Flag=TRUE,(F15-TBIn!E1298),TBIn!D1298) -> 32170 | E15: 0.01399699176 | F15: 32170 | G15: 0.01399699176 | H15: =IF(Flag=TRUE,(J15-TBIn!E1348),TBIn!D1348) -> 2044 | I15: 0.002749096524 | J15: 2044 | K15: 0.002749096524 | L15: =IF(Flag=TRUE,(N15-TBIn!E1395),TBIn!D1395) -> 0 | M15: 0 | N15: =TBIn!E1395 -> 0 | O15: 0 | R15: 12
A16: 13 | B16: INCENTIVOS-SUPERVISORES | C16: 26 | D16: =IF(Flag=TRUE,(F16-TBIn!E1299),TBIn!D1299) -> 0 | E16: 0 | F16: =TBIn!E1299 -> 0 | G16: 0 | H16: =IF(Flag=TRUE,(J16-TBIn!E1349),TBIn!D1349) -> 0 | I16: 0 | J16: =TBIn!E1349 -> 0 | K16: 0 | L16: =IF(Flag=TRUE,(N16-TBIn!E1396),TBIn!D1396) -> 0 | M16: 0 | N16: =TBIn!E1396 -> 0 | O16: 0 | R16: 13
A17: 14 | B17: CUOTAS E IMPUESTOS SOBRE NOMINAS | C17: 25 | D17: =IF(Flag=TRUE,(F17-TBIn!E1300),TBIn!D1300) -> 158119 | E17: 0.06879671556 | F17: 158119 | G17: 0.06879671556 | H17: =IF(Flag=TRUE,(J17-TBIn!E1350),TBIn!D1350) -> 17788 | I17: 0.02392413354 | J17: 17788 | K17: 0.02392413354 | L17: =IF(Flag=TRUE,(N17-TBIn!E1397),TBIn!D1397) -> 0 | M17: 0 | N17: =TBIn!E1397 -> 0 | O17: 0 | R17: 14
A18: 15 | B18: PRESTACIONES A EMPLEADOS Y TRABAJADORES | C18: 27 | D18: =IF(Flag=TRUE,(F18-TBIn!E1301),TBIn!D1301) -> 17410 | E18: 0.00757499616 | F18: 17410 | G18: 0.00757499616 | H18: =IF(Flag=TRUE,(J18-TBIn!E1351),TBIn!D1351) -> 14004 | I18: 0.01883480808 | J18: 14004 | K18: 0.01883480808 | L18: =IF(Flag=TRUE,(N18-TBIn!E1398),TBIn!D1398) -> 0 | M18: 0 | N18: =TBIn!E1398 -> 0 | O18: 0 | R18: 15
A19: 16 | B19: FONDO PARA PRESTACIONES | C19: 29 | D19: =IF(Flag=TRUE,(F19-TBIn!E1302),TBIn!D1302) -> 0 | E19: 0 | F19: =TBIn!E1302 -> 0 | G19: 0 | H19: =IF(Flag=TRUE,(J19-TBIn!E1352),TBIn!D1352) -> 0 | I19: 0 | J19: =TBIn!E1352 -> 0 | K19: 0 | L19: =IF(Flag=TRUE,(N19-TBIn!E1399),TBIn!D1399) -> 0 | M19: 0 | N19: =TBIn!E1399 -> 0 | O19: 0 | R19: 16
A20: 17 | B20: TOTAL PERSONAL | C20: (Lineas 8 a 16) | D20: =SUM(D11:D19) -> 621492 | E20: 0.2704077837 | F20: =SUM(F11:F19) -> 621492 | G20: 0.2704077837 | H20: =SUM(H11:H19) -> 33836 | I20: 0.04550803815 | J20: =SUM(J11:J19) -> 33836 | K20: 0.04550803815 | L20: =SUM(L11:L19) -> 0 | M20: 0 | N20: =SUM(N11:N19) -> 0 | O20: 0 | R20: 17
A21: 18 | B21: GASTOS VEHICULOS COMPAÑIA | C21: 51 | D21: =IF(Flag=TRUE,(F21-TBIn!E1303),TBIn!D1303) -> 0 | E21: 0 | F21: =TBIn!E1303 -> 0 | G21: 0 | H21: =IF(Flag=TRUE,(J21-TBIn!E1353),TBIn!D1353) -> 0 | I21: 0 | J21: =TBIn!E1353 -> 0 | K21: 0 | L21: =IF(Flag=TRUE,(N21-TBIn!E1400),TBIn!D1400) -> 0 | M21: 0 | N21: =TBIn!E1400 -> 0 | O21: 0 | R21: 18
A22: 19 | B22: PAPELERIA Y ARTICULOS DE ESCRITORIO | C22: 60 | D22: =IF(Flag=TRUE,(F22-TBIn!E1304),TBIn!D1304) -> 11813 | E22: 0.00513977195 | F22: 11813 | G22: 0.00513977195 | H22: =IF(Flag=TRUE,(J22-TBIn!E1354),TBIn!D1354) -> 3945 | I22: 0.005305863887 | J22: 3945 | K22: 0.005305863887 | L22: =IF(Flag=TRUE,(N22-TBIn!E1401),TBIn!D1401) -> 0 | M22: 0 | N22: =TBIn!E1401 -> 0 | O22: 0 | R22: 19
A23: 20 | B23: OTROS ARTICULOS DE CONSUMO | C23: 61 | D23: =IF(Flag=TRUE,(F23-TBIn!E1305),TBIn!D1305) -> 12368 | E23: 0.005381249426 | F23: 12368 | G23: 0.005381249426 | H23: =IF(Flag=TRUE,(J23-TBIn!E1355),TBIn!D1355) -> 5434 | I23: 0.007308508077 | J23: 5434 | K23: 0.007308508077 | L23: =IF(Flag=TRUE,(N23-TBIn!E1402),TBIn!D1402) -> 0 | M23: 0 | N23: =TBIn!E1402 -> 0 | O23: 0 | R23: 20
A24: 21 | B24: PUBLICIDAD Y HONORARIOS / COMERCIO ELECTRONICO | C24: 63 | D24: =IF(Flag=TRUE,(F24-TBIn!E1306),TBIn!D1306) -> 11972 | E24: 0.005208951983 | F24: 11972 | G24: 0.005208951983 | H24: =IF(Flag=TRUE,(J24-TBIn!E1356),TBIn!D1356) -> 8093 | I24: 0.01088475448 | J24: 8093 | K24: 0.01088475448 | L24: =IF(Flag=TRUE,(N24-TBIn!E1403),TBIn!D1403) -> 0 | M24: 0 | N24: =TBIn!E1403 -> 0 | O24: 0 | R24: 21
A25: 22 | B25: PUBLICIDAD | C25: 65 | D25: =IF(Flag=TRUE,(F25-TBIn!E1307),TBIn!D1307) -> 155274 | E25: 0.06755887156 | F25: 155274 | G25: 0.06755887156 | H25: =IF(Flag=TRUE,(J25-TBIn!E1357),TBIn!D1357) -> 16831 | I25: 0.02263700763 | J25: 16831 | K25: 0.02263700763 | L25: =IF(Flag=TRUE,(N25-TBIn!E1404),TBIn!D1404) -> 0 | M25: 0 | N25: =TBIn!E1404 -> 0 | O25: 0 | P25: NUEVOS - NETO PUBLICIDAD PUNV | R25: 22
A26: 23 | B26: REEMBOLSO FONDO DE PUBLICIDAD | C26: 64 | D26: =IF(Flag=TRUE,(F26-TBIn!E1308),TBIn!D1308) -> 0 | E26: 0 | F26: =TBIn!E1308 -> 0 | G26: 0 | H26: =IF(Flag=TRUE,(J26-TBIn!E1358),TBIn!D1358) -> 0 | I26: 0 | J26: =TBIn!E1358 -> 0 | K26: 0 | L26: =IF(Flag=TRUE,(N26-TBIn!E1405),TBIn!D1405) -> 0 | M26: 0 | N26: =TBIn!E1405 -> 0 | O26: 0 | P26: =IF((Page7!$E$66+Page7!$E$70)=0,0,SUM(D24:D26)/(Page7!$E$66+Page7!$E$70)) -> 1817.891304 | Q26: =IF((Page7!$J$66+Page7!$J$70)=0,0,SUM(F24:F26)/(Page7!$J$66+Page7!$J$70)) -> 1817.891304 | R26: 23
A27: 24 | B27: DONATIVOS Y CONTRIBUCIONES | C27: 66 | D27: =IF(Flag=TRUE,(F27-TBIn!E1309),TBIn!D1309) -> 0 | E27: 0 | F27: =TBIn!E1309 -> 0 | G27: 0 | H27: =IF(Flag=TRUE,(J27-TBIn!E1359),TBIn!D1359) -> 0 | I27: 0 | J27: =TBIn!E1359 -> 0 | K27: 0 | L27: =IF(Flag=TRUE,(N27-TBIn!E1406),TBIn!D1406) -> 0 | M27: 0 | N27: =TBIn!E1406 -> 0 | O27: 0 | R27: 24
A28: 25 | B28: TRABAJOS DE CORTESÍA Y/O GARANTIA SERVICIO Y PARTES | C28: 67 | R28: 25
A29: 26 | B29: SERVICIOS POR CONTRATO-PROCESAMIENTO DE DATOS | C29: 68 | D29: =IF(Flag=TRUE,(F29-TBIn!E1310),TBIn!D1310) -> 0 | E29: =IFERROR(D29/(D$5+D$62),0) -> 0 | F29: =TBIn!E1310 -> 0 | G29: =IFERROR(F29/(F$5+F$62),0) -> 0 | H29: =IF(Flag=TRUE,(J29-TBIn!E1360),TBIn!D1360) -> 0 | I29: =IFERROR(H29/(H$5+H$62),0) -> 0 | J29: =TBIn!E1360 -> 0 | K29: =IFERROR(J29/(J$5+J$62),0) -> 0 | L29: =IF(Flag=TRUE,(N29-TBIn!E1407),TBIn!D1407) -> 0 | M29: =IFERROR(L29/(L$5+L$62),0) -> 0 | N29: =TBIn!E1407 -> 0 | O29: =IFERROR(N29/(N$5+N$62),0) -> 0 | R29: 26
A30: 27 | B30: OTROS SERVICIOS POR CONTRATO | C30: 69 | D30: =IF(Flag=TRUE,(F30-TBIn!E1311),TBIn!D1311) -> 0 | E30: 0 | F30: =TBIn!E1311 -> 0 | G30: 0 | H30: =IF(Flag=TRUE,(J30-TBIn!E1361),TBIn!D1361) -> 0 | I30: 0 | J30: =TBIn!E1361 -> 0 | K30: 0 | L30: =IF(Flag=TRUE,(N30-TBIn!E1408),TBIn!D1408) -> 0 | M30: 0 | N30: =TBIn!E1408 -> 0 | O30: 0 | R30: 27
A31: 28 | B31: GASTOS DE VIAJE Y REPRESENTACION | C31: 70 | D31: =IF(Flag=TRUE,(F31-TBIn!E1312),TBIn!D1312) -> 0 | E31: 0 | F31: =TBIn!E1312 -> 0 | G31: 0 | H31: =IF(Flag=TRUE,(J31-TBIn!E1362),TBIn!D1362) -> 0 | I31: 0 | J31: =TBIn!E1362 -> 0 | K31: 0 | L31: =IF(Flag=TRUE,(N31-TBIn!E1409),TBIn!D1409) -> 0 | M31: 0 | N31: =TBIn!E1409 -> 0 | O31: 0 | R31: 28
A32: 29 | B32: CUOTAS Y SUSCRIPCIONES | C32: 71 | D32: =IF(Flag=TRUE,(F32-TBIn!E1313),TBIn!D1313) -> 770 | E32: 0.0003350228055 | F32: 770 | G32: 0.0003350228055 | H32: =IF(Flag=TRUE,(J32-TBIn!E1363),TBIn!D1363) -> 0 | I32: 0 | J32: =TBIn!E1363 -> 0 | K32: 0 | L32: =IF(Flag=TRUE,(N32-TBIn!E1410),TBIn!D1410) -> 0 | M32: 0 | N32: =TBIn!E1410 -> 0 | O32: 0 | R32: 29
A33: 30 | B33: LEGALES Y DE AUDITORIA | C33: 72 | D33: =IF(Flag=TRUE,(F33-TBIn!E1314),TBIn!D1314) -> 2764 | E33: 0.001202601343 | F33: 2764 | G33: 0.001202601343 | H33: =IF(Flag=TRUE,(J33-TBIn!E1364),TBIn!D1364) -> 0 | I33: 0 | J33: =TBIn!E1364 -> 0 | K33: 0 | L33: =IF(Flag=TRUE,(N33-TBIn!E1411),TBIn!D1411) -> 0 | M33: 0 | N33: =TBIn!E1411 -> 0 | O33: 0 | R33: 30
A34: 31 | B34: TELEFONO | C34: 74 | D34: =IF(Flag=TRUE,(F34-TBIn!E1315),TBIn!D1315) -> 28291 | E34: 0.01230925999 | F34: 28291 | G34: 0.01230925999 | H34: =IF(Flag=TRUE,(J34-TBIn!E1365),TBIn!D1365) -> 8980 | I34: 0.01207773326 | J34: 8980 | K34: 0.01207773326 | L34: =IF(Flag=TRUE,(N34-TBIn!E1412),TBIn!D1412) -> 0 | M34: 0 | N34: =TBIn!E1412 -> 0 | O34: 0 | R34: 31
A35: 32 | B35: GASTOS DE CAPACITACION | C35: 75 | D35: =IF(Flag=TRUE,(F35-TBIn!E1316),TBIn!D1316) -> 39337 | E35: 0.01711531441 | F35: 39337 | G35: 0.01711531441 | H35: =IF(Flag=TRUE,(J35-TBIn!E1366),TBIn!D1366) -> 0 | I35: 0 | J35: =TBIn!E1366 -> 0 | K35: 0 | L35: =IF(Flag=TRUE,(N35-TBIn!E1413),TBIn!D1413) -> 0 | M35: 0 | N35: =TBIn!E1413 -> 0 | O35: 0 | R35: 32
A36: 33 | B36: INTERESES PLAN PISO | C36: 76 | D36: =IF(Flag=TRUE,(F36-TBIn!E1317),TBIn!D1317) -> 350888 | E36: 0.1526694574 | F36: 350888 | G36: 0.1526694574 | H36: =IF(Flag=TRUE,(J36-TBIn!E1367),TBIn!D1367) -> 0 | I36: 0 | J36: =TBIn!E1367 -> 0 | K36: 0 | L36: =IF(Flag=TRUE,(N36-TBIn!E1414),TBIn!D1414) -> 0 | M36: 0 | N36: =TBIn!E1414 -> 0 | O36: 0 | R36: 33
A37: 34 | R37: 34
A38: 35 | B38: GASTOS POR INTERESES Y COMISIONES DIVERSOS | C38: 79 | D38: =IF(Flag=TRUE,(F38-TBIn!E1319),TBIn!D1319) -> 0 | E38: =IFERROR(D38/(D$5+D$62),0) -> 0 | F38: =TBIn!E1319 -> 0 | G38: =IFERROR(F38/(F$5+F$62),0) -> 0 | H38: =IF(Flag=TRUE,(J38-TBIn!E1369),TBIn!D1369) -> 0 | I38: =IFERROR(H38/(H$5+H$62),0) -> 0 | J38: =TBIn!E1369 -> 0 | K38: =IFERROR(J38/(J$5+J$62),0) -> 0 | L38: =IF(Flag=TRUE,(N38-TBIn!E1416),TBIn!D1416) -> 0 | M38: =IFERROR(L38/(L$5+L$62),0) -> 0 | N38: =TBIn!E1416 -> 0 | O38: =IFERROR(N38/(N$5+N$62),0) -> 0 | R38: 35
A39: 36 | B39: SEGUROS SOBRE INVENTARIO | C39: 56 | D39: =IF(Flag=TRUE,(F39-TBIn!E1320),TBIn!D1320) -> 0 | E39: 0 | F39: =TBIn!E1320 -> 0 | G39: 0 | H39: =IF(Flag=TRUE,(J39-TBIn!E1370),TBIn!D1370) -> 0 | I39: 0 | J39: =TBIn!E1370 -> 0 | K39: 0 | L39: =IF(Flag=TRUE,(N39-TBIn!E1417),TBIn!D1417) -> 0 | M39: 0 | N39: =TBIn!E1417 -> 0 | O39: 0 | R39: 36
A40: 37 | B40: RESERVA PARA CUENTAS INCOBRABLES | C40: 57 | D40: =IF(Flag=TRUE,(F40-TBIn!E1321),TBIn!D1321) -> 0 | E40: 0 | F40: =TBIn!E1321 -> 0 | G40: 0 | H40: =IF(Flag=TRUE,(J40-TBIn!E1371),TBIn!D1371) -> 0 | I40: 0 | J40: =TBIn!E1371 -> 0 | K40: 0 | L40: =IF(Flag=TRUE,(N40-TBIn!E1418),TBIn!D1418) -> 0 | M40: 0 | N40: =TBIn!E1418 -> 0 | O40: 0 | R40: 37
A41: 38 | B41: EMBARQUES | C41: 33 | D41: =IF(Flag=TRUE,(F41-TBIn!E1322),TBIn!D1322) -> 0 | E41: 0 | F41: =TBIn!E1322 -> 0 | G41: 0 | H41: =IF(Flag=TRUE,(J41-TBIn!E1372),TBIn!D1372) -> 0 | I41: 0 | J41: =TBIn!E1372 -> 0 | K41: 0 | L41: =IF(Flag=TRUE,(N41-TBIn!E1419),TBIn!D1419) -> 0 | M41: 0 | N41: =TBIn!E1419 -> 0 | O41: 0 | R41: 38
A42: 39 | B42: GASTOS DIVERSOS | C42: 77 | D42: =IF(Flag=TRUE,(F42-TBIn!E1323),TBIn!D1323) -> 12378 | E42: 0.005385600372 | F42: 12378 | G42: 0.005385600372 | H42: =IF(Flag=TRUE,(J42-TBIn!E1373),TBIn!D1373) -> 9000 | I42: 0.01210463244 | J42: 9000 | K42: 0.01210463244 | L42: =IF(Flag=TRUE,(N42-TBIn!E1420),TBIn!D1420) -> 0 | M42: 0 | N42: =TBIn!E1420 -> 0 | O42: 0 | R42: 39
A43: 40 | B43: TOTAL SEMI-FIJOS | C43: (Lineas 18 a 39) | D43: =SUM(D21:D42) -> 625855 | E43: 0.2723061012 | F43: =SUM(F21:F42) -> 625855 | G43: 0.2723061012 | H43: =SUM(H21:H42) -> 52283 | I43: 0.07031849978 | J43: =SUM(J21:J42) -> 52283 | K43: 0.07031849978 | L43: =SUM(L21:L42) -> 0 | M43: 0 | N43: =SUM(N21:N42) -> 0 | O43: 0 | R43: 40
A44: 41 | B44: RENTA | C44: 80 | D44: =IF(Flag=TRUE,(F44-TBIn!E1324),TBIn!D1324) -> 146054 | E44: 0.06354729978 | F44: 146054 | G44: 0.06354729978 | H44: =IF(Flag=TRUE,(J44-TBIn!E1374),TBIn!D1374) -> 26224 | I44: 0.03527020902 | J44: 26224 | K44: 0.03527020902 | L44: =IF(Flag=TRUE,(N44-TBIn!E1421),TBIn!D1421) -> 0 | M44: 0 | N44: =TBIn!E1421 -> 0 | O44: 0 | R44: 41
A45: 42 | B45: AMORTIZACION DE INVERSIONES EN INMUEBLES ARRENDADOS | C45: 81 | D45: =IF(Flag=TRUE,(F45-TBIn!E1325),TBIn!D1325) -> 56169 | E45: 0.02443882592 | F45: 56169 | G45: 0.02443882592 | H45: =IF(Flag=TRUE,(J45-TBIn!E1375),TBIn!D1375) -> 0 | I45: 0 | J45: =TBIn!E1375 -> 0 | K45: 0 | L45: =IF(Flag=TRUE,(N45-TBIn!E1422),TBIn!D1422) -> 0 | M45: 0 | N45: =TBIn!E1422 -> 0 | O45: 0 | R45: 42
A46: 43 | B46: MANTENIMIENTO DE EDIFICIOS | C46: 82 | D46: =IF(Flag=TRUE,(F46-TBIn!E1326),TBIn!D1326) -> 3210 | E46: 0.001396653514 | F46: 3210 | G46: 0.001396653514 | H46: =IF(Flag=TRUE,(J46-TBIn!E1376),TBIn!D1376) -> 580 | I46: 0.000780076313 | J46: 580 | K46: 0.000780076313 | L46: =IF(Flag=TRUE,(N46-TBIn!E1423),TBIn!D1423) -> 0 | M46: 0 | N46: =TBIn!E1423 -> 0 | O46: 0 | R46: 43
A47: 44 | B47: DEPRECIACION DE EDIFICIOS Y MEJORAS | C47: 83 | D47: =IF(Flag=TRUE,(F47-TBIn!E1327),TBIn!D1327) -> 10707 | E47: 0.004658557374 | F47: 10707 | G47: 0.004658557374 | H47: =IF(Flag=TRUE,(J47-TBIn!E1377),TBIn!D1377) -> 0 | I47: 0 | J47: =TBIn!E1377 -> 0 | K47: 0 | L47: =IF(Flag=TRUE,(N47-TBIn!E1424),TBIn!D1424) -> 0 | M47: 0 | N47: =TBIn!E1424 -> 0 | O47: 0 | R47: 44
A48: 45 | B48: IMPUESTOS SOBRE PROPIEDADES (PREDIAL) | C48: 84 | D48: =IF(Flag=TRUE,(F48-TBIn!E1328),TBIn!D1328) -> 0 | E48: 0 | F48: =TBIn!E1328 -> 0 | G48: 0 | H48: =IF(Flag=TRUE,(J48-TBIn!E1378),TBIn!D1378) -> 0 | I48: 0 | J48: =TBIn!E1378 -> 0 | K48: 0 | L48: =IF(Flag=TRUE,(N48-TBIn!E1425),TBIn!D1425) -> 0 | M48: 0 | N48: =TBIn!E1425 -> 0 | O48: 0 | R48: 45
A49: 46 | B49: SEGUROS EDIFICIOS Y MEJORAS | C49: 85 | D49: =IF(Flag=TRUE,(F49-TBIn!E1329),TBIn!D1329) -> 0 | E49: 0 | F49: =TBIn!E1329 -> 0 | G49: 0 | H49: =IF(Flag=TRUE,(J49-TBIn!E1379),TBIn!D1379) -> 0 | I49: 0 | J49: =TBIn!E1379 -> 0 | K49: 0 | L49: =IF(Flag=TRUE,(N49-TBIn!E1426),TBIn!D1426) -> 0 | M49: 0 | N49: =TBIn!E1426 -> 0 | O49: 0 | R49: 46
A50: 47 | B50: INTERESES SOBRE HIPOTECAS | C50: 86 | D50: =IF(Flag=TRUE,(F50-TBIn!E1330),TBIn!D1330) -> 0 | E50: 0 | F50: =TBIn!E1330 -> 0 | G50: 0 | H50: =IF(Flag=TRUE,(J50-TBIn!E1380),TBIn!D1380) -> 0 | I50: 0 | J50: =TBIn!E1380 -> 0 | K50: 0 | L50: =IF(Flag=TRUE,(N50-TBIn!E1427),TBIn!D1427) -> 0 | M50: 0 | N50: =TBIn!E1427 -> 0 | O50: 0 | R50: 47
A51: 48 | B51: LUZ, FUERZA, AGUA Y CALEFACCION | C51: 87 | D51: =IF(Flag=TRUE,(F51-TBIn!E1331),TBIn!D1331) -> 12478 | E51: 0.005429109827 | F51: 12478 | G51: 0.005429109827 | H51: =IF(Flag=TRUE,(J51-TBIn!E1381),TBIn!D1381) -> 4759 | I51: 0.006400660644 | J51: 4759 | K51: 0.006400660644 | L51: =IF(Flag=TRUE,(N51-TBIn!E1428),TBIn!D1428) -> 0 | M51: 0 | N51: =TBIn!E1428 -> 0 | O51: 0 | R51: 48
A52: 49 | B52: SUB-TOTAL INMUEBLE Y EQUIVALENTES | C52: (Lineas 41 a 48) | D52: =SUM(D44:D51) -> 228618 | E52: 0.09947044642 | F52: =SUM(F44:F51) -> 228618 | G52: 0.09947044642 | H52: =SUM(H44:H51) -> 31563 | I52: =IFERROR(H52/(H$5+H$62),0) -> 0.04245094598 | J52: =SUM(J44:J51) -> 31563 | K52: 0.04245094598 | L52: =SUM(L44:L51) -> 0 | M52: 0 | N52: =SUM(N44:N51) -> 0 | O52: 0 | R52: 49
A53: 50 | B53: OTROS SEGUROS | C53: 88 | D53: =IF(Flag=TRUE,(F53-TBIn!E1332),TBIn!D1332) -> 11565 | E53: 0.005031868501 | F53: 11565 | G53: 0.005031868501 | H53: =IF(Flag=TRUE,(J53-TBIn!E1382),TBIn!D1382) -> 18140 | I53: 0.02439755917 | J53: 18140 | K53: 0.02439755917 | L53: =IF(Flag=TRUE,(N53-TBIn!E1429),TBIn!D1429) -> 0 | M53: 0 | N53: =TBIn!E1429 -> 0 | O53: 0 | R53: 50
A54: 51 | B54: OTROS IMPUESTOS | C54: 89 | D54: =IF(Flag=TRUE,(F54-TBIn!E1333),TBIn!D1333) -> 0 | E54: 0 | F54: =TBIn!E1333 -> 0 | G54: 0 | H54: =IF(Flag=TRUE,(J54-TBIn!E1383),TBIn!D1383) -> 0 | I54: 0 | J54: =TBIn!E1383 -> 0 | K54: 0 | L54: =IF(Flag=TRUE,(N54-TBIn!E1430),TBIn!D1430) -> 0 | M54: 0 | N54: =TBIn!E1430 -> 0 | O54: 0 | R54: 51
A55: 52 | B55: MANTENIMIENTO EN EQUIPO | C55: 90 | D55: =IF(Flag=TRUE,(F55-TBIn!E1334),TBIn!D1334) -> 22421 | E55: 0.009755254963 | F55: 22421 | G55: 0.009755254963 | H55: =IF(Flag=TRUE,(J55-TBIn!E1384),TBIn!D1384) -> 0 | I55: 0 | J55: =TBIn!E1384 -> 0 | K55: 0 | L55: =IF(Flag=TRUE,(N55-TBIn!E1431),TBIn!D1431) -> 0 | M55: 0 | N55: =TBIn!E1431 -> 0 | O55: 0 | R55: 52
A56: 53 | B56: DEPRECIACION DE EQUIPO | C56: 91 | D56: =IF(Flag=TRUE,(F56-TBIn!E1335),TBIn!D1335) -> 78996 | E56: 0.03437072928 | F56: 78996 | G56: 0.03437072928 | H56: =IF(Flag=TRUE,(J56-TBIn!E1385),TBIn!D1385) -> 0 | I56: 0 | J56: =TBIn!E1385 -> 0 | K56: 0 | L56: =IF(Flag=TRUE,(N56-TBIn!E1432),TBIn!D1432) -> 0 | M56: 0 | N56: =TBIn!E1432 -> 0 | O56: 0 | R56: 53
A57: 54 | B57: ARRENDAMIENTO DE EQUIPO | C57: 92 | D57: =IF(Flag=TRUE,(F57-TBIn!E1336),TBIn!D1336) -> 5097 | E57: 0.002217676934 | F57: 5097 | G57: 0.002217676934 | H57: =IF(Flag=TRUE,(J57-TBIn!E1386),TBIn!D1386) -> 1699 | I57: 0.002285085613 | J57: 1699 | K57: 0.002285085613 | L57: =IF(Flag=TRUE,(N57-TBIn!E1433),TBIn!D1433) -> 0 | M57: 0 | N57: =TBIn!E1433 -> 0 | O57: 0 | R57: 54
A58: 55 | B58: TOTAL FIJOS | C58: (Lineas 50 a 54) | D58: =SUM(D52:D57) -> 346697 | E58: 0.1508459761 | F58: =SUM(F52:F57) -> 346697 | G58: 0.1508459761 | H58: =SUM(H52:H57) -> 51402 | I58: 0.06913359076 | J58: =SUM(J52:J57) -> 51402 | K58: 0.06913359076 | L58: =SUM(L52:L57) -> 0 | M58: 0 | N58: =SUM(N52:N57) -> 0 | O58: 0 | R58: 55
A59: 56 | B59: TOTAL GASTOS FIJOS GENERALES (Lineas 17,40 y 55) | D59: =D58+D43+D20 -> 1594044 | E59: 0.693559861 | F59: =F58+F43+F20 -> 1594044 | G59: 0.693559861 | H59: =H58+H43+H20 -> 137521 | I59: 0.1849601287 | J59: =J58+J43+J20 -> 137521 | K59: 0.1849601287 | L59: =L58+L43+L20 -> 0 | M59: 0 | N59: =N58+N43+N20 -> 0 | O59: 0 | R59: 56
A60: 57 | B60: GASTOS TOTALES | C60: (Lineas 7 y 56) | D60: =D59+D10 -> 2638566 | E60: 1.148025693 | F60: =F59+F10 -> 2638566 | G60: 1.148025693 | H60: =H59+H10 -> 269624 | I60: 0.3626332686 | J60: =J59+J10 -> 269624 | K60: 0.3626332686 | L60: =L59+L10 -> 0 | M60: 0 | N60: =N59+N10 -> 0 | O60: 0 | R60: 57
A61: 58 | B61: UTILIDAD O PERDIDA EN OPERACIÓN | C61: (Lineas 2 - 57) | D61: =D5-D60 -> -1223407 | E61: -0.5322977213 | F61: =F5-F60 -> -1223407 | G61: -0.5322977213 | H61: =H5-H60 -> 473893 | I61: 0.6373667314 | J61: =J5-J60 -> 473893 | K61: 0.6373667314 | L61: =L5-L60 -> 0 | M61: 0 | N61: =N5-N60 -> 0 | O61: 0 | R61: 58
A62: 59 | B62: F & I & PLANES DE PROTECCION TRANSFERENCIAS | C62: DE LA PAG 7 | D62: =Page7!H12 -> 883192 | E62: 0.3842720281 | F62: =Page7!M12 -> 883192 | G62: 0.3842720281 | H62: =Page7!H21 -> 0 | I62: 0 | J62: =Page7!M21 -> 0 | K62: 0 | L62: =Page8!K54 -> 0 | M62: 0 | N62: =Page8!Q54 -> 0 | O62: 0 | P62: =Page3!P5*-1 -> -883192 | Q62: =Page3!Q5*-1 -> -883192 | R62: 59
A63: 60 | B63: PRORRATEO DE GASTOS DE ADMINISTRACION | D63: =IF(Flag=TRUE,(F63-TBIn!E1123),TBIn!D1123) -> -504086 | E63: -0.2193250726 | F63: -504086 | G63: -0.2193250726 | H63: =IF(Flag=TRUE,(J63-TBIn!E1124),TBIn!D1124) -> -138734 | I63: -0.1865915641 | J63: -138734 | K63: -0.1865915641 | L63: =IF(Flag=TRUE,(N63-TBIn!E1125),TBIn!D1125) -> 0 | M63: 0 | N63: =TBIn!E1125 -> 0 | O63: 0 | R63: 60
A64: 61 | B64: UTILIDAD O PERDIDA DE OPERACIÓN DESPUES DE TRANSFERENCIAS DE F&I Y PRORRATEO DE GASTOS DE ADMINISTRACION | D64: =IF(Flag=TRUE,SUM(D61:D63),TBIn!D1337) -> -844301 | E64: -0.3673507658 | F64: =IF(Flag=TRUE,SUM(F61:F63),TBIn!E1337) -> -844301 | G64: -0.3673507658 | H64: =IF(Flag=TRUE,SUM(H61:H63),TBIn!D1387) -> 335159 | I64: 0.4507751672 | J64: =IF(Flag=TRUE,SUM(J61:J63),TBIn!E1387) -> 335159 | K64: 0.4507751672 | L64: =IF(Flag=TRUE,SUM(L61:L63),TBIn!D1434) -> 0 | M64: 0 | N64: =IF(Flag=TRUE,SUM(N61:N63),TBIn!E1434) -> 0 | O64: 0 | R64: 61
A65: 62 | B65: INGRESOS DIVERSOS | D65: MES | F65: AÑO A LA FECHA | H65: DEDUCCIONES DIVERSAS | L65: MES | N65: AÑO A LA FECHA | R65: 62
A66: 63 | B66: VENTAS POR INTERCAMBIOS | C66: 902 | D66: =Page5g!G51+Page5h!G51+Page5i!G51+Page5j!G51 -> 7027598 | F66: =Page5g!L51+Page5h!L51+Page5i!L51+Page5j!L51 -> 7027598 | H66: COSTO DE VENTAS POR INTERCAMBIOS | K66: 952 | L66: =Page5g!H51+Page5h!H51+Page5i!H51+Page5j!H51 -> 6889222 | N66: =Page5g!M51+Page5h!M51+Page5i!M51+Page5j!M51 -> 6889222 | R66: 63
A67: 64 | B67: DESCUENTOS EN EFECTIVO GANADOS Y RECUPERACIÓN DE CUENTAS INCOBRABLES | C67: 903 | D67: =IF(Flag=TRUE,F67-TBIn!E1603,TBIn!D1603) -> 0 | F67: =TBIn!E1603 -> 0 | H67: AJUSTE PARA DOCUMENTOS Y CUENTAS DE COBRO DUDOSO Y RESERVA PARA OBSOLESCENCIA DE INVENTARIOS | K67: 953 | L67: =IF(Flag=TRUE,N67-TBIn!E1610,TBIn!D1610) -> 0 | N67: =TBIn!E1610 -> 0 | R67: 64
A68: 65 | B68: OTROS INGRESOS | C68: 905 | D68: =IF(Flag=TRUE,F68-TBIn!E1604,TBIn!D1604) -> 150000 | F68: 150000 | H68: OTRAS DEDUCCIONES | K68: 955 | L68: =IF(Flag=TRUE,N68-TBIn!E1611,TBIn!D1611) -> 0 | N68: =TBIn!E1611 -> 0 | R68: 65
A69: 66 | B69: INGRESOS SU AUTO | C69: 906 | D69: =IF(Flag=TRUE,F69-TBIn!E1605,TBIn!D1605) -> 0 | F69: =TBIn!E1605 -> 0 | H69: MONTO NECESARIO A CUADRAR | L69: =IF(Flag=TRUE,N69-TBIn!E1608,TBIn!D1608) -> 0 | N69: =TBIn!E1608 -> 0 | R69: 66
A70: 67 | B70: INGRESOS SU TRANSPORTE | C70: 907 | D70: =IF(Flag=TRUE,F70-TBIn!E1606,TBIn!D1606) -> 0 | F70: =TBIn!E1606 -> 0 | K70: NETO DE INGRESOS Y DEDUCCIONES DIVERSAS | L70: =IF(Flag=TRUE,SUM(D66:D71)-SUM(L66:L69),TBIn!D1612) -> 288376 | N70: =IF(Flag=TRUE,SUM(F66:F71)-SUM(N66:N69),TBIn!E1612) -> 288376 | R70: 67
A71: 68 | B71: INGRESOS SU PRESTADORA DE SERVICIOS | C71: 908 | D71: =IF(Flag=TRUE,F71-TBIn!E1607,TBIn!D1607) -> 0 | F71: =TBIn!E1607 -> 0 | R71: 68

Sheet Page4
B1: OPERACIONES FIJAS - RENTABILIDAD DEPARTAMENTAL | T1: =TBIn!$E$2591&" - "&TBIn!$AH$10&" - PAGINA 4" -> 122112 - 201801 - PAGINA 4
A2: Lin. | D2: DEPARTAMENTO DE MECANICA (05) | H2: DEPT. DE HOJALATERIA Y PINTURA. (06) | L2: DEPT DE PARTES Y ACCESORIOS (07) | P2: GENERALES Y DE ADMINISTRACION (09) | T2: Lin.
A3: No. | D3: MES | F3: AÑO A LA FECHA | H3: MES | J3: AÑO A LA FECHA | L3: MES | N3: AÑO A LA FECHA | P3: MES | R3: AÑO A LA FECHA | T3: No.
A4: 1 | B4: VENTAS NETAS | D4: =Page6!G37 -> 1774187 | E4: % Vtas. | F4: =Page6!L37 -> 1774187 | G4: % Vtas. | H4: =Page6!G45 -> 471956 | I4: % Vtas. | J4: =Page6!L45 -> 471956 | K4: % Vtas. | L4: =Page6!G64 -> 3610651 | M4: % Vtas. | N4: =Page6!L64 -> 3610651 | O4: % Vtas. | T4: 1
A5: 2 | B5: UTILIDAD BRUTA / INGRESOS | D5: =Page6!I37 -> 1345211 | E5: =IFERROR(D5/D4,0) -> 0.7582126349 | F5: =Page6!N37 -> 1345211 | G5: =IFERROR(F5/F4,0) -> 0.7582126349 | H5: =Page6!I45 -> 219718 | I5: =IFERROR(H5/H4,0) -> 0.4655476358 | J5: =Page6!N45 -> 219718 | K5: =IFERROR(J5/J4,0) -> 0.4655476358 | L5: =Page6!I64 -> 908521 | M5: =IFERROR(L5/L4,0) -> 0.2516224913 | N5: =Page6!N64 -> 908521 | O5: =IFERROR(N5/N4,0) -> 0.2516224913 | T5: 2
A6: 3 | B6: GASTOS | T6: 3
A7: 4 | B7: COMPENSACIONES A VENDEDORES VEHICULOS NUEVOS, USADOS Y ARR Y ALQ. | C7: 11 | T7: 4
A8: 5 | B8: GASTOS DE ENTREGA | C8: 13 | T8: 5
A9: 6 | B9: CORTESIAS A CLIENTES | C9: 15 | Q9: %UTIL. BTA | S9: %UTIL. BTA. | T9: 6
A10: 7 | B10: TOTAL VARIABLES | C10: (Lineas 4 a 6) | E10: % UTIL. BTA. | G10: % UTIL BTA | I10: % UTIL. BTA. | K10: % UTIL BTA | M10: % UTIL. BTA. | O10: % UTIL BTA | Q10: TOTAL | S10: TOTAL | T10: 7
A11: 8 | B11: REMUNERACIONES - PROPIETARIOS, GERENTES GENERALES Y OPERADORES | C11: 20 | D11: =IF(Flag=TRUE,F11-TBIn!E1435,TBIn!D1435) -> 0 | E11: =IFERROR(D11/(D$5+D$62),0) -> 0 | F11: =TBIn!E1435 -> 0 | G11: =IFERROR(F11/(F$5+F$62),0) -> 0 | H11: =IF(Flag=TRUE,J11-TBIn!E1477,TBIn!D1477) -> 0 | I11: =IFERROR(H11/(H$5+H$62),0) -> 0 | J11: =TBIn!E1477 -> 0 | K11: =IFERROR(J11/(J$5+J$62),0) -> 0 | L11: =IF(Flag=TRUE,N11-TBIn!E1519,TBIn!D1519) -> 0 | M11: =IFERROR(L11/(L$5+L$62),0) -> 0 | N11: =TBIn!E1519 -> 0 | O11: =IFERROR(N11/(N$5+N$62),0) -> 0 | P11: =IF(Flag=TRUE,R11-TBIn!E1561,TBIn!D1561) -> 0 | Q11: =IFERROR(P11/Page2!G$5,0) -> 0 | R11: =TBIn!E1561 -> 0 | S11: =IFERROR(R11/Page2!J$5,0) -> 0 | T11: 8
A12: 9 | B12: REMUNERACIONES SUPERVISORES | C12: 21 | D12: =IF(Flag=TRUE,F12-TBIn!E1436,TBIn!D1436) -> 158501 | E12: 0.1056924881 | F12: 158501 | G12: 0.1056924881 | H12: =IF(Flag=TRUE,J12-TBIn!E1478,TBIn!D1478) -> 89320 | I12: 0.2055909128 | J12: 89320 | K12: 0.2055909128 | L12: =IF(Flag=TRUE,N12-TBIn!E1520,TBIn!D1520) -> 63962 | M12: 0.1185904567 | N12: 63962 | O12: 0.1185904567 | P12: =IF(Flag=TRUE,R12-TBIn!E1562,TBIn!D1562) -> 155949 | Q12: =IFERROR(P12/Page2!G$5,0) -> 0.02827561348 | R12: 155949 | S12: =IFERROR(R12/Page2!J$5,0) -> 0.02827561348 | T12: 9
A13: 10 | B13: REMUNERACIONES EMPLEADOS DE OFICINA Y ADMINISTRATIVOS | C13: 22 | D13: =IF(Flag=TRUE,F13-TBIn!E1437,TBIn!D1437) -> 139018 | E13: 0.09270072944 | F13: 139018 | G13: 0.09270072944 | H13: =IF(Flag=TRUE,J13-TBIn!E1479,TBIn!D1479) -> 0 | I13: 0 | J13: =TBIn!E1479 -> 0 | K13: 0 | L13: =IF(Flag=TRUE,N13-TBIn!E1521,TBIn!D1521) -> 60934 | M13: 0.1129763123 | N13: 60934 | O13: 0.1129763123 | P13: =IF(Flag=TRUE,R13-TBIn!E1563,TBIn!D1563) -> 162532 | Q13: =IFERROR(P13/Page2!G$5,0) -> 0.02946919833 | R13: 162532 | S13: =IFERROR(R13/Page2!J$5,0) -> 0.02946919833 | T13: 10
A14: 11 | B14: OTRAS REMUNERACIONES | C14: 23 | D14: =IF(Flag=TRUE,F14-TBIn!E1438,TBIn!D1438) -> 51472 | E14: 0.0343228355 | F14: 51472 | G14: 0.0343228355 | H14: =IF(Flag=TRUE,J14-TBIn!E1480,TBIn!D1480) -> 0 | I14: 0 | J14: =TBIn!E1480 -> 0 | K14: 0 | L14: =IF(Flag=TRUE,N14-TBIn!E1522,TBIn!D1522) -> 17031 | M14: 0.03157678103 | N14: 17031 | O14: 0.03157678103 | P14: =IF(Flag=TRUE,R14-TBIn!E1564,TBIn!D1564) -> 0 | Q14: =IFERROR(P14/Page2!G$5,0) -> 0 | R14: 0 | S14: =IFERROR(R14/Page2!J$5,0) -> 0 | T14: 11
A15: 12 | B15: REMUNERACIONES A PERSONAL AUSENTE | C15: 24 | D15: =IF(Flag=TRUE,F15-TBIn!E1439,TBIn!D1439) -> 9840 | E15: 0.006561561652 | F15: 9840 | G15: 0.006561561652 | H15: =IF(Flag=TRUE,J15-TBIn!E1481,TBIn!D1481) -> 9840 | I15: 0.02264906607 | J15: 9840 | K15: 0.02264906607 | L15: =IF(Flag=TRUE,N15-TBIn!E1523,TBIn!D1523) -> 6056 | M15: 0.01122828876 | N15: 6056 | O15: 0.01122828876 | P15: =IF(Flag=TRUE,R15-TBIn!E1565,TBIn!D1565) -> 34290 | Q15: =IFERROR(P15/Page2!G$5,0) -> 0.006217229904 | R15: 34290 | S15: =IFERROR(R15/Page2!J$5,0) -> 0.006217229904 | T15: 12
A16: 13 | B16: INCENTIVOS-SUPERVISORES | C16: 26 | D16: =IF(Flag=TRUE,F16-TBIn!E1440,TBIn!D1440) -> 0 | E16: 0 | F16: =TBIn!E1440 -> 0 | G16: 0 | H16: =IF(Flag=TRUE,J16-TBIn!E1482,TBIn!D1482) -> 0 | I16: 0 | J16: =TBIn!E1482 -> 0 | K16: 0 | L16: =IF(Flag=TRUE,N16-TBIn!E1524,TBIn!D1524) -> 0 | M16: 0 | N16: =TBIn!E1524 -> 0 | O16: 0 | P16: =IF(Flag=TRUE,R16-TBIn!E1566,TBIn!D1566) -> 0 | Q16: =IFERROR(P16/Page2!G$5,0) -> 0 | R16: =TBIn!E1566 -> 0 | S16: =IFERROR(R16/Page2!J$5,0) -> 0 | T16: 13
A17: 14 | B17: CUOTAS E IMPUESTOS SOBRE NOMINAS | C17: 25 | D17: =IF(Flag=TRUE,F17-TBIn!E1441,TBIn!D1441) -> 58773 | E17: 0.03919132754 | F17: 58773 | G17: 0.03919132754 | H17: =IF(Flag=TRUE,J17-TBIn!E1483,TBIn!D1483) -> 15555 | I17: 0.03580347792 | J17: 15555 | K17: 0.03580347792 | L17: =IF(Flag=TRUE,N17-TBIn!E1525,TBIn!D1525) -> 28007 | M17: 0.05192712737 | N17: 28007 | O17: 0.05192712737 | P17: =IF(Flag=TRUE,R17-TBIn!E1567,TBIn!D1567) -> 54770 | Q17: =IFERROR(P17/Page2!G$5,0) -> 0.009930524405 | R17: 54770 | S17: =IFERROR(R17/Page2!J$5,0) -> 0.009930524405 | T17: 14
A18: 15 | B18: PRESTACIONES A EMPLEADOS Y TRABAJADORES | C18: 27 | D18: =IF(Flag=TRUE,F18-TBIn!E1442,TBIn!D1442) -> 17296 | E18: 0.01153341162 | F18: 17296 | G18: 0.01153341162 | H18: =IF(Flag=TRUE,J18-TBIn!E1484,TBIn!D1484) -> 5034 | I18: 0.01158693075 | J18: 5034 | K18: 0.01158693075 | L18: =IF(Flag=TRUE,N18-TBIn!E1526,TBIn!D1526) -> 3785 | M18: 0.007017680476 | N18: 3785 | O18: 0.007017680476 | P18: =IF(Flag=TRUE,R18-TBIn!E1568,TBIn!D1568) -> 30883 | Q18: =IFERROR(P18/Page2!G$5,0) -> 0.005599495804 | R18: 30883 | S18: =IFERROR(R18/Page2!J$5,0) -> 0.005599495804 | T18: 15
A19: 16 | B19: FONDO PARA PRESTACIONES | C19: 29 | D19: =IF(Flag=TRUE,F19-TBIn!E1443,TBIn!D1443) -> 0 | E19: 0 | F19: =TBIn!E1443 -> 0 | G19: 0 | H19: =IF(Flag=TRUE,J19-TBIn!E1485,TBIn!D1485) -> 0 | I19: 0 | J19: =TBIn!E1485 -> 0 | K19: 0 | L19: =IF(Flag=TRUE,N19-TBIn!E1527,TBIn!D1527) -> 0 | M19: 0 | N19: =TBIn!E1527 -> 0 | O19: 0 | P19: =IF(Flag=TRUE,R19-TBIn!E1569,TBIn!D1569) -> 0 | Q19: =IFERROR(P19/Page2!G$5,0) -> 0 | R19: =TBIn!E1569 -> 0 | S19: =IFERROR(R19/Page2!J$5,0) -> 0 | T19: 16
A20: 17 | B20: TOTAL PERSONAL | C20: (Lineas 8 a 16) | D20: =SUM(D11:D19) -> 434900 | E20: 0.2900023539 | F20: 434900 | G20: 0.2900023539 | H20: 119749 | I20: 0.2756303875 | J20: 119749 | K20: 0.2756303875 | L20: 179775 | M20: 0.3333166466 | N20: 179775 | O20: 0.3333166466 | P20: 438424 | Q20: =IFERROR(P20/Page2!G$5,0) -> 0.07949206193 | R20: 438424 | S20: =IFERROR(R20/Page2!J$5,0) -> 0.07949206193 | T20: 17
A21: 18 | B21: GASTOS VEHICULOS COMPAÑIA | C21: 51 | D21: =IF(Flag=TRUE,F21-TBIn!E1444,TBIn!D1444) -> 5658 | E21: 0.00377289795 | F21: 5658 | G21: 0.00377289795 | H21: =IF(Flag=TRUE,J21-TBIn!E1486,TBIn!D1486) -> 0 | I21: 0 | J21: =TBIn!E1486 -> 0 | K21: 0 | L21: =IF(Flag=TRUE,N21-TBIn!E1528,TBIn!D1528) -> 4401 | M21: 0.00815979175 | N21: 4401 | O21: 0.00815979175 | P21: =IF(Flag=TRUE,R21-TBIn!E1570,TBIn!D1570) -> 8802 | Q21: =IFERROR(P21/Page2!G$5,0) -> 0.001595918857 | R21: 8802 | S21: =IFERROR(R21/Page2!J$5,0) -> 0.001595918857 | T21: 18
A22: 19 | B22: PAPELERIA Y ARTICULOS DE ESCRITORIO | C22: 60 | D22: =IF(Flag=TRUE,F22-TBIn!E1445,TBIn!D1445) -> 16693 | E22: 0.01113131592 | F22: 16693 | G22: 0.01113131592 | H22: =IF(Flag=TRUE,J22-TBIn!E1487,TBIn!D1487) -> 0 | I22: 0 | J22: =TBIn!E1487 -> 0 | K22: 0 | L22: =IF(Flag=TRUE,N22-TBIn!E1529,TBIn!D1529) -> 2300 | M22: 0.004264376511 | N22: 2300 | O22: 0.004264376511 | P22: =IF(Flag=TRUE,R22-TBIn!E1571,TBIn!D1571) -> 3891 | Q22: =IFERROR(P22/Page2!G$5,0) -> 0.0007054896925 | R22: 3891 | S22: =IFERROR(R22/Page2!J$5,0) -> 0.0007054896925 | T22: 19
A23: 20 | B23: OTROS ARTICULOS DE CONSUMO | C23: 61 | D23: =IF(Flag=TRUE,F23-TBIn!E1446,TBIn!D1446) -> 28933 | E23: 0.01929325846 | F23: 28933 | G23: 0.01929325846 | H23: =IF(Flag=TRUE,J23-TBIn!E1488,TBIn!D1488) -> 0 | I23: 0 | J23: =TBIn!E1488 -> 0 | K23: 0 | L23: =IF(Flag=TRUE,N23-TBIn!E1530,TBIn!D1530) -> 3263 | M23: 0.006049852415 | N23: 3263 | O23: 0.006049852415 | P23: =IF(Flag=TRUE,R23-TBIn!E1572,TBIn!D1572) -> 1145 | Q23: =IFERROR(P23/Page2!G$5,0) -> 0.0002076036232 | R23: 1145 | S23: =IFERROR(R23/Page2!J$5,0) -> 0.0002076036232 | T23: 20
A24: 21 | B24: PUBLICIDAD Y HONORARIOS / COMERCIO ELECTRONICO | C24: 63 | D24: =IF(Flag=TRUE,F24-TBIn!E1447,TBIn!D1447) -> 8818 | E24: 0.005880066122 | F24: 8818 | G24: 0.005880066122 | H24: =IF(Flag=TRUE,J24-TBIn!E1489,TBIn!D1489) -> 0 | I24: 0 | J24: =TBIn!E1489 -> 0 | K24: 0 | L24: =IF(Flag=TRUE,N24-TBIn!E1531,TBIn!D1531) -> 6502 | M24: 0.01205520699 | N24: 6502 | O24: 0.01205520699 | P24: =IF(Flag=TRUE,R24-TBIn!E1573,TBIn!D1573) -> 11752 | Q24: =IFERROR(P24/Page2!G$5,0) -> 0.002130792821 | R24: 11752 | S24: =IFERROR(R24/Page2!J$5,0) -> 0.002130792821 | T24: 21
A25: 22 | B25: PUBLICIDAD | C25: 65 | D25: =IF(Flag=TRUE,F25-TBIn!E1448,TBIn!D1448) -> 0 | E25: 0 | F25: =TBIn!E1448 -> 0 | G25: 0 | H25: =IF(Flag=TRUE,J25-TBIn!E1490,TBIn!D1490) -> 0 | I25: 0 | J25: =TBIn!E1490 -> 0 | K25: 0 | L25: =IF(Flag=TRUE,N25-TBIn!E1532,TBIn!D1532) -> 0 | M25: 0 | N25: =TBIn!E1532 -> 0 | O25: 0 | P25: =IF(Flag=TRUE,R25-TBIn!E1574,TBIn!D1574) -> 0 | Q25: =IFERROR(P25/Page2!G$5,0) -> 0 | R25: =TBIn!E1574 -> 0 | S25: =IFERROR(R25/Page2!J$5,0) -> 0 | T25: 22
A26: 23 | B26: REEMBOLSO FONDO DE PUBLICIDAD | C26: 64 | D26: =IF(Flag=TRUE,F26-TBIn!E1449,TBIn!D1449) -> 0 | E26: 0 | F26: =TBIn!E1449 -> 0 | G26: 0 | H26: =IF(Flag=TRUE,J26-TBIn!E1491,TBIn!D1491) -> 0 | I26: 0 | J26: =TBIn!E1491 -> 0 | K26: 0 | L26: =IF(Flag=TRUE,N26-TBIn!E1533,TBIn!D1533) -> 0 | M26: 0 | N26: =TBIn!E1533 -> 0 | O26: 0 | P26: =IF(Flag=TRUE,R26-TBIn!E1575,TBIn!D1575) -> 0 | Q26: =IFERROR(P26/Page2!G$5,0) -> 0 | R26: =TBIn!E1575 -> 0 | S26: =IFERROR(R26/Page2!J$5,0) -> 0 | T26: 23
A27: 24 | B27: DONATIVOS Y CONTRIBUCIONES | C27: 66 | D27: =IF(Flag=TRUE,F27-TBIn!E1450,TBIn!D1450) -> 0 | E27: 0 | F27: =TBIn!E1450 -> 0 | G27: 0 | H27: =IF(Flag=TRUE,J27-TBIn!E1492,TBIn!D1492) -> 0 | I27: 0 | J27: =TBIn!E1492 -> 0 | K27: 0 | L27: =IF(Flag=TRUE,N27-TBIn!E1534,TBIn!D1534) -> 0 | M27: 0 | N27: =TBIn!E1534 -> 0 | O27: 0 | P27: =IF(Flag=TRUE,R27-TBIn!E1576,TBIn!D1576) -> 30299 | Q27: =IFERROR(P27/Page2!G$5,0) -> 0.005493608891 | R27: 30299 | S27: =IFERROR(R27/Page2!J$5,0) -> 0.005493608891 | T27: 24
A28: 25 | B28: TRABAJOS DE CORTESÍA Y/O GARANTIA SERVICIO Y PARTES | C28: 67 | D28: =IF(Flag=TRUE,F28-TBIn!E1451,TBIn!D1451) -> 520 | E28: 0.000346749193 | F28: 520 | G28: 0.000346749193 | H28: =IF(Flag=TRUE,J28-TBIn!E1493,TBIn!D1493) -> 0 | I28: 0 | J28: =TBIn!E1493 -> 0 | K28: 0 | L28: =IF(Flag=TRUE,N28-TBIn!E1535,TBIn!D1535) -> 0 | M28: 0 | N28: =TBIn!E1535 -> 0 | O28: 0 | T28: 25
A29: 26 | B29: SERVICIOS POR CONTRATO-PROCESAMIENTO DE DATOS | C29: 68 | D29: =IF(Flag=TRUE,F29-TBIn!E1452,TBIn!D1452) -> 0 | E29: 0 | F29: =TBIn!E1452 -> 0 | G29: 0 | H29: =IF(Flag=TRUE,J29-TBIn!E1494,TBIn!D1494) -> 0 | I29: 0 | J29: =TBIn!E1494 -> 0 | K29: 0 | L29: =IF(Flag=TRUE,N29-TBIn!E1536,TBIn!D1536) -> 0 | M29: 0 | N29: =TBIn!E1536 -> 0 | O29: 0 | P29: =IF(Flag=TRUE,R29-TBIn!E1577,TBIn!D1577) -> 0 | Q29: =IFERROR(P29/Page2!G$5,0) -> 0 | R29: =TBIn!E1577 -> 0 | S29: =IFERROR(R29/Page2!J$5,0) -> 0 | T29: 26
A30: 27 | B30: OTROS SERVICIOS POR CONTRATO | C30: 69 | D30: =IF(Flag=TRUE,F30-TBIn!E1453,TBIn!D1453) -> 15453 | E30: 0.01030445246 | F30: 15453 | G30: 0.01030445246 | H30: =IF(Flag=TRUE,J30-TBIn!E1495,TBIn!D1495) -> 0 | I30: 0 | J30: =TBIn!E1495 -> 0 | K30: 0 | L30: =IF(Flag=TRUE,N30-TBIn!E1537,TBIn!D1537) -> 8484 | M30: 0.0157299871 | N30: 8484 | O30: 0.0157299871 | P30: =IF(Flag=TRUE,R30-TBIn!E1578,TBIn!D1578) -> 0 | Q30: =IFERROR(P30/Page2!G$5,0) -> 0 | R30: =TBIn!E1578 -> 0 | S30: =IFERROR(R30/Page2!J$5,0) -> 0 | T30: 27
A31: 28 | B31: GASTOS DE VIAJE Y REPRESENTACION | C31: 70 | D31: =IF(Flag=TRUE,F31-TBIn!E1454,TBIn!D1454) -> 0 | E31: 0 | F31: =TBIn!E1454 -> 0 | G31: 0 | H31: =IF(Flag=TRUE,J31-TBIn!E1496,TBIn!D1496) -> 0 | I31: 0 | J31: =TBIn!E1496 -> 0 | K31: 0 | L31: =IF(Flag=TRUE,N31-TBIn!E1538,TBIn!D1538) -> 0 | M31: 0 | N31: =TBIn!E1538 -> 0 | O31: 0 | P31: =IF(Flag=TRUE,R31-TBIn!E1579,TBIn!D1579) -> 0 | Q31: =IFERROR(P31/Page2!G$5,0) -> 0 | R31: =TBIn!E1579 -> 0 | S31: =IFERROR(R31/Page2!J$5,0) -> 0 | T31: 28
A32: 29 | B32: CUOTAS Y SUSCRIPCIONES | C32: 71 | D32: =IF(Flag=TRUE,F32-TBIn!E1455,TBIn!D1455) -> 3039 | E32: 0.002026482303 | F32: 3039 | G32: 0.002026482303 | H32: =IF(Flag=TRUE,J32-TBIn!E1497,TBIn!D1497) -> 0 | I32: 0 | J32: =TBIn!E1497 -> 0 | K32: 0 | L32: =IF(Flag=TRUE,N32-TBIn!E1539,TBIn!D1539) -> 0 | M32: 0 | N32: =TBIn!E1539 -> 0 | O32: 0 | P32: =IF(Flag=TRUE,R32-TBIn!E1580,TBIn!D1580) -> 0 | Q32: =IFERROR(P32/Page2!G$5,0) -> 0 | R32: =TBIn!E1580 -> 0 | S32: =IFERROR(R32/Page2!J$5,0) -> 0 | T32: 29
A33: 30 | B33: LEGALES Y DE AUDITORIA | C33: 72 | D33: =IF(Flag=TRUE,F33-TBIn!E1456,TBIn!D1456) -> 2764 | E33: 0.001843105326 | F33: 2764 | G33: 0.001843105326 | H33: =IF(Flag=TRUE,J33-TBIn!E1498,TBIn!D1498) -> 0 | I33: 0 | J33: =TBIn!E1498 -> 0 | K33: 0 | L33: =IF(Flag=TRUE,N33-TBIn!E1540,TBIn!D1540) -> 2764 | M33: 0.00512466812 | N33: 2764 | O33: 0.00512466812 | P33: =IF(Flag=TRUE,R33-TBIn!E1581,TBIn!D1581) -> 40351 | Q33: =IFERROR(P33/Page2!G$5,0) -> 0.007316169258 | R33: 40351 | S33: =IFERROR(R33/Page2!J$5,0) -> 0.007316169258 | T33: 30
A34: 31 | B34: TELEFONO | C34: 74 | D34: =IF(Flag=TRUE,F34-TBIn!E1457,TBIn!D1457) -> 6659 | E34: 0.004440390146 | F34: 6659 | G34: 0.004440390146 | H34: =IF(Flag=TRUE,J34-TBIn!E1499,TBIn!D1499) -> 0 | I34: 0 | J34: =TBIn!E1499 -> 0 | K34: 0 | L34: =IF(Flag=TRUE,N34-TBIn!E1541,TBIn!D1541) -> 5660 | M34: 0.01049407437 | N34: 5660 | O34: 0.01049407437 | P34: =IF(Flag=TRUE,R34-TBIn!E1582,TBIn!D1582) -> 7213 | Q34: =IFERROR(P34/Page2!G$5,0) -> 0.00130781217 | R34: 7213 | S34: =IFERROR(R34/Page2!J$5,0) -> 0.00130781217 | T34: 31
A35: 32 | B35: GASTOS DE CAPACITACION | C35: 75 | D35: =IF(Flag=TRUE,F35-TBIn!E1458,TBIn!D1458) -> 0 | E35: 0 | F35: =TBIn!E1458 -> 0 | G35: 0 | H35: =IF(Flag=TRUE,J35-TBIn!E1500,TBIn!D1500) -> 0 | I35: 0 | J35: =TBIn!E1500 -> 0 | K35: 0 | L35: =IF(Flag=TRUE,N35-TBIn!E1542,TBIn!D1542) -> 0 | M35: 0 | N35: =TBIn!E1542 -> 0 | O35: 0 | P35: =IF(Flag=TRUE,R35-TBIn!E1583,TBIn!D1583) -> 0 | Q35: =IFERROR(P35/Page2!G$5,0) -> 0 | R35: =TBIn!E1583 -> 0 | S35: =IFERROR(R35/Page2!J$5,0) -> 0 | T35: 32
A36: 33 | B36: INTERESES PLAN PISO | C36: 76 | T36: 33
A37: 34 | T37: 34
A38: 35 | B38: GASTOS POR INTERESES Y COMISIONES DIVERSOS | C38: 79 | D38: =IF(Flag=TRUE,F38-TBIn!E1459,TBIn!D1459) -> 0 | E38: =IFERROR(D38/(D$5+D$62),0) -> 0 | F38: =TBIn!E1459 -> 0 | G38: =IFERROR(F38/(F$5+F$62),0) -> 0 | H38: =IF(Flag=TRUE,J38-TBIn!E1501,TBIn!D1501) -> 0 | I38: =IFERROR(H38/(H$5+H$62),0) -> 0 | J38: =TBIn!E1501 -> 0 | K38: =IFERROR(J38/(J$5+J$62),0) -> 0 | L38: =IF(Flag=TRUE,N38-TBIn!E1543,TBIn!D1543) -> 0 | M38: =IFERROR(L38/(L$5+L$62),0) -> 0 | N38: =TBIn!E1543 -> 0 | O38: =IFERROR(N38/(N$5+N$62),0) -> 0 | P38: =IF(Flag=TRUE,R38-TBIn!E1584,TBIn!D1584) -> 51310 | Q38: =IFERROR(P38/Page2!G$5,0) -> 0.009303180705 | R38: 51310 | S38: =IFERROR(R38/Page2!J$5,0) -> 0.009303180705 | T38: 35
A39: 36 | B39: SEGUROS SOBRE INVENTARIO | C39: 56 | T39: 36
A40: 37 | B40: RESERVA PARA CUENTAS INCOBRABLES | C40: 57 | D40: =IF(Flag=TRUE,F40-TBIn!E1460,TBIn!D1460) -> 0 | E40: =IFERROR(D40/(D$5+D$62),0) -> 0 | F40: =TBIn!E1460 -> 0 | G40: =IFERROR(F40/(F$5+F$62),0) -> 0 | H40: =IF(Flag=TRUE,J40-TBIn!E1502,TBIn!D1502) -> 0 | I40: =IFERROR(H40/(H$5+H$62),0) -> 0 | J40: =TBIn!E1502 -> 0 | K40: =IFERROR(J40/(J$5+J$62),0) -> 0 | L40: =IF(Flag=TRUE,N40-TBIn!E1544,TBIn!D1544) -> 0 | M40: =IFERROR(L40/(L$5+L$62),0) -> 0 | N40: =TBIn!E1544 -> 0 | O40: =IFERROR(N40/(N$5+N$62),0) -> 0 | P40: =IF(Flag=TRUE,R40-TBIn!E1585,TBIn!D1585) -> 0 | Q40: =IFERROR(P40/Page2!G$5,0) -> 0 | R40: =TBIn!E1585 -> 0 | S40: =IFERROR(R40/Page2!J$5,0) -> 0 | T40: 37
A41: 38 | B41: FLETES, EMBARQUES, ENVIOS Y MENSAJERIA | C41: 33 | D41: =IF(Flag=TRUE,F41-TBIn!E1461,TBIn!D1461) -> 7500 | E41: 0.005001190283 | F41: 7500 | G41: 0.005001190283 | H41: =IF(Flag=TRUE,J41-TBIn!E1503,TBIn!D1503) -> 0 | I41: 0 | J41: =TBIn!E1503 -> 0 | K41: 0 | L41: =IF(Flag=TRUE,N41-TBIn!E1545,TBIn!D1545) -> 0 | M41: 0 | N41: =TBIn!E1545 -> 0 | O41: 0 | P41: =IF(Flag=TRUE,R41-TBIn!E1586,TBIn!D1586) -> 0 | Q41: =IFERROR(P41/Page2!G$5,0) -> 0 | R41: =TBIn!E1586 -> 0 | S41: =IFERROR(R41/Page2!J$5,0) -> 0 | T41: 38
A42: 39 | B42: GASTOS DIVERSOS | C42: 77 | D42: =IF(Flag=TRUE,F42-TBIn!E1462,TBIn!D1462) -> 9110 | E42: 0.006074779131 | F42: 9110 | G42: 0.006074779131 | H42: =IF(Flag=TRUE,J42-TBIn!E1504,TBIn!D1504) -> 0 | I42: 0 | J42: =TBIn!E1504 -> 0 | K42: 0 | L42: =IF(Flag=TRUE,N42-TBIn!E1546,TBIn!D1546) -> 9000 | M42: 0.0166866907 | N42: 9000 | O42: 0.0166866907 | P42: =IF(Flag=TRUE,R42-TBIn!E1587,TBIn!D1587) -> 10727 | Q42: =IFERROR(P42/Page2!G$5,0) -> 0.001944946783 | R42: 10727 | S42: =IFERROR(R42/Page2!J$5,0) -> 0.001944946783 | T42: 39
A43: 40 | B43: TOTAL SEMI-FIJOS | C43: (Lineas 18 a 39) | D43: =SUM(D21:D42) -> 105147 | E43: 0.0701146873 | F43: 105147 | G43: 0.0701146873 | H43: 0 | I43: 0 | J43: 0 | K43: 0 | L43: 42374 | M43: 0.07856464795 | N43: 42374 | O43: 0.07856464795 | P43: 165490 | Q43: =IFERROR(P43/Page2!G$5,0) -> 0.0300055228 | R43: 165490 | S43: =IFERROR(R43/Page2!J$5,0) -> 0.0300055228 | T43: 40
A44: 41 | B44: RENTA | C44: 80 | D44: =IF(Flag=TRUE,F44-TBIn!E1463,TBIn!D1463) -> 104895 | E44: 0.0699466473 | F44: 104895 | G44: 0.0699466473 | H44: =IF(Flag=TRUE,J44-TBIn!E1505,TBIn!D1505) -> 0 | I44: 0 | J44: =TBIn!E1505 -> 0 | K44: 0 | L44: =IF(Flag=TRUE,N44-TBIn!E1547,TBIn!D1547) -> 26224 | M44: 0.04862130853 | N44: 26224 | O44: 0.04862130853 | P44: =IF(Flag=TRUE,R44-TBIn!E1588,TBIn!D1588) -> 26224 | Q44: =IFERROR(P44/Page2!G$5,0) -> 0.004754757568 | R44: 26224 | S44: =IFERROR(R44/Page2!J$5,0) -> 0.004754757568 | T44: 41
A45: 42 | B45: AMORTIZACION DE INVERSIONES EN INMUEBLES ARRENDADOS | C45: 81 | D45: =IF(Flag=TRUE,F45-TBIn!E1464,TBIn!D1464) -> 0 | E45: 0 | F45: =TBIn!E1464 -> 0 | G45: 0 | H45: =IF(Flag=TRUE,J45-TBIn!E1506,TBIn!D1506) -> 0 | I45: 0 | J45: =TBIn!E1506 -> 0 | K45: 0 | L45: =IF(Flag=TRUE,N45-TBIn!E1548,TBIn!D1548) -> 0 | M45: 0 | N45: =TBIn!E1548 -> 0 | O45: 0 | P45: =IF(Flag=TRUE,R45-TBIn!E1589,TBIn!D1589) -> 56169 | Q45: =IFERROR(P45/Page2!G$5,0) -> 0.01018418158 | R45: 56169 | S45: =IFERROR(R45/Page2!J$5,0) -> 0.01018418158 | T45: 42
A46: 43 | B46: MANTENIMIENTO DE EDIFICIOS | C46: 82 | D46: =IF(Flag=TRUE,F46-TBIn!E1465,TBIn!D1465) -> 580 | E46: 0.0003867587152 | F46: 580 | G46: 0.0003867587152 | H46: =IF(Flag=TRUE,J46-TBIn!E1507,TBIn!D1507) -> 0 | I46: 0 | J46: =TBIn!E1507 -> 0 | K46: 0 | L46: =IF(Flag=TRUE,N46-TBIn!E1549,TBIn!D1549) -> 580 | M46: 0.001075364511 | N46: 580 | O46: 0.001075364511 | P46: =IF(Flag=TRUE,R46-TBIn!E1590,TBIn!D1590) -> 580 | Q46: =IFERROR(P46/Page2!G$5,0) -> 0.0001051616607 | R46: 580 | S46: =IFERROR(R46/Page2!J$5,0) -> 0.0001051616607 | T46: 43
A47: 44 | B47: DEPRECIACION DE EDIFICIOS Y MEJORAS | C47: 83 | D47: =IF(Flag=TRUE,F47-TBIn!E1466,TBIn!D1466) -> 0 | E47: 0 | F47: =TBIn!E1466 -> 0 | G47: 0 | H47: =IF(Flag=TRUE,J47-TBIn!E1508,TBIn!D1508) -> 0 | I47: 0 | J47: =TBIn!E1508 -> 0 | K47: 0 | L47: =IF(Flag=TRUE,N47-TBIn!E1550,TBIn!D1550) -> 0 | M47: 0 | N47: =TBIn!E1550 -> 0 | O47: 0 | P47: =IF(Flag=TRUE,R47-TBIn!E1591,TBIn!D1591) -> 10707 | Q47: =IFERROR(P47/Page2!G$5,0) -> 0.001941320519 | R47: 10707 | S47: =IFERROR(R47/Page2!J$5,0) -> 0.001941320519 | T47: 44
A48: 45 | B48: IMPUESTOS SOBRE PROPIEDADES (PREDIAL) | C48: 84 | D48: =IF(Flag=TRUE,F48-TBIn!E1467,TBIn!D1467) -> 0 | E48: 0 | F48: =TBIn!E1467 -> 0 | G48: 0 | H48: =IF(Flag=TRUE,J48-TBIn!E1509,TBIn!D1509) -> 0 | I48: 0 | J48: =TBIn!E1509 -> 0 | K48: 0 | L48: =IF(Flag=TRUE,N48-TBIn!E1551,TBIn!D1551) -> 0 | M48: 0 | N48: =TBIn!E1551 -> 0 | O48: 0 | P48: =IF(Flag=TRUE,R48-TBIn!E1592,TBIn!D1592) -> 0 | Q48: =IFERROR(P48/Page2!G$5,0) -> 0 | R48: =TBIn!E1592 -> 0 | S48: =IFERROR(R48/Page2!J$5,0) -> 0 | T48: 45
A49: 46 | B49: SEGUROS EDIFICIOS Y MEJORAS | C49: 85 | D49: =IF(Flag=TRUE,F49-TBIn!E1468,TBIn!D1468) -> 2313 | E49: 0.001542367083 | F49: 2313 | G49: 0.001542367083 | H49: =IF(Flag=TRUE,J49-TBIn!E1510,TBIn!D1510) -> 0 | I49: 0 | J49: =TBIn!E1510 -> 0 | K49: 0 | L49: =IF(Flag=TRUE,N49-TBIn!E1552,TBIn!D1552) -> 0 | M49: 0 | N49: =TBIn!E1552 -> 0 | O49: 0 | P49: =IF(Flag=TRUE,R49-TBIn!E1593,TBIn!D1593) -> 0 | Q49: =IFERROR(P49/Page2!G$5,0) -> 0 | R49: =TBIn!E1593 -> 0 | S49: =IFERROR(R49/Page2!J$5,0) -> 0 | T49: 46
A50: 47 | B50: INTERESES SOBRE HIPOTECAS | C50: 86 | D50: =IF(Flag=TRUE,F50-TBIn!E1469,TBIn!D1469) -> 0 | E50: 0 | F50: =TBIn!E1469 -> 0 | G50: 0 | H50: =IF(Flag=TRUE,J50-TBIn!E1511,TBIn!D1511) -> 0 | I50: 0 | J50: =TBIn!E1511 -> 0 | K50: 0 | L50: =IF(Flag=TRUE,N50-TBIn!E1553,TBIn!D1553) -> 0 | M50: 0 | N50: =TBIn!E1553 -> 0 | O50: 0 | P50: =IF(Flag=TRUE,R50-TBIn!E1594,TBIn!D1594) -> 0 | Q50: =IFERROR(P50/Page2!G$5,0) -> 0 | R50: =TBIn!E1594 -> 0 | S50: =IFERROR(R50/Page2!J$5,0) -> 0 | T50: 47
A51: 48 | B51: LUZ, FUERZA, AGUA Y CALEFACCION | C51: 87 | D51: =IF(Flag=TRUE,F51-TBIn!E1470,TBIn!D1470) -> 19937 | E51: 0.01329449742 | F51: 19937 | G51: 0.01329449742 | H51: =IF(Flag=TRUE,J51-TBIn!E1512,TBIn!D1512) -> 0 | I51: 0 | J51: =TBIn!E1512 -> 0 | K51: 0 | L51: =IF(Flag=TRUE,N51-TBIn!E1554,TBIn!D1554) -> 5659 | M51: 0.01049222029 | N51: 5659 | O51: 0.01049222029 | P51: =IF(Flag=TRUE,R51-TBIn!E1595,TBIn!D1595) -> 4759 | Q51: =IFERROR(P51/Page2!G$5,0) -> 0.0008628695571 | R51: 4759 | S51: =IFERROR(R51/Page2!J$5,0) -> 0.0008628695571 | T51: 48
A52: 49 | B52: SUB-TOTAL INMUEBLE Y EQUIVALENTES | C52: (Lineas 41 a 48) | D52: =SUM(D44:D51) -> 127725 | E52: 0.08517027052 | F52: =SUM(F44:F51) -> 127725 | G52: 0.08517027052 | H52: =SUM(H44:H51) -> 0 | I52: 0 | J52: =SUM(J44:J51) -> 0 | K52: 0 | L52: =SUM(L44:L51) -> 32463 | M52: 0.06018889334 | N52: =SUM(N44:N51) -> 32463 | O52: 0.06018889334 | P52: =SUM(P44:P51) -> 98439 | Q52: =IFERROR(P52/Page2!G$5,0) -> 0.01784829089 | R52: =SUM(R44:R51) -> 98439 | S52: =IFERROR(R52/Page2!J$5,0) -> 0.01784829089 | T52: 49
A53: 50 | B53: OTROS SEGUROS | C53: 88 | D53: =IF(Flag=TRUE,F53-TBIn!E1471,TBIn!D1471) -> 0 | E53: 0 | F53: =TBIn!E1471 -> 0 | G53: 0 | H53: =IF(Flag=TRUE,J53-TBIn!E1513,TBIn!D1513) -> 0 | I53: 0 | J53: =TBIn!E1513 -> 0 | K53: 0 | L53: =IF(Flag=TRUE,N53-TBIn!E1555,TBIn!D1555) -> 2313 | M53: 0.004288479509 | N53: 2313 | O53: 0.004288479509 | P53: =IF(Flag=TRUE,R53-TBIn!E1596,TBIn!D1596) -> 7512 | Q53: =IFERROR(P53/Page2!G$5,0) -> 0.001362024819 | R53: 7512 | S53: =IFERROR(R53/Page2!J$5,0) -> 0.001362024819 | T53: 50
A54: 51 | B54: OTROS IMPUESTOS | C54: 89 | D54: =IF(Flag=TRUE,F54-TBIn!E1472,TBIn!D1472) -> 0 | E54: 0 | F54: =TBIn!E1472 -> 0 | G54: 0 | H54: =IF(Flag=TRUE,J54-TBIn!E1514,TBIn!D1514) -> 0 | I54: 0 | J54: =TBIn!E1514 -> 0 | K54: 0 | L54: =IF(Flag=TRUE,N54-TBIn!E1556,TBIn!D1556) -> 0 | M54: 0 | N54: =TBIn!E1556 -> 0 | O54: 0 | P54: =IF(Flag=TRUE,R54-TBIn!E1597,TBIn!D1597) -> 47309 | Q54: =IFERROR(P54/Page2!G$5,0) -> 0.00857774656 | R54: 47309 | S54: =IFERROR(R54/Page2!J$5,0) -> 0.00857774656 | T54: 51
A55: 52 | B55: MANTENIMIENTO EN EQUIPO | C55: 90 | D55: =IF(Flag=TRUE,F55-TBIn!E1473,TBIn!D1473) -> 0 | E55: 0 | F55: =TBIn!E1473 -> 0 | G55: 0 | H55: =IF(Flag=TRUE,J55-TBIn!E1515,TBIn!D1515) -> 0 | I55: 0 | J55: =TBIn!E1515 -> 0 | K55: 0 | L55: =IF(Flag=TRUE,N55-TBIn!E1557,TBIn!D1557) -> 0 | M55: 0 | N55: =TBIn!E1557 -> 0 | O55: 0 | P55: =IF(Flag=TRUE,R55-TBIn!E1598,TBIn!D1598) -> 8484 | Q55: =IFERROR(P55/Page2!G$5,0) -> 0.001538261257 | R55: 8484 | S55: =IFERROR(R55/Page2!J$5,0) -> 0.001538261257 | T55: 52
A56: 53 | B56: DEPRECIACION DE EQUIPO | C56: 91 | D56: =IF(Flag=TRUE,F56-TBIn!E1474,TBIn!D1474) -> 64184 | E56: 0.04279951962 | F56: 64184 | G56: 0.04279951962 | H56: =IF(Flag=TRUE,J56-TBIn!E1516,TBIn!D1516) -> 0 | I56: 0 | J56: =TBIn!E1516 -> 0 | K56: 0 | L56: =IF(Flag=TRUE,N56-TBIn!E1558,TBIn!D1558) -> 0 | M56: 0 | N56: =TBIn!E1558 -> 0 | O56: 0 | P56: =IF(Flag=TRUE,R56-TBIn!E1599,TBIn!D1599) -> 28675 | Q56: =IFERROR(P56/Page2!G$5,0) -> 0.005199156241 | R56: 28675 | S56: =IFERROR(R56/Page2!J$5,0) -> 0.005199156241 | T56: 53
A57: 54 | B57: ARRENDAMIENTO DE EQUIPO | C57: 92 | D57: =IF(Flag=TRUE,F57-TBIn!E1475,TBIn!D1475) -> 4248 | E57: 0.002832674176 | F57: 4248 | G57: 0.002832674176 | H57: =IF(Flag=TRUE,J57-TBIn!E1517,TBIn!D1517) -> 0 | I57: 0 | J57: =TBIn!E1517 -> 0 | K57: 0 | L57: =IF(Flag=TRUE,N57-TBIn!E1559,TBIn!D1559) -> 1699 | M57: 0.003150076388 | N57: 1699 | O57: 0.003150076388 | P57: =IF(Flag=TRUE,R57-TBIn!E1600,TBIn!D1600) -> 4248 | Q57: =IFERROR(P57/Page2!G$5,0) -> 0.0007702185078 | R57: 4248 | S57: =IFERROR(R57/Page2!J$5,0) -> 0.0007702185078 | T57: 54
A58: 55 | B58: TOTAL FIJOS | C58: (Lineas 50 a 54) | D58: =SUM(D52:D57) -> 196157 | E58: 0.1308024643 | F58: =SUM(F52:F57) -> 196157 | G58: 0.1308024643 | H58: =SUM(H52:H57) -> 0 | I58: 0 | J58: =SUM(J52:J57) -> 0 | K58: 0 | L58: =SUM(L52:L57) -> 36475 | M58: 0.06762744924 | N58: =SUM(N52:N57) -> 36475 | O58: 0.06762744924 | P58: =SUM(P52:P57) -> 194667 | Q58: =IFERROR(P58/Page2!G$5,0) -> 0.03529569827 | R58: =SUM(R52:R57) -> 194667 | S58: =IFERROR(R58/Page2!J$5,0) -> 0.03529569827 | T58: 55
A59: 56 | B59: TOTAL GASTOS FIJOS GENERALES (Lineas 17,40 y 55) | D59: =D58+D43+D20 -> 736204 | E59: 0.4909195055 | F59: =F58+F43+F20 -> 736204 | G59: 0.4909195055 | H59: =H58+H43+H20 -> 119749 | I59: 0.2756303875 | J59: =J58+J43+J20 -> 119749 | K59: 0.2756303875 | L59: =L58+L43+L20 -> 258624 | M59: 0.4795087438 | N59: =N58+N43+N20 -> 258624 | O59: 0.4795087438 | P59: =P58+P43+P20 -> 798581 | Q59: =IFERROR(P59/Page2!G$5,0) -> 0.144793283 | R59: =R58+R43+R20 -> 798581 | S59: =IFERROR(R59/Page2!J$5,0) -> 0.144793283 | T59: 56
A60: 57 | B60: GASTOS TOTALES | C60: (Lineas 7 y 56) | D60: =D59 -> 736204 | E60: 0.4909195055 | F60: =F59 -> 736204 | G60: 0.4909195055 | H60: =H59 -> 119749 | I60: 0.2756303875 | J60: =J59 -> 119749 | K60: 0.2756303875 | L60: =L59 -> 258624 | M60: 0.4795087438 | N60: =N59 -> 258624 | O60: 0.4795087438 | P60: =IF(Flag=TRUE,P59,TBIn!D1601) -> 798581 | Q60: =IFERROR(P60/Page2!G$5,0) -> 0.144793283 | R60: =IF(Flag=TRUE,R59,TBIn!E1601) -> 798581 | S60: =IFERROR(R60/Page2!J$5,0) -> 0.144793283 | T60: 57
A61: 58 | B61: UTILIDAD O PERDIDA EN OPERACIÓN | C61: (Lineas 2 - 57) | D61: =D5-D60 -> 609007 | E61: 0.4061013188 | F61: =F5-F60 -> 609007 | G61: 0.4061013188 | H61: =H5-H60 -> 99969 | I61: 0.2301020819 | J61: =J5-J60 -> 99969 | K61: 0.2301020819 | L61: =L5-L60 -> 649897 | M61: 1.204958914 | N61: =N5-N60 -> 649897 | O61: 1.204958914 | T61: 58
A62: 59 | B62: F & I & PLANES DE PROTECCION TRANSFERENCIAS | D62: =IF(Flag=TRUE,ROUND(SUM(Page6!I48:I50)*0.5,0),TBIn!D1129) -> 154432 | E62: =IFERROR(D62/(D$5+D$62),0) -> 0.1029791757 | F62: =IF(Flag=TRUE,ROUND(SUM(Page6!N48:N50)*0.5,0),TBIn!E1129) -> 154432 | G62: =IFERROR(F62/(F$5+F$62),0) -> 0.1029791757 | H62: =IF(Flag=TRUE,ROUND(Page6!I51*0.5,0),TBIn!D1130) -> 214737 | I62: =IFERROR(H62/(H$5+H$62),0) -> 0.4942675306 | J62: =IF(Flag=TRUE,ROUND(Page6!N51*0.5,0),TBIn!E1130) -> 214737 | K62: =IFERROR(J62/(J$5+J$62),0) -> 0.4942675306 | L62: =IF(Flag=TRUE,(D62+H62)*-1,TBIn!D1131) -> -369169 | M62: =IFERROR(L62/(L$5+L$62),0) -> -0.6844676575 | N62: =IF(Flag=TRUE,(F62+J62)*-1,TBIn!E1131) -> -369169 | O62: =IFERROR(N62/(N$5+N$62),0) -> -0.6844676575 | T62: 59
A63: 60 | B63: PRORRATEO DE GASTOS DE ADMINISTRACION | D63: =IF(Flag=TRUE,F63-TBIn!E1126,TBIn!D1126) -> -47184 | E63: -0.03146348831 | F63: -47184 | G63: -0.03146348831 | H63: =IF(Flag=TRUE,J63-TBIn!E1127,TBIn!D1127) -> -12552 | I63: -0.02889136965 | J63: -12552 | K63: -0.02889136965 | L63: =IF(Flag=TRUE,N63-TBIn!E1128,TBIn!D1128) -> -96025 | M63: -0.1780377193 | N63: -96025 | O63: -0.1780377193 | P63: =P60 -> 798581 | Q63: =IFERROR(P63/Page2!G$5,0) -> 0.144793283 | R63: =R60 -> 798581 | S63: =IFERROR(R63/Page2!J$5,0) -> 0.144793283 | T63: 60
A64: 61 | B64: UTILIDAD O PERDIDA DE OPERACIÓN DESPUES DE TRANSFERENCIAS DE PARTES Y PRORRATEO DE GASTOS DE ADMINISTRACION | D64: =IF(Flag=TRUE,SUM(D61:D63),TBIn!D1476) -> 716255 | E64: 0.4776170062 | F64: =IF(Flag=TRUE,SUM(F61:F63),TBIn!E1476) -> 716255 | G64: 0.4776170062 | H64: =IF(Flag=TRUE,SUM(H61:H63),TBIn!D1518) -> 302154 | I64: 0.6954782429 | J64: =IF(Flag=TRUE,SUM(J61:J63),TBIn!E1518) -> 302154 | K64: 0.6954782429 | L64: =IF(Flag=TRUE,SUM(L61:L63),TBIn!D1560) -> 184703 | M64: 0.3424535368 | N64: =IF(Flag=TRUE,SUM(N61:N63),TBIn!E1560) -> 184703 | O64: 0.3424535368 | T64: 61
A65: 62 | B65: MANO DE OBRA COBRADA A CLIENTES DE SERVICIO | D65: AUTOS Y COMERCIALES & CAMIONES | F65: KODIAK | H65: OTRAS TARIFAS DE MANO DE OBRA PUBLICADAS | L65: SERVICIO | N65: HOJALATERIA Y PINTURA | T65: 62
A66: 63 | B66: MANO DE OBRA CLIENTES REPARACIONES | D66: 720 | F66: =TBIn!E160 -> 0 | H66: GARANTIA | L66: 155 | N66: =TBIn!E165 -> 0 | T66: 63
A67: 64 | B67: MANO DE OBRA CLIENTES OTROS SERVICIOS DE MANTENIMIENTO | D67: 0 | F67: =TBIn!E161 -> 0 | H67: INTERNA | L67: 1104 | N67: =TBIn!E166 -> 0 | T67: 64
A68: 65 | B68: SERVICIO DE MANTENIMIENTO BASICO | D68: 1000 | F68: =TBIn!E162 -> 0 | H68: TALLER - TRABAJO DE PINTURA | N68: 468 | T68: 65
A69: 66 | H69: TALLER - TRABAJO DE HOJALATERIA | N69: 468 | T69: 66

Sheet Page5a
B1: =OR_VEH!B2 -> CHEVROLET | F1: VEHICULOS NUEVOS - ANALISIS DE VENTAS Y UTILIDAD BRUTA | P1: =TBIn!$E$2591&" - "&TBIn!$AH$10&" - PAGINA 5a" -> 122112 - 201801 - PAGINA 5a | Q1: Per Unit | R1: Month | S1: YTD | T1: Month | U1: YTD
A2: Lin. | D2: OPERACIONES | G2: MES | L2: AÑO A LA FECHA | P2: Lin. | Q2: Sales | R2: Sales | S2: Sales | T2: Unit | U2: Unit
A3: No. | D3: VARIABLES | E3: CTA. | F3: UNIDADES VENDIDAS | G3: VENTAS | H3: COSTO DE VENTAS | I3: UTILIDAD BRUTA | J3: POR VEHICULO VENDIDO | K3: UNIDADES VENDIDAS | L3: VENTAS | M3: COSTO DE VENTAS | N3: UTILIDAD BRUTA | O3: POR VEHICULO VENDIDO | P3: No. | Q3: Max | R3: Flag | S3: Flag | T3: Flag | U3: Flag
A4: 1 | B4: VENTAS D E AUTOS NUEVOS | C4: =OR_VEH!B3 -> BOLT EV | E4: 400A | F4: =IFERROR(IF(Flag=TRUE,K4-TBIn!E209,TBIn!D209),0) -> 0 | G4: =IFERROR(IF(Flag=TRUE,L4-TBIn!E1613,TBIn!D1613),0) -> 0 | H4: ='Page5aB&P'!G4-'Page5aB&P'!J4 -> 0 | I4: =G4-H4 -> 0 | J4: =IFERROR(I4/F4,0) -> 0 | K4: =IFERROR(TBIn!E209,0) -> 0 | L4: =IFERROR(TBIn!E1613,0) -> 0 | M4: ='Page5aB&P'!L4-'Page5aB&P'!O4 -> 0 | N4: =L4-M4 -> 0 | O4: =IFERROR(N4/K4,0) -> 0 | P4: 1 | Q4: 50000 | R4: =IF(F4=0,0,IF(G4/F4>Q4,1,0)) -> 0 | S4: =IF(K4=0,0,IF(OR(L4<0,L4/K4>Q4),1,0)) -> 0 | T4: =IF(OR(F4<0,AND(G4>0,F4=0),AND(G4=0,F4>0)),1,0) -> 0 | U4: =IF(OR(K4<0,AND(L4>0,K4=0),AND(K4>0,L4=0)),1,0) -> 0
A5: 2 | C5: =OR_VEH!B4 -> BOLT SEDAN | E5: 401A | F5: =IFERROR(IF(Flag=TRUE,K5-TBIn!E210,TBIn!D210),0) -> 0 | G5: =IFERROR(IF(Flag=TRUE,L5-TBIn!E1614,TBIn!D1614),0) -> 0 | H5: ='Page5aB&P'!G5-'Page5aB&P'!J5 -> 0 | I5: =G5-H5 -> 0 | J5: 0 | K5: =IFERROR(TBIn!E210,0) -> 0 | L5: =IFERROR(TBIn!E1614,0) -> 0 | M5: ='Page5aB&P'!L5-'Page5aB&P'!O5 -> 0 | N5: =L5-M5 -> 0 | O5: 0 | P5: 2 | Q5: 50000 | R5: =IF(F5=0,0,IF(G5/F5>Q5,1,0)) -> 0 | S5: =IF(K5=0,0,IF(OR(L5<0,L5/K5>Q5),1,0)) -> 0 | T5: =IF(OR(F5<0,AND(G5>0,F5=0),AND(G5=0,F5>0)),1,0) -> 0 | U5: =IF(OR(K5<0,AND(L5>0,K5=0),AND(K5>0,L5=0)),1,0) -> 0
A6: 3 | C6: =OR_VEH!B5 -> NO UTILICE | E6: 402A | F6: =IFERROR(IF(Flag=TRUE,K6-TBIn!E211,TBIn!D211),0) -> 0 | G6: =IFERROR(IF(Flag=TRUE,L6-TBIn!E1615,TBIn!D1615),0) -> 0 | H6: ='Page5aB&P'!G6-'Page5aB&P'!J6 -> 0 | I6: 0 | J6: 0 | K6: =IFERROR(TBIn!E211,0) -> 0 | L6: =IFERROR(TBIn!E1615,0) -> 0 | M6: ='Page5aB&P'!L6-'Page5aB&P'!O6 -> 0 | N6: 0 | O6: 0 | P6: 3 | Q6: 50000 | R6: 0 | S6: 0 | T6: 0 | U6: 0
A7: 4 | C7: =OR_VEH!B6 -> MATIZ | E7: 403A | F7: =IFERROR(IF(Flag=TRUE,K7-TBIn!E212,TBIn!D212),0) -> 0 | G7: =IFERROR(IF(Flag=TRUE,L7-TBIn!E1616,TBIn!D1616),0) -> 0 | H7: ='Page5aB&P'!G7-'Page5aB&P'!J7 -> 0 | I7: 0 | J7: 0 | K7: =IFERROR(TBIn!E212,0) -> 0 | L7: =IFERROR(TBIn!E1616,0) -> 0 | M7: ='Page5aB&P'!L7-'Page5aB&P'!O7 -> 0 | N7: 0 | O7: 0 | P7: 4 | Q7: 50000 | R7: 0 | S7: 0 | T7: 0 | U7: 0
A8: 5 | C8: =OR_VEH!B7 -> SPARK | E8: 404A | F8: =IFERROR(IF(Flag=TRUE,K8-TBIn!E213,TBIn!D213),0) -> 0 | G8: =IFERROR(IF(Flag=TRUE,L8-TBIn!E1617,TBIn!D1617),0) -> 0 | H8: ='Page5aB&P'!G8-'Page5aB&P'!J8 -> 0 | I8: 0 | J8: 0 | K8: =IFERROR(TBIn!E213,0) -> 0 | L8: =IFERROR(TBIn!E1617,0) -> 0 | M8: ='Page5aB&P'!L8-'Page5aB&P'!O8 -> 0 | N8: 0 | O8: 0 | P8: 5 | Q8: 50000 | R8: 0 | S8: 0 | T8: 0 | U8: 0
A9: 6 | C9: =OR_VEH!B8 -> SONIC | E9: 405A | F9: =IFERROR(IF(Flag=TRUE,K9-TBIn!E214,TBIn!D214),0) -> 0 | G9: =IFERROR(IF(Flag=TRUE,L9-TBIn!E1618,TBIn!D1618),0) -> 0 | H9: ='Page5aB&P'!G9-'Page5aB&P'!J9 -> -23872 | I9: 23872 | J9: 0 | K9: 0 | L9: 0 | M9: ='Page5aB&P'!L9-'Page5aB&P'!O9 -> -23872 | N9: 23872 | O9: 0 | P9: 6 | Q9: 50000 | R9: 0 | S9: 0 | T9: 0 | U9: 0
A10: 7 | C10: =OR_VEH!B9 -> SPARK NG | E10: 406A | F10: =IFERROR(IF(Flag=TRUE,K10-TBIn!E215,TBIn!D215),0) -> 4 | G10: =IFERROR(IF(Flag=TRUE,L10-TBIn!E1619,TBIn!D1619),0) -> 763467 | H10: ='Page5aB&P'!G10-'Page5aB&P'!J10 -> 667967 | I10: 95500 | J10: 23875 | K10: 4 | L10: 763467 | M10: ='Page5aB&P'!L10-'Page5aB&P'!O10 -> 667967 | N10: 95500 | O10: 23875 | P10: 7 | Q10: 50000 | R10: 1 | S10: 1 | T10: 0 | U10: 0
A11: 8 | C11: =OR_VEH!B10 -> SPARK EV | E11: 407A | F11: =IFERROR(IF(Flag=TRUE,K11-TBIn!E216,TBIn!D216),0) -> 0 | G11: =IFERROR(IF(Flag=TRUE,L11-TBIn!E1620,TBIn!D1620),0) -> 0 | H11: ='Page5aB&P'!G11-'Page5aB&P'!J11 -> 0 | I11: 0 | J11: 0 | K11: =IFERROR(TBIn!E216,0) -> 0 | L11: =IFERROR(TBIn!E1620,0) -> 0 | M11: ='Page5aB&P'!L11-'Page5aB&P'!O11 -> 0 | N11: 0 | O11: 0 | P11: 8 | Q11: 50000 | R11: 0 | S11: 0 | T11: 0 | U11: 0
A12: 9 | C12: =OR_VEH!B11 -> NO UTILICE | E12: 408A | F12: =IFERROR(IF(Flag=TRUE,K12-TBIn!E217,TBIn!D217),0) -> 0 | G12: =IFERROR(IF(Flag=TRUE,L12-TBIn!E1621,TBIn!D1621),0) -> 0 | H12: ='Page5aB&P'!G12-'Page5aB&P'!J12 -> 0 | I12: 0 | J12: 0 | K12: =IFERROR(TBIn!E217,0) -> 0 | L12: =IFERROR(TBIn!E1621,0) -> 0 | M12: ='Page5aB&P'!L12-'Page5aB&P'!O12 -> 0 | N12: 0 | O12: 0 | P12: 9 | Q12: 50000 | R12: 0 | S12: 0 | T12: 0 | U12: 0
A13: 10 | C13: =OR_VEH!B12 -> AVEO | E13: 409A | F13: =IFERROR(IF(Flag=TRUE,K13-TBIn!E218,TBIn!D218),0) -> 36 | G13: =IFERROR(IF(Flag=TRUE,L13-TBIn!E1622,TBIn!D1622),0) -> 6384569 | H13: ='Page5aB&P'!G13-'Page5aB&P'!J13 -> 6109513 | I13: 275056 | J13: 7640.444444 | K13: 36 | L13: 6384569 | M13: ='Page5aB&P'!L13-'Page5aB&P'!O13 -> 6109513 | N13: 275056 | O13: 7640.444444 | P13: 10 | Q13: 50000 | R13: 1 | S13: 1 | T13: 0 | U13: 0
A14: 11 | C14: =OR_VEH!B13 -> MALIBU | E14: 410A | F14: =IFERROR(IF(Flag=TRUE,K14-TBIn!E219,TBIn!D219),0) -> 1 | G14: =IFERROR(IF(Flag=TRUE,L14-TBIn!E1623,TBIn!D1623),0) -> 363296 | H14: ='Page5aB&P'!G14-'Page5aB&P'!J14 -> 321202 | I14: 42094 | J14: 42094 | K14: 1 | L14: 363296 | M14: ='Page5aB&P'!L14-'Page5aB&P'!O14 -> 321202 | N14: 42094 | O14: 42094 | P14: 11 | Q14: 50000 | R14: 1 | S14: 1 | T14: 0 | U14: 0
A15: 12 | C15: =OR_VEH!B14 -> CAMARO | E15: 411A | F15: =IFERROR(IF(Flag=TRUE,K15-TBIn!E220,TBIn!D220),0) -> 1 | G15: =IFERROR(IF(Flag=TRUE,L15-TBIn!E1624,TBIn!D1624),0) -> 536396 | H15: ='Page5aB&P'!G15-'Page5aB&P'!J15 -> 477564 | I15: 58832 | J15: 58832 | K15: 1 | L15: 536396 | M15: ='Page5aB&P'!L15-'Page5aB&P'!O15 -> 477564 | N15: 58832 | O15: 58832 | P15: 12 | Q15: 50000 | R15: 1 | S15: 1 | T15: 0 | U15: 0
A16: 13 | C16: =OR_VEH!B15 -> CORVETTE | E16: 412A | F16: =IFERROR(IF(Flag=TRUE,K16-TBIn!E221,TBIn!D221),0) -> 0 | G16: =IFERROR(IF(Flag=TRUE,L16-TBIn!E1625,TBIn!D1625),0) -> 0 | H16: ='Page5aB&P'!G16-'Page5aB&P'!J16 -> 0 | I16: 0 | J16: 0 | K16: =IFERROR(TBIn!E221,0) -> 0 | L16: =IFERROR(TBIn!E1625,0) -> 0 | M16: ='Page5aB&P'!L16-'Page5aB&P'!O16 -> 0 | N16: 0 | O16: 0 | P16: 13 | Q16: 50000 | R16: 0 | S16: 0 | T16: 0 | U16: 0
A17: 14 | C17: =OR_VEH!B16 -> CRUZE | E17: 413A | F17: =IFERROR(IF(Flag=TRUE,K17-TBIn!E222,TBIn!D222),0) -> 0 | G17: =IFERROR(IF(Flag=TRUE,L17-TBIn!E1626,TBIn!D1626),0) -> 0 | H17: ='Page5aB&P'!G17-'Page5aB&P'!J17 -> -2140 | I17: 2140 | J17: 0 | K17: 0 | L17: 0 | M17: ='Page5aB&P'!L17-'Page5aB&P'!O17 -> -2140 | N17: 2140 | O17: 0 | P17: 14 | Q17: 50000 | R17: 0 | S17: 0 | T17: 0 | U17: 0
A18: 15 | C18: =OR_VEH!B17 -> VOLT | E18: 414A | F18: =IFERROR(IF(Flag=TRUE,K18-TBIn!E223,TBIn!D223),0) -> 0 | G18: =IFERROR(IF(Flag=TRUE,L18-TBIn!E1627,TBIn!D1627),0) -> 0 | H18: ='Page5aB&P'!G18-'Page5aB&P'!J18 -> 0 | I18: 0 | J18: 0 | K18: =IFERROR(TBIn!E223,0) -> 0 | L18: =IFERROR(TBIn!E1627,0) -> 0 | M18: ='Page5aB&P'!L18-'Page5aB&P'!O18 -> 0 | N18: 0 | O18: 0 | P18: 15 | Q18: 50000 | R18: 0 | S18: 0 | T18: 0 | U18: 0
A19: 16 | C19: =OR_VEH!B18 -> CRUZE NG | E19: 415A | F19: =IFERROR(IF(Flag=TRUE,K19-TBIn!E224,TBIn!D224),0) -> 0 | G19: =IFERROR(IF(Flag=TRUE,L19-TBIn!E1628,TBIn!D1628),0) -> 0 | H19: ='Page5aB&P'!G19-'Page5aB&P'!J19 -> 0 | I19: 0 | J19: 0 | K19: =IFERROR(TBIn!E224,0) -> 0 | L19: =IFERROR(TBIn!E1628,0) -> 0 | M19: ='Page5aB&P'!L19-'Page5aB&P'!O19 -> 0 | N19: 0 | O19: 0 | P19: 16 | Q19: 50000 | R19: 0 | S19: 0 | T19: 0 | U19: 0
A20: 17 | C20: =OR_VEH!B19 -> BEAT | E20: 416A | F20: =IFERROR(IF(Flag=TRUE,K20-TBIn!E225,TBIn!D225),0) -> 31 | G20: =IFERROR(IF(Flag=TRUE,L20-TBIn!E1629,TBIn!D1629),0) -> 4618823 | H20: ='Page5aB&P'!G20-'Page5aB&P'!J20 -> 4340586 | I20: 278237 | J20: 8975.387097 | K20: 31 | L20: 4618823 | M20: ='Page5aB&P'!L20-'Page5aB&P'!O20 -> 4340586 | N20: 278237 | O20: 8975.387097 | P20: 17 | Q20: 50000 | R20: 1 | S20: 1 | T20: 0 | U20: 0
A21: 18 | C21: =OR_VEH!B20 -> CAVALIER | E21: 417A | F21: =IFERROR(IF(Flag=TRUE,K21-TBIn!E226,TBIn!D226),0) -> 7 | G21: =IFERROR(IF(Flag=TRUE,L21-TBIn!E1630,TBIn!D1630),0) -> 1512026 | H21: ='Page5aB&P'!G21-'Page5aB&P'!J21 -> 1417695 | I21: 94331 | J21: 13475.85714 | K21: 7 | L21: 1512026 | M21: ='Page5aB&P'!L21-'Page5aB&P'!O21 -> 1417695 | N21: 94331 | O21: 13475.85714 | P21: 18 | Q21: 50000 | R21: 1 | S21: 1 | T21: 0 | U21: 0
A22: 19 | C22: =OR_VEH!B21 -> OTROS AUTOS CHEVROLET | E22: 418A | F22: =IFERROR(IF(Flag=TRUE,K22-TBIn!E227,TBIn!D227),0) -> 0 | G22: =IFERROR(IF(Flag=TRUE,L22-TBIn!E1631,TBIn!D1631),0) -> 0 | H22: ='Page5aB&P'!G22-'Page5aB&P'!J22 -> 0 | I22: 0 | J22: 0 | M22: ='Page5aB&P'!L22-'Page5aB&P'!O22 -> 0 | N22: 0 | O22: 0 | P22: 19 | Q22: 50000 | R22: 0 | S22: 0 | T22: 0 | U22: 0
A23: 20 | C23: TOTAL AUTOS NUEVOS MENUDEO | E23: (Lineas 1 a 19) | F23: ='Page5aB&P'!F23 -> 80 | G23: =SUM(G4:G22) -> 14178577 | H23: ='Page5aB&P'!G23-'Page5aB&P'!J23 -> 13308515 | I23: =SUM(I4:I22) -> 870062 | J23: 10875.775 | K23: ='Page5aB&P'!K23 -> 80 | L23: =SUM(L4:L22) -> 14178577 | M23: ='Page5aB&P'!L23-'Page5aB&P'!O23 -> 13308515 | N23: =SUM(N4:N22) -> 870062 | O23: 10875.775 | P23: 20
A24: 21 | C24: =OR_VEH!B23 -> NO UTILICE | E24: 419A | F24: ='Page5aB&P'!F24 -> 0 | G24: 0 | H24: ='Page5aB&P'!G24-'Page5aB&P'!J24 -> 0 | I24: 0 | J24: 0 | K24: ='Page5aB&P'!K24 -> 0 | L24: 0 | M24: ='Page5aB&P'!L24-'Page5aB&P'!O24 -> 0 | N24: 0 | O24: 0 | P24: 21 | Q24: 50000 | R24: 0 | S24: =IF(K24=0,0,IF(OR(L24<0,L24/K24>Q24),1,0)) -> 0 | T24: =IF(OR(F24<0,AND(G24>0,F24=0),AND(G24=0,F24>0)),1,0) -> 0 | U24: =IF(OR(K24<0,AND(L24>0,K24=0),AND(K24>0,L24=0)),1,0) -> 0
A25: 22 | C25: =OR_VEH!B24 -> FLOTILLAS | E25: 420A | F25: =IFERROR(IF(Flag=TRUE,K25-TBIn!E229,TBIn!D229),0) -> 0 | G25: =IFERROR(IF(Flag=TRUE,L25-TBIn!E1632,TBIn!D1632),0) -> 0 | H25: ='Page5aB&P'!G25-'Page5aB&P'!J25 -> 0 | I25: =G25-H25 -> 0 | J25: 0 | K25: =IFERROR(TBIn!E229,0) -> 0 | L25: =IFERROR(TBIn!E1632,0) -> 0 | M25: ='Page5aB&P'!L25-'Page5aB&P'!O25 -> 0 | N25: =L25-M25 -> 0 | O25: 0 | P25: 22 | Q25: 50000 | R25: 0 | S25: =IF(K25=0,0,IF(OR(L25<0,L25/K25>Q25),1,0)) -> 0 | T25: =IF(OR(F25<0,AND(G25>0,F25=0),AND(G25=0,F25>0)),1,0) -> 0 | U25: =IF(OR(K25<0,AND(L25>0,K25=0),AND(K25>0,L25=0)),1,0) -> 0
A26: 23 | C26: =OR_VEH!B25 -> INTERNAS | E26: 421A | F26: =IFERROR(IF(Flag=TRUE,K26-TBIn!E230,TBIn!D230),0) -> 0 | G26: =IFERROR(IF(Flag=TRUE,L26-TBIn!E1633,TBIn!D1633),0) -> 0 | H26: ='Page5aB&P'!G26-'Page5aB&P'!J26 -> 0 | I26: =G26-H26 -> 0 | J26: 0 | K26: =IFERROR(TBIn!E230,0) -> 0 | L26: =IFERROR(TBIn!E1633,0) -> 0 | M26: ='Page5aB&P'!L26-'Page5aB&P'!O26 -> 0 | N26: =L26-M26 -> 0 | O26: 0 | P26: 23 | Q26: 50000 | R26: 0 | S26: =IF(K26=0,0,IF(OR(L26<0,L26/K26>Q26),1,0)) -> 0 | T26: =IF(OR(F26<0,AND(G26>0,F26=0),AND(G26=0,F26>0)),1,0) -> 0 | U26: =IF(OR(K26<0,AND(L26>0,K26=0),AND(K26>0,L26=0)),1,0) -> 0
A27: 24 | C27: TOTAL AUTOS NUEVOS | E27: (Lineas 20 a 23) | F27: ='Page5aB&P'!F27 -> 80 | G27: =SUM(G23:G26) -> 14178577 | H27: ='Page5aB&P'!G27-'Page5aB&P'!J27 -> 13308515 | I27: =SUM(I23:I26) -> 870062 | J27: 10875.775 | K27: ='Page5aB&P'!K27 -> 80 | L27: =SUM(L23:L26) -> 14178577 | M27: ='Page5aB&P'!L27-'Page5aB&P'!O27 -> 13308515 | N27: =SUM(N23:N26) -> 870062 | O27: 10875.775 | P27: 24
A28: 25 | B28: VENTAS DE COM. Y CAM. NUEVOS | C28: =OR_VEH!B27 -> TORNADO | E28: 423A | F28: =IFERROR(IF(Flag=TRUE,K28-TBIn!E231,TBIn!D231),0) -> 1 | G28: =IFERROR(IF(Flag=TRUE,L28-TBIn!E1634,TBIn!D1634),0) -> 205086 | H28: ='Page5aB&P'!G28-'Page5aB&P'!J28 -> 159406 | I28: =G28-H28 -> 45680 | J28: 45680 | K28: 1 | L28: 205086 | M28: ='Page5aB&P'!L28-'Page5aB&P'!O28 -> 159406 | N28: =L28-M28 -> 45680 | O28: 45680 | P28: 25 | Q28: 50000 | R28: 1 | S28: =IF(K28=0,0,IF(OR(L28<0,L28/K28>Q28),1,0)) -> 1 | T28: =IF(OR(F28<0,AND(G28>0,F28=0),AND(G28=0,F28>0)),1,0) -> 0 | U28: =IF(OR(K28<0,AND(L28>0,K28=0),AND(K28>0,L28=0)),1,0) -> 0
A29: 26 | C29: =OR_VEH!B28 -> CAPTIVA | E29: 424A | F29: =IFERROR(IF(Flag=TRUE,K29-TBIn!E232,TBIn!D232),0) -> 0 | G29: =IFERROR(IF(Flag=TRUE,L29-TBIn!E1635,TBIn!D1635),0) -> 0 | H29: ='Page5aB&P'!G29-'Page5aB&P'!J29 -> 0 | I29: 0 | J29: 0 | K29: =IFERROR(TBIn!E232,0) -> 0 | L29: =IFERROR(TBIn!E1635,0) -> 0 | M29: ='Page5aB&P'!L29-'Page5aB&P'!O29 -> 0 | N29: 0 | O29: 0 | P29: 26 | Q29: 50000 | R29: 0 | S29: 0 | T29: 0 | U29: 0
A30: 27 | C30: =OR_VEH!B29 -> COLORADO | E30: 425A | F30: =IFERROR(IF(Flag=TRUE,K30-TBIn!E233,TBIn!D233),0) -> 1 | G30: =IFERROR(IF(Flag=TRUE,L30-TBIn!E1636,TBIn!D1636),0) -> 526190 | H30: ='Page5aB&P'!G30-'Page5aB&P'!J30 -> 477866 | I30: 48324 | J30: 48324 | K30: 1 | L30: 526190 | M30: ='Page5aB&P'!L30-'Page5aB&P'!O30 -> 477866 | N30: 48324 | O30: 48324 | P30: 27 | Q30: 50000 | R30: 1 | S30: 1 | T30: 0 | U30: 0
A31: 28 | C31: =OR_VEH!B30 -> SILVERADO 1500 | E31: 426A | F31: =IFERROR(IF(Flag=TRUE,K31-TBIn!E234,TBIn!D234),0) -> 0 | G31: =IFERROR(IF(Flag=TRUE,L31-TBIn!E1637,TBIn!D1637),0) -> 0 | H31: ='Page5aB&P'!G31-'Page5aB&P'!J31 -> 0 | I31: 0 | J31: 0 | K31: =IFERROR(TBIn!E234,0) -> 0 | L31: =IFERROR(TBIn!E1637,0) -> 0 | M31: ='Page5aB&P'!L31-'Page5aB&P'!O31 -> 0 | N31: 0 | O31: 0 | P31: 28 | Q31: 50000 | R31: 0 | S31: 0 | T31: 0 | U31: 0
A32: 29 | C32: =OR_VEH!B31 -> SILVERADO 2500 | E32: 427A | F32: =IFERROR(IF(Flag=TRUE,K32-TBIn!E235,TBIn!D235),0) -> 2 | G32: =IFERROR(IF(Flag=TRUE,L32-TBIn!E1638,TBIn!D1638),0) -> 573563 | H32: ='Page5aB&P'!G32-'Page5aB&P'!J32 -> 541933 | I32: 31630 | J32: 15815 | K32: 2 | L32: 573563 | M32: ='Page5aB&P'!L32-'Page5aB&P'!O32 -> 541933 | N32: 31630 | O32: 15815 | P32: 29 | Q32: 50000 | R32: 1 | S32: 1 | T32: 0 | U32: 0
A33: 30 | C33: =OR_VEH!B32 -> SILVERADO 3500 | E33: 428A | F33: =IFERROR(IF(Flag=TRUE,K33-TBIn!E236,TBIn!D236),0) -> 1 | G33: =IFERROR(IF(Flag=TRUE,L33-TBIn!E1639,TBIn!D1639),0) -> 440066 | H33: ='Page5aB&P'!G33-'Page5aB&P'!J33 -> 391038 | I33: 49028 | J33: 49028 | K33: 1 | L33: 440066 | M33: ='Page5aB&P'!L33-'Page5aB&P'!O33 -> 391038 | N33: 49028 | O33: 49028 | P33: 30 | Q33: 50000 | R33: 1 | S33: 1 | T33: 0 | U33: 0
A34: 31 | C34: =OR_VEH!B33 -> CHEYENNE | E34: 429A | F34: =IFERROR(IF(Flag=TRUE,K34-TBIn!E237,TBIn!D237),0) -> 0 | G34: =IFERROR(IF(Flag=TRUE,L34-TBIn!E1640,TBIn!D1640),0) -> 0 | H34: ='Page5aB&P'!G34-'Page5aB&P'!J34 -> 0 | I34: 0 | J34: 0 | K34: 0 | L34: 0 | M34: ='Page5aB&P'!L34-'Page5aB&P'!O34 -> 0 | N34: 0 | O34: 0 | P34: 31 | Q34: 50000 | R34: 0 | S34: 0 | T34: 0 | U34: 0
A35: 32 | C35: =OR_VEH!B34 -> NO UTILICE | E35: 430A | F35: =IFERROR(IF(Flag=TRUE,K35-TBIn!E238,TBIn!D238),0) -> 0 | G35: =IFERROR(IF(Flag=TRUE,L35-TBIn!E1641,TBIn!D1641),0) -> 0 | H35: ='Page5aB&P'!G35-'Page5aB&P'!J35 -> 0 | I35: 0 | J35: 0 | K35: =IFERROR(TBIn!E238,0) -> 0 | L35: =IFERROR(TBIn!E1641,0) -> 0 | M35: ='Page5aB&P'!L35-'Page5aB&P'!O35 -> 0 | N35: 0 | O35: 0 | P35: 32 | Q35: 50000 | R35: 0 | S35: 0 | T35: 0 | U35: 0
A36: 33 | C36: =OR_VEH!B35 -> NO UTILICE | E36: 431A | F36: =IFERROR(IF(Flag=TRUE,K36-TBIn!E239,TBIn!D239),0) -> 0 | G36: =IFERROR(IF(Flag=TRUE,L36-TBIn!E1642,TBIn!D1642),0) -> 0 | H36: ='Page5aB&P'!G36-'Page5aB&P'!J36 -> 0 | I36: 0 | J36: 0 | K36: =IFERROR(TBIn!E239,0) -> 0 | L36: =IFERROR(TBIn!E1642,0) -> 0 | M36: ='Page5aB&P'!L36-'Page5aB&P'!O36 -> 0 | N36: 0 | O36: 0 | P36: 33 | Q36: 50000 | R36: 0 | S36: 0 | T36: 0 | U36: 0
A37: 34 | C37: =OR_VEH!B36 -> TRAVERSE | E37: 432A | F37: =IFERROR(IF(Flag=TRUE,K37-TBIn!E240,TBIn!D240),0) -> 1 | G37: =IFERROR(IF(Flag=TRUE,L37-TBIn!E1643,TBIn!D1643),0) -> 441805 | H37: ='Page5aB&P'!G37-'Page5aB&P'!J37 -> 398222 | I37: 43583 | J37: 43583 | K37: 1 | L37: 441805 | M37: ='Page5aB&P'!L37-'Page5aB&P'!O37 -> 398222 | N37: 43583 | O37: 43583 | P37: 34 | Q37: 50000 | R37: 1 | S37: 1 | T37: 0 | U37: 0
A38: 35 | C38: =OR_VEH!B37 -> TAHOE | E38: 433A | F38: =IFERROR(IF(Flag=TRUE,K38-TBIn!E241,TBIn!D241),0) -> 0 | G38: =IFERROR(IF(Flag=TRUE,L38-TBIn!E1644,TBIn!D1644),0) -> 0 | H38: ='Page5aB&P'!G38-'Page5aB&P'!J38 -> -3505 | I38: 3505 | J38: 0 | K38: =IFERROR(TBIn!E241,0) -> 0 | L38: =IFERROR(TBIn!E1644,0) -> 0 | M38: ='Page5aB&P'!L38-'Page5aB&P'!O38 -> -3505 | N38: 3505 | O38: 0 | P38: 35 | Q38: 50000 | R38: 0 | S38: 0 | T38: 0 | U38: 0
A39: 36 | C39: =OR_VEH!B38 -> SUBURBAN | E39: 434A | F39: =IFERROR(IF(Flag=TRUE,K39-TBIn!E242,TBIn!D242),0) -> 0 | G39: =IFERROR(IF(Flag=TRUE,L39-TBIn!E1645,TBIn!D1645),0) -> 0 | H39: ='Page5aB&P'!G39-'Page5aB&P'!J39 -> 0 | I39: 0 | J39: 0 | K39: 0 | L39: 0 | M39: ='Page5aB&P'!L39-'Page5aB&P'!O39 -> 0 | N39: 0 | O39: 0 | P39: 36 | Q39: 50000 | R39: 0 | S39: 0 | T39: 0 | U39: 0
A40: 37 | C40: =OR_VEH!B39 -> TRAX | E40: 435A | F40: =IFERROR(IF(Flag=TRUE,K40-TBIn!E243,TBIn!D243),0) -> 3 | G40: =IFERROR(IF(Flag=TRUE,L40-TBIn!E1646,TBIn!D1646),0) -> 982802 | H40: ='Page5aB&P'!G40-'Page5aB&P'!J40 -> 841903 | I40: 140899 | J40: 46966.33333 | K40: 3 | L40: 982802 | M40: ='Page5aB&P'!L40-'Page5aB&P'!O40 -> 841903 | N40: 140899 | O40: 46966.33333 | P40: 37 | Q40: 50000 | R40: 1 | S40: 1 | T40: 0 | U40: 0
A41: 38 | C41: =OR_VEH!B40 -> EXPRESS/CARGOVAN | E41: 436A | F41: =IFERROR(IF(Flag=TRUE,K41-TBIn!E244,TBIn!D244),0) -> 1 | G41: =IFERROR(IF(Flag=TRUE,L41-TBIn!E1647,TBIn!D1647),0) -> 572131 | H41: ='Page5aB&P'!G41-'Page5aB&P'!J41 -> 509120 | I41: 63011 | J41: 63011 | K41: 1 | L41: 572131 | M41: ='Page5aB&P'!L41-'Page5aB&P'!O41 -> 509120 | N41: 63011 | O41: 63011 | P41: 38 | Q41: 50000 | R41: 1 | S41: 1 | T41: 0 | U41: 0
A42: 39 | C42: =OR_VEH!B41 -> S10 | E42: 437A | F42: =IFERROR(IF(Flag=TRUE,K42-TBIn!E245,TBIn!D245),0) -> 0 | G42: =IFERROR(IF(Flag=TRUE,L42-TBIn!E1648,TBIn!D1648),0) -> 0 | H42: ='Page5aB&P'!G42-'Page5aB&P'!J42 -> 0 | I42: 0 | J42: 0 | K42: =IFERROR(TBIn!E245,0) -> 0 | L42: =IFERROR(TBIn!E1648,0) -> 0 | M42: ='Page5aB&P'!L42-'Page5aB&P'!O42 -> 0 | N42: 0 | O42: 0 | P42: 39 | Q42: 50000 | R42: 0 | S42: 0 | T42: 0 | U42: 0
A43: 40 | C43: =OR_VEH!B42 -> EQUINOX | E43: 438A | F43: =IFERROR(IF(Flag=TRUE,K43-TBIn!E246,TBIn!D246),0) -> 2 | G43: =IFERROR(IF(Flag=TRUE,L43-TBIn!E1649,TBIn!D1649),0) -> 903822 | H43: ='Page5aB&P'!G43-'Page5aB&P'!J43 -> 811459 | I43: 92363 | J43: 46181.5 | K43: 2 | L43: 903822 | M43: ='Page5aB&P'!L43-'Page5aB&P'!O43 -> 811459 | N43: 92363 | O43: 46181.5 | P43: 40 | Q43: 50000 | R43: 1 | S43: 1 | T43: 0 | U43: 0
A44: 41 | C44: TOTAL COM. Y CAM. NUEVOS MENUDEO | E44: (Lineas 25 a 40) | F44: ='Page5aB&P'!F44 -> 12 | G44: =SUM(G28:G43) -> 4645465 | H44: ='Page5aB&P'!G44-'Page5aB&P'!J44 -> 4127442 | I44: =SUM(I28:I43) -> 518023 | J44: 43168.58333 | K44: ='Page5aB&P'!K44 -> 12 | L44: =SUM(L28:L43) -> 4645465 | M44: ='Page5aB&P'!L44-'Page5aB&P'!O44 -> 4127442 | N44: =SUM(N28:N43) -> 518023 | O44: 43168.58333 | P44: 41
A45: 42 | C45: =OR_VEH!B44 -> NO UTILICE | E45: 439A | F45: ='Page5aB&P'!F45 -> 0 | G45: 0 | H45: ='Page5aB&P'!G45-'Page5aB&P'!J45 -> 0 | I45: 0 | J45: 0 | K45: ='Page5aB&P'!K45 -> 0 | L45: 0 | M45: ='Page5aB&P'!L45-'Page5aB&P'!O45 -> 0 | N45: 0 | O45: 0 | P45: 42 | Q45: 50000 | R45: 0 | S45: =IF(K45=0,0,IF(OR(L45<0,L45/K45>Q45),1,0)) -> 0 | T45: =IF(OR(F45<0,AND(G45>0,F45=0),AND(G45=0,F45>0)),1,0) -> 0 | U45: =IF(OR(K45<0,AND(L45>0,K45=0),AND(K45>0,L45=0)),1,0) -> 0
A46: 43 | C46: =OR_VEH!B45 -> FLOTILLAS | E46: 440A | F46: =IFERROR(IF(Flag=TRUE,K46-TBIn!E248,TBIn!D248),0) -> 0 | G46: =IFERROR(IF(Flag=TRUE,L46-TBIn!E1650,TBIn!D1650),0) -> 0 | H46: ='Page5aB&P'!G46-'Page5aB&P'!J46 -> 0 | I46: =G46-H46 -> 0 | J46: 0 | K46: =IFERROR(TBIn!E248,0) -> 0 | L46: =IFERROR(TBIn!E1650,0) -> 0 | M46: ='Page5aB&P'!L46-'Page5aB&P'!O46 -> 0 | N46: =L46-M46 -> 0 | O46: 0 | P46: 43 | Q46: 50000 | R46: 0 | S46: =IF(K46=0,0,IF(OR(L46<0,L46/K46>Q46),1,0)) -> 0 | T46: =IF(OR(F46<0,AND(G46>0,F46=0),AND(G46=0,F46>0)),1,0) -> 0 | U46: =IF(OR(K46<0,AND(L46>0,K46=0),AND(K46>0,L46=0)),1,0) -> 0
A47: 44 | C47: =OR_VEH!B46 -> INTERNAS | E47: 441A | F47: =IFERROR(IF(Flag=TRUE,K47-TBIn!E249,TBIn!D249),0) -> 0 | G47: =IFERROR(IF(Flag=TRUE,L47-TBIn!E1651,TBIn!D1651),0) -> 0 | H47: ='Page5aB&P'!G47-'Page5aB&P'!J47 -> 0 | I47: =G47-H47 -> 0 | J47: 0 | K47: =IFERROR(TBIn!E249,0) -> 0 | L47: =IFERROR(TBIn!E1651,0) -> 0 | M47: ='Page5aB&P'!L47-'Page5aB&P'!O47 -> 0 | N47: =L47-M47 -> 0 | O47: 0 | P47: 44 | Q47: 50000 | R47: 0 | S47: =IF(K47=0,0,IF(OR(L47<0,L47/K47>Q47),1,0)) -> 0 | T47: =IF(OR(F47<0,AND(G47>0,F47=0),AND(G47=0,F47>0)),1,0) -> 0 | U47: =IF(OR(K47<0,AND(L47>0,K47=0),AND(K47>0,L47=0)),1,0) -> 0
A48: 45 | C48: TOTAL COM. Y CAM. NUEVOS | E48: (Lineas 41 a 44) | F48: =SUM(F44:F47) -> 12 | G48: =SUM(G44:G47) -> 4645465 | H48: =SUM(H44:H47) -> 4127442 | I48: =SUM(I44:I47) -> 518023 | J48: 43168.58333 | K48: =SUM(K44:K47) -> 12 | L48: =SUM(L44:L47) -> 4645465 | M48: =SUM(M44:M47) -> 4127442 | N48: =SUM(N44:N47) -> 518023 | O48: 43168.58333 | P48: 45
A49: 46 | C49: =OR_VEH!B48 -> NO UTILICE | E49: =IF(C49<>"--------","445A","") -> 445A | P49: 46 | Q49: 10000 | R49: =IF(F49=0,0,IF(G49/F49>Q49,1,0)) -> 0 | S49: =IF(K49=0,0,IF(OR(L49<0,L49/K49>Q49),1,0)) -> 0 | T49: =IF(OR(F49<0,AND(G49>0,F49=0),AND(G49=0,F49>0)),1,0) -> 0 | U49: =IF(OR(K49<0,AND(L49>0,K49=0),AND(K49>0,L49=0)),1,0) -> 0
A50: 47 | C50: =OR_VEH!B49 -> VENTA DE ACCESORIOS PARA VEHÍCULOS LISTADOS EN ESTA PAGINA | E50: 457A | F50: =IFERROR(IF(Flag=TRUE,K50-TBIn!E250,TBIn!D250),0) -> 6 | G50: =IFERROR(IF(Flag=TRUE,L50-TBIn!E1652,TBIn!D1652),0) -> 130284 | H50: ='Page5aB&P'!G50 -> 103210 | I50: =G50-H50 -> 27074 | J50: =IFERROR(I50/F$51,0) -> 294.2826087 | K50: 6 | L50: 130284 | M50: ='Page5aB&P'!L50 -> 103210 | N50: =L50-M50 -> 27074 | O50: =IFERROR(N50/K$51,0) -> 294.2826087 | P50: 47 | Q50: 10000 | R50: 1 | S50: =IF(K50=0,0,IF(OR(L50<0,L50/K50>Q50),1,0)) -> 1 | T50: =IF(OR(F50<0,AND(G50>0,F50=0),AND(G50=0,F50>0)),1,0) -> 0 | U50: =IF(OR(K50<0,AND(L50>0,K50=0),AND(K50>0,L50=0)),1,0) -> 0
A51: 48 | C51: TOTAL VEHICULOS NUEVOS | F51: =IFERROR(IF(Flag=TRUE,F27+F48,TBIn!D251),0) -> 92 | G51: =G27+G48+G50 -> 18954326 | H51: =H27+H48+H50 -> 17539167 | I51: =IFERROR(IF(Flag=TRUE,I27+I48+I49+I50,TBIn!D1693),0) -> 1415159 | J51: =IFERROR(I51/F$51,0) -> 15382.16304 | K51: =IFERROR(IF(Flag=TRUE,K27+K48,TBIn!E251),0) -> 92 | L51: =L27+L48+L50 -> 18954326 | M51: =M27+M48+M50 -> 17539167 | N51: =IFERROR(IF(Flag=TRUE,N27+N48+N49+N50,TBIn!E1693),0) -> 1415159 | O51: =IFERROR(N51/K$51,0) -> 15382.16304 | P51: 48
J52: PUNV | O52: PUNV

Sheet Page5aB&P
B1: =OR_VEH!B2 -> CHEVROLET | H1: VEHICULOS NUEVOS - BONIFICACIONES Y PREMIOS | P1: =TBIn!$E$2591&" - "&TBIn!$AH$10&" - PAGINA 5aB&P" -> 122112 - 201801 - PAGINA 5aB&P | Q1: Per Unit | R1: Month | S1: YTD | T1: Month | U1: YTD
A2: Lin | H2: MES | L2: AÑO A LA FECHA | P2: Lin | Q2: Sales | R2: Sales | S2: Sales | T2: Unit | U2: Unit
A3: NO. | E3: CTA. | F3: UNIDADES VENDIDAS | G3: FACTURA GM (CDO) | H3: BONIFICACIÓN | I3: PREMIOS | J3: BONIFICACIÓN Y PREMIOS | K3: UNIDADES VENDIDAS | L3: FACTURA GM (CDO) | M3: BONIFICACIÓN | N3: PREMIOS | O3: BONIFIACION Y PREMIOS | P3: NO. | Q3: Max | R3: Flag | S3: Flag | T3: Flag | U3: Flag | V3: ACC.
A4: 1 | B4: VENTAS D E AUTOS NUEVOS | C4: =OR_VEH!B3 -> BOLT EV | E4: 400A | F4: =Page5a!F4 -> 0 | G4: =IFERROR(IF(Flag=TRUE,L4-TBIn!E1653,TBIn!D1653),0) -> 0 | H4: =IFERROR(IF(Flag=TRUE,M4-TBIn!E293,TBIn!D293),0) -> 0 | I4: =IFERROR(IF(Flag=TRUE,N4-TBIn!E252,TBIn!D252),0) -> 0 | J4: =H4+I4 -> 0 | K4: =Page5a!K4 -> 0 | L4: =IFERROR(TBIn!E1653,0) -> 0 | M4: =IFERROR(TBIn!E293,0) -> 0 | N4: =IFERROR(TBIn!E252,0) -> 0 | O4: =M4+N4 -> 0 | P4: 1 | Q4: 50000 | R4: 0 | S4: 0 | T4: 0 | U4: 0 | V4: #REF!
A5: 2 | C5: =OR_VEH!B4 -> BOLT SEDAN | E5: 401A | F5: =Page5a!F5 -> 0 | G5: =IFERROR(IF(Flag=TRUE,L5-TBIn!E1654,TBIn!D1654),0) -> 0 | H5: =IFERROR(IF(Flag=TRUE,M5-TBIn!E294,TBIn!D294),0) -> 0 | I5: =IFERROR(IF(Flag=TRUE,N5-TBIn!E253,TBIn!D253),0) -> 0 | J5: =H5+I5 -> 0 | K5: =Page5a!K5 -> 0 | L5: =IFERROR(TBIn!E1654,0) -> 0 | M5: =IFERROR(TBIn!E294,0) -> 0 | N5: =IFERROR(TBIn!E253,0) -> 0 | O5: =M5+N5 -> 0 | P5: 2 | Q5: 50000 | R5: 0 | S5: 0 | T5: 0 | U5: 0 | V5: #REF!
A6: 3 | C6: =OR_VEH!B5 -> NO UTILICE | E6: 402A | F6: =Page5a!F6 -> 0 | G6: =IFERROR(IF(Flag=TRUE,L6-TBIn!E1655,TBIn!D1655),0) -> 0 | H6: =IFERROR(IF(Flag=TRUE,M6-TBIn!E295,TBIn!D295),0) -> 0 | I6: =IFERROR(IF(Flag=TRUE,N6-TBIn!E254,TBIn!D254),0) -> 0 | J6: 0 | K6: =Page5a!K6 -> 0 | L6: =IFERROR(TBIn!E1655,0) -> 0 | M6: =IFERROR(TBIn!E295,0) -> 0 | N6: =IFERROR(TBIn!E254,0) -> 0 | O6: 0 | P6: 3 | Q6: 50000 | R6: 0 | S6: 0 | T6: 0 | U6: 0 | V6: #REF!
A7: 4 | C7: =OR_VEH!B6 -> MATIZ | E7: 403A | F7: =Page5a!F7 -> 0 | G7: =IFERROR(IF(Flag=TRUE,L7-TBIn!E1656,TBIn!D1656),0) -> 0 | H7: =IFERROR(IF(Flag=TRUE,M7-TBIn!E296,TBIn!D296),0) -> 0 | I7: =IFERROR(IF(Flag=TRUE,N7-TBIn!E255,TBIn!D255),0) -> 0 | J7: 0 | K7: =Page5a!K7 -> 0 | L7: =IFERROR(TBIn!E1656,0) -> 0 | M7: =IFERROR(TBIn!E296,0) -> 0 | N7: =IFERROR(TBIn!E255,0) -> 0 | O7: 0 | P7: 4 | Q7: 50000 | R7: 0 | S7: 0 | T7: 0 | U7: 0 | V7: #REF!
A8: 5 | C8: =OR_VEH!B7 -> SPARK | E8: 404A | F8: =Page5a!F8 -> 0 | G8: =IFERROR(IF(Flag=TRUE,L8-TBIn!E1657,TBIn!D1657),0) -> 0 | H8: =IFERROR(IF(Flag=TRUE,M8-TBIn!E297,TBIn!D297),0) -> 0 | I8: =IFERROR(IF(Flag=TRUE,N8-TBIn!E256,TBIn!D256),0) -> 0 | J8: 0 | K8: =Page5a!K8 -> 0 | L8: =IFERROR(TBIn!E1657,0) -> 0 | M8: =IFERROR(TBIn!E297,0) -> 0 | N8: =IFERROR(TBIn!E256,0) -> 0 | O8: 0 | P8: 5 | T8: 0 | U8: 0 | V8: #REF!
A9: 6 | C9: =OR_VEH!B8 -> SONIC | E9: 405A | F9: =Page5a!F9 -> 0 | G9: =IFERROR(IF(Flag=TRUE,L9-TBIn!E1658,TBIn!D1658),0) -> 0 | H9: =IFERROR(IF(Flag=TRUE,M9-TBIn!E298,TBIn!D298),0) -> 23872 | I9: =IFERROR(IF(Flag=TRUE,N9-TBIn!E257,TBIn!D257),0) -> 0 | J9: 23872 | K9: =Page5a!K9 -> 0 | L9: 0 | M9: 23872 | N9: =IFERROR(TBIn!E257,0) -> 0 | O9: 23872 | P9: 6 | Q9: 50000 | R9: 0 | S9: 0 | T9: 0 | U9: 0 | V9: #REF!
A10: 7 | C10: =OR_VEH!B9 -> SPARK NG | E10: 406A | F10: =Page5a!F10 -> 4 | G10: =IFERROR(IF(Flag=TRUE,L10-TBIn!E1659,TBIn!D1659),0) -> 741051 | H10: =IFERROR(IF(Flag=TRUE,M10-TBIn!E299,TBIn!D299),0) -> 73084 | I10: =IFERROR(IF(Flag=TRUE,N10-TBIn!E258,TBIn!D258),0) -> 0 | J10: 73084 | K10: =Page5a!K10 -> 4 | L10: 741051 | M10: 73084 | N10: =IFERROR(TBIn!E258,0) -> 0 | O10: 73084 | P10: 7 | Q10: 50000 | R10: 0 | S10: 0 | T10: 0 | U10: 0 | V10: #REF!
A11: 8 | C11: =OR_VEH!B10 -> SPARK EV | E11: 407A | F11: =Page5a!F11 -> 0 | G11: =IFERROR(IF(Flag=TRUE,L11-TBIn!E1660,TBIn!D1660),0) -> 0 | H11: =IFERROR(IF(Flag=TRUE,M11-TBIn!E300,TBIn!D300),0) -> 0 | I11: =IFERROR(IF(Flag=TRUE,N11-TBIn!E259,TBIn!D259),0) -> 0 | J11: 0 | K11: =Page5a!K11 -> 0 | L11: =IFERROR(TBIn!E1660,0) -> 0 | M11: =IFERROR(TBIn!E300,0) -> 0 | N11: =IFERROR(TBIn!E259,0) -> 0 | O11: 0 | P11: 8 | Q11: 50000 | R11: 0 | S11: 0 | T11: 0 | U11: 0 | V11: #REF!
A12: 9 | C12: =OR_VEH!B11 -> NO UTILICE | E12: 408A | F12: =Page5a!F12 -> 0 | G12: =IFERROR(IF(Flag=TRUE,L12-TBIn!E1661,TBIn!D1661),0) -> 0 | H12: =IFERROR(IF(Flag=TRUE,M12-TBIn!E301,TBIn!D301),0) -> 0 | I12: =IFERROR(IF(Flag=TRUE,N12-TBIn!E260,TBIn!D260),0) -> 0 | J12: 0 | K12: =Page5a!K12 -> 0 | L12: =IFERROR(TBIn!E1661,0) -> 0 | M12: =IFERROR(TBIn!E301,0) -> 0 | N12: =IFERROR(TBIn!E260,0) -> 0 | O12: 0 | P12: 9 | Q12: 50000 | R12: 0 | S12: 0 | T12: 0 | U12: 0 | V12: #REF!
A13: 10 | C13: =OR_VEH!B12 -> AVEO | E13: 409A | F13: =Page5a!F13 -> 36 | G13: =IFERROR(IF(Flag=TRUE,L13-TBIn!E1662,TBIn!D1662),0) -> 6328726 | H13: =IFERROR(IF(Flag=TRUE,M13-TBIn!E302,TBIn!D302),0) -> 219213 | I13: =IFERROR(IF(Flag=TRUE,N13-TBIn!E261,TBIn!D261),0) -> 0 | J13: 219213 | K13: =Page5a!K13 -> 36 | L13: 6328726 | M13: 219213 | N13: =IFERROR(TBIn!E261,0) -> 0 | O13: 219213 | P13: 10 | Q13: 50000 | R13: 0 | S13: 0 | T13: 0 | U13: 0 | V13: #REF!
A14: 11 | C14: =OR_VEH!B13 -> MALIBU | E14: 410A | F14: =Page5a!F14 -> 1 | G14: =IFERROR(IF(Flag=TRUE,L14-TBIn!E1663,TBIn!D1663),0) -> 354242 | H14: =IFERROR(IF(Flag=TRUE,M14-TBIn!E303,TBIn!D303),0) -> 33040 | I14: =IFERROR(IF(Flag=TRUE,N14-TBIn!E262,TBIn!D262),0) -> 0 | J14: 33040 | K14: =Page5a!K14 -> 1 | L14: 354242 | M14: 33040 | N14: =IFERROR(TBIn!E262,0) -> 0 | O14: 33040 | P14: 11 | Q14: 50000 | R14: 0 | S14: 0 | T14: 0 | U14: 0 | V14: #REF!
A15: 12 | C15: =OR_VEH!B14 -> CAMARO | E15: 411A | F15: =Page5a!F15 -> 1 | G15: =IFERROR(IF(Flag=TRUE,L15-TBIn!E1664,TBIn!D1664),0) -> 478634 | H15: =IFERROR(IF(Flag=TRUE,M15-TBIn!E304,TBIn!D304),0) -> 1070 | I15: =IFERROR(IF(Flag=TRUE,N15-TBIn!E263,TBIn!D263),0) -> 0 | J15: 1070 | K15: =Page5a!K15 -> 1 | L15: 478634 | M15: 1070 | N15: =IFERROR(TBIn!E263,0) -> 0 | O15: 1070 | P15: 12 | Q15: 50000 | R15: 0 | S15: 0 | T15: 0 | U15: 0 | V15: #REF!
A16: 13 | C16: =OR_VEH!B15 -> CORVETTE | E16: 412A | F16: =Page5a!F16 -> 0 | G16: =IFERROR(IF(Flag=TRUE,L16-TBIn!E1665,TBIn!D1665),0) -> 0 | H16: =IFERROR(IF(Flag=TRUE,M16-TBIn!E305,TBIn!D305),0) -> 0 | I16: =IFERROR(IF(Flag=TRUE,N16-TBIn!E264,TBIn!D264),0) -> 0 | J16: 0 | K16: =Page5a!K16 -> 0 | L16: =IFERROR(TBIn!E1665,0) -> 0 | M16: =IFERROR(TBIn!E305,0) -> 0 | N16: =IFERROR(TBIn!E264,0) -> 0 | O16: 0 | P16: 13 | Q16: 50000 | R16: 0 | S16: 0 | T16: 0 | U16: 0 | V16: #REF!
A17: 14 | C17: =OR_VEH!B16 -> CRUZE | E17: 413A | F17: =Page5a!F17 -> 0 | G17: =IFERROR(IF(Flag=TRUE,L17-TBIn!E1666,TBIn!D1666),0) -> 0 | H17: =IFERROR(IF(Flag=TRUE,M17-TBIn!E306,TBIn!D306),0) -> 2140 | I17: =IFERROR(IF(Flag=TRUE,N17-TBIn!E265,TBIn!D265),0) -> 0 | J17: 2140 | K17: =Page5a!K17 -> 0 | L17: 0 | M17: 2140 | N17: =IFERROR(TBIn!E265,0) -> 0 | O17: 2140 | P17: 14 | Q17: 50000 | R17: 0 | S17: 0 | T17: 0 | U17: 0 | V17: #REF!
A18: 15 | C18: =OR_VEH!B17 -> VOLT | E18: 414A | F18: =Page5a!F18 -> 0 | G18: =IFERROR(IF(Flag=TRUE,L18-TBIn!E1667,TBIn!D1667),0) -> 0 | H18: =IFERROR(IF(Flag=TRUE,M18-TBIn!E307,TBIn!D307),0) -> 0 | I18: =IFERROR(IF(Flag=TRUE,N18-TBIn!E266,TBIn!D266),0) -> 0 | J18: 0 | K18: =Page5a!K18 -> 0 | L18: =IFERROR(TBIn!E1667,0) -> 0 | M18: =IFERROR(TBIn!E307,0) -> 0 | N18: =IFERROR(TBIn!E266,0) -> 0 | O18: 0 | P18: 15 | Q18: 50000 | R18: 0 | S18: 0 | T18: 0 | U18: 0 | V18: #REF!
A19: 16 | C19: =OR_VEH!B18 -> CRUZE NG | E19: 415A | F19: =Page5a!F19 -> 0 | G19: =IFERROR(IF(Flag=TRUE,L19-TBIn!E1668,TBIn!D1668),0) -> 0 | H19: =IFERROR(IF(Flag=TRUE,M19-TBIn!E308,TBIn!D308),0) -> 0 | I19: =IFERROR(IF(Flag=TRUE,N19-TBIn!E267,TBIn!D267),0) -> 0 | J19: 0 | K19: =Page5a!K19 -> 0 | L19: =IFERROR(TBIn!E1668,0) -> 0 | M19: =IFERROR(TBIn!E308,0) -> 0 | N19: =IFERROR(TBIn!E267,0) -> 0 | O19: 0 | P19: 16 | Q19: 50000 | R19: 0 | S19: 0 | T19: 0 | U19: 0 | V19: #REF!
A20: 17 | C20: =OR_VEH!B19 -> BEAT | E20: 416A | F20: =Page5a!F20 -> 31 | G20: =IFERROR(IF(Flag=TRUE,L20-TBIn!E1669,TBIn!D1669),0) -> 4574466 | H20: =IFERROR(IF(Flag=TRUE,M20-TBIn!E309,TBIn!D309),0) -> 233880 | I20: =IFERROR(IF(Flag=TRUE,N20-TBIn!E268,TBIn!D268),0) -> 0 | J20: 233880 | K20: =Page5a!K20 -> 31 | L20: 4574466 | M20: 233880 | N20: =IFERROR(TBIn!E268,0) -> 0 | O20: 233880 | P20: 17 | Q20: 50000 | R20: 0 | S20: 0 | T20: 0 | U20: 0 | V20: #REF!
A21: 18 | C21: =OR_VEH!B20 -> CAVALIER | E21: 417A | F21: =Page5a!F21 -> 7 | G21: =IFERROR(IF(Flag=TRUE,L21-TBIn!E1670,TBIn!D1670),0) -> 1471423 | H21: =IFERROR(IF(Flag=TRUE,M21-TBIn!E310,TBIn!D310),0) -> 53728 | I21: =IFERROR(IF(Flag=TRUE,N21-TBIn!E269,TBIn!D269),0) -> 0 | J21: 53728 | K21: =Page5a!K21 -> 7 | L21: 1471423 | M21: 53728 | N21: =IFERROR(TBIn!E269,0) -> 0 | O21: 53728 | P21: 18 | Q21: 50000 | R21: 0 | S21: 0 | T21: 0 | U21: 0 | V21: #REF!
A22: 19 | C22: =OR_VEH!B21 -> OTROS AUTOS CHEVROLET | E22: 418A | F22: =Page5a!F22 -> 0 | G22: =IFERROR(IF(Flag=TRUE,L22-TBIn!E1671,TBIn!D1671),0) -> 0 | H22: =IFERROR(IF(Flag=TRUE,M22-TBIn!E311,TBIn!D311),0) -> 0 | I22: =IFERROR(IF(Flag=TRUE,N22-TBIn!E270,TBIn!D270),0) -> 0 | J22: 0 | K22: =Page5a!K22 -> 0 | L22: 0 | M22: =IFERROR(TBIn!E311,0) -> 0 | N22: =IFERROR(TBIn!E270,0) -> 0 | O22: 0 | P22: 19 | Q22: 50000 | R22: 0 | S22: 0 | T22: 0 | U22: 0 | V22: #REF!
A23: 20 | C23: TOTAL AUTOS NUEVOS MENUDEO | E23: (Lineas 1 a 19) | F23: =SUM(F4:F22) -> 80 | G23: 13948542 | H23: 640027 | I23: 0 | J23: 640027 | K23: 80 | L23: 13948542 | M23: 640027 | N23: 0 | O23: 640027 | P23: 20
A24: 21 | C24: =OR_VEH!B23 -> NO UTILICE | E24: 419A | P24: 21 | Q24: 50000 | R24: 0 | S24: 0 | T24: 0 | U24: 0 | V24: #REF!
A25: 22 | C25: =OR_VEH!B24 -> FLOTILLAS | E25: 420A | F25: =Page5a!F25 -> 0 | G25: =IFERROR(IF(Flag=TRUE,L25-TBIn!E1672,TBIn!D1672),0) -> 0 | H25: =IFERROR(IF(Flag=TRUE,M25-TBIn!E313,TBIn!D313),0) -> 0 | I25: =IFERROR(IF(Flag=TRUE,N25-TBIn!E272,TBIn!D272),0) -> 0 | J25: 0 | K25: =Page5a!K25 -> 0 | L25: =IFERROR(TBIn!E1672,0) -> 0 | M25: =IFERROR(TBIn!E313,0) -> 0 | N25: =IFERROR(TBIn!E272,0) -> 0 | O25: =M25+N25 -> 0 | P25: 22 | Q25: 50000 | R25: 0 | S25: 0 | T25: 0 | U25: 0 | V25: #REF!
A26: 23 | C26: =OR_VEH!B25 -> INTERNAS | E26: 421A | F26: =Page5a!F26 -> 0 | G26: =IFERROR(IF(Flag=TRUE,L26-TBIn!E1673,TBIn!D1673),0) -> 0 | H26: =IFERROR(IF(Flag=TRUE,M26-TBIn!E314,TBIn!D314),0) -> 0 | I26: =IFERROR(IF(Flag=TRUE,N26-TBIn!E273,TBIn!D273),0) -> 0 | J26: 0 | K26: =Page5a!K26 -> 0 | L26: =IFERROR(TBIn!E1673,0) -> 0 | M26: =IFERROR(TBIn!E314,0) -> 0 | N26: =IFERROR(TBIn!E273,0) -> 0 | O26: 0 | P26: 23 | Q26: 50000 | R26: 0 | S26: 0 | T26: 0 | U26: 0 | V26: #REF!
A27: 24 | C27: TOTAL AUTOS NUEVOS | E27: (Lineas 20 a 23) | F27: =SUM(F23:F26) -> 80 | G27: 13948542 | H27: 640027 | I27: 0 | J27: 640027 | K27: 80 | L27: 13948542 | M27: 640027 | N27: 0 | O27: 640027 | P27: 24
A28: 25 | B28: VENTAS DE COM. Y CAM. NUEVOS | C28: =OR_VEH!B27 -> TORNADO | E28: 423A | F28: =Page5a!F28 -> 1 | G28: =IFERROR(IF(Flag=TRUE,L28-TBIn!E1674,TBIn!D1674),0) -> 216811 | H28: =IFERROR(IF(Flag=TRUE,M28-TBIn!E315,TBIn!D315),0) -> 57405 | I28: =IFERROR(IF(Flag=TRUE,N28-TBIn!E274,TBIn!D274),0) -> 0 | J28: 57405 | K28: =Page5a!K28 -> 1 | L28: 216811 | M28: 57405 | N28: =IFERROR(TBIn!E274,0) -> 0 | O28: 57405 | P28: 25 | Q28: 50000 | R28: 0 | S28: 0 | T28: 0 | U28: 0 | V28: #REF!
A29: 26 | C29: =OR_VEH!B28 -> CAPTIVA | E29: 424A | F29: =Page5a!F29 -> 0 | G29: =IFERROR(IF(Flag=TRUE,L29-TBIn!E1675,TBIn!D1675),0) -> 0 | H29: =IFERROR(IF(Flag=TRUE,M29-TBIn!E316,TBIn!D316),0) -> 0 | I29: =IFERROR(IF(Flag=TRUE,N29-TBIn!E275,TBIn!D275),0) -> 0 | J29: 0 | K29: =Page5a!K29 -> 0 | L29: =IFERROR(TBIn!E1675,0) -> 0 | M29: =IFERROR(TBIn!E316,0) -> 0 | N29: =IFERROR(TBIn!E275,0) -> 0 | O29: 0 | P29: 26 | Q29: 50000 | R29: 0 | S29: 0 | T29: 0 | U29: 0 | V29: #REF!
A30: 27 | C30: =OR_VEH!B29 -> COLORADO | E30: 425A | F30: =Page5a!F30 -> 1 | G30: =IFERROR(IF(Flag=TRUE,L30-TBIn!E1676,TBIn!D1676),0) -> 477866 | H30: =IFERROR(IF(Flag=TRUE,M30-TBIn!E317,TBIn!D317),0) -> 0 | I30: =IFERROR(IF(Flag=TRUE,N30-TBIn!E276,TBIn!D276),0) -> 0 | J30: 0 | K30: =Page5a!K30 -> 1 | L30: 477866 | M30: =IFERROR(TBIn!E317,0) -> 0 | N30: =IFERROR(TBIn!E276,0) -> 0 | O30: 0 | P30: 27 | Q30: 50000 | R30: 0 | S30: 0 | T30: 0 | U30: 0 | V30: #REF!
A31: 28 | C31: =OR_VEH!B30 -> SILVERADO 1500 | E31: 426A | F31: =Page5a!F31 -> 0 | G31: =IFERROR(IF(Flag=TRUE,L31-TBIn!E1677,TBIn!D1677),0) -> 0 | H31: =IFERROR(IF(Flag=TRUE,M31-TBIn!E318,TBIn!D318),0) -> 0 | I31: =IFERROR(IF(Flag=TRUE,N31-TBIn!E277,TBIn!D277),0) -> 0 | J31: 0 | K31: =Page5a!K31 -> 0 | L31: =IFERROR(TBIn!E1677,0) -> 0 | M31: =IFERROR(TBIn!E318,0) -> 0 | N31: =IFERROR(TBIn!E277,0) -> 0 | O31: 0 | P31: 28 | Q31: 50000 | R31: 0 | S31: 0 | T31: 0 | U31: 0 | V31: #REF!
A32: 29 | C32: =OR_VEH!B31 -> SILVERADO 2500 | E32: 427A | F32: =Page5a!F32 -> 2 | G32: =IFERROR(IF(Flag=TRUE,L32-TBIn!E1678,TBIn!D1678),0) -> 588407 | H32: =IFERROR(IF(Flag=TRUE,M32-TBIn!E319,TBIn!D319),0) -> 46474 | I32: =IFERROR(IF(Flag=TRUE,N32-TBIn!E278,TBIn!D278),0) -> 0 | J32: 46474 | K32: =Page5a!K32 -> 2 | L32: 588407 | M32: 46474 | N32: =IFERROR(TBIn!E278,0) -> 0 | O32: 46474 | P32: 29 | Q32: 50000 | R32: 0 | S32: 0 | T32: 0 | U32: 0 | V32: #REF!
A33: 30 | C33: =OR_VEH!B32 -> SILVERADO 3500 | E33: 428A | F33: =Page5a!F33 -> 1 | G33: =IFERROR(IF(Flag=TRUE,L33-TBIn!E1679,TBIn!D1679),0) -> 391038 | H33: =IFERROR(IF(Flag=TRUE,M33-TBIn!E320,TBIn!D320),0) -> 0 | I33: =IFERROR(IF(Flag=TRUE,N33-TBIn!E279,TBIn!D279),0) -> 0 | J33: 0 | K33: =Page5a!K33 -> 1 | L33: 391038 | M33: =IFERROR(TBIn!E320,0) -> 0 | N33: =IFERROR(TBIn!E279,0) -> 0 | O33: 0 | P33: 30 | Q33: 50000 | R33: 0 | S33: 0 | T33: 0 | U33: 0 | V33: #REF!
A34: 31 | C34: =OR_VEH!B33 -> CHEYENNE | E34: 429A | F34: =Page5a!F34 -> 0 | G34: =IFERROR(IF(Flag=TRUE,L34-TBIn!E1680,TBIn!D1680),0) -> 0 | H34: =IFERROR(IF(Flag=TRUE,M34-TBIn!E321,TBIn!D321),0) -> 0 | I34: =IFERROR(IF(Flag=TRUE,N34-TBIn!E280,TBIn!D280),0) -> 0 | J34: 0 | K34: =Page5a!K34 -> 0 | L34: 0 | M34: =IFERROR(TBIn!E321,0) -> 0 | N34: =IFERROR(TBIn!E280,0) -> 0 | O34: 0 | P34: 31 | Q34: 50000 | R34: 0 | S34: 0 | T34: 0 | U34: 0 | V34: #REF!
A35: 32 | C35: =OR_VEH!B34 -> NO UTILICE | E35: 430A | F35: =Page5a!F35 -> 0 | G35: =IFERROR(IF(Flag=TRUE,L35-TBIn!E1681,TBIn!D1681),0) -> 0 | H35: =IFERROR(IF(Flag=TRUE,M35-TBIn!E322,TBIn!D322),0) -> 0 | I35: =IFERROR(IF(Flag=TRUE,N35-TBIn!E281,TBIn!D281),0) -> 0 | J35: 0 | K35: =Page5a!K35 -> 0 | L35: =IFERROR(TBIn!E1681,0) -> 0 | M35: =IFERROR(TBIn!E322,0) -> 0 | N35: =IFERROR(TBIn!E281,0) -> 0 | O35: 0 | P35: 32 | Q35: 50000 | R35: 0 | S35: 0 | T35: 0 | U35: 0 | V35: #REF!
A36: 33 | C36: =OR_VEH!B35 -> NO UTILICE | E36: 431A | F36: =Page5a!F36 -> 0 | G36: =IFERROR(IF(Flag=TRUE,L36-TBIn!E1682,TBIn!D1682),0) -> 0 | H36: =IFERROR(IF(Flag=TRUE,M36-TBIn!E323,TBIn!D323),0) -> 0 | I36: =IFERROR(IF(Flag=TRUE,N36-TBIn!E282,TBIn!D282),0) -> 0 | J36: 0 | K36: =Page5a!K36 -> 0 | L36: =IFERROR(TBIn!E1682,0) -> 0 | M36: =IFERROR(TBIn!E323,0) -> 0 | N36: =IFERROR(TBIn!E282,0) -> 0 | O36: 0 | P36: 33 | Q36: 50000 | R36: 0 | S36: 0 | T36: 0 | U36: 0 | V36: #REF!
A37: 34 | C37: =OR_VEH!B36 -> TRAVERSE | E37: 432A | F37: =Page5a!F37 -> 1 | G37: =IFERROR(IF(Flag=TRUE,L37-TBIn!E1683,TBIn!D1683),0) -> 398222 | H37: =IFERROR(IF(Flag=TRUE,M37-TBIn!E324,TBIn!D324),0) -> 0 | I37: =IFERROR(IF(Flag=TRUE,N37-TBIn!E283,TBIn!D283),0) -> 0 | J37: 0 | K37: =Page5a!K37 -> 1 | L37: 398222 | M37: =IFERROR(TBIn!E324,0) -> 0 | N37: =IFERROR(TBIn!E283,0) -> 0 | O37: 0 | P37: 34 | Q37: 50000 | R37: 0 | S37: 0 | T37: 0 | U37: 0 | V37: #REF!
A38: 35 | C38: =OR_VEH!B37 -> TAHOE | E38: 433A | F38: =Page5a!F38 -> 0 | G38: =IFERROR(IF(Flag=TRUE,L38-TBIn!E1684,TBIn!D1684),0) -> 0 | H38: =IFERROR(IF(Flag=TRUE,M38-TBIn!E325,TBIn!D325),0) -> 3505 | I38: =IFERROR(IF(Flag=TRUE,N38-TBIn!E284,TBIn!D284),0) -> 0 | J38: 3505 | K38: =Page5a!K38 -> 0 | L38: =IFERROR(TBIn!E1684,0) -> 0 | M38: 3505 | N38: =IFERROR(TBIn!E284,0) -> 0 | O38: 3505 | P38: 35 | Q38: 50000 | R38: 0 | S38: 0 | T38: 0 | U38: 0 | V38: #REF!
A39: 36 | C39: =OR_VEH!B38 -> SUBURBAN | E39: 434A | F39: =Page5a!F39 -> 0 | G39: =IFERROR(IF(Flag=TRUE,L39-TBIn!E1685,TBIn!D1685),0) -> 0 | H39: =IFERROR(IF(Flag=TRUE,M39-TBIn!E326,TBIn!D326),0) -> 0 | I39: =IFERROR(IF(Flag=TRUE,N39-TBIn!E285,TBIn!D285),0) -> 0 | J39: 0 | K39: =Page5a!K39 -> 0 | L39: 0 | M39: =IFERROR(TBIn!E326,0) -> 0 | N39: =IFERROR(TBIn!E285,0) -> 0 | O39: 0 | P39: 36 | Q39: 50000 | R39: 0 | S39: 0 | T39: 0 | U39: 0 | V39: #REF!
A40: 37 | C40: =OR_VEH!B39 -> TRAX | E40: 435A | F40: =Page5a!F40 -> 3 | G40: =IFERROR(IF(Flag=TRUE,L40-TBIn!E1686,TBIn!D1686),0) -> 898062 | H40: =IFERROR(IF(Flag=TRUE,M40-TBIn!E327,TBIn!D327),0) -> 56159 | I40: =IFERROR(IF(Flag=TRUE,N40-TBIn!E286,TBIn!D286),0) -> 0 | J40: 56159 | K40: =Page5a!K40 -> 3 | L40: 898062 | M40: 56159 | N40: =IFERROR(TBIn!E286,0) -> 0 | O40: 56159 | P40: 37 | Q40: 50000 | R40: 0 | S40: 0 | T40: 0 | U40: 0 | V40: #REF!
A41: 38 | C41: =OR_VEH!B40 -> EXPRESS/CARGOVAN | E41: 436A | F41: =Page5a!F41 -> 1 | G41: =IFERROR(IF(Flag=TRUE,L41-TBIn!E1687,TBIn!D1687),0) -> 510190 | H41: =IFERROR(IF(Flag=TRUE,M41-TBIn!E328,TBIn!D328),0) -> 1070 | I41: =IFERROR(IF(Flag=TRUE,N41-TBIn!E287,TBIn!D287),0) -> 0 | J41: 1070 | K41: =Page5a!K41 -> 1 | L41: 510190 | M41: 1070 | N41: =IFERROR(TBIn!E287,0) -> 0 | O41: 1070 | P41: 38 | Q41: 50000 | R41: 0 | S41: 0 | T41: 0 | U41: 0 | V41: #REF!
A42: 39 | C42: =OR_VEH!B41 -> S10 | E42: 437A | F42: =Page5a!F42 -> 0 | G42: =IFERROR(IF(Flag=TRUE,L42-TBIn!E1688,TBIn!D1688),0) -> 0 | H42: =IFERROR(IF(Flag=TRUE,M42-TBIn!E329,TBIn!D329),0) -> 0 | I42: =IFERROR(IF(Flag=TRUE,N42-TBIn!E288,TBIn!D288),0) -> 0 | J42: 0 | K42: =Page5a!K42 -> 0 | L42: =IFERROR(TBIn!E1688,0) -> 0 | M42: =IFERROR(TBIn!E329,0) -> 0 | N42: =IFERROR(TBIn!E288,0) -> 0 | O42: 0 | P42: 39 | Q42: 50000 | R42: 0 | S42: 0 | T42: 0 | U42: 0 | V42: #REF!
A43: 40 | C43: =OR_VEH!B42 -> EQUINOX | E43: 438A | F43: =Page5a!F43 -> 2 | G43: =IFERROR(IF(Flag=TRUE,L43-TBIn!E1689,TBIn!D1689),0) -> 821011 | H43: =IFERROR(IF(Flag=TRUE,M43-TBIn!E330,TBIn!D330),0) -> 9552 | I43: =IFERROR(IF(Flag=TRUE,N43-TBIn!E289,TBIn!D289),0) -> 0 | J43: 9552 | K43: =Page5a!K43 -> 2 | L43: 821011 | M43: 9552 | N43: =IFERROR(TBIn!E289,0) -> 0 | O43: 9552 | P43: 40 | Q43: 50000 | R43: 0 | S43: 0 | T43: 0 | U43: 0 | V43: #REF!
A44: 41 | C44: TOTAL COM. Y CAM. NUEVOS MENUDEO | E44: (Lineas 25 a 40) | F44: =SUM(F28:F43) -> 12 | G44: =SUM(G28:G43) -> 4301607 | H44: =SUM(H28:H43) -> 174165 | I44: =SUM(I28:I43) -> 0 | J44: 174165 | K44: 12 | L44: 4301607 | M44: 174165 | N44: 0 | O44: 174165 | P44: 41
A45: 42 | C45: =OR_VEH!B44 -> NO UTILICE | E45: 439A | J45: 0 | O45: 0 | P45: 42 | Q45: 50000 | R45: 0 | S45: 0 | T45: 0 | U45: 0 | V45: #REF!
A46: 43 | C46: =OR_VEH!B45 -> FLOTILLAS | E46: 440A | F46: =Page5a!F46 -> 0 | G46: =IFERROR(IF(Flag=TRUE,L46-TBIn!E1690,TBIn!D1690),0) -> 0 | H46: =IFERROR(IF(Flag=TRUE,M46-TBIn!E332,TBIn!D332),0) -> 0 | I46: =IFERROR(IF(Flag=TRUE,N46-TBIn!E291,TBIn!D291),0) -> 0 | J46: 0 | K46: =Page5a!K46 -> 0 | L46: =IFERROR(TBIn!E1690,0) -> 0 | M46: =IFERROR(TBIn!E332,0) -> 0 | N46: =IFERROR(TBIn!E291,0) -> 0 | O46: 0 | P46: 43 | Q46: 50000 | R46: 0 | S46: 0 | T46: 0 | U46: 0 | V46: #REF!
A47: 44 | C47: =OR_VEH!B46 -> INTERNAS | E47: 441A | F47: =Page5a!F47 -> 0 | G47: =IFERROR(IF(Flag=TRUE,L47-TBIn!E1691,TBIn!D1691),0) -> 0 | H47: =IFERROR(IF(Flag=TRUE,M47-TBIn!E333,TBIn!D333),0) -> 0 | I47: =IFERROR(IF(Flag=TRUE,N47-TBIn!E292,TBIn!D292),0) -> 0 | J47: 0 | K47: =Page5a!K47 -> 0 | L47: =IFERROR(TBIn!E1691,0) -> 0 | M47: =IFERROR(TBIn!E333,0) -> 0 | N47: =IFERROR(TBIn!E292,0) -> 0 | O47: 0 | P47: 44 | Q47: 50000 | R47: 0 | S47: 0 | T47: 0 | U47: 0 | V47: #REF!
A48: 45 | C48: TOTAL COM. Y CAM. NUEVOS | E48: (Lineas 41 a 44) | F48: =SUM(F44:F47) -> 12 | G48: 4301607 | H48: 174165 | I48: 0 | J48: 174165 | K48: 12 | L48: 4301607 | M48: 174165 | N48: 0 | O48: 174165 | P48: 45
A49: 46 | C49: =OR_VEH!B48 -> NO UTILICE | E49: 445A | P49: 46 | V49: #REF!
A50: 47 | C50: =OR_VEH!B49 -> VENTA DE ACCESORIOS PARA VEHÍCULOS LISTADOS EN ESTA PAGINA | E50: 457A | F50: =Page5a!F50 -> 6 | G50: =IFERROR(IF(Flag=TRUE,L50-TBIn!E1692,TBIn!D1692),0) -> 103210 | K50: =Page5a!K50 -> 6 | L50: 103210 | O50: 0 | P50: 47 | Q50: 10000 | R50: 0 | S50: 0 | T50: 0 | U50: 0 | V50: #REF!
A51: 48 | C51: TOTAL VEHICULOS NUEVOS | F51: =IFERROR(IF(Flag=TRUE,F27+F48,TBIn!D251),0) -> 92 | G51: =G27+G48+G50 -> 18353359 | H51: =H27+H48 -> 814192 | I51: =I27+I48 -> 0 | J51: =J48+J27+J50 -> 814192 | K51: =IFERROR(IF(Flag=TRUE,K27+K48,TBIn!E251),0) -> 92 | L51: =L48+L27+L50 -> 18353359 | M51: =M48+M27 -> 814192 | N51: =N48+N27 -> 0 | O51: =O48+O27 -> 814192 | P51: 48
J54: Unit Diff | K54: Actual Sums | M54: Actual Sums | O54: Gross Diff
J56: 0 | K56: 0 | M56: 0 | O56: 0
D57: TOTAL AUTOS NUEVOS MENUDEO | J57: 0 | K57: 0 | M57: 0 | O57: 0
D58: TOTAL AUTOS NUEVOS | J58: 0 | K58: 0 | M58: 0 | O58: 0
D59: TOTAL COM. Y CAM. NUEVOS MENUDEO | J59: 0 | K59: 0 | M59: 0 | O59: 0
D60: TOTAL COM. Y CAM. NUEVOS | M60: 0
D61: NO UTILICE | J61: 0 | K61: 0 | M61: 0 | O61: 0
D62: VENTA DE ACCESORIOS PARA VEHÍCULOS LISTADOS EN ESTA PAGINA | J62: 0 | K62: 0 | M62: 0 | O62: 0
D63: TOTAL VEHICULOS NUEVOS
B2355: PAGINA 5aB&P
A2357: BONIFIACION Y PREMIOS | B2357: NO.
E3581: Per Unit | F3581: Month | G3581: YTD | H3581: Month | I3581: YTD
E3582: Sales | F3582: Sales | G3582: Sales | H3582: Unit | I3582: Unit | K3582: BAC 0 -
E3583: Max | F3583: Flag | G3583: Flag | H3583: Flag | I3583: Flag | J3583: ACC.
E3584: 50000 | F3584: 0 | G3584: 0 | H3584: 0 | I3584: 0 | J3584: #REF!
E3585: 50000 | F3585: 0 | G3585: 0 | H3585: 0 | I3585: 0 | J3585: #REF!
E3586: 50000 | F3586: 0 | G3586: 0 | H3586: 0 | I3586: 0 | J3586: #REF!
E3587: 50000 | F3587: 0 | G3587: 0 | H3587: 0 | I3587: 0 | J3587: #REF!
H3588: 0 | I3588: 0 | J3588: #REF!
E3589: 50000 | F3589: 0 | G3589: 0 | H3589: 0 | I3589: 0 | J3589: #REF!
E3590: 50000 | F3590: 0 | G3590: 0 | H3590: 0 | I3590: 0 | J3590: #REF!
E3591: 50000 | F3591: 0 | G3591: 0 | H3591: 0 | I3591: 0 | J3591: #REF!
E3592: 50000 | F3592: 0 | G3592: 0 | H3592: 0 | I3592: 0 | J3592: #REF!
E3593: 50000 | F3593: 0 | G3593: 0 | H3593: 0 | I3593: 0 | J3593: #REF!
E3594: 50000 | F3594: 0 | G3594: 0 | H3594: 0 | I3594: 0 | J3594: #REF!
E3595: 50000 | F3595: 0 | G3595: 0 | H3595: 0 | I3595: 0 | J3595: #REF!
E3596: 50000 | F3596: 0 | G3596: 0 | H3596: 0 | I3596: 0 | J3596: #REF!
E3597: 50000 | F3597: 0 | G3597: 0 | H3597: 0 | I3597: 0 | J3597: #REF!
E3598: 50000 | F3598: 0 | G3598: 0 | H3598: 0 | I3598: 0 | J3598: #REF!
E3599: 50000 | F3599: 0 | G3599: 0 | H3599: 0 | I3599: 0 | J3599: #REF!
E3600: 50000 | F3600: 0 | G3600: 0 | H3600: 0 | I3600: 0 | J3600: #REF!
E3601: 50000 | F3601: 0 | G3601: 0 | H3601: 0 | I3601: 0 | J3601: #REF!

Sheet Page5b
F1: VEHICULOS NUEVOS - ANALISIS DE VENTAS Y UTILIDAD BRUTA | P1: =TBIn!$E$2591&" - "&TBIn!$AH$10&" - PAGINA 5b" -> 122112 - 201801 - PAGINA 5b | Q1: Per Unit | R1: Month | S1: YTD | T1: Month | U1: YTD
A2: Lin. | D2: OPERACIONES | G2: MES | L2: AÑO A LA FECHA | P2: Lin. | Q2: Sales | R2: Sales | S2: Sales | T2: Unit | U2: Unit
A3: No. | D3: VARIABLES | E3: CTA. | F3: UNIDADES VENDIDAS | G3: VENTAS | H3: COSTO DE VENTAS | I3: UTILIDAD BRUTA | J3: POR VEHICULO VENDIDO | K3: UNIDADES VENDIDAS | L3: VENTAS | M3: COSTO DE VENTAS | N3: UTILIDAD BRUTA | O3: POR VEHICULO VENDIDO | P3: No. | Q3: Max | R3: Flag | S3: Flag | T3: Flag | U3: Flag
A4: 1 | B4: VENTAS D E AUTOS NUEVOS | C4: =OR_VEH!B53 -> NO UTILICE | E4: 400B | F4: =IFERROR(IF(Flag=TRUE,K4-TBIn!E334,TBIn!D334),0) -> 0 | G4: =IFERROR(IF(Flag=TRUE,L4-TBIn!E1694,TBIn!D1694),0) -> 0 | H4: =IFERROR(IF(Flag=TRUE,M4-TBIn!E1734,TBIn!D1734),0) -> 0 | I4: =G4-H4 -> 0 | J4: =IFERROR(I4/F4,0) -> 0 | K4: =IFERROR(TBIn!E334,0) -> 0 | L4: =IFERROR(TBIn!E1694,0) -> 0 | M4: =IFERROR(TBIn!E1734,0) -> 0 | N4: =L4-M4 -> 0 | O4: =IFERROR(N4/K4,0) -> 0 | P4: 1 | Q4: 50000 | R4: =IF(F4=0,0,IF(G4/F4>Q4,1,0)) -> 0 | S4: =IF(K4=0,0,IF(OR(L4<0,L4/K4>Q4),1,0)) -> 0 | T4: =IF(OR(F4<0,AND(G4>0,F4=0),AND(G4=0,F4>0)),1,0) -> 0 | U4: =IF(OR(K4<0,AND(L4>0,K4=0),AND(K4>0,L4=0)),1,0) -> 0
A5: 2 | C5: =OR_VEH!B54 -> NO UTILICE | E5: 401B | F5: =IFERROR(IF(Flag=TRUE,K5-TBIn!E335,TBIn!D335),0) -> 0 | G5: =IFERROR(IF(Flag=TRUE,L5-TBIn!E1695,TBIn!D1695),0) -> 0 | H5: =IFERROR(IF(Flag=TRUE,M5-TBIn!E1735,TBIn!D1735),0) -> 0 | I5: =G5-H5 -> 0 | J5: 0 | K5: =IFERROR(TBIn!E335,0) -> 0 | L5: =IFERROR(TBIn!E1695,0) -> 0 | M5: =IFERROR(TBIn!E1735,0) -> 0 | N5: =L5-M5 -> 0 | O5: 0 | P5: 2 | Q5: 30000 | R5: =IF(F5=0,0,IF(G5/F5>Q5,1,0)) -> 0 | S5: =IF(K5=0,0,IF(OR(L5<0,L5/K5>Q5),1,0)) -> 0 | T5: =IF(OR(F5<0,AND(G5>0,F5=0),AND(G5=0,F5>0)),1,0) -> 0 | U5: =IF(OR(K5<0,AND(L5>0,K5=0),AND(K5>0,L5=0)),1,0) -> 0
A6: 3 | C6: =OR_VEH!B55 -> NO UTILICE | E6: 402B | F6: =IFERROR(IF(Flag=TRUE,K6-TBIn!E336,TBIn!D336),0) -> 0 | G6: =IFERROR(IF(Flag=TRUE,L6-TBIn!E1696,TBIn!D1696),0) -> 0 | H6: =IFERROR(IF(Flag=TRUE,M6-TBIn!E1736,TBIn!D1736),0) -> 0 | I6: 0 | J6: 0 | K6: =IFERROR(TBIn!E336,0) -> 0 | L6: =IFERROR(TBIn!E1696,0) -> 0 | M6: =IFERROR(TBIn!E1736,0) -> 0 | N6: 0 | O6: 0 | P6: 3 | Q6: 25000 | R6: 0 | S6: 0 | T6: 0 | U6: 0
A7: 4 | C7: =OR_VEH!B56 -> NO UTILICE | E7: 403B | F7: =IFERROR(IF(Flag=TRUE,K7-TBIn!E337,TBIn!D337),0) -> 0 | G7: =IFERROR(IF(Flag=TRUE,L7-TBIn!E1697,TBIn!D1697),0) -> 0 | H7: =IFERROR(IF(Flag=TRUE,M7-TBIn!E1737,TBIn!D1737),0) -> 0 | I7: 0 | J7: 0 | K7: =IFERROR(TBIn!E337,0) -> 0 | L7: =IFERROR(TBIn!E1697,0) -> 0 | M7: =IFERROR(TBIn!E1737,0) -> 0 | N7: 0 | O7: 0 | P7: 4 | Q7: 35000 | R7: 0 | S7: 0 | T7: 0 | U7: 0
A8: 5 | C8: =OR_VEH!B57 -> NO UTILICE | E8: 404B | F8: =IFERROR(IF(Flag=TRUE,K8-TBIn!E338,TBIn!D338),0) -> 0 | G8: =IFERROR(IF(Flag=TRUE,L8-TBIn!E1698,TBIn!D1698),0) -> 0 | H8: =IFERROR(IF(Flag=TRUE,M8-TBIn!E1738,TBIn!D1738),0) -> 0 | I8: 0 | J8: 0 | K8: =IFERROR(TBIn!E338,0) -> 0 | L8: =IFERROR(TBIn!E1698,0) -> 0 | M8: =IFERROR(TBIn!E1738,0) -> 0 | N8: 0 | O8: 0 | P8: 5 | Q8: 45000 | R8: 0 | S8: 0 | T8: 0 | U8: 0
A9: 6 | C9: =OR_VEH!B58 -> NO UTILICE | E9: 405B | F9: =IFERROR(IF(Flag=TRUE,K9-TBIn!E339,TBIn!D339),0) -> 0 | G9: =IFERROR(IF(Flag=TRUE,L9-TBIn!E1699,TBIn!D1699),0) -> 0 | H9: =IFERROR(IF(Flag=TRUE,M9-TBIn!E1739,TBIn!D1739),0) -> 0 | I9: 0 | J9: 0 | K9: =IFERROR(TBIn!E339,0) -> 0 | L9: =IFERROR(TBIn!E1699,0) -> 0 | M9: =IFERROR(TBIn!E1739,0) -> 0 | N9: 0 | O9: 0 | P9: 6 | Q9: 35000 | R9: 0 | S9: 0 | T9: 0 | U9: 0
A10: 7 | C10: =OR_VEH!B59 -> NO UTILICE | E10: 406B | F10: =IFERROR(IF(Flag=TRUE,K10-TBIn!E340,TBIn!D340),0) -> 0 | G10: =IFERROR(IF(Flag=TRUE,L10-TBIn!E1700,TBIn!D1700),0) -> 0 | H10: =IFERROR(IF(Flag=TRUE,M10-TBIn!E1740,TBIn!D1740),0) -> 0 | I10: 0 | J10: 0 | K10: =IFERROR(TBIn!E340,0) -> 0 | L10: =IFERROR(TBIn!E1700,0) -> 0 | M10: =IFERROR(TBIn!E1740,0) -> 0 | N10: 0 | O10: 0 | P10: 7 | Q10: 0 | R10: 0 | S10: 0 | T10: 0 | U10: 0
A11: 8 | C11: =OR_VEH!B60 -> NO UTILICE | E11: 407B | F11: =IFERROR(IF(Flag=TRUE,K11-TBIn!E341,TBIn!D341),0) -> 0 | G11: =IFERROR(IF(Flag=TRUE,L11-TBIn!E1701,TBIn!D1701),0) -> 0 | H11: =IFERROR(IF(Flag=TRUE,M11-TBIn!E1741,TBIn!D1741),0) -> 0 | I11: 0 | J11: 0 | K11: =IFERROR(TBIn!E341,0) -> 0 | L11: =IFERROR(TBIn!E1701,0) -> 0 | M11: =IFERROR(TBIn!E1741,0) -> 0 | N11: 0 | O11: 0 | P11: 8 | Q11: 0 | R11: 0 | S11: 0 | T11: 0 | U11: 0
A12: 9 | C12: =OR_VEH!B61 -> NO UTILICE | E12: 408B | F12: =IFERROR(IF(Flag=TRUE,K12-TBIn!E342,TBIn!D342),0) -> 0 | G12: =IFERROR(IF(Flag=TRUE,L12-TBIn!E1702,TBIn!D1702),0) -> 0 | H12: =IFERROR(IF(Flag=TRUE,M12-TBIn!E1742,TBIn!D1742),0) -> 0 | I12: 0 | J12: 0 | K12: =IFERROR(TBIn!E342,0) -> 0 | L12: =IFERROR(TBIn!E1702,0) -> 0 | M12: =IFERROR(TBIn!E1742,0) -> 0 | N12: 0 | O12: 0 | P12: 9 | Q12: 0 | R12: 0 | S12: 0 | T12: 0 | U12: 0
A13: 10 | C13: =OR_VEH!B62 -> NO UTILICE | E13: 409B | F13: =IFERROR(IF(Flag=TRUE,K13-TBIn!E343,TBIn!D343),0) -> 0 | G13: =IFERROR(IF(Flag=TRUE,L13-TBIn!E1703,TBIn!D1703),0) -> 0 | H13: =IFERROR(IF(Flag=TRUE,M13-TBIn!E1743,TBIn!D1743),0) -> 0 | I13: 0 | J13: 0 | K13: =IFERROR(TBIn!E343,0) -> 0 | L13: =IFERROR(TBIn!E1703,0) -> 0 | M13: =IFERROR(TBIn!E1743,0) -> 0 | N13: 0 | O13: 0 | P13: 10 | Q13: 0 | R13: 0 | S13: 0 | T13: 0 | U13: 0
A14: 11 | C14: =OR_VEH!B63 -> NO UTILICE | E14: 410B | F14: =IFERROR(IF(Flag=TRUE,K14-TBIn!E344,TBIn!D344),0) -> 0 | G14: =IFERROR(IF(Flag=TRUE,L14-TBIn!E1704,TBIn!D1704),0) -> 0 | H14: =IFERROR(IF(Flag=TRUE,M14-TBIn!E1744,TBIn!D1744),0) -> 0 | I14: 0 | J14: 0 | K14: =IFERROR(TBIn!E344,0) -> 0 | L14: =IFERROR(TBIn!E1704,0) -> 0 | M14: =IFERROR(TBIn!E1744,0) -> 0 | N14: 0 | O14: 0 | P14: 11 | Q14: 0 | R14: 0 | S14: 0 | T14: 0 | U14: 0
A15: 12 | C15: =OR_VEH!B64 -> NO UTILICE | E15: 411B | F15: =IFERROR(IF(Flag=TRUE,K15-TBIn!E345,TBIn!D345),0) -> 0 | G15: =IFERROR(IF(Flag=TRUE,L15-TBIn!E1705,TBIn!D1705),0) -> 0 | H15: =IFERROR(IF(Flag=TRUE,M15-TBIn!E1745,TBIn!D1745),0) -> 0 | I15: 0 | J15: 0 | K15: =IFERROR(TBIn!E345,0) -> 0 | L15: =IFERROR(TBIn!E1705,0) -> 0 | M15: =IFERROR(TBIn!E1745,0) -> 0 | N15: 0 | O15: 0 | P15: 12 | Q15: 0 | R15: 0 | S15: 0 | T15: 0 | U15: 0
A16: 13 | C16: =OR_VEH!B65 -> NO UTILICE | E16: 412B | F16: =IFERROR(IF(Flag=TRUE,K16-TBIn!E346,TBIn!D346),0) -> 0 | G16: =IFERROR(IF(Flag=TRUE,L16-TBIn!E1706,TBIn!D1706),0) -> 0 | H16: =IFERROR(IF(Flag=TRUE,M16-TBIn!E1746,TBIn!D1746),0) -> 0 | I16: 0 | J16: 0 | K16: =IFERROR(TBIn!E346,0) -> 0 | L16: =IFERROR(TBIn!E1706,0) -> 0 | M16: =IFERROR(TBIn!E1746,0) -> 0 | N16: 0 | O16: 0 | P16: 13 | Q16: 0 | R16: 0 | S16: 0 | T16: 0 | U16: 0
A17: 14 | C17: =OR_VEH!B66 -> NO UTILICE | E17: 413B | F17: =IFERROR(IF(Flag=TRUE,K17-TBIn!E347,TBIn!D347),0) -> 0 | G17: =IFERROR(IF(Flag=TRUE,L17-TBIn!E1707,TBIn!D1707),0) -> 0 | H17: =IFERROR(IF(Flag=TRUE,M17-TBIn!E1747,TBIn!D1747),0) -> 0 | I17: 0 | J17: 0 | K17: =IFERROR(TBIn!E347,0) -> 0 | L17: =IFERROR(TBIn!E1707,0) -> 0 | M17: =IFERROR(TBIn!E1747,0) -> 0 | N17: 0 | O17: 0 | P17: 14 | Q17: 0 | R17: 0 | S17: 0 | T17: 0 | U17: 0
A18: 15 | C18: =OR_VEH!B67 -> NO UTILICE | E18: 414B | F18: =IFERROR(IF(Flag=TRUE,K18-TBIn!E348,TBIn!D348),0) -> 0 | G18: =IFERROR(IF(Flag=TRUE,L18-TBIn!E1708,TBIn!D1708),0) -> 0 | H18: =IFERROR(IF(Flag=TRUE,M18-TBIn!E1748,TBIn!D1748),0) -> 0 | I18: 0 | J18: 0 | K18: =IFERROR(TBIn!E348,0) -> 0 | L18: =IFERROR(TBIn!E1708,0) -> 0 | M18: =IFERROR(TBIn!E1748,0) -> 0 | N18: 0 | O18: 0 | P18: 15 | Q18: 0 | R18: 0 | S18: 0 | T18: 0 | U18: 0
A19: 16 | C19: =OR_VEH!B68 -> NO UTILICE | E19: 415B | F19: =IFERROR(IF(Flag=TRUE,K19-TBIn!E349,TBIn!D349),0) -> 0 | G19: =IFERROR(IF(Flag=TRUE,L19-TBIn!E1709,TBIn!D1709),0) -> 0 | H19: =IFERROR(IF(Flag=TRUE,M19-TBIn!E1749,TBIn!D1749),0) -> 0 | I19: 0 | J19: 0 | K19: =IFERROR(TBIn!E349,0) -> 0 | L19: =IFERROR(TBIn!E1709,0) -> 0 | M19: =IFERROR(TBIn!E1749,0) -> 0 | N19: 0 | O19: 0 | P19: 16 | Q19: 0 | R19: 0 | S19: 0 | T19: 0 | U19: 0
A20: 17 | C20: =OR_VEH!B69 -> NO UTILICE | E20: 416B | F20: =IFERROR(IF(Flag=TRUE,K20-TBIn!E350,TBIn!D350),0) -> 0 | G20: =IFERROR(IF(Flag=TRUE,L20-TBIn!E1710,TBIn!D1710),0) -> 0 | H20: =IFERROR(IF(Flag=TRUE,M20-TBIn!E1750,TBIn!D1750),0) -> 0 | I20: 0 | J20: 0 | K20: =IFERROR(TBIn!E350,0) -> 0 | L20: =IFERROR(TBIn!E1710,0) -> 0 | M20: =IFERROR(TBIn!E1750,0) -> 0 | N20: 0 | O20: 0 | P20: 17 | Q20: 0 | R20: 0 | S20: 0 | T20: 0 | U20: 0
A21: 18 | C21: =OR_VEH!B70 -> NO UTILICE | E21: 417B | F21: =IFERROR(IF(Flag=TRUE,K21-TBIn!E351,TBIn!D351),0) -> 0 | G21: =IFERROR(IF(Flag=TRUE,L21-TBIn!E1711,TBIn!D1711),0) -> 0 | H21: =IFERROR(IF(Flag=TRUE,M21-TBIn!E1751,TBIn!D1751),0) -> 0 | I21: 0 | J21: 0 | K21: =IFERROR(TBIn!E351,0) -> 0 | L21: =IFERROR(TBIn!E1711,0) -> 0 | M21: =IFERROR(TBIn!E1751,0) -> 0 | N21: 0 | O21: 0 | P21: 18 | Q21: 0 | R21: 0 | S21: 0 | T21: 0 | U21: 0
A22: 19 | C22: =OR_VEH!B71 -> OTROS AUTOS | E22: 418B | F22: =IFERROR(IF(Flag=TRUE,K22-TBIn!E352,TBIn!D352),0) -> 0 | G22: =IFERROR(IF(Flag=TRUE,L22-TBIn!E1712,TBIn!D1712),0) -> 0 | H22: =IFERROR(IF(Flag=TRUE,M22-TBIn!E1752,TBIn!D1752),0) -> 0 | I22: 0 | J22: 0 | K22: =IFERROR(TBIn!E352,0) -> 0 | L22: =IFERROR(TBIn!E1712,0) -> 0 | M22: =IFERROR(TBIn!E1752,0) -> 0 | N22: 0 | O22: 0 | P22: 19 | Q22: 0 | R22: 0 | S22: 0 | T22: 0 | U22: 0
A23: 20 | C23: TOTAL AUTOS NUEVOS MENUDEO | E23: (Lineas 1 a 19) | F23: =SUM(F4:F22) -> 0 | G23: =SUM(G4:G22) -> 0 | H23: =SUM(H4:H22) -> 0 | I23: =SUM(I4:I22) -> 0 | J23: 0 | K23: =SUM(K4:K22) -> 0 | L23: =SUM(L4:L22) -> 0 | M23: =SUM(M4:M22) -> 0 | N23: =SUM(N4:N22) -> 0 | O23: 0 | P23: 20
A24: 21 | C24: =OR_VEH!B73 -> NO UTILICE | E24: 419B | F24: 0 | G24: 0 | H24: 0 | I24: 0 | J24: 0 | K24: 0 | L24: 0 | M24: 0 | N24: 0 | O24: 0 | P24: 21 | Q24: 65000 | R24: 0 | S24: =IF(K24=0,0,IF(OR(L24<0,L24/K24>Q24),1,0)) -> 0 | T24: =IF(OR(F24<0,AND(G24>0,F24=0),AND(G24=0,F24>0)),1,0) -> 0 | U24: =IF(OR(K24<0,AND(L24>0,K24=0),AND(K24>0,L24=0)),1,0) -> 0
A25: 22 | C25: =OR_VEH!B74 -> FLOTILLAS | E25: 420B | F25: =IFERROR(IF(Flag=TRUE,K25-TBIn!E354,TBIn!D354),0) -> 0 | G25: =IFERROR(IF(Flag=TRUE,L25-TBIn!E1713,TBIn!D1713),0) -> 0 | H25: =IFERROR(IF(Flag=TRUE,M25-TBIn!E1753,TBIn!D1753),0) -> 0 | I25: =G25-H25 -> 0 | J25: 0 | K25: =IFERROR(TBIn!E354,0) -> 0 | L25: =IFERROR(TBIn!E1713,0) -> 0 | M25: =IFERROR(TBIn!E1753,0) -> 0 | N25: =L25-M25 -> 0 | O25: 0 | P25: 22 | Q25: 55000 | R25: 0 | S25: =IF(K25=0,0,IF(OR(L25<0,L25/K25>Q25),1,0)) -> 0 | T25: =IF(OR(F25<0,AND(G25>0,F25=0),AND(G25=0,F25>0)),1,0) -> 0 | U25: =IF(OR(K25<0,AND(L25>0,K25=0),AND(K25>0,L25=0)),1,0) -> 0
A26: 23 | C26: =OR_VEH!B75 -> INTERNAS | E26: 421B | F26: =IFERROR(IF(Flag=TRUE,K26-TBIn!E355,TBIn!D355),0) -> 0 | G26: =IFERROR(IF(Flag=TRUE,L26-TBIn!E1714,TBIn!D1714),0) -> 0 | H26: =IFERROR(IF(Flag=TRUE,M26-TBIn!E1754,TBIn!D1754),0) -> 0 | I26: =G26-H26 -> 0 | J26: 0 | K26: =IFERROR(TBIn!E355,0) -> 0 | L26: =IFERROR(TBIn!E1714,0) -> 0 | M26: =IFERROR(TBIn!E1754,0) -> 0 | N26: =L26-M26 -> 0 | O26: 0 | P26: 23 | Q26: 55000 | R26: 0 | S26: =IF(K26=0,0,IF(OR(L26<0,L26/K26>Q26),1,0)) -> 0 | T26: =IF(OR(F26<0,AND(G26>0,F26=0),AND(G26=0,F26>0)),1,0) -> 0 | U26: =IF(OR(K26<0,AND(L26>0,K26=0),AND(K26>0,L26=0)),1,0) -> 0
A27: 24 | C27: TOTAL AUTOS NUEVOS | E27: (Lineas 20 a 23) | F27: =SUM(F23:F26) -> 0 | G27: =SUM(G23:G26) -> 0 | H27: =SUM(H23:H26) -> 0 | I27: =SUM(I23:I26) -> 0 | J27: 0 | K27: =SUM(K23:K26) -> 0 | L27: =SUM(L23:L26) -> 0 | M27: =SUM(M23:M26) -> 0 | N27: =SUM(N23:N26) -> 0 | O27: 0 | P27: 24
A28: 25 | B28: VENTAS DE COM. Y CAM. NUEVOS | C28: =OR_VEH!B77 -> NO UTILICE | E28: 423B | F28: =IFERROR(IF(Flag=TRUE,K28-TBIn!E356,TBIn!D356),0) -> 0 | G28: =IFERROR(IF(Flag=TRUE,L28-TBIn!E1715,TBIn!D1715),0) -> 0 | H28: =IFERROR(IF(Flag=TRUE,M28-TBIn!E1755,TBIn!D1755),0) -> 0 | I28: =G28-H28 -> 0 | J28: 0 | K28: =IFERROR(TBIn!E356,0) -> 0 | L28: =IFERROR(TBIn!E1715,0) -> 0 | M28: =IFERROR(TBIn!E1755,0) -> 0 | N28: =L28-M28 -> 0 | O28: 0 | P28: 25 | Q28: 45000 | R28: 0 | S28: =IF(K28=0,0,IF(OR(L28<0,L28/K28>Q28),1,0)) -> 0 | T28: =IF(OR(F28<0,AND(G28>0,F28=0),AND(G28=0,F28>0)),1,0) -> 0 | U28: =IF(OR(K28<0,AND(L28>0,K28=0),AND(K28>0,L28=0)),1,0) -> 0
A29: 26 | C29: =OR_VEH!B78 -> NO UTILICE | E29: 424B | F29: =IFERROR(IF(Flag=TRUE,K29-TBIn!E357,TBIn!D357),0) -> 0 | G29: =IFERROR(IF(Flag=TRUE,L29-TBIn!E1716,TBIn!D1716),0) -> 0 | H29: =IFERROR(IF(Flag=TRUE,M29-TBIn!E1756,TBIn!D1756),0) -> 0 | I29: 0 | J29: 0 | K29: =IFERROR(TBIn!E357,0) -> 0 | L29: =IFERROR(TBIn!E1716,0) -> 0 | M29: =IFERROR(TBIn!E1756,0) -> 0 | N29: 0 | O29: 0 | P29: 26 | Q29: 55000 | R29: 0 | S29: 0 | T29: 0 | U29: 0
A30: 27 | C30: =OR_VEH!B79 -> NO UTILICE | E30: 425B | F30: =IFERROR(IF(Flag=TRUE,K30-TBIn!E358,TBIn!D358),0) -> 0 | G30: =IFERROR(IF(Flag=TRUE,L30-TBIn!E1717,TBIn!D1717),0) -> 0 | H30: =IFERROR(IF(Flag=TRUE,M30-TBIn!E1757,TBIn!D1757),0) -> 0 | I30: 0 | J30: 0 | K30: =IFERROR(TBIn!E358,0) -> 0 | L30: =IFERROR(TBIn!E1717,0) -> 0 | M30: =IFERROR(TBIn!E1757,0) -> 0 | N30: 0 | O30: 0 | P30: 27 | Q30: 55000 | R30: 0 | S30: 0 | T30: 0 | U30: 0
A31: 28 | C31: =OR_VEH!B80 -> NO UTILICE | E31: 426B | F31: =IFERROR(IF(Flag=TRUE,K31-TBIn!E359,TBIn!D359),0) -> 0 | G31: =IFERROR(IF(Flag=TRUE,L31-TBIn!E1718,TBIn!D1718),0) -> 0 | H31: =IFERROR(IF(Flag=TRUE,M31-TBIn!E1758,TBIn!D1758),0) -> 0 | I31: 0 | J31: 0 | K31: =IFERROR(TBIn!E359,0) -> 0 | L31: =IFERROR(TBIn!E1718,0) -> 0 | M31: =IFERROR(TBIn!E1758,0) -> 0 | N31: 0 | O31: 0 | P31: 28 | Q31: 40000 | R31: 0 | S31: 0 | T31: 0 | U31: 0
A32: 29 | C32: =OR_VEH!B81 -> NO UTILICE | E32: 427B | F32: =IFERROR(IF(Flag=TRUE,K32-TBIn!E360,TBIn!D360),0) -> 0 | G32: =IFERROR(IF(Flag=TRUE,L32-TBIn!E1719,TBIn!D1719),0) -> 0 | H32: =IFERROR(IF(Flag=TRUE,M32-TBIn!E1759,TBIn!D1759),0) -> 0 | I32: 0 | J32: 0 | K32: =IFERROR(TBIn!E360,0) -> 0 | L32: =IFERROR(TBIn!E1719,0) -> 0 | M32: =IFERROR(TBIn!E1759,0) -> 0 | N32: 0 | O32: 0 | P32: 29 | Q32: 55000 | R32: 0 | S32: 0 | T32: 0 | U32: 0
A33: 30 | C33: =OR_VEH!B82 -> NO UTILICE | E33: 428B | F33: =IFERROR(IF(Flag=TRUE,K33-TBIn!E361,TBIn!D361),0) -> 0 | G33: =IFERROR(IF(Flag=TRUE,L33-TBIn!E1720,TBIn!D1720),0) -> 0 | H33: =IFERROR(IF(Flag=TRUE,M33-TBIn!E1760,TBIn!D1760),0) -> 0 | I33: 0 | J33: 0 | K33: =IFERROR(TBIn!E361,0) -> 0 | L33: =IFERROR(TBIn!E1720,0) -> 0 | M33: =IFERROR(TBIn!E1760,0) -> 0 | N33: 0 | O33: 0 | P33: 30 | Q33: 65000 | R33: 0 | S33: 0 | T33: 0 | U33: 0
A34: 31 | C34: =OR_VEH!B83 -> NO UTILICE | E34: 429B | F34: =IFERROR(IF(Flag=TRUE,K34-TBIn!E362,TBIn!D362),0) -> 0 | G34: =IFERROR(IF(Flag=TRUE,L34-TBIn!E1721,TBIn!D1721),0) -> 0 | H34: =IFERROR(IF(Flag=TRUE,M34-TBIn!E1761,TBIn!D1761),0) -> 0 | I34: 0 | J34: 0 | K34: =IFERROR(TBIn!E362,0) -> 0 | L34: =IFERROR(TBIn!E1721,0) -> 0 | M34: =IFERROR(TBIn!E1761,0) -> 0 | N34: 0 | O34: 0 | P34: 31 | Q34: 45000 | R34: 0 | S34: 0 | T34: 0 | U34: 0
A35: 32 | C35: =OR_VEH!B84 -> NO UTILICE | E35: 430B | F35: =IFERROR(IF(Flag=TRUE,K35-TBIn!E363,TBIn!D363),0) -> 0 | G35: =IFERROR(IF(Flag=TRUE,L35-TBIn!E1722,TBIn!D1722),0) -> 0 | H35: =IFERROR(IF(Flag=TRUE,M35-TBIn!E1762,TBIn!D1762),0) -> 0 | I35: 0 | J35: 0 | K35: =IFERROR(TBIn!E363,0) -> 0 | L35: =IFERROR(TBIn!E1722,0) -> 0 | M35: =IFERROR(TBIn!E1762,0) -> 0 | N35: 0 | O35: 0 | P35: 32 | Q35: 50000 | R35: 0 | S35: 0 | T35: 0 | U35: 0
A36: 33 | C36: =OR_VEH!B85 -> NO UTILICE | E36: 431B | F36: =IFERROR(IF(Flag=TRUE,K36-TBIn!E364,TBIn!D364),0) -> 0 | G36: =IFERROR(IF(Flag=TRUE,L36-TBIn!E1723,TBIn!D1723),0) -> 0 | H36: =IFERROR(IF(Flag=TRUE,M36-TBIn!E1763,TBIn!D1763),0) -> 0 | I36: 0 | J36: 0 | K36: =IFERROR(TBIn!E364,0) -> 0 | L36: =IFERROR(TBIn!E1723,0) -> 0 | M36: =IFERROR(TBIn!E1763,0) -> 0 | N36: 0 | O36: 0 | P36: 33 | Q36: 50000 | R36: 0 | S36: 0 | T36: 0 | U36: 0
A37: 34 | C37: =OR_VEH!B86 -> NO UTILICE | E37: 432B | F37: =IFERROR(IF(Flag=TRUE,K37-TBIn!E365,TBIn!D365),0) -> 0 | G37: =IFERROR(IF(Flag=TRUE,L37-TBIn!E1724,TBIn!D1724),0) -> 0 | H37: =IFERROR(IF(Flag=TRUE,M37-TBIn!E1764,TBIn!D1764),0) -> 0 | I37: 0 | J37: 0 | K37: =IFERROR(TBIn!E365,0) -> 0 | L37: =IFERROR(TBIn!E1724,0) -> 0 | M37: =IFERROR(TBIn!E1764,0) -> 0 | N37: 0 | O37: 0 | P37: 34 | Q37: 45000 | R37: 0 | S37: 0 | T37: 0 | U37: 0
A38: 35 | C38: =OR_VEH!B87 -> NO UTILICE | E38: 433B | F38: =IFERROR(IF(Flag=TRUE,K38-TBIn!E366,TBIn!D366),0) -> 0 | G38: =IFERROR(IF(Flag=TRUE,L38-TBIn!E1725,TBIn!D1725),0) -> 0 | H38: =IFERROR(IF(Flag=TRUE,M38-TBIn!E1765,TBIn!D1765),0) -> 0 | I38: 0 | J38: 0 | K38: =IFERROR(TBIn!E366,0) -> 0 | L38: =IFERROR(TBIn!E1725,0) -> 0 | M38: =IFERROR(TBIn!E1765,0) -> 0 | N38: 0 | O38: 0 | P38: 35 | Q38: 45000 | R38: 0 | S38: 0 | T38: 0 | U38: 0
A39: 36 | C39: =OR_VEH!B88 -> NO UTILICE | E39: 434B | F39: =IFERROR(IF(Flag=TRUE,K39-TBIn!E367,TBIn!D367),0) -> 0 | G39: =IFERROR(IF(Flag=TRUE,L39-TBIn!E1726,TBIn!D1726),0) -> 0 | H39: =IFERROR(IF(Flag=TRUE,M39-TBIn!E1766,TBIn!D1766),0) -> 0 | I39: 0 | J39: 0 | K39: =IFERROR(TBIn!E367,0) -> 0 | L39: =IFERROR(TBIn!E1726,0) -> 0 | M39: =IFERROR(TBIn!E1766,0) -> 0 | N39: 0 | O39: 0 | P39: 36 | Q39: 40000 | R39: 0 | S39: 0 | T39: 0 | U39: 0
A40: 37 | C40: =OR_VEH!B89 -> NO UTILICE | E40: 435B | F40: =IFERROR(IF(Flag=TRUE,K40-TBIn!E368,TBIn!D368),0) -> 0 | G40: =IFERROR(IF(Flag=TRUE,L40-TBIn!E1727,TBIn!D1727),0) -> 0 | H40: =IFERROR(IF(Flag=TRUE,M40-TBIn!E1767,TBIn!D1767),0) -> 0 | I40: 0 | J40: 0 | K40: =IFERROR(TBIn!E368,0) -> 0 | L40: =IFERROR(TBIn!E1727,0) -> 0 | M40: =IFERROR(TBIn!E1767,0) -> 0 | N40: 0 | O40: 0 | P40: 37 | Q40: 50000 | R40: 0 | S40: 0 | T40: 0 | U40: 0
A41: 38 | C41: =OR_VEH!B90 -> NO UTILICE | E41: 436B | F41: =IFERROR(IF(Flag=TRUE,K41-TBIn!E369,TBIn!D369),0) -> 0 | G41: =IFERROR(IF(Flag=TRUE,L41-TBIn!E1728,TBIn!D1728),0) -> 0 | H41: =IFERROR(IF(Flag=TRUE,M41-TBIn!E1768,TBIn!D1768),0) -> 0 | I41: 0 | J41: 0 | K41: =IFERROR(TBIn!E369,0) -> 0 | L41: =IFERROR(TBIn!E1728,0) -> 0 | M41: =IFERROR(TBIn!E1768,0) -> 0 | N41: 0 | O41: 0 | P41: 38 | Q41: 35000 | R41: 0 | S41: 0 | T41: 0 | U41: 0
A42: 39 | C42: =OR_VEH!B91 -> NO UTILICE | E42: 437B | F42: =IFERROR(IF(Flag=TRUE,K42-TBIn!E370,TBIn!D370),0) -> 0 | G42: =IFERROR(IF(Flag=TRUE,L42-TBIn!E1729,TBIn!D1729),0) -> 0 | H42: =IFERROR(IF(Flag=TRUE,M42-TBIn!E1769,TBIn!D1769),0) -> 0 | I42: 0 | J42: 0 | K42: =IFERROR(TBIn!E370,0) -> 0 | L42: =IFERROR(TBIn!E1729,0) -> 0 | M42: =IFERROR(TBIn!E1769,0) -> 0 | N42: 0 | O42: 0 | P42: 39 | Q42: 0 | R42: 0 | S42: 0 | T42: 0 | U42: 0
A43: 40 | C43: =OR_VEH!B92 -> OTROS COM | E43: 438B | F43: =IFERROR(IF(Flag=TRUE,K43-TBIn!E371,TBIn!D371),0) -> 0 | G43: =IFERROR(IF(Flag=TRUE,L43-TBIn!E1730,TBIn!D1730),0) -> 0 | H43: =IFERROR(IF(Flag=TRUE,M43-TBIn!E1770,TBIn!D1770),0) -> 0 | I43: 0 | J43: 0 | K43: =IFERROR(TBIn!E371,0) -> 0 | L43: =IFERROR(TBIn!E1730,0) -> 0 | M43: =IFERROR(TBIn!E1770,0) -> 0 | N43: 0 | O43: 0 | P43: 40 | Q43: 0 | R43: 0 | S43: 0 | T43: 0 | U43: 0
A44: 41 | C44: TOTAL COM. Y CAM. NUEVOS MENUDEO | E44: (Lineas 25 a 40) | F44: =SUM(F28:F43) -> 0 | G44: =SUM(G28:G43) -> 0 | H44: =SUM(H28:H43) -> 0 | I44: =SUM(I28:I43) -> 0 | J44: 0 | K44: =SUM(K28:K43) -> 0 | L44: =SUM(L28:L43) -> 0 | M44: =SUM(M28:M43) -> 0 | N44: =SUM(N28:N43) -> 0 | O44: 0 | P44: 41
A45: 42 | C45: =OR_VEH!B94 -> NO UTILICE | E45: 439B | F45: 0 | G45: 0 | H45: 0 | I45: 0 | J45: 0 | K45: 0 | L45: 0 | M45: 0 | N45: 0 | O45: 0 | P45: 42 | Q45: 65000 | R45: 0 | S45: =IF(K45=0,0,IF(OR(L45<0,L45/K45>Q45),1,0)) -> 0 | T45: =IF(OR(F45<0,AND(G45>0,F45=0),AND(G45=0,F45>0)),1,0) -> 0 | U45: =IF(OR(K45<0,AND(L45>0,K45=0),AND(K45>0,L45=0)),1,0) -> 0
A46: 43 | C46: =OR_VEH!B95 -> FLOTILLAS | E46: 440B | F46: =IFERROR(IF(Flag=TRUE,K46-TBIn!E373,TBIn!D373),0) -> 0 | G46: =IFERROR(IF(Flag=TRUE,L46-TBIn!E1731,TBIn!D1731),0) -> 0 | H46: =IFERROR(IF(Flag=TRUE,M46-TBIn!E1771,TBIn!D1771),0) -> 0 | I46: =G46-H46 -> 0 | J46: 0 | K46: =IFERROR(TBIn!E373,0) -> 0 | L46: =IFERROR(TBIn!E1731,0) -> 0 | M46: =IFERROR(TBIn!E1771,0) -> 0 | N46: =L46-M46 -> 0 | O46: 0 | P46: 43 | Q46: 55000 | R46: 0 | S46: =IF(K46=0,0,IF(OR(L46<0,L46/K46>Q46),1,0)) -> 0 | T46: =IF(OR(F46<0,AND(G46>0,F46=0),AND(G46=0,F46>0)),1,0) -> 0 | U46: =IF(OR(K46<0,AND(L46>0,K46=0),AND(K46>0,L46=0)),1,0) -> 0
A47: 44 | C47: =OR_VEH!B96 -> INTERNAS | E47: 441B | F47: =IFERROR(IF(Flag=TRUE,K47-TBIn!E374,TBIn!D374),0) -> 0 | G47: =IFERROR(IF(Flag=TRUE,L47-TBIn!E1732,TBIn!D1732),0) -> 0 | H47: =IFERROR(IF(Flag=TRUE,M47-TBIn!E1772,TBIn!D1772),0) -> 0 | I47: =G47-H47 -> 0 | J47: 0 | K47: =IFERROR(TBIn!E374,0) -> 0 | L47: =IFERROR(TBIn!E1732,0) -> 0 | M47: =IFERROR(TBIn!E1772,0) -> 0 | N47: =L47-M47 -> 0 | O47: 0 | P47: 44 | Q47: 55000 | R47: 0 | S47: =IF(K47=0,0,IF(OR(L47<0,L47/K47>Q47),1,0)) -> 0 | T47: =IF(OR(F47<0,AND(G47>0,F47=0),AND(G47=0,F47>0)),1,0) -> 0 | U47: =IF(OR(K47<0,AND(L47>0,K47=0),AND(K47>0,L47=0)),1,0) -> 0
A48: 45 | C48: TOTAL COM. Y CAM. NUEVOS | E48: (Lineas 41 a 44) | F48: =SUM(F44:F47) -> 0 | G48: =SUM(G44:G47) -> 0 | H48: =SUM(H44:H47) -> 0 | I48: =SUM(I44:I47) -> 0 | J48: 0 | K48: =SUM(K44:K47) -> 0 | L48: =SUM(L44:L47) -> 0 | M48: =SUM(M44:M47) -> 0 | N48: =SUM(N44:N47) -> 0 | O48: 0 | P48: 45
A49: 46 | C49: =OR_VEH!B98 -> NO UTILICE | E49: =IF(C49<>"--------","445B","") -> 445B | P49: 46 | Q49: 10000 | R49: =IF(F49=0,0,IF(G49/F49>Q49,1,0)) -> 0 | S49: =IF(K49=0,0,IF(OR(L49<0,L49/K49>Q49),1,0)) -> 0 | T49: =IF(OR(F49<0,AND(G49>0,F49=0),AND(G49=0,F49>0)),1,0) -> 0 | U49: =IF(OR(K49<0,AND(L49>0,K49=0),AND(K49>0,L49=0)),1,0) -> 0
A50: 47 | C50: =OR_VEH!B99 -> VENTA DE ACCESORIOS PARA VEHÍCULOS LISTADOS EN ESTA PAGINA | E50: 457B | F50: =IFERROR(IF(Flag=TRUE,K50-TBIn!E375,TBIn!D375),0) -> 0 | G50: =IFERROR(IF(Flag=TRUE,L50-TBIn!E1733,TBIn!D1733),0) -> 0 | H50: =IFERROR(IF(Flag=TRUE,M50-TBIn!E1773,TBIn!D1773),0) -> 0 | I50: =G50-H50 -> 0 | J50: =IFERROR(I50/F$51,0) -> 0 | K50: =IFERROR(TBIn!E375,0) -> 0 | L50: =IFERROR(TBIn!E1733,0) -> 0 | M50: =IFERROR(TBIn!E1773,0) -> 0 | N50: =L50-M50 -> 0 | O50: =IFERROR(N50/K$51,0) -> 0 | P50: 47 | Q50: 10000 | R50: 0 | S50: =IF(K50=0,0,IF(OR(L50<0,L50/K50>Q50),1,0)) -> 0 | T50: =IF(OR(F50<0,AND(G50>0,F50=0),AND(G50=0,F50>0)),1,0) -> 0 | U50: =IF(OR(K50<0,AND(L50>0,K50=0),AND(K50>0,L50=0)),1,0) -> 0
A51: 48 | C51: TOTAL VEHICULOS NUEVOS | F51: =IFERROR(IF(Flag=TRUE,F27+F48,TBIn!D376),0) -> 0 | G51: =G27+G48+G50 -> 0 | H51: =H27+H48+H50 -> 0 | I51: =IFERROR(IF(Flag=TRUE,I27+I48+I49+I50,TBIn!D1774),0) -> 0 | J51: =IFERROR(I51/F$51,0) -> 0 | K51: =IFERROR(IF(Flag=TRUE,K27+K48,TBIn!E376),0) -> 0 | L51: =L27+L48+L50 -> 0 | M51: =M27+M48+M50 -> 0 | N51: =IFERROR(IF(Flag=TRUE,N27+N48+N49+N50,TBIn!E1774),0) -> 0 | O51: =IFERROR(N51/K$51,0) -> 0 | P51: 48
J52: PUNV | O52: PUNV

Sheet Page5c
B1: =OR_VEH!B102 -> CADILLAC | F1: VEHICULOS NUEVOS - ANALISIS DE VENTAS Y UTILIDAD BRUTA | P1: =TBIn!$E$2591&" - "&TBIn!$AH$10&" - PAGINA 5c" -> 122112 - 201801 - PAGINA 5c | Q1: Per Unit | R1: Month | S1: YTD | T1: Month | U1: YTD
A2: Lin. | D2: OPERACIONES | G2: MES | L2: AÑO A LA FECHA | P2: Lin. | Q2: Sales | R2: Sales | S2: Sales | T2: Unit | U2: Unit
A3: No. | D3: VARIABLES | E3: CTA. | F3: UNIDADES VENDIDAS | G3: VENTAS | H3: COSTO DE VENTAS | I3: UTILIDAD BRUTA | J3: POR VEHICULO VENDIDO | K3: UNIDADES VENDIDAS | L3: VENTAS | M3: COSTO DE VENTAS | N3: UTILIDAD BRUTA | O3: POR VEHICULO VENDIDO | P3: No. | Q3: Max | R3: Flag | S3: Flag | T3: Flag | U3: Flag
A4: 1 | B4: VENTAS D E AUTOS NUEVOS | C4: =OR_VEH!B103 -> NO UTILICE | E4: 400C | F4: =IFERROR(IF(Flag=TRUE,K4-TBIn!E377,TBIn!D377),0) -> 0 | G4: =IFERROR(IF(Flag=TRUE,L4-TBIn!E1775,TBIn!D1775),0) -> 0 | H4: ='Page5cB&P'!G4-'Page5cB&P'!J4 -> 0 | I4: =G4-H4 -> 0 | J4: =IFERROR(I4/F4,0) -> 0 | K4: =IFERROR(TBIn!E377,0) -> 0 | L4: =IFERROR(TBIn!E1775,0) -> 0 | M4: ='Page5cB&P'!L4-'Page5cB&P'!O4 -> 0 | N4: =L4-M4 -> 0 | O4: =IFERROR(N4/K4,0) -> 0 | P4: 1 | Q4: 0 | R4: =IF(F4=0,0,IF(G4/F4>Q4,1,0)) -> 0 | S4: =IF(K4=0,0,IF(OR(L4<0,L4/K4>Q4),1,0)) -> 0 | T4: =IF(OR(F4<0,AND(G4>0,F4=0),AND(G4=0,F4>0)),1,0) -> 0 | U4: =IF(OR(K4<0,AND(L4>0,K4=0),AND(K4>0,L4=0)),1,0) -> 0
A5: 2 | C5: =OR_VEH!B104 -> CTS | E5: 401C | F5: =IFERROR(IF(Flag=TRUE,K5-TBIn!E378,TBIn!D378),0) -> 0 | G5: =IFERROR(IF(Flag=TRUE,L5-TBIn!E1776,TBIn!D1776),0) -> 0 | H5: ='Page5cB&P'!G5-'Page5cB&P'!J5 -> 0 | I5: =G5-H5 -> 0 | J5: 0 | K5: =IFERROR(TBIn!E378,0) -> 0 | L5: =IFERROR(TBIn!E1776,0) -> 0 | M5: ='Page5cB&P'!L5-'Page5cB&P'!O5 -> 0 | N5: =L5-M5 -> 0 | O5: 0 | P5: 2 | Q5: 0 | R5: =IF(F5=0,0,IF(G5/F5>Q5,1,0)) -> 0 | S5: =IF(K5=0,0,IF(OR(L5<0,L5/K5>Q5),1,0)) -> 0 | T5: =IF(OR(F5<0,AND(G5>0,F5=0),AND(G5=0,F5>0)),1,0) -> 0 | U5: =IF(OR(K5<0,AND(L5>0,K5=0),AND(K5>0,L5=0)),1,0) -> 0
A6: 3 | C6: =OR_VEH!B105 -> NO UTILICE | E6: 402C | F6: =IFERROR(IF(Flag=TRUE,K6-TBIn!E379,TBIn!D379),0) -> 0 | G6: =IFERROR(IF(Flag=TRUE,L6-TBIn!E1777,TBIn!D1777),0) -> 0 | H6: ='Page5cB&P'!G6-'Page5cB&P'!J6 -> 0 | I6: 0 | J6: 0 | K6: =IFERROR(TBIn!E379,0) -> 0 | L6: =IFERROR(TBIn!E1777,0) -> 0 | M6: ='Page5cB&P'!L6-'Page5cB&P'!O6 -> 0 | N6: 0 | O6: 0 | P6: 3 | Q6: 0 | R6: 0 | S6: 0 | T6: 0 | U6: 0
A7: 4 | C7: =OR_VEH!B106 -> ATS | E7: 403C | F7: =IFERROR(IF(Flag=TRUE,K7-TBIn!E380,TBIn!D380),0) -> 0 | G7: =IFERROR(IF(Flag=TRUE,L7-TBIn!E1778,TBIn!D1778),0) -> 0 | H7: ='Page5cB&P'!G7-'Page5cB&P'!J7 -> 0 | I7: 0 | J7: 0 | K7: =IFERROR(TBIn!E380,0) -> 0 | L7: =IFERROR(TBIn!E1778,0) -> 0 | M7: ='Page5cB&P'!L7-'Page5cB&P'!O7 -> 0 | N7: 0 | O7: 0 | P7: 4 | Q7: 0 | R7: 0 | S7: 0 | T7: 0 | U7: 0
A8: 5 | C8: =OR_VEH!B107 -> NO UTILICE | E8: 404C | F8: =IFERROR(IF(Flag=TRUE,K8-TBIn!E381,TBIn!D381),0) -> 0 | G8: =IFERROR(IF(Flag=TRUE,L8-TBIn!E1779,TBIn!D1779),0) -> 0 | H8: ='Page5cB&P'!G8-'Page5cB&P'!J8 -> 0 | I8: 0 | J8: 0 | K8: =IFERROR(TBIn!E381,0) -> 0 | L8: =IFERROR(TBIn!E1779,0) -> 0 | M8: ='Page5cB&P'!L8-'Page5cB&P'!O8 -> 0 | N8: 0 | O8: 0 | P8: 5 | Q8: 0 | R8: 0 | S8: 0 | T8: 0 | U8: 0
A9: 6 | C9: =OR_VEH!B108 -> NO UTILICE | E9: 405C | F9: =IFERROR(IF(Flag=TRUE,K9-TBIn!E382,TBIn!D382),0) -> 0 | G9: =IFERROR(IF(Flag=TRUE,L9-TBIn!E1780,TBIn!D1780),0) -> 0 | H9: ='Page5cB&P'!G9-'Page5cB&P'!J9 -> 0 | I9: 0 | J9: 0 | K9: =IFERROR(TBIn!E382,0) -> 0 | L9: =IFERROR(TBIn!E1780,0) -> 0 | M9: ='Page5cB&P'!L9-'Page5cB&P'!O9 -> 0 | N9: 0 | O9: 0 | P9: 6 | Q9: 0 | R9: 0 | S9: 0 | T9: 0 | U9: 0
A10: 7 | C10: =OR_VEH!B109 -> NO UTILICE | E10: 406C | F10: =IFERROR(IF(Flag=TRUE,K10-TBIn!E383,TBIn!D383),0) -> 0 | G10: =IFERROR(IF(Flag=TRUE,L10-TBIn!E1781,TBIn!D1781),0) -> 0 | H10: ='Page5cB&P'!G10-'Page5cB&P'!J10 -> 0 | I10: 0 | J10: 0 | K10: =IFERROR(TBIn!E383,0) -> 0 | L10: =IFERROR(TBIn!E1781,0) -> 0 | M10: ='Page5cB&P'!L10-'Page5cB&P'!O10 -> 0 | N10: 0 | O10: 0 | P10: 7 | Q10: 0 | R10: 0 | S10: 0 | T10: 0 | U10: 0
A11: 8 | C11: =OR_VEH!B110 -> NO UTILICE | E11: 407C | F11: =IFERROR(IF(Flag=TRUE,K11-TBIn!E384,TBIn!D384),0) -> 0 | G11: =IFERROR(IF(Flag=TRUE,L11-TBIn!E1782,TBIn!D1782),0) -> 0 | H11: ='Page5cB&P'!G11-'Page5cB&P'!J11 -> 0 | I11: 0 | J11: 0 | K11: =IFERROR(TBIn!E384,0) -> 0 | L11: =IFERROR(TBIn!E1782,0) -> 0 | M11: ='Page5cB&P'!L11-'Page5cB&P'!O11 -> 0 | N11: 0 | O11: 0 | P11: 8 | Q11: 0 | R11: 0 | S11: 0 | T11: 0 | U11: 0
A12: 9 | C12: =OR_VEH!B111 -> NO UTILICE | E12: 408C | F12: =IFERROR(IF(Flag=TRUE,K12-TBIn!E385,TBIn!D385),0) -> 0 | G12: =IFERROR(IF(Flag=TRUE,L12-TBIn!E1783,TBIn!D1783),0) -> 0 | H12: ='Page5cB&P'!G12-'Page5cB&P'!J12 -> 0 | I12: 0 | J12: 0 | K12: =IFERROR(TBIn!E385,0) -> 0 | L12: =IFERROR(TBIn!E1783,0) -> 0 | M12: ='Page5cB&P'!L12-'Page5cB&P'!O12 -> 0 | N12: 0 | O12: 0 | P12: 9 | Q12: 0 | R12: 0 | S12: 0 | T12: 0 | U12: 0
A13: 10 | C13: =OR_VEH!B112 -> NO UTILICE | E13: 409C | F13: =IFERROR(IF(Flag=TRUE,K13-TBIn!E386,TBIn!D386),0) -> 0 | G13: =IFERROR(IF(Flag=TRUE,L13-TBIn!E1784,TBIn!D1784),0) -> 0 | H13: ='Page5cB&P'!G13-'Page5cB&P'!J13 -> 0 | I13: 0 | J13: 0 | K13: =IFERROR(TBIn!E386,0) -> 0 | L13: =IFERROR(TBIn!E1784,0) -> 0 | M13: ='Page5cB&P'!L13-'Page5cB&P'!O13 -> 0 | N13: 0 | O13: 0 | P13: 10 | Q13: 0 | R13: 0 | S13: 0 | T13: 0 | U13: 0
A14: 11 | C14: =OR_VEH!B113 -> NO UTILICE | E14: 410C | F14: =IFERROR(IF(Flag=TRUE,K14-TBIn!E387,TBIn!D387),0) -> 0 | G14: =IFERROR(IF(Flag=TRUE,L14-TBIn!E1785,TBIn!D1785),0) -> 0 | H14: ='Page5cB&P'!G14-'Page5cB&P'!J14 -> 0 | I14: 0 | J14: 0 | K14: =IFERROR(TBIn!E387,0) -> 0 | L14: =IFERROR(TBIn!E1785,0) -> 0 | M14: ='Page5cB&P'!L14-'Page5cB&P'!O14 -> 0 | N14: 0 | O14: 0 | P14: 11 | Q14: 0 | R14: 0 | S14: 0 | T14: 0 | U14: 0
A15: 12 | C15: =OR_VEH!B114 -> NO UTILICE | E15: 411C | F15: =IFERROR(IF(Flag=TRUE,K15-TBIn!E388,TBIn!D388),0) -> 0 | G15: =IFERROR(IF(Flag=TRUE,L15-TBIn!E1786,TBIn!D1786),0) -> 0 | H15: ='Page5cB&P'!G15-'Page5cB&P'!J15 -> 0 | I15: 0 | J15: 0 | K15: =IFERROR(TBIn!E388,0) -> 0 | L15: =IFERROR(TBIn!E1786,0) -> 0 | M15: ='Page5cB&P'!L15-'Page5cB&P'!O15 -> 0 | N15: 0 | O15: 0 | P15: 12 | Q15: 0 | R15: 0 | S15: 0 | T15: 0 | U15: 0
A16: 13 | C16: =OR_VEH!B115 -> NO UTILICE | E16: 412C | F16: =IFERROR(IF(Flag=TRUE,K16-TBIn!E389,TBIn!D389),0) -> 0 | G16: =IFERROR(IF(Flag=TRUE,L16-TBIn!E1787,TBIn!D1787),0) -> 0 | H16: ='Page5cB&P'!G16-'Page5cB&P'!J16 -> 0 | I16: 0 | J16: 0 | K16: =IFERROR(TBIn!E389,0) -> 0 | L16: =IFERROR(TBIn!E1787,0) -> 0 | M16: ='Page5cB&P'!L16-'Page5cB&P'!O16 -> 0 | N16: 0 | O16: 0 | P16: 13 | Q16: 0 | R16: 0 | S16: 0 | T16: 0 | U16: 0
A17: 14 | C17: =OR_VEH!B116 -> NO UTILICE | E17: 413C | F17: =IFERROR(IF(Flag=TRUE,K17-TBIn!E390,TBIn!D390),0) -> 0 | G17: =IFERROR(IF(Flag=TRUE,L17-TBIn!E1788,TBIn!D1788),0) -> 0 | H17: ='Page5cB&P'!G17-'Page5cB&P'!J17 -> 0 | I17: 0 | J17: 0 | K17: =IFERROR(TBIn!E390,0) -> 0 | L17: =IFERROR(TBIn!E1788,0) -> 0 | M17: ='Page5cB&P'!L17-'Page5cB&P'!O17 -> 0 | N17: 0 | O17: 0 | P17: 14 | Q17: 0 | R17: 0 | S17: 0 | T17: 0 | U17: 0
A18: 15 | C18: =OR_VEH!B117 -> NO UTILICE | E18: 414C | F18: =IFERROR(IF(Flag=TRUE,K18-TBIn!E391,TBIn!D391),0) -> 0 | G18: =IFERROR(IF(Flag=TRUE,L18-TBIn!E1789,TBIn!D1789),0) -> 0 | H18: ='Page5cB&P'!G18-'Page5cB&P'!J18 -> 0 | I18: 0 | J18: 0 | K18: =IFERROR(TBIn!E391,0) -> 0 | L18: =IFERROR(TBIn!E1789,0) -> 0 | M18: ='Page5cB&P'!L18-'Page5cB&P'!O18 -> 0 | N18: 0 | O18: 0 | P18: 15 | Q18: 0 | R18: 0 | S18: 0 | T18: 0 | U18: 0
A19: 16 | C19: =OR_VEH!B118 -> NO UTILICE | E19: 415C | F19: =IFERROR(IF(Flag=TRUE,K19-TBIn!E392,TBIn!D392),0) -> 0 | G19: =IFERROR(IF(Flag=TRUE,L19-TBIn!E1790,TBIn!D1790),0) -> 0 | H19: ='Page5cB&P'!G19-'Page5cB&P'!J19 -> 0 | I19: 0 | J19: 0 | K19: =IFERROR(TBIn!E392,0) -> 0 | L19: =IFERROR(TBIn!E1790,0) -> 0 | M19: ='Page5cB&P'!L19-'Page5cB&P'!O19 -> 0 | N19: 0 | O19: 0 | P19: 16 | Q19: 0 | R19: 0 | S19: 0 | T19: 0 | U19: 0
A20: 17 | C20: =OR_VEH!B119 -> NO UTILICE | E20: 416C | F20: =IFERROR(IF(Flag=TRUE,K20-TBIn!E393,TBIn!D393),0) -> 0 | G20: =IFERROR(IF(Flag=TRUE,L20-TBIn!E1791,TBIn!D1791),0) -> 0 | H20: ='Page5cB&P'!G20-'Page5cB&P'!J20 -> 0 | I20: 0 | J20: 0 | K20: =IFERROR(TBIn!E393,0) -> 0 | L20: =IFERROR(TBIn!E1791,0) -> 0 | M20: ='Page5cB&P'!L20-'Page5cB&P'!O20 -> 0 | N20: 0 | O20: 0 | P20: 17 | Q20: 0 | R20: 0 | S20: 0 | T20: 0 | U20: 0
A21: 18 | C21: =OR_VEH!B120 -> NO UTILICE | E21: 417C | F21: =IFERROR(IF(Flag=TRUE,K21-TBIn!E394,TBIn!D394),0) -> 0 | G21: =IFERROR(IF(Flag=TRUE,L21-TBIn!E1792,TBIn!D1792),0) -> 0 | H21: ='Page5cB&P'!G21-'Page5cB&P'!J21 -> 0 | I21: 0 | J21: 0 | K21: =IFERROR(TBIn!E394,0) -> 0 | L21: =IFERROR(TBIn!E1792,0) -> 0 | M21: ='Page5cB&P'!L21-'Page5cB&P'!O21 -> 0 | N21: 0 | O21: 0 | P21: 18 | Q21: 0 | R21: 0 | S21: 0 | T21: 0 | U21: 0
A22: 19 | C22: =OR_VEH!B121 -> OTROS AUTOS CADILLAC | E22: 418C | F22: =IFERROR(IF(Flag=TRUE,K22-TBIn!E395,TBIn!D395),0) -> 0 | G22: =IFERROR(IF(Flag=TRUE,L22-TBIn!E1793,TBIn!D1793),0) -> 0 | H22: ='Page5cB&P'!G22-'Page5cB&P'!J22 -> 0 | I22: 0 | J22: 0 | K22: =IFERROR(TBIn!E395,0) -> 0 | L22: =IFERROR(TBIn!E1793,0) -> 0 | M22: ='Page5cB&P'!L22-'Page5cB&P'!O22 -> 0 | N22: 0 | O22: 0 | P22: 19 | Q22: 0 | R22: 0 | S22: 0 | T22: 0 | U22: 0
A23: 20 | C23: TOTAL AUTOS NUEVOS MENUDEO | E23: (Lineas 1 a 19) | F23: ='Page5cB&P'!F23 -> 0 | G23: =SUM(G4:G22) -> 0 | H23: ='Page5cB&P'!G23-'Page5cB&P'!J23 -> 0 | I23: =SUM(I4:I22) -> 0 | J23: 0 | K23: ='Page5cB&P'!K23 -> 0 | L23: =SUM(L4:L22) -> 0 | M23: ='Page5cB&P'!L23-'Page5cB&P'!O23 -> 0 | N23: =SUM(N4:N22) -> 0 | O23: 0 | P23: 20
A24: 21 | C24: =OR_VEH!B123 -> NO UTILICE | E24: 419C | F24: ='Page5cB&P'!F24 -> 0 | G24: 0 | H24: ='Page5cB&P'!G24-'Page5cB&P'!J24 -> 0 | I24: 0 | J24: 0 | K24: ='Page5cB&P'!K24 -> 0 | L24: 0 | M24: ='Page5cB&P'!L24-'Page5cB&P'!O24 -> 0 | N24: 0 | O24: 0 | P24: 21 | Q24: 0 | R24: 0 | S24: =IF(K24=0,0,IF(OR(L24<0,L24/K24>Q24),1,0)) -> 0 | T24: =IF(OR(F24<0,AND(G24>0,F24=0),AND(G24=0,F24>0)),1,0) -> 0 | U24: =IF(OR(K24<0,AND(L24>0,K24=0),AND(K24>0,L24=0)),1,0) -> 0
A25: 22 | C25: =OR_VEH!B124 -> FLOTILLAS | E25: 420C | F25: =IFERROR(IF(Flag=TRUE,K25-TBIn!E397,TBIn!D397),0) -> 0 | G25: =IFERROR(IF(Flag=TRUE,L25-TBIn!E1794,TBIn!D1794),0) -> 0 | H25: ='Page5cB&P'!G25-'Page5cB&P'!J25 -> 0 | I25: =G25-H25 -> 0 | J25: 0 | K25: =IFERROR(TBIn!E397,0) -> 0 | L25: =IFERROR(TBIn!E1794,0) -> 0 | M25: ='Page5cB&P'!L25-'Page5cB&P'!O25 -> 0 | N25: =L25-M25 -> 0 | O25: 0 | P25: 22 | Q25: 0 | R25: 0 | S25: =IF(K25=0,0,IF(OR(L25<0,L25/K25>Q25),1,0)) -> 0 | T25: =IF(OR(F25<0,AND(G25>0,F25=0),AND(G25=0,F25>0)),1,0) -> 0 | U25: =IF(OR(K25<0,AND(L25>0,K25=0),AND(K25>0,L25=0)),1,0) -> 0
A26: 23 | C26: =OR_VEH!B125 -> INTERNAS | E26: 421C | F26: =IFERROR(IF(Flag=TRUE,K26-TBIn!E398,TBIn!D398),0) -> 0 | G26: =IFERROR(IF(Flag=TRUE,L26-TBIn!E1795,TBIn!D1795),0) -> 0 | H26: ='Page5cB&P'!G26-'Page5cB&P'!J26 -> 0 | I26: =G26-H26 -> 0 | J26: 0 | K26: =IFERROR(TBIn!E398,0) -> 0 | L26: =IFERROR(TBIn!E1795,0) -> 0 | M26: ='Page5cB&P'!L26-'Page5cB&P'!O26 -> 0 | N26: =L26-M26 -> 0 | O26: 0 | P26: 23 | Q26: 0 | R26: 0 | S26: =IF(K26=0,0,IF(OR(L26<0,L26/K26>Q26),1,0)) -> 0 | T26: =IF(OR(F26<0,AND(G26>0,F26=0),AND(G26=0,F26>0)),1,0) -> 0 | U26: =IF(OR(K26<0,AND(L26>0,K26=0),AND(K26>0,L26=0)),1,0) -> 0
A27: 24 | C27: TOTAL AUTOS NUEVOS | E27: (Lineas 20 a 23) | F27: ='Page5cB&P'!F27 -> 0 | G27: =SUM(G23:G26) -> 0 | H27: ='Page5cB&P'!G27-'Page5cB&P'!J27 -> 0 | I27: =SUM(I23:I26) -> 0 | J27: 0 | K27: ='Page5cB&P'!K27 -> 0 | L27: =SUM(L23:L26) -> 0 | M27: ='Page5cB&P'!L27-'Page5cB&P'!O27 -> 0 | N27: =SUM(N23:N26) -> 0 | O27: 0 | P27: 24
A28: 25 | B28: VENTAS DE COM. Y CAM. NUEVOS | C28: =OR_VEH!B127 -> ESCALADE SUV | E28: 423C | F28: =IFERROR(IF(Flag=TRUE,K28-TBIn!E399,TBIn!D399),0) -> 0 | G28: =IFERROR(IF(Flag=TRUE,L28-TBIn!E1796,TBIn!D1796),0) -> 0 | H28: ='Page5cB&P'!G28-'Page5cB&P'!J28 -> 0 | I28: =G28-H28 -> 0 | J28: 0 | K28: =IFERROR(TBIn!E399,0) -> 0 | L28: =IFERROR(TBIn!E1796,0) -> 0 | M28: ='Page5cB&P'!L28-'Page5cB&P'!O28 -> 0 | N28: =L28-M28 -> 0 | O28: 0 | P28: 25 | Q28: 0 | R28: 0 | S28: =IF(K28=0,0,IF(OR(L28<0,L28/K28>Q28),1,0)) -> 0 | T28: =IF(OR(F28<0,AND(G28>0,F28=0),AND(G28=0,F28>0)),1,0) -> 0 | U28: =IF(OR(K28<0,AND(L28>0,K28=0),AND(K28>0,L28=0)),1,0) -> 0
A29: 26 | C29: =OR_VEH!B128 -> ESCALADE ESV | E29: 424C | F29: =IFERROR(IF(Flag=TRUE,K29-TBIn!E400,TBIn!D400),0) -> 0 | G29: =IFERROR(IF(Flag=TRUE,L29-TBIn!E1797,TBIn!D1797),0) -> 0 | H29: ='Page5cB&P'!G29-'Page5cB&P'!J29 -> 0 | I29: 0 | J29: 0 | K29: =IFERROR(TBIn!E400,0) -> 0 | L29: =IFERROR(TBIn!E1797,0) -> 0 | M29: ='Page5cB&P'!L29-'Page5cB&P'!O29 -> 0 | N29: 0 | O29: 0 | P29: 26 | Q29: 0 | R29: 0 | S29: 0 | T29: 0 | U29: 0
A30: 27 | C30: =OR_VEH!B129 -> ESCALADE EXT | E30: 425C | F30: =IFERROR(IF(Flag=TRUE,K30-TBIn!E401,TBIn!D401),0) -> 0 | G30: =IFERROR(IF(Flag=TRUE,L30-TBIn!E1798,TBIn!D1798),0) -> 0 | H30: ='Page5cB&P'!G30-'Page5cB&P'!J30 -> 0 | I30: 0 | J30: 0 | K30: =IFERROR(TBIn!E401,0) -> 0 | L30: =IFERROR(TBIn!E1798,0) -> 0 | M30: ='Page5cB&P'!L30-'Page5cB&P'!O30 -> 0 | N30: 0 | O30: 0 | P30: 27 | Q30: 0 | R30: 0 | S30: 0 | T30: 0 | U30: 0
A31: 28 | C31: =OR_VEH!B130 -> SRX | E31: 426C | F31: =IFERROR(IF(Flag=TRUE,K31-TBIn!E402,TBIn!D402),0) -> 0 | G31: =IFERROR(IF(Flag=TRUE,L31-TBIn!E1799,TBIn!D1799),0) -> 0 | H31: ='Page5cB&P'!G31-'Page5cB&P'!J31 -> 0 | I31: 0 | J31: 0 | K31: =IFERROR(TBIn!E402,0) -> 0 | L31: =IFERROR(TBIn!E1799,0) -> 0 | M31: ='Page5cB&P'!L31-'Page5cB&P'!O31 -> 0 | N31: 0 | O31: 0 | P31: 28 | Q31: 0 | R31: 0 | S31: 0 | T31: 0 | U31: 0
A32: 29 | C32: =OR_VEH!B131 -> CADILLAC XT5 | E32: 427C | F32: =IFERROR(IF(Flag=TRUE,K32-TBIn!E403,TBIn!D403),0) -> 0 | G32: =IFERROR(IF(Flag=TRUE,L32-TBIn!E1800,TBIn!D1800),0) -> 0 | H32: ='Page5cB&P'!G32-'Page5cB&P'!J32 -> 0 | I32: 0 | J32: 0 | K32: =IFERROR(TBIn!E403,0) -> 0 | L32: =IFERROR(TBIn!E1800,0) -> 0 | M32: ='Page5cB&P'!L32-'Page5cB&P'!O32 -> 0 | N32: 0 | O32: 0 | P32: 29 | Q32: 0 | R32: 0 | S32: 0 | T32: 0 | U32: 0
A33: 30 | C33: =OR_VEH!B132 -> NO UTILICE | E33: 428C | F33: =IFERROR(IF(Flag=TRUE,K33-TBIn!E404,TBIn!D404),0) -> 0 | G33: =IFERROR(IF(Flag=TRUE,L33-TBIn!E1801,TBIn!D1801),0) -> 0 | H33: ='Page5cB&P'!G33-'Page5cB&P'!J33 -> 0 | I33: 0 | J33: 0 | K33: =IFERROR(TBIn!E404,0) -> 0 | L33: =IFERROR(TBIn!E1801,0) -> 0 | M33: ='Page5cB&P'!L33-'Page5cB&P'!O33 -> 0 | N33: 0 | O33: 0 | P33: 30 | Q33: 0 | R33: 0 | S33: 0 | T33: 0 | U33: 0
A34: 31 | C34: =OR_VEH!B133 -> NO UTILICE | E34: 429C | F34: =IFERROR(IF(Flag=TRUE,K34-TBIn!E405,TBIn!D405),0) -> 0 | G34: =IFERROR(IF(Flag=TRUE,L34-TBIn!E1802,TBIn!D1802),0) -> 0 | H34: ='Page5cB&P'!G34-'Page5cB&P'!J34 -> 0 | I34: 0 | J34: 0 | K34: =IFERROR(TBIn!E405,0) -> 0 | L34: =IFERROR(TBIn!E1802,0) -> 0 | M34: ='Page5cB&P'!L34-'Page5cB&P'!O34 -> 0 | N34: 0 | O34: 0 | P34: 31 | Q34: 0 | R34: 0 | S34: 0 | T34: 0 | U34: 0
A35: 32 | C35: =OR_VEH!B134 -> NO UTILICE | E35: 430C | F35: =IFERROR(IF(Flag=TRUE,K35-TBIn!E406,TBIn!D406),0) -> 0 | G35: =IFERROR(IF(Flag=TRUE,L35-TBIn!E1803,TBIn!D1803),0) -> 0 | H35: ='Page5cB&P'!G35-'Page5cB&P'!J35 -> 0 | I35: 0 | J35: 0 | K35: =IFERROR(TBIn!E406,0) -> 0 | L35: =IFERROR(TBIn!E1803,0) -> 0 | M35: ='Page5cB&P'!L35-'Page5cB&P'!O35 -> 0 | N35: 0 | O35: 0 | P35: 32 | Q35: 0 | R35: 0 | S35: 0 | T35: 0 | U35: 0
A36: 33 | C36: =OR_VEH!B135 -> NO UTILICE | E36: 431C | F36: =IFERROR(IF(Flag=TRUE,K36-TBIn!E407,TBIn!D407),0) -> 0 | G36: =IFERROR(IF(Flag=TRUE,L36-TBIn!E1804,TBIn!D1804),0) -> 0 | H36: ='Page5cB&P'!G36-'Page5cB&P'!J36 -> 0 | I36: 0 | J36: 0 | K36: =IFERROR(TBIn!E407,0) -> 0 | L36: =IFERROR(TBIn!E1804,0) -> 0 | M36: ='Page5cB&P'!L36-'Page5cB&P'!O36 -> 0 | N36: 0 | O36: 0 | P36: 33 | Q36: 0 | R36: 0 | S36: 0 | T36: 0 | U36: 0
A37: 34 | C37: =OR_VEH!B136 -> NO UTILICE | E37: 432C | F37: =IFERROR(IF(Flag=TRUE,K37-TBIn!E408,TBIn!D408),0) -> 0 | G37: =IFERROR(IF(Flag=TRUE,L37-TBIn!E1805,TBIn!D1805),0) -> 0 | H37: ='Page5cB&P'!G37-'Page5cB&P'!J37 -> 0 | I37: 0 | J37: 0 | K37: =IFERROR(TBIn!E408,0) -> 0 | L37: =IFERROR(TBIn!E1805,0) -> 0 | M37: ='Page5cB&P'!L37-'Page5cB&P'!O37 -> 0 | N37: 0 | O37: 0 | P37: 34 | Q37: 0 | R37: 0 | S37: 0 | T37: 0 | U37: 0
A38: 35 | C38: =OR_VEH!B137 -> NO UTILICE | E38: 433C | F38: =IFERROR(IF(Flag=TRUE,K38-TBIn!E409,TBIn!D409),0) -> 0 | G38: =IFERROR(IF(Flag=TRUE,L38-TBIn!E1806,TBIn!D1806),0) -> 0 | H38: ='Page5cB&P'!G38-'Page5cB&P'!J38 -> 0 | I38: 0 | J38: 0 | K38: =IFERROR(TBIn!E409,0) -> 0 | L38: =IFERROR(TBIn!E1806,0) -> 0 | M38: ='Page5cB&P'!L38-'Page5cB&P'!O38 -> 0 | N38: 0 | O38: 0 | P38: 35 | Q38: 0 | R38: 0 | S38: 0 | T38: 0 | U38: 0
A39: 36 | C39: =OR_VEH!B138 -> NO UTILICE | E39: 434C | F39: =IFERROR(IF(Flag=TRUE,K39-TBIn!E410,TBIn!D410),0) -> 0 | G39: =IFERROR(IF(Flag=TRUE,L39-TBIn!E1807,TBIn!D1807),0) -> 0 | H39: ='Page5cB&P'!G39-'Page5cB&P'!J39 -> 0 | I39: 0 | J39: 0 | K39: =IFERROR(TBIn!E410,0) -> 0 | L39: =IFERROR(TBIn!E1807,0) -> 0 | M39: ='Page5cB&P'!L39-'Page5cB&P'!O39 -> 0 | N39: 0 | O39: 0 | P39: 36 | Q39: 0 | R39: 0 | S39: 0 | T39: 0 | U39: 0
A40: 37 | C40: =OR_VEH!B139 -> NO UTILICE | E40: 435C | F40: =IFERROR(IF(Flag=TRUE,K40-TBIn!E411,TBIn!D411),0) -> 0 | G40: =IFERROR(IF(Flag=TRUE,L40-TBIn!E1808,TBIn!D1808),0) -> 0 | H40: ='Page5cB&P'!G40-'Page5cB&P'!J40 -> 0 | I40: 0 | J40: 0 | K40: =IFERROR(TBIn!E411,0) -> 0 | L40: =IFERROR(TBIn!E1808,0) -> 0 | M40: ='Page5cB&P'!L40-'Page5cB&P'!O40 -> 0 | N40: 0 | O40: 0 | P40: 37 | Q40: 0 | R40: 0 | S40: 0 | T40: 0 | U40: 0
A41: 38 | C41: =OR_VEH!B140 -> NO UTILICE | E41: 436C | F41: =IFERROR(IF(Flag=TRUE,K41-TBIn!E412,TBIn!D412),0) -> 0 | G41: =IFERROR(IF(Flag=TRUE,L41-TBIn!E1809,TBIn!D1809),0) -> 0 | H41: ='Page5cB&P'!G41-'Page5cB&P'!J41 -> 0 | I41: 0 | J41: 0 | K41: =IFERROR(TBIn!E412,0) -> 0 | L41: =IFERROR(TBIn!E1809,0) -> 0 | M41: ='Page5cB&P'!L41-'Page5cB&P'!O41 -> 0 | N41: 0 | O41: 0 | P41: 38 | Q41: 0 | R41: 0 | S41: 0 | T41: 0 | U41: 0
A42: 39 | C42: =OR_VEH!B141 -> NO UTILICE | E42: 437C | F42: =IFERROR(IF(Flag=TRUE,K42-TBIn!E413,TBIn!D413),0) -> 0 | G42: =IFERROR(IF(Flag=TRUE,L42-TBIn!E1810,TBIn!D1810),0) -> 0 | H42: ='Page5cB&P'!G42-'Page5cB&P'!J42 -> 0 | I42: 0 | J42: 0 | K42: =IFERROR(TBIn!E413,0) -> 0 | L42: =IFERROR(TBIn!E1810,0) -> 0 | M42: ='Page5cB&P'!L42-'Page5cB&P'!O42 -> 0 | N42: 0 | O42: 0 | P42: 39 | Q42: 0 | R42: 0 | S42: 0 | T42: 0 | U42: 0
A43: 40 | C43: =OR_VEH!B142 -> OTROS COM. CADILLAC | E43: 438C | F43: =IFERROR(IF(Flag=TRUE,K43-TBIn!E414,TBIn!D414),0) -> 0 | G43: =IFERROR(IF(Flag=TRUE,L43-TBIn!E1811,TBIn!D1811),0) -> 0 | H43: ='Page5cB&P'!G43-'Page5cB&P'!J43 -> 0 | I43: 0 | J43: 0 | K43: =IFERROR(TBIn!E414,0) -> 0 | L43: =IFERROR(TBIn!E1811,0) -> 0 | M43: ='Page5cB&P'!L43-'Page5cB&P'!O43 -> 0 | N43: 0 | O43: 0 | P43: 40 | Q43: 0 | R43: 0 | S43: 0 | T43: 0 | U43: 0
A44: 41 | C44: TOTAL COM. Y CAM. NUEVOS MENUDEO | E44: (Lineas 25 a 40) | F44: ='Page5cB&P'!F44 -> 0 | G44: =SUM(G28:G43) -> 0 | H44: ='Page5cB&P'!G44-'Page5cB&P'!J44 -> 0 | I44: =SUM(I28:I43) -> 0 | J44: 0 | K44: ='Page5cB&P'!K44 -> 0 | L44: =SUM(L28:L43) -> 0 | M44: ='Page5cB&P'!L44-'Page5cB&P'!O44 -> 0 | N44: =SUM(N28:N43) -> 0 | O44: 0 | P44: 41
A45: 42 | C45: =OR_VEH!B144 -> NO UTILICE | E45: 439C | F45: ='Page5cB&P'!F45 -> 0 | G45: 0 | H45: ='Page5cB&P'!G45-'Page5cB&P'!J45 -> 0 | I45: 0 | J45: 0 | K45: ='Page5cB&P'!K45 -> 0 | L45: 0 | M45: ='Page5cB&P'!L45-'Page5cB&P'!O45 -> 0 | N45: 0 | O45: 0 | P45: 42 | Q45: 0 | R45: 0 | S45: =IF(K45=0,0,IF(OR(L45<0,L45/K45>Q45),1,0)) -> 0 | T45: =IF(OR(F45<0,AND(G45>0,F45=0),AND(G45=0,F45>0)),1,0) -> 0 | U45: =IF(OR(K45<0,AND(L45>0,K45=0),AND(K45>0,L45=0)),1,0) -> 0
A46: 43 | C46: =OR_VEH!B145 -> FLOTILLAS | E46: 440C | F46: =IFERROR(IF(Flag=TRUE,K46-TBIn!E416,TBIn!D416),0) -> 0 | G46: =IFERROR(IF(Flag=TRUE,L46-TBIn!E1812,TBIn!D1812),0) -> 0 | H46: ='Page5cB&P'!G46-'Page5cB&P'!J46 -> 0 | I46: =G46-H46 -> 0 | J46: 0 | K46: =IFERROR(TBIn!E416,0) -> 0 | L46: =IFERROR(TBIn!E1812,0) -> 0 | M46: ='Page5cB&P'!L46-'Page5cB&P'!O46 -> 0 | N46: =L46-M46 -> 0 | O46: 0 | P46: 43 | Q46: 0 | R46: 0 | S46: =IF(K46=0,0,IF(OR(L46<0,L46/K46>Q46),1,0)) -> 0 | T46: =IF(OR(F46<0,AND(G46>0,F46=0),AND(G46=0,F46>0)),1,0) -> 0 | U46: =IF(OR(K46<0,AND(L46>0,K46=0),AND(K46>0,L46=0)),1,0) -> 0
A47: 44 | C47: =OR_VEH!B146 -> INTERNAS | E47: 441C | F47: =IFERROR(IF(Flag=TRUE,K47-TBIn!E417,TBIn!D417),0) -> 0 | G47: =IFERROR(IF(Flag=TRUE,L47-TBIn!E1813,TBIn!D1813),0) -> 0 | H47: ='Page5cB&P'!G47-'Page5cB&P'!J47 -> 0 | I47: =G47-H47 -> 0 | J47: 0 | K47: =IFERROR(TBIn!E417,0) -> 0 | L47: =IFERROR(TBIn!E1813,0) -> 0 | M47: ='Page5cB&P'!L47-'Page5cB&P'!O47 -> 0 | N47: =L47-M47 -> 0 | O47: 0 | P47: 44 | Q47: 0 | R47: 0 | S47: =IF(K47=0,0,IF(OR(L47<0,L47/K47>Q47),1,0)) -> 0 | T47: =IF(OR(F47<0,AND(G47>0,F47=0),AND(G47=0,F47>0)),1,0) -> 0 | U47: =IF(OR(K47<0,AND(L47>0,K47=0),AND(K47>0,L47=0)),1,0) -> 0
A48: 45 | C48: TOTAL COM. Y CAM. NUEVOS | E48: (Lineas 41 a 44) | F48: =SUM(F44:F47) -> 0 | G48: =SUM(G44:G47) -> 0 | H48: =SUM(H44:H47) -> 0 | I48: =SUM(I44:I47) -> 0 | J48: 0 | K48: ='Page5cB&P'!K48 -> 0 | L48: =SUM(L44:L47) -> 0 | M48: ='Page5cB&P'!L48-'Page5cB&P'!O48 -> 0 | N48: =SUM(N44:N47) -> 0 | O48: 0 | P48: 45
A49: 46 | C49: =OR_VEH!B148 -> NO UTILICE | E49: =IF(C49<>"--------","445C","") -> 445C | P49: 46 | Q49: 0 | R49: =IF(F49=0,0,IF(G49/F49>Q49,1,0)) -> 0 | S49: =IF(K49=0,0,IF(OR(L49<0,L49/K49>Q49),1,0)) -> 0 | T49: =IF(OR(F49<0,AND(G49>0,F49=0),AND(G49=0,F49>0)),1,0) -> 0 | U49: =IF(OR(K49<0,AND(L49>0,K49=0),AND(K49>0,L49=0)),1,0) -> 0
A50: 47 | C50: =OR_VEH!B149 -> VENTA DE ACCESORIOS PARA VEHÍCULOS LISTADOS EN ESTA PAGINA | E50: 457C | F50: =IFERROR(IF(Flag=TRUE,K50-TBIn!E418,TBIn!D418),0) -> 0 | G50: =IFERROR(IF(Flag=TRUE,L50-TBIn!E1814,TBIn!D1814),0) -> 0 | H50: ='Page5cB&P'!G50 -> 0 | I50: =G50-H50 -> 0 | J50: =IFERROR(I50/F$51,0) -> 0 | K50: =IFERROR(TBIn!E418,0) -> 0 | L50: =IFERROR(TBIn!E1814,0) -> 0 | M50: ='Page5cB&P'!L50 -> 0 | N50: =L50-M50 -> 0 | O50: =IFERROR(N50/K$51,0) -> 0 | P50: 47 | Q50: 0 | R50: 0 | S50: =IF(K50=0,0,IF(OR(L50<0,L50/K50>Q50),1,0)) -> 0 | T50: =IF(OR(F50<0,AND(G50>0,F50=0),AND(G50=0,F50>0)),1,0) -> 0 | U50: =IF(OR(K50<0,AND(L50>0,K50=0),AND(K50>0,L50=0)),1,0) -> 0
A51: 48 | C51: TOTAL VEHICULOS NUEVOS | F51: =IFERROR(IF(Flag=TRUE,F27+F48,TBIn!D419),0) -> 0 | G51: =G27+G48+G50 -> 0 | H51: =H27+H48+H50 -> 0 | I51: =IFERROR(IF(Flag=TRUE,I27+I48+I49+I50,TBIn!D1855),0) -> 0 | J51: =IFERROR(I51/F$51,0) -> 0 | K51: =IFERROR(IF(Flag=TRUE,K27+K48,TBIn!E419),0) -> 0 | L51: =L27+L48+L50 -> 0 | M51: =M27+M48+M50 -> 0 | N51: =IFERROR(IF(Flag=TRUE,N27+N48+N49+N50,TBIn!E1855),0) -> 0 | O51: =IFERROR(N51/K$51,0) -> 0 | P51: 48
J52: PUNV | O52: PUNV

Sheet Page5cB&P
B1: =OR_VEH!B102 -> CADILLAC | H1: VEHICULOS NUEVOS - BONIFICACIONES Y PREMIOS | P1: =TBIn!$E$2591&" - "&TBIn!$AH$10&" - PAGINA 5cB&P" -> 122112 - 201801 - PAGINA 5cB&P | Q1: Per Unit | R1: Month | S1: YTD | T1: Month | U1: YTD
A2: Lin | H2: MES | L2: AÑO A LA FECHA | Q2: Sales | R2: Sales | S2: Sales | T2: Unit | U2: Unit
A3: NO. | E3: CTA. | F3: UNIDADES VENDIDAS | G3: FACTURA GM (CDO) | H3: BONIFICACIÓN | I3: PREMIOS | J3: BONIFIACION Y PREMIOS | K3: UNIDADES VENDIDAS | L3: FACTURA GM (CDO) | M3: BONIFICACIÓN | N3: PREMIOS | O3: BONIFIACION Y PREMIOS | P3: NO. | Q3: Max | R3: Flag | S3: Flag | T3: Flag | U3: Flag | V3: ACC.
A4: 1 | B4: VENTAS D E AUTOS NUEVOS | C4: =OR_VEH!B103 -> NO UTILICE | E4: 400C | F4: =Page5c!F4 -> 0 | G4: =IFERROR(IF(Flag=TRUE,L4-TBIn!E1815,TBIn!D1815),0) -> 0 | H4: =IFERROR(IF(Flag=TRUE,M4-TBIn!E461,TBIn!D461),0) -> 0 | I4: =IFERROR(IF(Flag=TRUE,N4-TBIn!E420,TBIn!D420),0) -> 0 | J4: =H4+I4 -> 0 | K4: =Page5c!K4 -> 0 | L4: =IFERROR(TBIn!E1815,0) -> 0 | M4: =IFERROR(TBIn!E461,0) -> 0 | N4: =IFERROR(TBIn!E420,0) -> 0 | O4: =M4+N4 -> 0 | P4: 1 | Q4: 50000 | R4: 0 | S4: 0 | T4: 0 | U4: 0 | V4: #REF!
A5: 2 | C5: =OR_VEH!B104 -> CTS | E5: 401C | F5: =Page5c!F5 -> 0 | G5: =IFERROR(IF(Flag=TRUE,L5-TBIn!E1816,TBIn!D1816),0) -> 0 | H5: =IFERROR(IF(Flag=TRUE,M5-TBIn!E462,TBIn!D462),0) -> 0 | I5: =IFERROR(IF(Flag=TRUE,N5-TBIn!E421,TBIn!D421),0) -> 0 | J5: =H5+I5 -> 0 | K5: =Page5c!K5 -> 0 | L5: =IFERROR(TBIn!E1816,0) -> 0 | M5: =IFERROR(TBIn!E462,0) -> 0 | N5: =IFERROR(TBIn!E421,0) -> 0 | O5: =M5+N5 -> 0 | P5: 2 | Q5: 50000 | R5: 0 | S5: 0 | T5: 0 | U5: 0 | V5: #REF!
A6: 3 | C6: =OR_VEH!B105 -> NO UTILICE | E6: 402C | F6: =Page5c!F6 -> 0 | G6: =IFERROR(IF(Flag=TRUE,L6-TBIn!E1817,TBIn!D1817),0) -> 0 | H6: =IFERROR(IF(Flag=TRUE,M6-TBIn!E463,TBIn!D463),0) -> 0 | I6: =IFERROR(IF(Flag=TRUE,N6-TBIn!E422,TBIn!D422),0) -> 0 | J6: 0 | K6: =Page5c!K6 -> 0 | L6: =IFERROR(TBIn!E1817,0) -> 0 | M6: =IFERROR(TBIn!E463,0) -> 0 | N6: =IFERROR(TBIn!E422,0) -> 0 | O6: 0 | P6: 3 | Q6: 50000 | R6: 0 | S6: 0 | T6: 0 | U6: 0 | V6: #REF!
A7: 4 | C7: =OR_VEH!B106 -> ATS | E7: 403C | F7: =Page5c!F7 -> 0 | G7: =IFERROR(IF(Flag=TRUE,L7-TBIn!E1818,TBIn!D1818),0) -> 0 | H7: =IFERROR(IF(Flag=TRUE,M7-TBIn!E464,TBIn!D464),0) -> 0 | I7: =IFERROR(IF(Flag=TRUE,N7-TBIn!E423,TBIn!D423),0) -> 0 | J7: 0 | K7: =Page5c!K7 -> 0 | L7: =IFERROR(TBIn!E1818,0) -> 0 | M7: =IFERROR(TBIn!E464,0) -> 0 | N7: =IFERROR(TBIn!E423,0) -> 0 | O7: 0 | P7: 4 | Q7: 50000 | R7: 0 | S7: 0 | T7: 0 | U7: 0 | V7: #REF!
A8: 5 | C8: =OR_VEH!B107 -> NO UTILICE | E8: 404C | F8: =Page5c!F8 -> 0 | G8: =IFERROR(IF(Flag=TRUE,L8-TBIn!E1819,TBIn!D1819),0) -> 0 | H8: =IFERROR(IF(Flag=TRUE,M8-TBIn!E465,TBIn!D465),0) -> 0 | I8: =IFERROR(IF(Flag=TRUE,N8-TBIn!E424,TBIn!D424),0) -> 0 | J8: 0 | K8: =Page5c!K8 -> 0 | L8: =IFERROR(TBIn!E1819,0) -> 0 | M8: =IFERROR(TBIn!E465,0) -> 0 | N8: =IFERROR(TBIn!E424,0) -> 0 | O8: 0 | P8: 5 | T8: 0 | U8: 0 | V8: #REF!
A9: 6 | C9: =OR_VEH!B108 -> NO UTILICE | E9: 405C | F9: =Page5c!F9 -> 0 | G9: =IFERROR(IF(Flag=TRUE,L9-TBIn!E1820,TBIn!D1820),0) -> 0 | H9: =IFERROR(IF(Flag=TRUE,M9-TBIn!E466,TBIn!D466),0) -> 0 | I9: =IFERROR(IF(Flag=TRUE,N9-TBIn!E425,TBIn!D425),0) -> 0 | J9: 0 | K9: =Page5c!K9 -> 0 | L9: =IFERROR(TBIn!E1820,0) -> 0 | M9: =IFERROR(TBIn!E466,0) -> 0 | N9: =IFERROR(TBIn!E425,0) -> 0 | O9: 0 | P9: 6 | Q9: 50000 | R9: 0 | S9: 0 | T9: 0 | U9: 0 | V9: #REF!
A10: 7 | C10: =OR_VEH!B109 -> NO UTILICE | E10: 406C | F10: =Page5c!F10 -> 0 | G10: =IFERROR(IF(Flag=TRUE,L10-TBIn!E1821,TBIn!D1821),0) -> 0 | H10: =IFERROR(IF(Flag=TRUE,M10-TBIn!E467,TBIn!D467),0) -> 0 | I10: =IFERROR(IF(Flag=TRUE,N10-TBIn!E426,TBIn!D426),0) -> 0 | J10: 0 | K10: =Page5c!K10 -> 0 | L10: =IFERROR(TBIn!E1821,0) -> 0 | M10: =IFERROR(TBIn!E467,0) -> 0 | N10: =IFERROR(TBIn!E426,0) -> 0 | O10: 0 | P10: 7 | Q10: 50000 | R10: 0 | S10: 0 | T10: 0 | U10: 0 | V10: #REF!
A11: 8 | C11: =OR_VEH!B110 -> NO UTILICE | E11: 407C | F11: =Page5c!F11 -> 0 | G11: =IFERROR(IF(Flag=TRUE,L11-TBIn!E1822,TBIn!D1822),0) -> 0 | H11: =IFERROR(IF(Flag=TRUE,M11-TBIn!E468,TBIn!D468),0) -> 0 | I11: =IFERROR(IF(Flag=TRUE,N11-TBIn!E427,TBIn!D427),0) -> 0 | J11: 0 | K11: =Page5c!K11 -> 0 | L11: =IFERROR(TBIn!E1822,0) -> 0 | M11: =IFERROR(TBIn!E468,0) -> 0 | N11: =IFERROR(TBIn!E427,0) -> 0 | O11: 0 | P11: 8 | Q11: 50000 | R11: 0 | S11: 0 | T11: 0 | U11: 0 | V11: #REF!
A12: 9 | C12: =OR_VEH!B111 -> NO UTILICE | E12: 408C | F12: =Page5c!F12 -> 0 | G12: =IFERROR(IF(Flag=TRUE,L12-TBIn!E1823,TBIn!D1823),0) -> 0 | H12: =IFERROR(IF(Flag=TRUE,M12-TBIn!E469,TBIn!D469),0) -> 0 | I12: =IFERROR(IF(Flag=TRUE,N12-TBIn!E428,TBIn!D428),0) -> 0 | J12: 0 | K12: =Page5c!K12 -> 0 | L12: =IFERROR(TBIn!E1823,0) -> 0 | M12: =IFERROR(TBIn!E469,0) -> 0 | N12: =IFERROR(TBIn!E428,0) -> 0 | O12: 0 | P12: 9 | Q12: 50000 | R12: 0 | S12: 0 | T12: 0 | U12: 0 | V12: #REF!
A13: 10 | C13: =OR_VEH!B112 -> NO UTILICE | E13: 409C | F13: =Page5c!F13 -> 0 | G13: =IFERROR(IF(Flag=TRUE,L13-TBIn!E1824,TBIn!D1824),0) -> 0 | H13: =IFERROR(IF(Flag=TRUE,M13-TBIn!E470,TBIn!D470),0) -> 0 | I13: =IFERROR(IF(Flag=TRUE,N13-TBIn!E429,TBIn!D429),0) -> 0 | J13: 0 | K13: =Page5c!K13 -> 0 | L13: =IFERROR(TBIn!E1824,0) -> 0 | M13: =IFERROR(TBIn!E470,0) -> 0 | N13: =IFERROR(TBIn!E429,0) -> 0 | O13: 0 | P13: 10 | Q13: 50000 | R13: 0 | S13: 0 | T13: 0 | U13: 0 | V13: #REF!
A14: 11 | C14: =OR_VEH!B113 -> NO UTILICE | E14: 410C | F14: =Page5c!F14 -> 0 | G14: =IFERROR(IF(Flag=TRUE,L14-TBIn!E1825,TBIn!D1825),0) -> 0 | H14: =IFERROR(IF(Flag=TRUE,M14-TBIn!E471,TBIn!D471),0) -> 0 | I14: =IFERROR(IF(Flag=TRUE,N14-TBIn!E430,TBIn!D430),0) -> 0 | J14: 0 | K14: =Page5c!K14 -> 0 | L14: =IFERROR(TBIn!E1825,0) -> 0 | M14: =IFERROR(TBIn!E471,0) -> 0 | N14: =IFERROR(TBIn!E430,0) -> 0 | O14: 0 | P14: 11 | Q14: 50000 | R14: 0 | S14: 0 | T14: 0 | U14: 0 | V14: #REF!
A15: 12 | C15: =OR_VEH!B114 -> NO UTILICE | E15: 411C | F15: =Page5c!F15 -> 0 | G15: =IFERROR(IF(Flag=TRUE,L15-TBIn!E1826,TBIn!D1826),0) -> 0 | H15: =IFERROR(IF(Flag=TRUE,M15-TBIn!E472,TBIn!D472),0) -> 0 | I15: =IFERROR(IF(Flag=TRUE,N15-TBIn!E431,TBIn!D431),0) -> 0 | J15: 0 | K15: =Page5c!K15 -> 0 | L15: =IFERROR(TBIn!E1826,0) -> 0 | M15: =IFERROR(TBIn!E472,0) -> 0 | N15: =IFERROR(TBIn!E431,0) -> 0 | O15: 0 | P15: 12 | Q15: 50000 | R15: 0 | S15: 0 | T15: 0 | U15: 0 | V15: #REF!
A16: 13 | C16: =OR_VEH!B115 -> NO UTILICE | E16: 412C | F16: =Page5c!F16 -> 0 | G16: =IFERROR(IF(Flag=TRUE,L16-TBIn!E1827,TBIn!D1827),0) -> 0 | H16: =IFERROR(IF(Flag=TRUE,M16-TBIn!E473,TBIn!D473),0) -> 0 | I16: =IFERROR(IF(Flag=TRUE,N16-TBIn!E432,TBIn!D432),0) -> 0 | J16: 0 | K16: =Page5c!K16 -> 0 | L16: =IFERROR(TBIn!E1827,0) -> 0 | M16: =IFERROR(TBIn!E473,0) -> 0 | N16: =IFERROR(TBIn!E432,0) -> 0 | O16: 0 | P16: 13 | Q16: 50000 | R16: 0 | S16: 0 | T16: 0 | U16: 0 | V16: #REF!
A17: 14 | C17: =OR_VEH!B116 -> NO UTILICE | E17: 413C | F17: =Page5c!F17 -> 0 | G17: =IFERROR(IF(Flag=TRUE,L17-TBIn!E1828,TBIn!D1828),0) -> 0 | H17: =IFERROR(IF(Flag=TRUE,M17-TBIn!E474,TBIn!D474),0) -> 0 | I17: =IFERROR(IF(Flag=TRUE,N17-TBIn!E433,TBIn!D433),0) -> 0 | J17: 0 | K17: =Page5c!K17 -> 0 | L17: =IFERROR(TBIn!E1828,0) -> 0 | M17: =IFERROR(TBIn!E474,0) -> 0 | N17: =IFERROR(TBIn!E433,0) -> 0 | O17: 0 | P17: 14 | Q17: 50000 | R17: 0 | S17: 0 | T17: 0 | U17: 0 | V17: #REF!
A18: 15 | C18: =OR_VEH!B117 -> NO UTILICE | E18: 414C | F18: =Page5c!F18 -> 0 | G18: =IFERROR(IF(Flag=TRUE,L18-TBIn!E1829,TBIn!D1829),0) -> 0 | H18: =IFERROR(IF(Flag=TRUE,M18-TBIn!E475,TBIn!D475),0) -> 0 | I18: =IFERROR(IF(Flag=TRUE,N18-TBIn!E434,TBIn!D434),0) -> 0 | J18: 0 | K18: =Page5c!K18 -> 0 | L18: =IFERROR(TBIn!E1829,0) -> 0 | M18: =IFERROR(TBIn!E475,0) -> 0 | N18: =IFERROR(TBIn!E434,0) -> 0 | O18: 0 | P18: 15 | Q18: 50000 | R18: 0 | S18: 0 | T18: 0 | U18: 0 | V18: #REF!
A19: 16 | C19: =OR_VEH!B118 -> NO UTILICE | E19: 415C | F19: =Page5c!F19 -> 0 | G19: =IFERROR(IF(Flag=TRUE,L19-TBIn!E1830,TBIn!D1830),0) -> 0 | H19: =IFERROR(IF(Flag=TRUE,M19-TBIn!E476,TBIn!D476),0) -> 0 | I19: =IFERROR(IF(Flag=TRUE,N19-TBIn!E435,TBIn!D435),0) -> 0 | J19: 0 | K19: =Page5c!K19 -> 0 | L19: =IFERROR(TBIn!E1830,0) -> 0 | M19: =IFERROR(TBIn!E476,0) -> 0 | N19: =IFERROR(TBIn!E435,0) -> 0 | O19: 0 | P19: 16 | Q19: 50000 | R19: 0 | S19: 0 | T19: 0 | U19: 0 | V19: #REF!
A20: 17 | C20: =OR_VEH!B119 -> NO UTILICE | E20: 416C | F20: =Page5c!F20 -> 0 | G20: =IFERROR(IF(Flag=TRUE,L20-TBIn!E1831,TBIn!D1831),0) -> 0 | H20: =IFERROR(IF(Flag=TRUE,M20-TBIn!E477,TBIn!D477),0) -> 0 | I20: =IFERROR(IF(Flag=TRUE,N20-TBIn!E436,TBIn!D436),0) -> 0 | J20: 0 | K20: =Page5c!K20 -> 0 | L20: =IFERROR(TBIn!E1831,0) -> 0 | M20: =IFERROR(TBIn!E477,0) -> 0 | N20: =IFERROR(TBIn!E436,0) -> 0 | O20: 0 | P20: 17 | Q20: 50000 | R20: 0 | S20: 0 | T20: 0 | U20: 0 | V20: #REF!
A21: 18 | C21: =OR_VEH!B120 -> NO UTILICE | E21: 417C | F21: =Page5c!F21 -> 0 | G21: =IFERROR(IF(Flag=TRUE,L21-TBIn!E1832,TBIn!D1832),0) -> 0 | H21: =IFERROR(IF(Flag=TRUE,M21-TBIn!E478,TBIn!D478),0) -> 0 | I21: =IFERROR(IF(Flag=TRUE,N21-TBIn!E437,TBIn!D437),0) -> 0 | J21: 0 | K21: =Page5c!K21 -> 0 | L21: =IFERROR(TBIn!E1832,0) -> 0 | M21: =IFERROR(TBIn!E478,0) -> 0 | N21: =IFERROR(TBIn!E437,0) -> 0 | O21: 0 | P21: 18 | Q21: 50000 | R21: 0 | S21: 0 | T21: 0 | U21: 0 | V21: #REF!
A22: 19 | C22: =OR_VEH!B121 -> OTROS AUTOS CADILLAC | E22: 418C | F22: =Page5c!F22 -> 0 | G22: =IFERROR(IF(Flag=TRUE,L22-TBIn!E1833,TBIn!D1833),0) -> 0 | H22: =IFERROR(IF(Flag=TRUE,M22-TBIn!E479,TBIn!D479),0) -> 0 | I22: =IFERROR(IF(Flag=TRUE,N22-TBIn!E438,TBIn!D438),0) -> 0 | J22: 0 | K22: =Page5c!K22 -> 0 | L22: =IFERROR(TBIn!E1833,0) -> 0 | M22: =IFERROR(TBIn!E479,0) -> 0 | N22: =IFERROR(TBIn!E438,0) -> 0 | O22: 0 | P22: 19 | Q22: 50000 | R22: 0 | S22: 0 | T22: 0 | U22: 0 | V22: #REF!
A23: 20 | C23: TOTAL AUTOS NUEVOS MENUDEO | E23: (Lineas 1 a 19) | F23: =SUM(F4:F22) -> 0 | G23: 0 | H23: 0 | I23: 0 | J23: 0 | K23: 0 | L23: 0 | M23: 0 | N23: 0 | O23: 0 | P23: 20
A24: 21 | C24: =OR_VEH!B123 -> NO UTILICE | E24: 419C | P24: 21 | Q24: 50000 | R24: 0 | S24: 0 | T24: 0 | U24: 0 | V24: #REF!
A25: 22 | C25: =OR_VEH!B124 -> FLOTILLAS | E25: 420C | F25: =Page5c!F25 -> 0 | G25: =IFERROR(IF(Flag=TRUE,L25-TBIn!E1834,TBIn!D1834),0) -> 0 | H25: =IFERROR(IF(Flag=TRUE,M25-TBIn!E481,TBIn!D481),0) -> 0 | I25: =IFERROR(IF(Flag=TRUE,N25-TBIn!E440,TBIn!D440),0) -> 0 | J25: 0 | K25: =Page5c!K25 -> 0 | L25: =IFERROR(TBIn!E1834,0) -> 0 | M25: =IFERROR(TBIn!E481,0) -> 0 | N25: =IFERROR(TBIn!E440,0) -> 0 | O25: 0 | P25: 22 | Q25: 50000 | R25: 0 | S25: 0 | T25: 0 | U25: 0 | V25: #REF!
A26: 23 | C26: =OR_VEH!B125 -> INTERNAS | E26: 421C | F26: =Page5c!F26 -> 0 | G26: =IFERROR(IF(Flag=TRUE,L26-TBIn!E1835,TBIn!D1835),0) -> 0 | H26: =IFERROR(IF(Flag=TRUE,M26-TBIn!E482,TBIn!D482),0) -> 0 | I26: =IFERROR(IF(Flag=TRUE,N26-TBIn!E441,TBIn!D441),0) -> 0 | J26: 0 | K26: =Page5c!K26 -> 0 | L26: =IFERROR(TBIn!E1835,0) -> 0 | M26: =IFERROR(TBIn!E482,0) -> 0 | N26: =IFERROR(TBIn!E441,0) -> 0 | O26: 0 | P26: 23 | Q26: 50000 | R26: 0 | S26: 0 | T26: 0 | U26: 0 | V26: #REF!
A27: 24 | C27: TOTAL AUTOS NUEVOS | E27: (Lineas 20 a 23) | F27: =SUM(F23:F26) -> 0 | G27: 0 | H27: 0 | I27: 0 | J27: 0 | K27: 0 | L27: 0 | M27: 0 | N27: 0 | O27: 0 | P27: 24
A28: 25 | B28: VENTAS DE COM. Y CAM. NUEVOS | C28: =OR_VEH!B127 -> ESCALADE SUV | E28: 423C | F28: =Page5c!F28 -> 0 | G28: =IFERROR(IF(Flag=TRUE,L28-TBIn!E1836,TBIn!D1836),0) -> 0 | H28: =IFERROR(IF(Flag=TRUE,M28-TBIn!E483,TBIn!D483),0) -> 0 | I28: =IFERROR(IF(Flag=TRUE,N28-TBIn!E442,TBIn!D442),0) -> 0 | J28: 0 | K28: =Page5c!K28 -> 0 | L28: =IFERROR(TBIn!E1836,0) -> 0 | M28: =IFERROR(TBIn!E483,0) -> 0 | N28: =IFERROR(TBIn!E442,0) -> 0 | O28: 0 | P28: 25 | Q28: 50000 | R28: 0 | S28: 0 | T28: 0 | U28: 0 | V28: #REF!
A29: 26 | C29: =OR_VEH!B128 -> ESCALADE ESV | E29: 424C | F29: =Page5c!F29 -> 0 | G29: =IFERROR(IF(Flag=TRUE,L29-TBIn!E1837,TBIn!D1837),0) -> 0 | H29: =IFERROR(IF(Flag=TRUE,M29-TBIn!E484,TBIn!D484),0) -> 0 | I29: =IFERROR(IF(Flag=TRUE,N29-TBIn!E443,TBIn!D443),0) -> 0 | J29: 0 | K29: =Page5c!K29 -> 0 | L29: =IFERROR(TBIn!E1837,0) -> 0 | M29: =IFERROR(TBIn!E484,0) -> 0 | N29: =IFERROR(TBIn!E443,0) -> 0 | O29: 0 | P29: 26 | Q29: 50000 | R29: 0 | S29: 0 | T29: 0 | U29: 0 | V29: #REF!
A30: 27 | C30: =OR_VEH!B129 -> ESCALADE EXT | E30: 425C | F30: =Page5c!F30 -> 0 | G30: =IFERROR(IF(Flag=TRUE,L30-TBIn!E1838,TBIn!D1838),0) -> 0 | H30: =IFERROR(IF(Flag=TRUE,M30-TBIn!E485,TBIn!D485),0) -> 0 | I30: =IFERROR(IF(Flag=TRUE,N30-TBIn!E444,TBIn!D444),0) -> 0 | J30: 0 | K30: =Page5c!K30 -> 0 | L30: =IFERROR(TBIn!E1838,0) -> 0 | M30: =IFERROR(TBIn!E485,0) -> 0 | N30: =IFERROR(TBIn!E444,0) -> 0 | O30: 0 | P30: 27 | Q30: 50000 | R30: 0 | S30: 0 | T30: 0 | U30: 0 | V30: #REF!
A31: 28 | C31: =OR_VEH!B130 -> SRX | E31: 426C | F31: =Page5c!F31 -> 0 | G31: =IFERROR(IF(Flag=TRUE,L31-TBIn!E1839,TBIn!D1839),0) -> 0 | H31: =IFERROR(IF(Flag=TRUE,M31-TBIn!E486,TBIn!D486),0) -> 0 | I31: =IFERROR(IF(Flag=TRUE,N31-TBIn!E445,TBIn!D445),0) -> 0 | J31: 0 | K31: =Page5c!K31 -> 0 | L31: =IFERROR(TBIn!E1839,0) -> 0 | M31: =IFERROR(TBIn!E486,0) -> 0 | N31: =IFERROR(TBIn!E445,0) -> 0 | O31: 0 | P31: 28 | Q31: 50000 | R31: 0 | S31: 0 | T31: 0 | U31: 0 | V31: #REF!
A32: 29 | C32: =OR_VEH!B131 -> CADILLAC XT5 | E32: 427C | F32: =Page5c!F32 -> 0 | G32: =IFERROR(IF(Flag=TRUE,L32-TBIn!E1840,TBIn!D1840),0) -> 0 | H32: =IFERROR(IF(Flag=TRUE,M32-TBIn!E487,TBIn!D487),0) -> 0 | I32: =IFERROR(IF(Flag=TRUE,N32-TBIn!E446,TBIn!D446),0) -> 0 | J32: 0 | K32: =Page5c!K32 -> 0 | L32: =IFERROR(TBIn!E1840,0) -> 0 | M32: =IFERROR(TBIn!E487,0) -> 0 | N32: =IFERROR(TBIn!E446,0) -> 0 | O32: 0 | P32: 29 | Q32: 50000 | R32: 0 | S32: 0 | T32: 0 | U32: 0 | V32: #REF!
A33: 30 | C33: =OR_VEH!B132 -> NO UTILICE | E33: 428C | F33: =Page5c!F33 -> 0 | G33: =IFERROR(IF(Flag=TRUE,L33-TBIn!E1841,TBIn!D1841),0) -> 0 | H33: =IFERROR(IF(Flag=TRUE,M33-TBIn!E488,TBIn!D488),0) -> 0 | I33: =IFERROR(IF(Flag=TRUE,N33-TBIn!E447,TBIn!D447),0) -> 0 | J33: 0 | K33: =Page5c!K33 -> 0 | L33: =IFERROR(TBIn!E1841,0) -> 0 | M33: =IFERROR(TBIn!E488,0) -> 0 | N33: =IFERROR(TBIn!E447,0) -> 0 | O33: 0 | P33: 30 | Q33: 50000 | R33: 0 | S33: 0 | T33: 0 | U33: 0 | V33: #REF!
A34: 31 | C34: =OR_VEH!B133 -> NO UTILICE | E34: 429C | F34: =Page5c!F34 -> 0 | G34: =IFERROR(IF(Flag=TRUE,L34-TBIn!E1842,TBIn!D1842),0) -> 0 | H34: =IFERROR(IF(Flag=TRUE,M34-TBIn!E489,TBIn!D489),0) -> 0 | I34: =IFERROR(IF(Flag=TRUE,N34-TBIn!E448,TBIn!D448),0) -> 0 | J34: 0 | K34: =Page5c!K34 -> 0 | L34: =IFERROR(TBIn!E1842,0) -> 0 | M34: =IFERROR(TBIn!E489,0) -> 0 | N34: =IFERROR(TBIn!E448,0) -> 0 | O34: 0 | P34: 31 | Q34: 50000 | R34: 0 | S34: 0 | T34: 0 | U34: 0 | V34: #REF!
A35: 32 | C35: =OR_VEH!B134 -> NO UTILICE | E35: 430C | F35: =Page5c!F35 -> 0 | G35: =IFERROR(IF(Flag=TRUE,L35-TBIn!E1843,TBIn!D1843),0) -> 0 | H35: =IFERROR(IF(Flag=TRUE,M35-TBIn!E490,TBIn!D490),0) -> 0 | I35: =IFERROR(IF(Flag=TRUE,N35-TBIn!E449,TBIn!D449),0) -> 0 | J35: 0 | K35: =Page5c!K35 -> 0 | L35: =IFERROR(TBIn!E1843,0) -> 0 | M35: =IFERROR(TBIn!E490,0) -> 0 | N35: =IFERROR(TBIn!E449,0) -> 0 | O35: 0 | P35: 32 | Q35: 50000 | R35: 0 | S35: 0 | T35: 0 | U35: 0 | V35: #REF!
A36: 33 | C36: =OR_VEH!B135 -> NO UTILICE | E36: 431C | F36: =Page5c!F36 -> 0 | G36: =IFERROR(IF(Flag=TRUE,L36-TBIn!E1844,TBIn!D1844),0) -> 0 | H36: =IFERROR(IF(Flag=TRUE,M36-TBIn!E491,TBIn!D491),0) -> 0 | I36: =IFERROR(IF(Flag=TRUE,N36-TBIn!E450,TBIn!D450),0) -> 0 | J36: 0 | K36: =Page5c!K36 -> 0 | L36: =IFERROR(TBIn!E1844,0) -> 0 | M36: =IFERROR(TBIn!E491,0) -> 0 | N36: =IFERROR(TBIn!E450,0) -> 0 | O36: 0 | P36: 33 | Q36: 50000 | R36: 0 | S36: 0 | T36: 0 | U36: 0 | V36: #REF!
A37: 34 | C37: =OR_VEH!B136 -> NO UTILICE | E37: 432C | F37: =Page5c!F37 -> 0 | G37: =IFERROR(IF(Flag=TRUE,L37-TBIn!E1845,TBIn!D1845),0) -> 0 | H37: =IFERROR(IF(Flag=TRUE,M37-TBIn!E492,TBIn!D492),0) -> 0 | I37: =IFERROR(IF(Flag=TRUE,N37-TBIn!E451,TBIn!D451),0) -> 0 | J37: 0 | K37: =Page5c!K37 -> 0 | L37: =IFERROR(TBIn!E1845,0) -> 0 | M37: =IFERROR(TBIn!E492,0) -> 0 | N37: =IFERROR(TBIn!E451,0) -> 0 | O37: 0 | P37: 34 | Q37: 50000 | R37: 0 | S37: 0 | T37: 0 | U37: 0 | V37: #REF!
A38: 35 | C38: =OR_VEH!B137 -> NO UTILICE | E38: 433C | F38: =Page5c!F38 -> 0 | G38: =IFERROR(IF(Flag=TRUE,L38-TBIn!E1846,TBIn!D1846),0) -> 0 | H38: =IFERROR(IF(Flag=TRUE,M38-TBIn!E493,TBIn!D493),0) -> 0 | I38: =IFERROR(IF(Flag=TRUE,N38-TBIn!E452,TBIn!D452),0) -> 0 | J38: 0 | K38: =Page5c!K38 -> 0 | L38: =IFERROR(TBIn!E1846,0) -> 0 | M38: =IFERROR(TBIn!E493,0) -> 0 | N38: =IFERROR(TBIn!E452,0) -> 0 | O38: 0 | P38: 35 | Q38: 50000 | R38: 0 | S38: 0 | T38: 0 | U38: 0 | V38: #REF!
A39: 36 | C39: =OR_VEH!B138 -> NO UTILICE | E39: 434C | F39: =Page5c!F39 -> 0 | G39: =IFERROR(IF(Flag=TRUE,L39-TBIn!E1847,TBIn!D1847),0) -> 0 | H39: =IFERROR(IF(Flag=TRUE,M39-TBIn!E494,TBIn!D494),0) -> 0 | I39: =IFERROR(IF(Flag=TRUE,N39-TBIn!E453,TBIn!D453),0) -> 0 | J39: 0 | K39: =Page5c!K39 -> 0 | L39: =IFERROR(TBIn!E1847,0) -> 0 | M39: =IFERROR(TBIn!E494,0) -> 0 | N39: =IFERROR(TBIn!E453,0) -> 0 | O39: 0 | P39: 36 | Q39: 50000 | R39: 0 | S39: 0 | T39: 0 | U39: 0 | V39: #REF!
A40: 37 | C40: =OR_VEH!B139 -> NO UTILICE | E40: 435C | F40: =Page5c!F40 -> 0 | G40: =IFERROR(IF(Flag=TRUE,L40-TBIn!E1848,TBIn!D1848),0) -> 0 | H40: =IFERROR(IF(Flag=TRUE,M40-TBIn!E495,TBIn!D495),0) -> 0 | I40: =IFERROR(IF(Flag=TRUE,N40-TBIn!E454,TBIn!D454),0) -> 0 | J40: 0 | K40: =Page5c!K40 -> 0 | L40: =IFERROR(TBIn!E1848,0) -> 0 | M40: =IFERROR(TBIn!E495,0) -> 0 | N40: =IFERROR(TBIn!E454,0) -> 0 | O40: 0 | P40: 37 | Q40: 50000 | R40: 0 | S40: 0 | T40: 0 | U40: 0 | V40: #REF!
A41: 38 | C41: =OR_VEH!B140 -> NO UTILICE | E41: 436C | F41: =Page5c!F41 -> 0 | G41: =IFERROR(IF(Flag=TRUE,L41-TBIn!E1849,TBIn!D1849),0) -> 0 | H41: =IFERROR(IF(Flag=TRUE,M41-TBIn!E496,TBIn!D496),0) -> 0 | I41: =IFERROR(IF(Flag=TRUE,N41-TBIn!E455,TBIn!D455),0) -> 0 | J41: 0 | K41: =Page5c!K41 -> 0 | L41: =IFERROR(TBIn!E1849,0) -> 0 | M41: =IFERROR(TBIn!E496,0) -> 0 | N41: =IFERROR(TBIn!E455,0) -> 0 | O41: 0 | P41: 38 | Q41: 50000 | R41: 0 | S41: 0 | T41: 0 | U41: 0 | V41: #REF!
A42: 39 | C42: =OR_VEH!B141 -> NO UTILICE | E42: 437C | F42: =Page5c!F42 -> 0 | G42: =IFERROR(IF(Flag=TRUE,L42-TBIn!E1850,TBIn!D1850),0) -> 0 | H42: =IFERROR(IF(Flag=TRUE,M42-TBIn!E497,TBIn!D497),0) -> 0 | I42: =IFERROR(IF(Flag=TRUE,N42-TBIn!E456,TBIn!D456),0) -> 0 | J42: 0 | K42: =Page5c!K42 -> 0 | L42: =IFERROR(TBIn!E1850,0) -> 0 | M42: =IFERROR(TBIn!E497,0) -> 0 | N42: =IFERROR(TBIn!E456,0) -> 0 | O42: 0 | P42: 39 | Q42: 50000 | R42: 0 | S42: 0 | T42: 0 | U42: 0 | V42: #REF!
A43: 40 | C43: =OR_VEH!B142 -> OTROS COM. CADILLAC | E43: 438C | F43: =Page5c!F43 -> 0 | G43: =IFERROR(IF(Flag=TRUE,L43-TBIn!E1851,TBIn!D1851),0) -> 0 | H43: =IFERROR(IF(Flag=TRUE,M43-TBIn!E498,TBIn!D498),0) -> 0 | I43: =IFERROR(IF(Flag=TRUE,N43-TBIn!E457,TBIn!D457),0) -> 0 | J43: 0 | K43: =Page5c!K43 -> 0 | L43: =IFERROR(TBIn!E1851,0) -> 0 | M43: =IFERROR(TBIn!E498,0) -> 0 | N43: =IFERROR(TBIn!E457,0) -> 0 | O43: 0 | P43: 40 | Q43: 50000 | R43: 0 | S43: 0 | T43: 0 | U43: 0 | V43: #REF!
A44: 41 | C44: TOTAL COM. Y CAM. NUEVOS MENUDEO | E44: (Lineas 25 a 40) | F44: =SUM(F28:F43) -> 0 | G44: =SUM(G28:G43) -> 0 | H44: =SUM(H28:H43) -> 0 | I44: =SUM(I28:I43) -> 0 | J44: 0 | K44: 0 | L44: 0 | M44: =SUM(M28:M43) -> 0 | N44: 0 | O44: 0 | P44: 41
A45: 42 | C45: =OR_VEH!B144 -> NO UTILICE | E45: 439C | J45: 0 | O45: 0 | P45: 42 | Q45: 50000 | R45: 0 | S45: 0 | T45: 0 | U45: 0 | V45: #REF!
A46: 43 | C46: =OR_VEH!B145 -> FLOTILLAS | E46: 440C | F46: =Page5c!F46 -> 0 | G46: =IFERROR(IF(Flag=TRUE,L46-TBIn!E1852,TBIn!D1852),0) -> 0 | H46: =IFERROR(IF(Flag=TRUE,M46-TBIn!E500,TBIn!D500),0) -> 0 | I46: =IFERROR(IF(Flag=TRUE,N46-TBIn!E459,TBIn!D459),0) -> 0 | J46: 0 | K46: =Page5c!K46 -> 0 | L46: =IFERROR(TBIn!E1852,0) -> 0 | M46: =IFERROR(TBIn!E500,0) -> 0 | N46: =IFERROR(TBIn!E459,0) -> 0 | O46: 0 | P46: 43 | Q46: 50000 | R46: 0 | S46: 0 | T46: 0 | U46: 0 | V46: #REF!
A47: 44 | C47: =OR_VEH!B146 -> INTERNAS | E47: 441C | F47: =Page5c!F47 -> 0 | G47: =IFERROR(IF(Flag=TRUE,L47-TBIn!E1853,TBIn!D1853),0) -> 0 | H47: =IFERROR(IF(Flag=TRUE,M47-TBIn!E501,TBIn!D501),0) -> 0 | I47: =IFERROR(IF(Flag=TRUE,N47-TBIn!E460,TBIn!D460),0) -> 0 | J47: 0 | K47: =Page5c!K47 -> 0 | L47: =IFERROR(TBIn!E1853,0) -> 0 | M47: =IFERROR(TBIn!E501,0) -> 0 | N47: =IFERROR(TBIn!E460,0) -> 0 | O47: 0 | P47: 44 | Q47: 50000 | R47: 0 | S47: 0 | T47: 0 | U47: 0 | V47: #REF!
A48: 45 | C48: TOTAL COM. Y CAM. NUEVOS | E48: (Lineas 41 a 44) | F48: =SUM(F44:F47) -> 0 | G48: 0 | H48: 0 | I48: 0 | J48: 0 | K48: 0 | L48: 0 | M48: 0 | N48: 0 | O48: 0 | P48: 45
A49: 46 | C49: =OR_VEH!B148 -> NO UTILICE | E49: 445C | P49: 46 | V49: #REF!
A50: 47 | C50: =OR_VEH!B149 -> VENTA DE ACCESORIOS PARA VEHÍCULOS LISTADOS EN ESTA PAGINA | E50: 457C | F50: =Page5c!F50 -> 0 | G50: =IFERROR(IF(Flag=TRUE,L50-TBIn!E1854,TBIn!D1854),0) -> 0 | K50: =Page5c!K50 -> 0 | L50: =IFERROR(TBIn!E1854,0) -> 0 | O50: 0 | P50: 47 | Q50: 10000 | R50: 0 | S50: 0 | T50: 0 | U50: 0 | V50: #REF!
A51: 48 | C51: TOTAL VEHICULOS NUEVOS | F51: =IFERROR(IF(Flag=TRUE,F27+F48,TBIn!D419),0) -> 0 | G51: =G27+G48+G50 -> 0 | H51: =H27+H48 -> 0 | I51: =I27+I48 -> 0 | J51: =J48+J27+J50 -> 0 | K51: =IFERROR(IF(Flag=TRUE,K27+K48,TBIn!E419),0) -> 0 | L51: =L48+L27+L50 -> 0 | M51: =M48+M27 -> 0 | N51: =N48+N27 -> 0 | O51: =O48+O27 -> 0 | P51: 48
J54: Unit Diff | K54: Actual Sums | M54: Actual Sums | O54: Gross Diff
J56: 0 | K56: 0 | M56: 0 | O56: 0
D57: TOTAL AUTOS NUEVOS MENUDEO | J57: 0 | K57: 0 | M57: 0 | O57: 0
D58: TOTAL AUTOS NUEVOS | J58: 0 | K58: 0 | M58: 0 | O58: 0
D59: TOTAL COM. Y CAM. NUEVOS MENUDEO | J59: 0 | K59: 0 | M59: 0 | O59: 0
D60: TOTAL COM. Y CAM. NUEVOS | M60: 0
D61: NO UTILICE | J61: 0 | K61: 0 | M61: 0 | O61: 0
D62: VENTA DE ACCESORIOS PARA VEHÍCULOS LISTADOS EN ESTA PAGINA | J62: 0 | K62: 0 | M62: 0 | O62: 0
D63: TOTAL VEHICULOS NUEVOS
B2355: PAGINA 5aB&P
A2357: BONIFIACION Y PREMIOS | B2357: NO.
E3581: Per Unit | F3581: Month | G3581: YTD | H3581: Month | I3581: YTD
E3582: Sales | F3582: Sales | G3582: Sales | H3582: Unit | I3582: Unit | K3582: BAC 0 -
E3583: Max | F3583: Flag | G3583: Flag | H3583: Flag | I3583: Flag | J3583: ACC.
E3584: 50000 | F3584: 0 | G3584: 0 | H3584: 0 | I3584: 0 | J3584: #REF!
E3585: 50000 | F3585: 0 | G3585: 0 | H3585: 0 | I3585: 0 | J3585: #REF!
E3586: 50000 | F3586: 0 | G3586: 0 | H3586: 0 | I3586: 0 | J3586: #REF!
E3587: 50000 | F3587: 0 | G3587: 0 | H3587: 0 | I3587: 0 | J3587: #REF!
H3588: 0 | I3588: 0 | J3588: #REF!
E3589: 50000 | F3589: 0 | G3589: 0 | H3589: 0 | I3589: 0 | J3589: #REF!
E3590: 50000 | F3590: 0 | G3590: 0 | H3590: 0 | I3590: 0 | J3590: #REF!
E3591: 50000 | F3591: 0 | G3591: 0 | H3591: 0 | I3591: 0 | J3591: #REF!
E3592: 50000 | F3592: 0 | G3592: 0 | H3592: 0 | I3592: 0 | J3592: #REF!
E3593: 50000 | F3593: 0 | G3593: 0 | H3593: 0 | I3593: 0 | J3593: #REF!
E3594: 50000 | F3594: 0 | G3594: 0 | H3594: 0 | I3594: 0 | J3594: #REF!
E3595: 50000 | F3595: 0 | G3595: 0 | H3595: 0 | I3595: 0 | J3595: #REF!
E3596: 50000 | F3596: 0 | G3596: 0 | H3596: 0 | I3596: 0 | J3596: #REF!
E3597: 50000 | F3597: 0 | G3597: 0 | H3597: 0 | I3597: 0 | J3597: #REF!
E3598: 50000 | F3598: 0 | G3598: 0 | H3598: 0 | I3598: 0 | J3598: #REF!
E3599: 50000 | F3599: 0 | G3599: 0 | H3599: 0 | I3599: 0 | J3599: #REF!
E3600: 50000 | F3600: 0 | G3600: 0 | H3600: 0 | I3600: 0 | J3600: #REF!
E3601: 50000 | F3601: 0 | G3601: 0 | H3601: 0 | I3601: 0 | J3601: #REF!

Sheet Page5d
F1: VEHICULOS NUEVOS - ANALISIS DE VENTAS Y UTILIDAD BRUTA | P1: =TBIn!$E$2591&" - "&TBIn!$AH$10&" - PAGINA 5d" -> 122112 - 201801 - PAGINA 5d | Q1: Per Unit | R1: Month | S1: YTD | T1: Month | U1: YTD
A2: Lin. | D2: OPERACIONES | G2: MES | L2: AÑO A LA FECHA | P2: Lin. | Q2: Sales | R2: Sales | S2: Sales | T2: Unit | U2: Unit
A3: No. | D3: VARIABLES | E3: CTA. | F3: UNIDADES VENDIDAS | G3: VENTAS | H3: COSTO DE VENTAS | I3: UTILIDAD BRUTA | J3: POR VEHICULO VENDIDO | K3: UNIDADES VENDIDAS | L3: VENTAS | M3: COSTO DE VENTAS | N3: UTILIDAD BRUTA | O3: POR VEHICULO VENDIDO | P3: No. | Q3: Max | R3: Flag | S3: Flag | T3: Flag | U3: Flag
A4: 1 | B4: VENTAS D E AUTOS NUEVOS | C4: =OR_VEH!B153 -> NO UTILICE | E4: 400D | F4: =IFERROR(IF(Flag=TRUE,K4-TBIn!E502,TBIn!D502),0) -> 0 | G4: =IFERROR(IF(Flag=TRUE,L4-TBIn!E1856,TBIn!D1856),0) -> 0 | H4: =IFERROR(IF(Flag=TRUE,M4-TBIn!E1896,TBIn!D1896),0) -> 0 | I4: =G4-H4 -> 0 | J4: =IFERROR(I4/F4,0) -> 0 | K4: =IFERROR(TBIn!E502,0) -> 0 | L4: =IFERROR(TBIn!E1856,0) -> 0 | M4: =IFERROR(TBIn!E1896,0) -> 0 | N4: =L4-M4 -> 0 | O4: =IFERROR(N4/K4,0) -> 0 | P4: 1 | Q4: 0 | R4: =IF(F4=0,0,IF(G4/F4>Q4,1,0)) -> 0 | S4: =IF(K4=0,0,IF(OR(L4<0,L4/K4>Q4),1,0)) -> 0 | T4: =IF(OR(F4<0,AND(G4>0,F4=0),AND(G4=0,F4>0)),1,0) -> 0 | U4: =IF(OR(K4<0,AND(L4>0,K4=0),AND(K4>0,L4=0)),1,0) -> 0
A5: 2 | C5: =OR_VEH!B154 -> NO UTILICE | E5: 401D | F5: =IFERROR(IF(Flag=TRUE,K5-TBIn!E503,TBIn!D503),0) -> 0 | G5: =IFERROR(IF(Flag=TRUE,L5-TBIn!E1857,TBIn!D1857),0) -> 0 | H5: =IFERROR(IF(Flag=TRUE,M5-TBIn!E1897,TBIn!D1897),0) -> 0 | I5: =G5-H5 -> 0 | J5: 0 | K5: =IFERROR(TBIn!E503,0) -> 0 | L5: =IFERROR(TBIn!E1857,0) -> 0 | M5: =IFERROR(TBIn!E1897,0) -> 0 | N5: =L5-M5 -> 0 | O5: 0 | P5: 2 | Q5: 45000 | R5: =IF(F5=0,0,IF(G5/F5>Q5,1,0)) -> 0 | S5: =IF(K5=0,0,IF(OR(L5<0,L5/K5>Q5),1,0)) -> 0 | T5: =IF(OR(F5<0,AND(G5>0,F5=0),AND(G5=0,F5>0)),1,0) -> 0 | U5: =IF(OR(K5<0,AND(L5>0,K5=0),AND(K5>0,L5=0)),1,0) -> 0
A6: 3 | C6: =OR_VEH!B155 -> NO UTILICE | E6: 402D | F6: =IFERROR(IF(Flag=TRUE,K6-TBIn!E504,TBIn!D504),0) -> 0 | G6: =IFERROR(IF(Flag=TRUE,L6-TBIn!E1858,TBIn!D1858),0) -> 0 | H6: =IFERROR(IF(Flag=TRUE,M6-TBIn!E1898,TBIn!D1898),0) -> 0 | I6: 0 | J6: 0 | K6: =IFERROR(TBIn!E504,0) -> 0 | L6: =IFERROR(TBIn!E1858,0) -> 0 | M6: =IFERROR(TBIn!E1898,0) -> 0 | N6: 0 | O6: 0 | P6: 3 | Q6: 50000 | R6: 0 | S6: 0 | T6: 0 | U6: 0
A7: 4 | C7: =OR_VEH!B156 -> NO UTILICE | E7: 403D | F7: =IFERROR(IF(Flag=TRUE,K7-TBIn!E505,TBIn!D505),0) -> 0 | G7: =IFERROR(IF(Flag=TRUE,L7-TBIn!E1859,TBIn!D1859),0) -> 0 | H7: =IFERROR(IF(Flag=TRUE,M7-TBIn!E1899,TBIn!D1899),0) -> 0 | I7: 0 | J7: 0 | K7: =IFERROR(TBIn!E505,0) -> 0 | L7: =IFERROR(TBIn!E1859,0) -> 0 | M7: =IFERROR(TBIn!E1899,0) -> 0 | N7: 0 | O7: 0 | P7: 4 | Q7: 55000 | R7: 0 | S7: 0 | T7: 0 | U7: 0
A8: 5 | C8: =OR_VEH!B157 -> NO UTILICE | E8: 404D | F8: =IFERROR(IF(Flag=TRUE,K8-TBIn!E506,TBIn!D506),0) -> 0 | G8: =IFERROR(IF(Flag=TRUE,L8-TBIn!E1860,TBIn!D1860),0) -> 0 | H8: =IFERROR(IF(Flag=TRUE,M8-TBIn!E1900,TBIn!D1900),0) -> 0 | I8: 0 | J8: 0 | K8: =IFERROR(TBIn!E506,0) -> 0 | L8: =IFERROR(TBIn!E1860,0) -> 0 | M8: =IFERROR(TBIn!E1900,0) -> 0 | N8: 0 | O8: 0 | P8: 5 | Q8: 0 | R8: 0 | S8: 0 | T8: 0 | U8: 0
A9: 6 | C9: =OR_VEH!B158 -> NO UTILICE | E9: 405D | F9: =IFERROR(IF(Flag=TRUE,K9-TBIn!E507,TBIn!D507),0) -> 0 | G9: =IFERROR(IF(Flag=TRUE,L9-TBIn!E1861,TBIn!D1861),0) -> 0 | H9: =IFERROR(IF(Flag=TRUE,M9-TBIn!E1901,TBIn!D1901),0) -> 0 | I9: 0 | J9: 0 | K9: =IFERROR(TBIn!E507,0) -> 0 | L9: =IFERROR(TBIn!E1861,0) -> 0 | M9: =IFERROR(TBIn!E1901,0) -> 0 | N9: 0 | O9: 0 | P9: 6 | Q9: 60000 | R9: 0 | S9: 0 | T9: 0 | U9: 0
A10: 7 | C10: =OR_VEH!B159 -> NO UTILICE | E10: 406D | F10: =IFERROR(IF(Flag=TRUE,K10-TBIn!E508,TBIn!D508),0) -> 0 | G10: =IFERROR(IF(Flag=TRUE,L10-TBIn!E1862,TBIn!D1862),0) -> 0 | H10: =IFERROR(IF(Flag=TRUE,M10-TBIn!E1902,TBIn!D1902),0) -> 0 | I10: 0 | J10: 0 | K10: =IFERROR(TBIn!E508,0) -> 0 | L10: =IFERROR(TBIn!E1862,0) -> 0 | M10: =IFERROR(TBIn!E1902,0) -> 0 | N10: 0 | O10: 0 | P10: 7 | Q10: 0 | R10: 0 | S10: 0 | T10: 0 | U10: 0
A11: 8 | C11: =OR_VEH!B160 -> NO UTILICE | E11: 407D | F11: =IFERROR(IF(Flag=TRUE,K11-TBIn!E509,TBIn!D509),0) -> 0 | G11: =IFERROR(IF(Flag=TRUE,L11-TBIn!E1863,TBIn!D1863),0) -> 0 | H11: =IFERROR(IF(Flag=TRUE,M11-TBIn!E1903,TBIn!D1903),0) -> 0 | I11: 0 | J11: 0 | K11: =IFERROR(TBIn!E509,0) -> 0 | L11: =IFERROR(TBIn!E1863,0) -> 0 | M11: =IFERROR(TBIn!E1903,0) -> 0 | N11: 0 | O11: 0 | P11: 8 | Q11: 0 | R11: 0 | S11: 0 | T11: 0 | U11: 0
A12: 9 | C12: =OR_VEH!B161 -> NO UTILICE | E12: 408D | F12: =IFERROR(IF(Flag=TRUE,K12-TBIn!E510,TBIn!D510),0) -> 0 | G12: =IFERROR(IF(Flag=TRUE,L12-TBIn!E1864,TBIn!D1864),0) -> 0 | H12: =IFERROR(IF(Flag=TRUE,M12-TBIn!E1904,TBIn!D1904),0) -> 0 | I12: 0 | J12: 0 | K12: =IFERROR(TBIn!E510,0) -> 0 | L12: =IFERROR(TBIn!E1864,0) -> 0 | M12: =IFERROR(TBIn!E1904,0) -> 0 | N12: 0 | O12: 0 | P12: 9 | Q12: 0 | R12: 0 | S12: 0 | T12: 0 | U12: 0
A13: 10 | C13: =OR_VEH!B162 -> NO UTILICE | E13: 409D | F13: =IFERROR(IF(Flag=TRUE,K13-TBIn!E511,TBIn!D511),0) -> 0 | G13: =IFERROR(IF(Flag=TRUE,L13-TBIn!E1865,TBIn!D1865),0) -> 0 | H13: =IFERROR(IF(Flag=TRUE,M13-TBIn!E1905,TBIn!D1905),0) -> 0 | I13: 0 | J13: 0 | K13: =IFERROR(TBIn!E511,0) -> 0 | L13: =IFERROR(TBIn!E1865,0) -> 0 | M13: =IFERROR(TBIn!E1905,0) -> 0 | N13: 0 | O13: 0 | P13: 10 | Q13: 0 | R13: 0 | S13: 0 | T13: 0 | U13: 0
A14: 11 | C14: =OR_VEH!B163 -> NO UTILICE | E14: 410D | F14: =IFERROR(IF(Flag=TRUE,K14-TBIn!E512,TBIn!D512),0) -> 0 | G14: =IFERROR(IF(Flag=TRUE,L14-TBIn!E1866,TBIn!D1866),0) -> 0 | H14: =IFERROR(IF(Flag=TRUE,M14-TBIn!E1906,TBIn!D1906),0) -> 0 | I14: 0 | J14: 0 | K14: =IFERROR(TBIn!E512,0) -> 0 | L14: =IFERROR(TBIn!E1866,0) -> 0 | M14: =IFERROR(TBIn!E1906,0) -> 0 | N14: 0 | O14: 0 | P14: 11 | Q14: 0 | R14: 0 | S14: 0 | T14: 0 | U14: 0
A15: 12 | C15: =OR_VEH!B164 -> NO UTILICE | E15: 411D | F15: =IFERROR(IF(Flag=TRUE,K15-TBIn!E513,TBIn!D513),0) -> 0 | G15: =IFERROR(IF(Flag=TRUE,L15-TBIn!E1867,TBIn!D1867),0) -> 0 | H15: =IFERROR(IF(Flag=TRUE,M15-TBIn!E1907,TBIn!D1907),0) -> 0 | I15: 0 | J15: 0 | K15: =IFERROR(TBIn!E513,0) -> 0 | L15: =IFERROR(TBIn!E1867,0) -> 0 | M15: =IFERROR(TBIn!E1907,0) -> 0 | N15: 0 | O15: 0 | P15: 12 | Q15: 0 | R15: 0 | S15: 0 | T15: 0 | U15: 0
A16: 13 | C16: =OR_VEH!B165 -> NO UTILICE | E16: 412D | F16: =IFERROR(IF(Flag=TRUE,K16-TBIn!E514,TBIn!D514),0) -> 0 | G16: =IFERROR(IF(Flag=TRUE,L16-TBIn!E1868,TBIn!D1868),0) -> 0 | H16: =IFERROR(IF(Flag=TRUE,M16-TBIn!E1908,TBIn!D1908),0) -> 0 | I16: 0 | J16: 0 | K16: =IFERROR(TBIn!E514,0) -> 0 | L16: =IFERROR(TBIn!E1868,0) -> 0 | M16: =IFERROR(TBIn!E1908,0) -> 0 | N16: 0 | O16: 0 | P16: 13 | Q16: 0 | R16: 0 | S16: 0 | T16: 0 | U16: 0
A17: 14 | C17: =OR_VEH!B166 -> NO UTILICE | E17: 413D | F17: =IFERROR(IF(Flag=TRUE,K17-TBIn!E515,TBIn!D515),0) -> 0 | G17: =IFERROR(IF(Flag=TRUE,L17-TBIn!E1869,TBIn!D1869),0) -> 0 | H17: =IFERROR(IF(Flag=TRUE,M17-TBIn!E1909,TBIn!D1909),0) -> 0 | I17: 0 | J17: 0 | K17: =IFERROR(TBIn!E515,0) -> 0 | L17: =IFERROR(TBIn!E1869,0) -> 0 | M17: =IFERROR(TBIn!E1909,0) -> 0 | N17: 0 | O17: 0 | P17: 14 | Q17: 0 | R17: 0 | S17: 0 | T17: 0 | U17: 0
A18: 15 | C18: =OR_VEH!B167 -> NO UTILICE | E18: 414D | F18: =IFERROR(IF(Flag=TRUE,K18-TBIn!E516,TBIn!D516),0) -> 0 | G18: =IFERROR(IF(Flag=TRUE,L18-TBIn!E1870,TBIn!D1870),0) -> 0 | H18: =IFERROR(IF(Flag=TRUE,M18-TBIn!E1910,TBIn!D1910),0) -> 0 | I18: 0 | J18: 0 | K18: =IFERROR(TBIn!E516,0) -> 0 | L18: =IFERROR(TBIn!E1870,0) -> 0 | M18: =IFERROR(TBIn!E1910,0) -> 0 | N18: 0 | O18: 0 | P18: 15 | Q18: 0 | R18: 0 | S18: 0 | T18: 0 | U18: 0
A19: 16 | C19: =OR_VEH!B168 -> NO UTILICE | E19: 415D | F19: =IFERROR(IF(Flag=TRUE,K19-TBIn!E517,TBIn!D517),0) -> 0 | G19: =IFERROR(IF(Flag=TRUE,L19-TBIn!E1871,TBIn!D1871),0) -> 0 | H19: =IFERROR(IF(Flag=TRUE,M19-TBIn!E1911,TBIn!D1911),0) -> 0 | I19: 0 | J19: 0 | K19: =IFERROR(TBIn!E517,0) -> 0 | L19: =IFERROR(TBIn!E1871,0) -> 0 | M19: =IFERROR(TBIn!E1911,0) -> 0 | N19: 0 | O19: 0 | P19: 16 | Q19: 0 | R19: 0 | S19: 0 | T19: 0 | U19: 0
A20: 17 | C20: =OR_VEH!B169 -> NO UTILICE | E20: 416D | F20: =IFERROR(IF(Flag=TRUE,K20-TBIn!E518,TBIn!D518),0) -> 0 | G20: =IFERROR(IF(Flag=TRUE,L20-TBIn!E1872,TBIn!D1872),0) -> 0 | H20: =IFERROR(IF(Flag=TRUE,M20-TBIn!E1912,TBIn!D1912),0) -> 0 | I20: 0 | J20: 0 | K20: =IFERROR(TBIn!E518,0) -> 0 | L20: =IFERROR(TBIn!E1872,0) -> 0 | M20: =IFERROR(TBIn!E1912,0) -> 0 | N20: 0 | O20: 0 | P20: 17 | Q20: 0 | R20: 0 | S20: 0 | T20: 0 | U20: 0
A21: 18 | C21: =OR_VEH!B170 -> NO UTILICE | E21: 417D | F21: =IFERROR(IF(Flag=TRUE,K21-TBIn!E519,TBIn!D519),0) -> 0 | G21: =IFERROR(IF(Flag=TRUE,L21-TBIn!E1873,TBIn!D1873),0) -> 0 | H21: =IFERROR(IF(Flag=TRUE,M21-TBIn!E1913,TBIn!D1913),0) -> 0 | I21: 0 | J21: 0 | K21: =IFERROR(TBIn!E519,0) -> 0 | L21: =IFERROR(TBIn!E1873,0) -> 0 | M21: =IFERROR(TBIn!E1913,0) -> 0 | N21: 0 | O21: 0 | P21: 18 | Q21: 0 | R21: 0 | S21: 0 | T21: 0 | U21: 0
A22: 19 | C22: =OR_VEH!B171 -> OTROS AUTOS | E22: 418D | F22: =IFERROR(IF(Flag=TRUE,K22-TBIn!E520,TBIn!D520),0) -> 0 | G22: =IFERROR(IF(Flag=TRUE,L22-TBIn!E1874,TBIn!D1874),0) -> 0 | H22: =IFERROR(IF(Flag=TRUE,M22-TBIn!E1914,TBIn!D1914),0) -> 0 | I22: 0 | J22: 0 | K22: =IFERROR(TBIn!E520,0) -> 0 | L22: =IFERROR(TBIn!E1874,0) -> 0 | M22: =IFERROR(TBIn!E1914,0) -> 0 | N22: 0 | O22: 0 | P22: 19 | Q22: 0 | R22: 0 | S22: 0 | T22: 0 | U22: 0
A23: 20 | C23: TOTAL AUTOS NUEVOS MENUDEO | E23: (Lineas 1 a 19) | F23: =SUM(F4:F22) -> 0 | G23: =SUM(G4:G22) -> 0 | H23: =SUM(H4:H22) -> 0 | I23: =SUM(I4:I22) -> 0 | J23: 0 | K23: =SUM(K4:K22) -> 0 | L23: =SUM(L4:L22) -> 0 | M23: =SUM(M4:M22) -> 0 | N23: =SUM(N4:N22) -> 0 | O23: 0 | P23: 20
A24: 21 | C24: =OR_VEH!B173 -> NO UTILICE | E24: 419D | F24: 0 | G24: 0 | H24: 0 | I24: 0 | J24: 0 | K24: 0 | L24: 0 | M24: 0 | N24: 0 | O24: 0 | P24: 21 | Q24: 65000 | R24: 0 | S24: =IF(K24=0,0,IF(OR(L24<0,L24/K24>Q24),1,0)) -> 0 | T24: =IF(OR(F24<0,AND(G24>0,F24=0),AND(G24=0,F24>0)),1,0) -> 0 | U24: =IF(OR(K24<0,AND(L24>0,K24=0),AND(K24>0,L24=0)),1,0) -> 0
A25: 22 | C25: =OR_VEH!B174 -> FLOTILLAS | E25: 420D | F25: =IFERROR(IF(Flag=TRUE,K25-TBIn!E522,TBIn!D522),0) -> 0 | G25: =IFERROR(IF(Flag=TRUE,L25-TBIn!E1875,TBIn!D1875),0) -> 0 | H25: =IFERROR(IF(Flag=TRUE,M25-TBIn!E1915,TBIn!D1915),0) -> 0 | I25: =G25-H25 -> 0 | J25: 0 | K25: =IFERROR(TBIn!E522,0) -> 0 | L25: =IFERROR(TBIn!E1875,0) -> 0 | M25: =IFERROR(TBIn!E1915,0) -> 0 | N25: =L25-M25 -> 0 | O25: 0 | P25: 22 | Q25: 55000 | R25: 0 | S25: =IF(K25=0,0,IF(OR(L25<0,L25/K25>Q25),1,0)) -> 0 | T25: =IF(OR(F25<0,AND(G25>0,F25=0),AND(G25=0,F25>0)),1,0) -> 0 | U25: =IF(OR(K25<0,AND(L25>0,K25=0),AND(K25>0,L25=0)),1,0) -> 0
A26: 23 | C26: =OR_VEH!B175 -> INTERNAS | E26: 421D | F26: =IFERROR(IF(Flag=TRUE,K26-TBIn!E523,TBIn!D523),0) -> 0 | G26: =IFERROR(IF(Flag=TRUE,L26-TBIn!E1876,TBIn!D1876),0) -> 0 | H26: =IFERROR(IF(Flag=TRUE,M26-TBIn!E1916,TBIn!D1916),0) -> 0 | I26: =G26-H26 -> 0 | J26: 0 | K26: =IFERROR(TBIn!E523,0) -> 0 | L26: =IFERROR(TBIn!E1876,0) -> 0 | M26: =IFERROR(TBIn!E1916,0) -> 0 | N26: =L26-M26 -> 0 | O26: 0 | P26: 23 | Q26: 55000 | R26: 0 | S26: =IF(K26=0,0,IF(OR(L26<0,L26/K26>Q26),1,0)) -> 0 | T26: =IF(OR(F26<0,AND(G26>0,F26=0),AND(G26=0,F26>0)),1,0) -> 0 | U26: =IF(OR(K26<0,AND(L26>0,K26=0),AND(K26>0,L26=0)),1,0) -> 0
A27: 24 | C27: TOTAL AUTOS NUEVOS | E27: (Lineas 20 a 23) | F27: =SUM(F23:F26) -> 0 | G27: =SUM(G23:G26) -> 0 | H27: =SUM(H23:H26) -> 0 | I27: =SUM(I23:I26) -> 0 | J27: 0 | K27: =SUM(K23:K26) -> 0 | L27: =SUM(L23:L26) -> 0 | M27: =SUM(M23:M26) -> 0 | N27: =SUM(N23:N26) -> 0 | O27: 0 | P27: 24
A28: 25 | B28: VENTAS DE COM. Y CAM. NUEVOS | C28: =OR_VEH!B177 -> NO UTILICE | E28: 423D | F28: =IFERROR(IF(Flag=TRUE,K28-TBIn!E524,TBIn!D524),0) -> 0 | G28: =IFERROR(IF(Flag=TRUE,L28-TBIn!E1877,TBIn!D1877),0) -> 0 | H28: =IFERROR(IF(Flag=TRUE,M28-TBIn!E1917,TBIn!D1917),0) -> 0 | I28: =G28-H28 -> 0 | J28: 0 | K28: =IFERROR(TBIn!E524,0) -> 0 | L28: =IFERROR(TBIn!E1877,0) -> 0 | M28: =IFERROR(TBIn!E1917,0) -> 0 | N28: =L28-M28 -> 0 | O28: 0 | P28: 25 | Q28: 0 | R28: 0 | S28: =IF(K28=0,0,IF(OR(L28<0,L28/K28>Q28),1,0)) -> 0 | T28: =IF(OR(F28<0,AND(G28>0,F28=0),AND(G28=0,F28>0)),1,0) -> 0 | U28: =IF(OR(K28<0,AND(L28>0,K28=0),AND(K28>0,L28=0)),1,0) -> 0
A29: 26 | C29: =OR_VEH!B178 -> NO UTILICE | E29: 424D | F29: =IFERROR(IF(Flag=TRUE,K29-TBIn!E525,TBIn!D525),0) -> 0 | G29: =IFERROR(IF(Flag=TRUE,L29-TBIn!E1878,TBIn!D1878),0) -> 0 | H29: =IFERROR(IF(Flag=TRUE,M29-TBIn!E1918,TBIn!D1918),0) -> 0 | I29: 0 | J29: 0 | K29: =IFERROR(TBIn!E525,0) -> 0 | L29: =IFERROR(TBIn!E1878,0) -> 0 | M29: =IFERROR(TBIn!E1918,0) -> 0 | N29: 0 | O29: 0 | P29: 26 | Q29: 0 | R29: 0 | S29: 0 | T29: 0 | U29: 0
A30: 27 | C30: =OR_VEH!B179 -> NO UTILICE | E30: 425D | F30: =IFERROR(IF(Flag=TRUE,K30-TBIn!E526,TBIn!D526),0) -> 0 | G30: =IFERROR(IF(Flag=TRUE,L30-TBIn!E1879,TBIn!D1879),0) -> 0 | H30: =IFERROR(IF(Flag=TRUE,M30-TBIn!E1919,TBIn!D1919),0) -> 0 | I30: 0 | J30: 0 | K30: =IFERROR(TBIn!E526,0) -> 0 | L30: =IFERROR(TBIn!E1879,0) -> 0 | M30: =IFERROR(TBIn!E1919,0) -> 0 | N30: 0 | O30: 0 | P30: 27 | Q30: 35000 | R30: 0 | S30: 0 | T30: 0 | U30: 0
A31: 28 | C31: =OR_VEH!B180 -> NO UTILICE | E31: 426D | F31: =IFERROR(IF(Flag=TRUE,K31-TBIn!E527,TBIn!D527),0) -> 0 | G31: =IFERROR(IF(Flag=TRUE,L31-TBIn!E1880,TBIn!D1880),0) -> 0 | H31: =IFERROR(IF(Flag=TRUE,M31-TBIn!E1920,TBIn!D1920),0) -> 0 | I31: 0 | J31: 0 | K31: =IFERROR(TBIn!E527,0) -> 0 | L31: =IFERROR(TBIn!E1880,0) -> 0 | M31: =IFERROR(TBIn!E1920,0) -> 0 | N31: 0 | O31: 0 | P31: 28 | Q31: 0 | R31: 0 | S31: 0 | T31: 0 | U31: 0
A32: 29 | C32: =OR_VEH!B181 -> NO UTILICE | E32: 427D | F32: =IFERROR(IF(Flag=TRUE,K32-TBIn!E528,TBIn!D528),0) -> 0 | G32: =IFERROR(IF(Flag=TRUE,L32-TBIn!E1881,TBIn!D1881),0) -> 0 | H32: =IFERROR(IF(Flag=TRUE,M32-TBIn!E1921,TBIn!D1921),0) -> 0 | I32: 0 | J32: 0 | K32: =IFERROR(TBIn!E528,0) -> 0 | L32: =IFERROR(TBIn!E1881,0) -> 0 | M32: =IFERROR(TBIn!E1921,0) -> 0 | N32: 0 | O32: 0 | P32: 29 | Q32: 0 | R32: 0 | S32: 0 | T32: 0 | U32: 0
A33: 30 | C33: =OR_VEH!B182 -> NO UTILICE | E33: 428D | F33: =IFERROR(IF(Flag=TRUE,K33-TBIn!E529,TBIn!D529),0) -> 0 | G33: =IFERROR(IF(Flag=TRUE,L33-TBIn!E1882,TBIn!D1882),0) -> 0 | H33: =IFERROR(IF(Flag=TRUE,M33-TBIn!E1922,TBIn!D1922),0) -> 0 | I33: 0 | J33: 0 | K33: =IFERROR(TBIn!E529,0) -> 0 | L33: =IFERROR(TBIn!E1882,0) -> 0 | M33: =IFERROR(TBIn!E1922,0) -> 0 | N33: 0 | O33: 0 | P33: 30 | Q33: 0 | R33: 0 | S33: 0 | T33: 0 | U33: 0
A34: 31 | C34: =OR_VEH!B183 -> NO UTILICE | E34: 429D | F34: =IFERROR(IF(Flag=TRUE,K34-TBIn!E530,TBIn!D530),0) -> 0 | G34: =IFERROR(IF(Flag=TRUE,L34-TBIn!E1883,TBIn!D1883),0) -> 0 | H34: =IFERROR(IF(Flag=TRUE,M34-TBIn!E1923,TBIn!D1923),0) -> 0 | I34: 0 | J34: 0 | K34: =IFERROR(TBIn!E530,0) -> 0 | L34: =IFERROR(TBIn!E1883,0) -> 0 | M34: =IFERROR(TBIn!E1923,0) -> 0 | N34: 0 | O34: 0 | P34: 31 | Q34: 0 | R34: 0 | S34: 0 | T34: 0 | U34: 0
A35: 32 | C35: =OR_VEH!B184 -> NO UTILICE | E35: 430D | F35: =IFERROR(IF(Flag=TRUE,K35-TBIn!E531,TBIn!D531),0) -> 0 | G35: =IFERROR(IF(Flag=TRUE,L35-TBIn!E1884,TBIn!D1884),0) -> 0 | H35: =IFERROR(IF(Flag=TRUE,M35-TBIn!E1924,TBIn!D1924),0) -> 0 | I35: 0 | J35: 0 | K35: =IFERROR(TBIn!E531,0) -> 0 | L35: =IFERROR(TBIn!E1884,0) -> 0 | M35: =IFERROR(TBIn!E1924,0) -> 0 | N35: 0 | O35: 0 | P35: 32 | Q35: 0 | R35: 0 | S35: 0 | T35: 0 | U35: 0
A36: 33 | C36: =OR_VEH!B185 -> NO UTILICE | E36: 431D | F36: =IFERROR(IF(Flag=TRUE,K36-TBIn!E532,TBIn!D532),0) -> 0 | G36: =IFERROR(IF(Flag=TRUE,L36-TBIn!E1885,TBIn!D1885),0) -> 0 | H36: =IFERROR(IF(Flag=TRUE,M36-TBIn!E1925,TBIn!D1925),0) -> 0 | I36: 0 | J36: 0 | K36: =IFERROR(TBIn!E532,0) -> 0 | L36: =IFERROR(TBIn!E1885,0) -> 0 | M36: =IFERROR(TBIn!E1925,0) -> 0 | N36: 0 | O36: 0 | P36: 33 | Q36: 0 | R36: 0 | S36: 0 | T36: 0 | U36: 0
A37: 34 | C37: =OR_VEH!B186 -> NO UTILICE | E37: 432D | F37: =IFERROR(IF(Flag=TRUE,K37-TBIn!E533,TBIn!D533),0) -> 0 | G37: =IFERROR(IF(Flag=TRUE,L37-TBIn!E1886,TBIn!D1886),0) -> 0 | H37: =IFERROR(IF(Flag=TRUE,M37-TBIn!E1926,TBIn!D1926),0) -> 0 | I37: 0 | J37: 0 | K37: =IFERROR(TBIn!E533,0) -> 0 | L37: =IFERROR(TBIn!E1886,0) -> 0 | M37: =IFERROR(TBIn!E1926,0) -> 0 | N37: 0 | O37: 0 | P37: 34 | Q37: 0 | R37: 0 | S37: 0 | T37: 0 | U37: 0
A38: 35 | C38: =OR_VEH!B187 -> NO UTILICE | E38: 433D | F38: =IFERROR(IF(Flag=TRUE,K38-TBIn!E534,TBIn!D534),0) -> 0 | G38: =IFERROR(IF(Flag=TRUE,L38-TBIn!E1887,TBIn!D1887),0) -> 0 | H38: =IFERROR(IF(Flag=TRUE,M38-TBIn!E1927,TBIn!D1927),0) -> 0 | I38: 0 | J38: 0 | K38: =IFERROR(TBIn!E534,0) -> 0 | L38: =IFERROR(TBIn!E1887,0) -> 0 | M38: =IFERROR(TBIn!E1927,0) -> 0 | N38: 0 | O38: 0 | P38: 35 | Q38: 0 | R38: 0 | S38: 0 | T38: 0 | U38: 0
A39: 36 | C39: =OR_VEH!B188 -> NO UTILICE | E39: 434D | F39: =IFERROR(IF(Flag=TRUE,K39-TBIn!E535,TBIn!D535),0) -> 0 | G39: =IFERROR(IF(Flag=TRUE,L39-TBIn!E1888,TBIn!D1888),0) -> 0 | H39: =IFERROR(IF(Flag=TRUE,M39-TBIn!E1928,TBIn!D1928),0) -> 0 | I39: 0 | J39: 0 | K39: =IFERROR(TBIn!E535,0) -> 0 | L39: =IFERROR(TBIn!E1888,0) -> 0 | M39: =IFERROR(TBIn!E1928,0) -> 0 | N39: 0 | O39: 0 | P39: 36 | Q39: 0 | R39: 0 | S39: 0 | T39: 0 | U39: 0
A40: 37 | C40: =OR_VEH!B189 -> NO UTILICE | E40: 435D | F40: =IFERROR(IF(Flag=TRUE,K40-TBIn!E536,TBIn!D536),0) -> 0 | G40: =IFERROR(IF(Flag=TRUE,L40-TBIn!E1889,TBIn!D1889),0) -> 0 | H40: =IFERROR(IF(Flag=TRUE,M40-TBIn!E1929,TBIn!D1929),0) -> 0 | I40: 0 | J40: 0 | K40: =IFERROR(TBIn!E536,0) -> 0 | L40: =IFERROR(TBIn!E1889,0) -> 0 | M40: =IFERROR(TBIn!E1929,0) -> 0 | N40: 0 | O40: 0 | P40: 37 | Q40: 0 | R40: 0 | S40: 0 | T40: 0 | U40: 0
A41: 38 | C41: =OR_VEH!B190 -> NO UTILICE | E41: 436D | F41: =IFERROR(IF(Flag=TRUE,K41-TBIn!E537,TBIn!D537),0) -> 0 | G41: =IFERROR(IF(Flag=TRUE,L41-TBIn!E1890,TBIn!D1890),0) -> 0 | H41: =IFERROR(IF(Flag=TRUE,M41-TBIn!E1930,TBIn!D1930),0) -> 0 | I41: 0 | J41: 0 | K41: =IFERROR(TBIn!E537,0) -> 0 | L41: =IFERROR(TBIn!E1890,0) -> 0 | M41: =IFERROR(TBIn!E1930,0) -> 0 | N41: 0 | O41: 0 | P41: 38 | Q41: 0 | R41: 0 | S41: 0 | T41: 0 | U41: 0
A42: 39 | C42: =OR_VEH!B191 -> NO UTILICE | E42: 437D | F42: =IFERROR(IF(Flag=TRUE,K42-TBIn!E538,TBIn!D538),0) -> 0 | G42: =IFERROR(IF(Flag=TRUE,L42-TBIn!E1891,TBIn!D1891),0) -> 0 | H42: =IFERROR(IF(Flag=TRUE,M42-TBIn!E1931,TBIn!D1931),0) -> 0 | I42: 0 | J42: 0 | K42: =IFERROR(TBIn!E538,0) -> 0 | L42: =IFERROR(TBIn!E1891,0) -> 0 | M42: =IFERROR(TBIn!E1931,0) -> 0 | N42: 0 | O42: 0 | P42: 39 | Q42: 0 | R42: 0 | S42: 0 | T42: 0 | U42: 0
A43: 40 | C43: =OR_VEH!B192 -> OTROS COM. | E43: 438D | F43: =IFERROR(IF(Flag=TRUE,K43-TBIn!E539,TBIn!D539),0) -> 0 | G43: =IFERROR(IF(Flag=TRUE,L43-TBIn!E1892,TBIn!D1892),0) -> 0 | H43: =IFERROR(IF(Flag=TRUE,M43-TBIn!E1932,TBIn!D1932),0) -> 0 | I43: 0 | J43: 0 | K43: =IFERROR(TBIn!E539,0) -> 0 | L43: =IFERROR(TBIn!E1892,0) -> 0 | M43: =IFERROR(TBIn!E1932,0) -> 0 | N43: 0 | O43: 0 | P43: 40 | Q43: 0 | R43: 0 | S43: 0 | T43: 0 | U43: 0
A44: 41 | C44: TOTAL COM. Y CAM. NUEVOS MENUDEO | E44: (Lineas 25 a 40) | F44: =SUM(F28:F43) -> 0 | G44: =SUM(G28:G43) -> 0 | H44: =SUM(H28:H43) -> 0 | I44: =SUM(I28:I43) -> 0 | J44: 0 | K44: =SUM(K28:K43) -> 0 | L44: =SUM(L28:L43) -> 0 | M44: =SUM(M28:M43) -> 0 | N44: =SUM(N28:N43) -> 0 | O44: 0 | P44: 41
A45: 42 | C45: =OR_VEH!B194 -> NO UTILICE | E45: 439D | F45: 0 | G45: 0 | H45: 0 | I45: 0 | J45: 0 | K45: 0 | L45: 0 | M45: 0 | N45: 0 | O45: 0 | P45: 42 | Q45: 0 | R45: 0 | S45: =IF(K45=0,0,IF(OR(L45<0,L45/K45>Q45),1,0)) -> 0 | T45: =IF(OR(F45<0,AND(G45>0,F45=0),AND(G45=0,F45>0)),1,0) -> 0 | U45: =IF(OR(K45<0,AND(L45>0,K45=0),AND(K45>0,L45=0)),1,0) -> 0
A46: 43 | C46: =OR_VEH!B195 -> FLOTILLAS | E46: 440D | F46: =IFERROR(IF(Flag=TRUE,K46-TBIn!E541,TBIn!D541),0) -> 0 | G46: =IFERROR(IF(Flag=TRUE,L46-TBIn!E1893,TBIn!D1893),0) -> 0 | H46: =IFERROR(IF(Flag=TRUE,M46-TBIn!E1933,TBIn!D1933),0) -> 0 | I46: =G46-H46 -> 0 | J46: 0 | K46: =IFERROR(TBIn!E541,0) -> 0 | L46: =IFERROR(TBIn!E1893,0) -> 0 | M46: =IFERROR(TBIn!E1933,0) -> 0 | N46: =L46-M46 -> 0 | O46: 0 | P46: 43 | Q46: 0 | R46: 0 | S46: =IF(K46=0,0,IF(OR(L46<0,L46/K46>Q46),1,0)) -> 0 | T46: =IF(OR(F46<0,AND(G46>0,F46=0),AND(G46=0,F46>0)),1,0) -> 0 | U46: =IF(OR(K46<0,AND(L46>0,K46=0),AND(K46>0,L46=0)),1,0) -> 0
A47: 44 | C47: =OR_VEH!B196 -> INTERNAS | E47: 441D | F47: =IFERROR(IF(Flag=TRUE,K47-TBIn!E542,TBIn!D542),0) -> 0 | G47: =IFERROR(IF(Flag=TRUE,L47-TBIn!E1894,TBIn!D1894),0) -> 0 | H47: =IFERROR(IF(Flag=TRUE,M47-TBIn!E1934,TBIn!D1934),0) -> 0 | I47: =G47-H47 -> 0 | J47: 0 | K47: =IFERROR(TBIn!E542,0) -> 0 | L47: =IFERROR(TBIn!E1894,0) -> 0 | M47: =IFERROR(TBIn!E1934,0) -> 0 | N47: =L47-M47 -> 0 | O47: 0 | P47: 44 | Q47: 0 | R47: 0 | S47: =IF(K47=0,0,IF(OR(L47<0,L47/K47>Q47),1,0)) -> 0 | T47: =IF(OR(F47<0,AND(G47>0,F47=0),AND(G47=0,F47>0)),1,0) -> 0 | U47: =IF(OR(K47<0,AND(L47>0,K47=0),AND(K47>0,L47=0)),1,0) -> 0
A48: 45 | C48: TOTAL COM. Y CAM. NUEVOS | E48: (Lineas 41 a 44) | F48: =SUM(F44:F47) -> 0 | G48: =SUM(G44:G47) -> 0 | H48: =SUM(H44:H47) -> 0 | I48: =SUM(I44:I47) -> 0 | J48: 0 | K48: =SUM(K44:K47) -> 0 | L48: =SUM(L44:L47) -> 0 | M48: =SUM(M44:M47) -> 0 | N48: =SUM(N44:N47) -> 0 | O48: 0 | P48: 45
A49: 46 | C49: =OR_VEH!B198 -> NO UTILICE | E49: =IF(C49<>"--------","445D","") -> 445D | P49: 46 | Q49: 10000 | R49: =IF(F49=0,0,IF(G49/F49>Q49,1,0)) -> 0 | S49: =IF(K49=0,0,IF(OR(L49<0,L49/K49>Q49),1,0)) -> 0 | T49: =IF(OR(F49<0,AND(G49>0,F49=0),AND(G49=0,F49>0)),1,0) -> 0 | U49: =IF(OR(K49<0,AND(L49>0,K49=0),AND(K49>0,L49=0)),1,0) -> 0
A50: 47 | C50: =OR_VEH!B199 -> VENTA DE ACCESORIOS PARA VEHÍCULOS LISTADOS EN ESTA PAGINA | E50: 457D | F50: =IFERROR(IF(Flag=TRUE,K50-TBIn!E543,TBIn!D543),0) -> 0 | G50: =IFERROR(IF(Flag=TRUE,L50-TBIn!E1895,TBIn!D1895),0) -> 0 | H50: =IFERROR(IF(Flag=TRUE,M50-TBIn!E1935,TBIn!D1935),0) -> 0 | I50: =G50-H50 -> 0 | J50: =IFERROR(I50/F$51,0) -> 0 | K50: =IFERROR(TBIn!E543,0) -> 0 | L50: =IFERROR(TBIn!E1895,0) -> 0 | M50: =IFERROR(TBIn!E1935,0) -> 0 | N50: =L50-M50 -> 0 | O50: =IFERROR(N50/K$51,0) -> 0 | P50: 47 | Q50: 10000 | R50: 0 | S50: =IF(K50=0,0,IF(OR(L50<0,L50/K50>Q50),1,0)) -> 0 | T50: =IF(OR(F50<0,AND(G50>0,F50=0),AND(G50=0,F50>0)),1,0) -> 0 | U50: =IF(OR(K50<0,AND(L50>0,K50=0),AND(K50>0,L50=0)),1,0) -> 0
A51: 48 | C51: TOTAL VEHICULOS NUEVOS | F51: =IFERROR(IF(Flag=TRUE,+F27+F48,TBIn!D544),0) -> 0 | G51: =G27+G48+G50 -> 0 | H51: =H27+H48+H50 -> 0 | I51: =IFERROR(IF(Flag=TRUE,I27+I48+I49+I50,TBIn!D1936),0) -> 0 | J51: =IFERROR(I51/F$51,0) -> 0 | K51: =IFERROR(IF(Flag=TRUE,+K27+K48,TBIn!E544),0) -> 0 | L51: =L27+L48+L50 -> 0 | M51: =M27+M48+M50 -> 0 | N51: =IFERROR(IF(Flag=TRUE,N27+N48+N49+N50,TBIn!E1936),0) -> 0 | O51: =IFERROR(N51/K$51,0) -> 0 | P51: 48
J52: PUNV | O52: PUNV

Sheet Page5e
B1: =OR_VEH!B202 -> GMC | F1: VEHICULOS NUEVOS - ANALISIS DE VENTAS Y UTILIDAD BRUTA | P1: =TBIn!$E$2591&" - "&TBIn!$AH$10&" - PAGINA 5e" -> 122112 - 201801 - PAGINA 5e | Q1: Per Unit | R1: Month | S1: YTD | T1: Month | U1: YTD
A2: Lin. | D2: OPERACIONES | G2: MES | L2: AÑO A LA FECHA | P2: Lin. | Q2: Sales | R2: Sales | S2: Sales | T2: Unit | U2: Unit
A3: No. | D3: VARIABLES | E3: CTA. | F3: UNIDADES VENDIDAS | G3: VENTAS | H3: COSTO DE VENTAS | I3: UTILIDAD BRUTA | J3: POR VEHICULO VENDIDO | K3: UNIDADES VENDIDAS | L3: VENTAS | M3: COSTO DE VENTAS | N3: UTILIDAD BRUTA | O3: POR VEHICULO VENDIDO | P3: No. | Q3: Max | R3: Flag | S3: Flag | T3: Flag | U3: Flag
A4: 1 | B4: VENTAS D E AUTOS NUEVOS | C4: =OR_VEH!B203 -> NO UTILICE | E4: 400E | F4: =IFERROR(IF(Flag=TRUE,K4-TBIn!E545,TBIn!D545),0) -> 0 | G4: =IFERROR(IF(Flag=TRUE,L4-TBIn!E1937,TBIn!D1937),0) -> 0 | H4: ='Page5eB&P'!G4-'Page5eB&P'!J4 -> 0 | I4: =G4-H4 -> 0 | J4: =IFERROR(I4/F4,0) -> 0 | K4: =IFERROR(TBIn!E545,0) -> 0 | L4: =IFERROR(TBIn!E1937,0) -> 0 | M4: ='Page5eB&P'!L4-'Page5eB&P'!O4 -> 0 | N4: =L4-M4 -> 0 | O4: =IFERROR(N4/K4,0) -> 0 | P4: 1 | Q4: 0 | R4: =IF(F4=0,0,IF(G4/F4>Q4,1,0)) -> 0 | S4: =IF(K4=0,0,IF(OR(L4<0,L4/K4>Q4),1,0)) -> 0 | T4: =IF(OR(F4<0,AND(G4>0,F4=0),AND(G4=0,F4>0)),1,0) -> 0 | U4: =IF(OR(K4<0,AND(L4>0,K4=0),AND(K4>0,L4=0)),1,0) -> 0
A5: 2 | C5: =OR_VEH!B204 -> NO UTILICE | E5: 401E | F5: =IFERROR(IF(Flag=TRUE,K5-TBIn!E546,TBIn!D546),0) -> 0 | G5: =IFERROR(IF(Flag=TRUE,L5-TBIn!E1938,TBIn!D1938),0) -> 0 | H5: ='Page5eB&P'!G5-'Page5eB&P'!J5 -> 0 | I5: =G5-H5 -> 0 | J5: 0 | K5: =IFERROR(TBIn!E546,0) -> 0 | L5: =IFERROR(TBIn!E1938,0) -> 0 | M5: ='Page5eB&P'!L5-'Page5eB&P'!O5 -> 0 | N5: =L5-M5 -> 0 | O5: 0 | P5: 2 | Q5: 0 | R5: =IF(F5=0,0,IF(G5/F5>Q5,1,0)) -> 0 | S5: =IF(K5=0,0,IF(OR(L5<0,L5/K5>Q5),1,0)) -> 0 | T5: =IF(OR(F5<0,AND(G5>0,F5=0),AND(G5=0,F5>0)),1,0) -> 0 | U5: =IF(OR(K5<0,AND(L5>0,K5=0),AND(K5>0,L5=0)),1,0) -> 0
A6: 3 | C6: =OR_VEH!B205 -> NO UTILICE | E6: 402E | F6: =IFERROR(IF(Flag=TRUE,K6-TBIn!E547,TBIn!D547),0) -> 0 | G6: =IFERROR(IF(Flag=TRUE,L6-TBIn!E1939,TBIn!D1939),0) -> 0 | H6: ='Page5eB&P'!G6-'Page5eB&P'!J6 -> 0 | I6: 0 | J6: 0 | K6: =IFERROR(TBIn!E547,0) -> 0 | L6: =IFERROR(TBIn!E1939,0) -> 0 | M6: ='Page5eB&P'!L6-'Page5eB&P'!O6 -> 0 | N6: 0 | O6: 0 | P6: 3 | Q6: 0 | R6: 0 | S6: 0 | T6: 0 | U6: 0
A7: 4 | C7: =OR_VEH!B206 -> NO UTILICE | E7: 403E | F7: =IFERROR(IF(Flag=TRUE,K7-TBIn!E548,TBIn!D548),0) -> 0 | G7: =IFERROR(IF(Flag=TRUE,L7-TBIn!E1940,TBIn!D1940),0) -> 0 | H7: ='Page5eB&P'!G7-'Page5eB&P'!J7 -> 0 | I7: 0 | J7: 0 | K7: =IFERROR(TBIn!E548,0) -> 0 | L7: =IFERROR(TBIn!E1940,0) -> 0 | M7: ='Page5eB&P'!L7-'Page5eB&P'!O7 -> 0 | N7: 0 | O7: 0 | P7: 4 | Q7: 0 | R7: 0 | S7: 0 | T7: 0 | U7: 0
A8: 5 | C8: =OR_VEH!B207 -> NO UTILICE | E8: 404E | F8: =IFERROR(IF(Flag=TRUE,K8-TBIn!E549,TBIn!D549),0) -> 0 | G8: =IFERROR(IF(Flag=TRUE,L8-TBIn!E1941,TBIn!D1941),0) -> 0 | H8: ='Page5eB&P'!G8-'Page5eB&P'!J8 -> 0 | I8: 0 | J8: 0 | K8: =IFERROR(TBIn!E549,0) -> 0 | L8: =IFERROR(TBIn!E1941,0) -> 0 | M8: ='Page5eB&P'!L8-'Page5eB&P'!O8 -> 0 | N8: 0 | O8: 0 | P8: 5 | Q8: 0 | R8: 0 | S8: 0 | T8: 0 | U8: 0
A9: 6 | C9: =OR_VEH!B208 -> NO UTILICE | E9: 405E | F9: =IFERROR(IF(Flag=TRUE,K9-TBIn!E550,TBIn!D550),0) -> 0 | G9: =IFERROR(IF(Flag=TRUE,L9-TBIn!E1942,TBIn!D1942),0) -> 0 | H9: ='Page5eB&P'!G9-'Page5eB&P'!J9 -> 0 | I9: 0 | J9: 0 | K9: =IFERROR(TBIn!E550,0) -> 0 | L9: =IFERROR(TBIn!E1942,0) -> 0 | M9: ='Page5eB&P'!L9-'Page5eB&P'!O9 -> 0 | N9: 0 | O9: 0 | P9: 6 | Q9: 0 | R9: 0 | S9: 0 | T9: 0 | U9: 0
A10: 7 | C10: =OR_VEH!B209 -> NO UTILICE | E10: 406E | F10: =IFERROR(IF(Flag=TRUE,K10-TBIn!E551,TBIn!D551),0) -> 0 | G10: =IFERROR(IF(Flag=TRUE,L10-TBIn!E1943,TBIn!D1943),0) -> 0 | H10: ='Page5eB&P'!G10-'Page5eB&P'!J10 -> 0 | I10: 0 | J10: 0 | K10: =IFERROR(TBIn!E551,0) -> 0 | L10: =IFERROR(TBIn!E1943,0) -> 0 | M10: ='Page5eB&P'!L10-'Page5eB&P'!O10 -> 0 | N10: 0 | O10: 0 | P10: 7 | Q10: 0 | R10: 0 | S10: 0 | T10: 0 | U10: 0
A11: 8 | C11: =OR_VEH!B210 -> NO UTILICE | E11: 407E | F11: =IFERROR(IF(Flag=TRUE,K11-TBIn!E552,TBIn!D552),0) -> 0 | G11: =IFERROR(IF(Flag=TRUE,L11-TBIn!E1944,TBIn!D1944),0) -> 0 | H11: ='Page5eB&P'!G11-'Page5eB&P'!J11 -> 0 | I11: 0 | J11: 0 | K11: =IFERROR(TBIn!E552,0) -> 0 | L11: =IFERROR(TBIn!E1944,0) -> 0 | M11: ='Page5eB&P'!L11-'Page5eB&P'!O11 -> 0 | N11: 0 | O11: 0 | P11: 8 | Q11: 0 | R11: 0 | S11: 0 | T11: 0 | U11: 0
A12: 9 | C12: =OR_VEH!B211 -> NO UTILICE | E12: 408E | F12: =IFERROR(IF(Flag=TRUE,K12-TBIn!E553,TBIn!D553),0) -> 0 | G12: =IFERROR(IF(Flag=TRUE,L12-TBIn!E1945,TBIn!D1945),0) -> 0 | H12: ='Page5eB&P'!G12-'Page5eB&P'!J12 -> 0 | I12: 0 | J12: 0 | K12: =IFERROR(TBIn!E553,0) -> 0 | L12: =IFERROR(TBIn!E1945,0) -> 0 | M12: ='Page5eB&P'!L12-'Page5eB&P'!O12 -> 0 | N12: 0 | O12: 0 | P12: 9 | Q12: 0 | R12: 0 | S12: 0 | T12: 0 | U12: 0
A13: 10 | C13: =OR_VEH!B212 -> NO UTILICE | E13: 409E | F13: =IFERROR(IF(Flag=TRUE,K13-TBIn!E554,TBIn!D554),0) -> 0 | G13: =IFERROR(IF(Flag=TRUE,L13-TBIn!E1946,TBIn!D1946),0) -> 0 | H13: ='Page5eB&P'!G13-'Page5eB&P'!J13 -> 0 | I13: 0 | J13: 0 | K13: =IFERROR(TBIn!E554,0) -> 0 | L13: =IFERROR(TBIn!E1946,0) -> 0 | M13: ='Page5eB&P'!L13-'Page5eB&P'!O13 -> 0 | N13: 0 | O13: 0 | P13: 10 | Q13: 0 | R13: 0 | S13: 0 | T13: 0 | U13: 0
A14: 11 | C14: =OR_VEH!B213 -> NO UTILICE | E14: 410E | F14: =IFERROR(IF(Flag=TRUE,K14-TBIn!E555,TBIn!D555),0) -> 0 | G14: =IFERROR(IF(Flag=TRUE,L14-TBIn!E1947,TBIn!D1947),0) -> 0 | H14: ='Page5eB&P'!G14-'Page5eB&P'!J14 -> 0 | I14: 0 | J14: 0 | K14: =IFERROR(TBIn!E555,0) -> 0 | L14: =IFERROR(TBIn!E1947,0) -> 0 | M14: ='Page5eB&P'!L14-'Page5eB&P'!O14 -> 0 | N14: 0 | O14: 0 | P14: 11 | Q14: 0 | R14: 0 | S14: 0 | T14: 0 | U14: 0
A15: 12 | C15: =OR_VEH!B214 -> NO UTILICE | E15: 411E | F15: =IFERROR(IF(Flag=TRUE,K15-TBIn!E556,TBIn!D556),0) -> 0 | G15: =IFERROR(IF(Flag=TRUE,L15-TBIn!E1948,TBIn!D1948),0) -> 0 | H15: ='Page5eB&P'!G15-'Page5eB&P'!J15 -> 0 | I15: 0 | J15: 0 | K15: =IFERROR(TBIn!E556,0) -> 0 | L15: =IFERROR(TBIn!E1948,0) -> 0 | M15: ='Page5eB&P'!L15-'Page5eB&P'!O15 -> 0 | N15: 0 | O15: 0 | P15: 12 | Q15: 0 | R15: 0 | S15: 0 | T15: 0 | U15: 0
A16: 13 | C16: =OR_VEH!B215 -> NO UTILICE | E16: 412E | F16: =IFERROR(IF(Flag=TRUE,K16-TBIn!E557,TBIn!D557),0) -> 0 | G16: =IFERROR(IF(Flag=TRUE,L16-TBIn!E1949,TBIn!D1949),0) -> 0 | H16: ='Page5eB&P'!G16-'Page5eB&P'!J16 -> 0 | I16: 0 | J16: 0 | K16: =IFERROR(TBIn!E557,0) -> 0 | L16: =IFERROR(TBIn!E1949,0) -> 0 | M16: ='Page5eB&P'!L16-'Page5eB&P'!O16 -> 0 | N16: 0 | O16: 0 | P16: 13 | Q16: 0 | R16: 0 | S16: 0 | T16: 0 | U16: 0
A17: 14 | C17: =OR_VEH!B216 -> NO UTILICE | E17: 413E | F17: =IFERROR(IF(Flag=TRUE,K17-TBIn!E558,TBIn!D558),0) -> 0 | G17: =IFERROR(IF(Flag=TRUE,L17-TBIn!E1950,TBIn!D1950),0) -> 0 | H17: ='Page5eB&P'!G17-'Page5eB&P'!J17 -> 0 | I17: 0 | J17: 0 | K17: =IFERROR(TBIn!E558,0) -> 0 | L17: =IFERROR(TBIn!E1950,0) -> 0 | M17: ='Page5eB&P'!L17-'Page5eB&P'!O17 -> 0 | N17: 0 | O17: 0 | P17: 14 | Q17: 0 | R17: 0 | S17: 0 | T17: 0 | U17: 0
A18: 15 | C18: =OR_VEH!B217 -> NO UTILICE | E18: 414E | F18: =IFERROR(IF(Flag=TRUE,K18-TBIn!E559,TBIn!D559),0) -> 0 | G18: =IFERROR(IF(Flag=TRUE,L18-TBIn!E1951,TBIn!D1951),0) -> 0 | H18: ='Page5eB&P'!G18-'Page5eB&P'!J18 -> 0 | I18: 0 | J18: 0 | K18: =IFERROR(TBIn!E559,0) -> 0 | L18: =IFERROR(TBIn!E1951,0) -> 0 | M18: ='Page5eB&P'!L18-'Page5eB&P'!O18 -> 0 | N18: 0 | O18: 0 | P18: 15 | Q18: 0 | R18: 0 | S18: 0 | T18: 0 | U18: 0
A19: 16 | C19: =OR_VEH!B218 -> NO UTILICE | E19: 415E | F19: =IFERROR(IF(Flag=TRUE,K19-TBIn!E560,TBIn!D560),0) -> 0 | G19: =IFERROR(IF(Flag=TRUE,L19-TBIn!E1952,TBIn!D1952),0) -> 0 | H19: ='Page5eB&P'!G19-'Page5eB&P'!J19 -> 0 | I19: 0 | J19: 0 | K19: =IFERROR(TBIn!E560,0) -> 0 | L19: =IFERROR(TBIn!E1952,0) -> 0 | M19: ='Page5eB&P'!L19-'Page5eB&P'!O19 -> 0 | N19: 0 | O19: 0 | P19: 16 | Q19: 0 | R19: 0 | S19: 0 | T19: 0 | U19: 0
A20: 17 | C20: =OR_VEH!B219 -> NO UTILICE | E20: 416E | F20: =IFERROR(IF(Flag=TRUE,K20-TBIn!E561,TBIn!D561),0) -> 0 | G20: =IFERROR(IF(Flag=TRUE,L20-TBIn!E1953,TBIn!D1953),0) -> 0 | H20: ='Page5eB&P'!G20-'Page5eB&P'!J20 -> 0 | I20: 0 | J20: 0 | K20: =IFERROR(TBIn!E561,0) -> 0 | L20: =IFERROR(TBIn!E1953,0) -> 0 | M20: ='Page5eB&P'!L20-'Page5eB&P'!O20 -> 0 | N20: 0 | O20: 0 | P20: 17 | Q20: 0 | R20: 0 | S20: 0 | T20: 0 | U20: 0
A21: 18 | C21: =OR_VEH!B220 -> NO UTILICE | E21: 417E | F21: =IFERROR(IF(Flag=TRUE,K21-TBIn!E562,TBIn!D562),0) -> 0 | G21: =IFERROR(IF(Flag=TRUE,L21-TBIn!E1954,TBIn!D1954),0) -> 0 | H21: ='Page5eB&P'!G21-'Page5eB&P'!J21 -> 0 | I21: 0 | J21: 0 | K21: =IFERROR(TBIn!E562,0) -> 0 | L21: =IFERROR(TBIn!E1954,0) -> 0 | M21: ='Page5eB&P'!L21-'Page5eB&P'!O21 -> 0 | N21: 0 | O21: 0 | P21: 18 | Q21: 0 | R21: 0 | S21: 0 | T21: 0 | U21: 0
A22: 19 | C22: =OR_VEH!B221 -> NO UTILICE | E22: 418E | F22: =IFERROR(IF(Flag=TRUE,K22-TBIn!E563,TBIn!D563),0) -> 0 | G22: =IFERROR(IF(Flag=TRUE,L22-TBIn!E1955,TBIn!D1955),0) -> 0 | H22: ='Page5eB&P'!G22-'Page5eB&P'!J22 -> 0 | I22: 0 | J22: 0 | K22: =IFERROR(TBIn!E563,0) -> 0 | L22: =IFERROR(TBIn!E1955,0) -> 0 | M22: ='Page5eB&P'!L22-'Page5eB&P'!O22 -> 0 | N22: 0 | O22: 0 | P22: 19 | Q22: 0 | R22: 0 | S22: 0 | T22: 0 | U22: 0
A23: 20 | C23: TOTAL AUTOS NUEVOS MENUDEO | E23: (Lineas 1 a 19) | F23: ='Page5eB&P'!F23 -> 0 | G23: =SUM(G4:G22) -> 0 | H23: ='Page5eB&P'!G23-'Page5eB&P'!J23 -> 0 | I23: =SUM(I4:I22) -> 0 | J23: 0 | K23: ='Page5eB&P'!K23 -> 0 | L23: =SUM(L4:L22) -> 0 | M23: ='Page5eB&P'!L23-'Page5eB&P'!O23 -> 0 | N23: =SUM(N4:N22) -> 0 | O23: 0 | P23: 20
A24: 21 | C24: =OR_VEH!B223 -> NO UTILICE | E24: 419E | F24: ='Page5eB&P'!F24 -> 0 | G24: 0 | H24: ='Page5eB&P'!G24-'Page5eB&P'!J24 -> 0 | I24: 0 | J24: 0 | K24: ='Page5eB&P'!K24 -> 0 | L24: 0 | M24: ='Page5eB&P'!L24-'Page5eB&P'!O24 -> 0 | N24: 0 | O24: 0 | P24: 21 | Q24: 0 | R24: 0 | S24: =IF(K24=0,0,IF(OR(L24<0,L24/K24>Q24),1,0)) -> 0 | T24: =IF(OR(F24<0,AND(G24>0,F24=0),AND(G24=0,F24>0)),1,0) -> 0 | U24: =IF(OR(K24<0,AND(L24>0,K24=0),AND(K24>0,L24=0)),1,0) -> 0
A25: 22 | C25: =OR_VEH!B224 -> FLOTILLAS | E25: 420E | F25: =IFERROR(IF(Flag=TRUE,K25-TBIn!E565,TBIn!D565),0) -> 0 | G25: =IFERROR(IF(Flag=TRUE,L25-TBIn!E1956,TBIn!D1956),0) -> 0 | H25: ='Page5eB&P'!G25-'Page5eB&P'!J25 -> 0 | I25: =G25-H25 -> 0 | J25: 0 | K25: =IFERROR(TBIn!E565,0) -> 0 | L25: =IFERROR(TBIn!E1956,0) -> 0 | M25: ='Page5eB&P'!L25-'Page5eB&P'!O25 -> 0 | N25: =L25-M25 -> 0 | O25: 0 | P25: 22 | Q25: 0 | R25: 0 | S25: =IF(K25=0,0,IF(OR(L25<0,L25/K25>Q25),1,0)) -> 0 | T25: =IF(OR(F25<0,AND(G25>0,F25=0),AND(G25=0,F25>0)),1,0) -> 0 | U25: =IF(OR(K25<0,AND(L25>0,K25=0),AND(K25>0,L25=0)),1,0) -> 0
A26: 23 | C26: =OR_VEH!B225 -> INTERNAS | E26: 421E | F26: =IFERROR(IF(Flag=TRUE,K26-TBIn!E566,TBIn!D566),0) -> 0 | G26: =IFERROR(IF(Flag=TRUE,L26-TBIn!E1957,TBIn!D1957),0) -> 0 | H26: ='Page5eB&P'!G26-'Page5eB&P'!J26 -> 0 | I26: =G26-H26 -> 0 | J26: 0 | K26: =IFERROR(TBIn!E566,0) -> 0 | L26: =IFERROR(TBIn!E1957,0) -> 0 | M26: ='Page5eB&P'!L26-'Page5eB&P'!O26 -> 0 | N26: =L26-M26 -> 0 | O26: 0 | P26: 23 | Q26: 0 | R26: 0 | S26: =IF(K26=0,0,IF(OR(L26<0,L26/K26>Q26),1,0)) -> 0 | T26: =IF(OR(F26<0,AND(G26>0,F26=0),AND(G26=0,F26>0)),1,0) -> 0 | U26: =IF(OR(K26<0,AND(L26>0,K26=0),AND(K26>0,L26=0)),1,0) -> 0
A27: 24 | C27: TOTAL AUTOS NUEVOS | E27: (Lineas 20 a 23) | F27: ='Page5eB&P'!F27 -> 0 | G27: =SUM(G23:G26) -> 0 | H27: ='Page5eB&P'!G27-'Page5eB&P'!J27 -> 0 | I27: =SUM(I23:I26) -> 0 | J27: 0 | K27: ='Page5eB&P'!K27 -> 0 | L27: =SUM(L23:L26) -> 0 | M27: ='Page5eB&P'!L27-'Page5eB&P'!O27 -> 0 | N27: =SUM(N23:N26) -> 0 | O27: 0 | P27: 24
A28: 25 | B28: VENTAS DE COM. Y CAM. NUEVOS | C28: =OR_VEH!B227 -> YUKON | E28: 423E | F28: =IFERROR(IF(Flag=TRUE,K28-TBIn!E567,TBIn!D567),0) -> 0 | G28: =IFERROR(IF(Flag=TRUE,L28-TBIn!E1958,TBIn!D1958),0) -> 0 | H28: ='Page5eB&P'!G28-'Page5eB&P'!J28 -> 0 | I28: =G28-H28 -> 0 | J28: 0 | K28: =IFERROR(TBIn!E567,0) -> 0 | L28: =IFERROR(TBIn!E1958,0) -> 0 | M28: ='Page5eB&P'!L28-'Page5eB&P'!O28 -> 0 | N28: =L28-M28 -> 0 | O28: 0 | P28: 25 | Q28: 0 | R28: 0 | S28: =IF(K28=0,0,IF(OR(L28<0,L28/K28>Q28),1,0)) -> 0 | T28: =IF(OR(F28<0,AND(G28>0,F28=0),AND(G28=0,F28>0)),1,0) -> 0 | U28: =IF(OR(K28<0,AND(L28>0,K28=0),AND(K28>0,L28=0)),1,0) -> 0
A29: 26 | C29: =OR_VEH!B228 -> CANYON | E29: 424E | F29: =IFERROR(IF(Flag=TRUE,K29-TBIn!E568,TBIn!D568),0) -> 0 | G29: =IFERROR(IF(Flag=TRUE,L29-TBIn!E1959,TBIn!D1959),0) -> 0 | H29: ='Page5eB&P'!G29-'Page5eB&P'!J29 -> 0 | I29: 0 | J29: 0 | K29: =IFERROR(TBIn!E568,0) -> 0 | L29: =IFERROR(TBIn!E1959,0) -> 0 | M29: ='Page5eB&P'!L29-'Page5eB&P'!O29 -> 0 | N29: 0 | O29: 0 | P29: 26 | Q29: 0 | R29: 0 | S29: 0 | T29: 0 | U29: 0
A30: 27 | C30: =OR_VEH!B229 -> SIERRA CREW & REG CAB | E30: 425E | F30: =IFERROR(IF(Flag=TRUE,K30-TBIn!E569,TBIn!D569),0) -> 0 | G30: =IFERROR(IF(Flag=TRUE,L30-TBIn!E1960,TBIn!D1960),0) -> 0 | H30: ='Page5eB&P'!G30-'Page5eB&P'!J30 -> 0 | I30: 0 | J30: 0 | K30: =IFERROR(TBIn!E569,0) -> 0 | L30: =IFERROR(TBIn!E1960,0) -> 0 | M30: ='Page5eB&P'!L30-'Page5eB&P'!O30 -> 0 | N30: 0 | O30: 0 | P30: 27 | Q30: 0 | R30: 0 | S30: 0 | T30: 0 | U30: 0
A31: 28 | C31: =OR_VEH!B230 -> ACADIA | E31: 426E | F31: =IFERROR(IF(Flag=TRUE,K31-TBIn!E570,TBIn!D570),0) -> 0 | G31: =IFERROR(IF(Flag=TRUE,L31-TBIn!E1961,TBIn!D1961),0) -> 0 | H31: ='Page5eB&P'!G31-'Page5eB&P'!J31 -> 0 | I31: 0 | J31: 0 | K31: =IFERROR(TBIn!E570,0) -> 0 | L31: =IFERROR(TBIn!E1961,0) -> 0 | M31: ='Page5eB&P'!L31-'Page5eB&P'!O31 -> 0 | N31: 0 | O31: 0 | P31: 28 | Q31: 0 | R31: 0 | S31: 0 | T31: 0 | U31: 0
A32: 29 | C32: =OR_VEH!B231 -> TERRAIN | E32: 427E | F32: =IFERROR(IF(Flag=TRUE,K32-TBIn!E571,TBIn!D571),0) -> 0 | G32: =IFERROR(IF(Flag=TRUE,L32-TBIn!E1962,TBIn!D1962),0) -> 0 | H32: ='Page5eB&P'!G32-'Page5eB&P'!J32 -> 0 | I32: 0 | J32: 0 | K32: =IFERROR(TBIn!E571,0) -> 0 | L32: =IFERROR(TBIn!E1962,0) -> 0 | M32: ='Page5eB&P'!L32-'Page5eB&P'!O32 -> 0 | N32: 0 | O32: 0 | P32: 29 | Q32: 0 | R32: 0 | S32: 0 | T32: 0 | U32: 0
A33: 30 | C33: =OR_VEH!B232 -> NO UTILICE | E33: 428E | F33: =IFERROR(IF(Flag=TRUE,K33-TBIn!E572,TBIn!D572),0) -> 0 | G33: =IFERROR(IF(Flag=TRUE,L33-TBIn!E1963,TBIn!D1963),0) -> 0 | H33: ='Page5eB&P'!G33-'Page5eB&P'!J33 -> 0 | I33: 0 | J33: 0 | K33: =IFERROR(TBIn!E572,0) -> 0 | L33: =IFERROR(TBIn!E1963,0) -> 0 | M33: ='Page5eB&P'!L33-'Page5eB&P'!O33 -> 0 | N33: 0 | O33: 0 | P33: 30 | Q33: 0 | R33: 0 | S33: 0 | T33: 0 | U33: 0
A34: 31 | C34: =OR_VEH!B233 -> NO UTILICE | E34: 429E | F34: =IFERROR(IF(Flag=TRUE,K34-TBIn!E573,TBIn!D573),0) -> 0 | G34: =IFERROR(IF(Flag=TRUE,L34-TBIn!E1964,TBIn!D1964),0) -> 0 | H34: ='Page5eB&P'!G34-'Page5eB&P'!J34 -> 0 | I34: 0 | J34: 0 | K34: =IFERROR(TBIn!E573,0) -> 0 | L34: =IFERROR(TBIn!E1964,0) -> 0 | M34: ='Page5eB&P'!L34-'Page5eB&P'!O34 -> 0 | N34: 0 | O34: 0 | P34: 31 | Q34: 0 | R34: 0 | S34: 0 | T34: 0 | U34: 0
A35: 32 | C35: =OR_VEH!B234 -> NO UTILICE | E35: 430E | F35: =IFERROR(IF(Flag=TRUE,K35-TBIn!E574,TBIn!D574),0) -> 0 | G35: =IFERROR(IF(Flag=TRUE,L35-TBIn!E1965,TBIn!D1965),0) -> 0 | H35: ='Page5eB&P'!G35-'Page5eB&P'!J35 -> 0 | I35: 0 | J35: 0 | K35: =IFERROR(TBIn!E574,0) -> 0 | L35: =IFERROR(TBIn!E1965,0) -> 0 | M35: ='Page5eB&P'!L35-'Page5eB&P'!O35 -> 0 | N35: 0 | O35: 0 | P35: 32 | Q35: 0 | R35: 0 | S35: 0 | T35: 0 | U35: 0
A36: 33 | C36: =OR_VEH!B235 -> NO UTILICE | E36: 431E | F36: =IFERROR(IF(Flag=TRUE,K36-TBIn!E575,TBIn!D575),0) -> 0 | G36: =IFERROR(IF(Flag=TRUE,L36-TBIn!E1966,TBIn!D1966),0) -> 0 | H36: ='Page5eB&P'!G36-'Page5eB&P'!J36 -> 0 | I36: 0 | J36: 0 | K36: =IFERROR(TBIn!E575,0) -> 0 | L36: =IFERROR(TBIn!E1966,0) -> 0 | M36: ='Page5eB&P'!L36-'Page5eB&P'!O36 -> 0 | N36: 0 | O36: 0 | P36: 33 | Q36: 0 | R36: 0 | S36: 0 | T36: 0 | U36: 0
A37: 34 | C37: =OR_VEH!B236 -> NO UTILICE | E37: 432E | F37: =IFERROR(IF(Flag=TRUE,K37-TBIn!E576,TBIn!D576),0) -> 0 | G37: =IFERROR(IF(Flag=TRUE,L37-TBIn!E1967,TBIn!D1967),0) -> 0 | H37: ='Page5eB&P'!G37-'Page5eB&P'!J37 -> 0 | I37: 0 | J37: 0 | K37: =IFERROR(TBIn!E576,0) -> 0 | L37: =IFERROR(TBIn!E1967,0) -> 0 | M37: ='Page5eB&P'!L37-'Page5eB&P'!O37 -> 0 | N37: 0 | O37: 0 | P37: 34 | Q37: 0 | R37: 0 | S37: 0 | T37: 0 | U37: 0
A38: 35 | C38: =OR_VEH!B237 -> NO UTILICE | E38: 433E | F38: =IFERROR(IF(Flag=TRUE,K38-TBIn!E577,TBIn!D577),0) -> 0 | G38: =IFERROR(IF(Flag=TRUE,L38-TBIn!E1968,TBIn!D1968),0) -> 0 | H38: ='Page5eB&P'!G38-'Page5eB&P'!J38 -> 0 | I38: 0 | J38: 0 | K38: =IFERROR(TBIn!E577,0) -> 0 | L38: =IFERROR(TBIn!E1968,0) -> 0 | M38: ='Page5eB&P'!L38-'Page5eB&P'!O38 -> 0 | N38: 0 | O38: 0 | P38: 35 | Q38: 0 | R38: 0 | S38: 0 | T38: 0 | U38: 0
A39: 36 | C39: =OR_VEH!B238 -> NO UTILICE | E39: 434E | F39: =IFERROR(IF(Flag=TRUE,K39-TBIn!E578,TBIn!D578),0) -> 0 | G39: =IFERROR(IF(Flag=TRUE,L39-TBIn!E1969,TBIn!D1969),0) -> 0 | H39: ='Page5eB&P'!G39-'Page5eB&P'!J39 -> 0 | I39: 0 | J39: 0 | K39: =IFERROR(TBIn!E578,0) -> 0 | L39: =IFERROR(TBIn!E1969,0) -> 0 | M39: ='Page5eB&P'!L39-'Page5eB&P'!O39 -> 0 | N39: 0 | O39: 0 | P39: 36 | Q39: 0 | R39: 0 | S39: 0 | T39: 0 | U39: 0
A40: 37 | C40: =OR_VEH!B239 -> NO UTILICE | E40: 435E | F40: =IFERROR(IF(Flag=TRUE,K40-TBIn!E579,TBIn!D579),0) -> 0 | G40: =IFERROR(IF(Flag=TRUE,L40-TBIn!E1970,TBIn!D1970),0) -> 0 | H40: ='Page5eB&P'!G40-'Page5eB&P'!J40 -> 0 | I40: 0 | J40: 0 | K40: =IFERROR(TBIn!E579,0) -> 0 | L40: =IFERROR(TBIn!E1970,0) -> 0 | M40: ='Page5eB&P'!L40-'Page5eB&P'!O40 -> 0 | N40: 0 | O40: 0 | P40: 37 | Q40: 0 | R40: 0 | S40: 0 | T40: 0 | U40: 0
A41: 38 | C41: =OR_VEH!B240 -> NO UTILICE | E41: 436E | F41: =IFERROR(IF(Flag=TRUE,K41-TBIn!E580,TBIn!D580),0) -> 0 | G41: =IFERROR(IF(Flag=TRUE,L41-TBIn!E1971,TBIn!D1971),0) -> 0 | H41: ='Page5eB&P'!G41-'Page5eB&P'!J41 -> 0 | I41: 0 | J41: 0 | K41: =IFERROR(TBIn!E580,0) -> 0 | L41: =IFERROR(TBIn!E1971,0) -> 0 | M41: ='Page5eB&P'!L41-'Page5eB&P'!O41 -> 0 | N41: 0 | O41: 0 | P41: 38 | Q41: 0 | R41: 0 | S41: 0 | T41: 0 | U41: 0
A42: 39 | C42: =OR_VEH!B241 -> NO UTILICE | E42: 437E | F42: =IFERROR(IF(Flag=TRUE,K42-TBIn!E581,TBIn!D581),0) -> 0 | G42: =IFERROR(IF(Flag=TRUE,L42-TBIn!E1972,TBIn!D1972),0) -> 0 | H42: ='Page5eB&P'!G42-'Page5eB&P'!J42 -> 0 | I42: 0 | J42: 0 | K42: =IFERROR(TBIn!E581,0) -> 0 | L42: =IFERROR(TBIn!E1972,0) -> 0 | M42: ='Page5eB&P'!L42-'Page5eB&P'!O42 -> 0 | N42: 0 | O42: 0 | P42: 39 | Q42: 0 | R42: 0 | S42: 0 | T42: 0 | U42: 0
A43: 40 | C43: =OR_VEH!B242 -> OTROS COM. GMC | E43: 438E | F43: =IFERROR(IF(Flag=TRUE,K43-TBIn!E582,TBIn!D582),0) -> 0 | G43: =IFERROR(IF(Flag=TRUE,L43-TBIn!E1973,TBIn!D1973),0) -> 0 | H43: ='Page5eB&P'!G43-'Page5eB&P'!J43 -> 0 | I43: 0 | J43: 0 | K43: =IFERROR(TBIn!E582,0) -> 0 | L43: =IFERROR(TBIn!E1973,0) -> 0 | M43: ='Page5eB&P'!L43-'Page5eB&P'!O43 -> 0 | N43: 0 | O43: 0 | P43: 40 | Q43: 0 | R43: 0 | S43: 0 | T43: 0 | U43: 0
A44: 41 | C44: TOTAL COM. Y CAM. NUEVOS MENUDEO | E44: (Lineas 25 a 40) | F44: ='Page5eB&P'!F44 -> 0 | G44: =SUM(G28:G43) -> 0 | H44: ='Page5eB&P'!G44-'Page5eB&P'!J44 -> 0 | I44: =SUM(I28:I43) -> 0 | J44: 0 | K44: ='Page5eB&P'!K44 -> 0 | L44: =SUM(L28:L43) -> 0 | M44: ='Page5eB&P'!L44-'Page5eB&P'!O44 -> 0 | N44: =SUM(N28:N43) -> 0 | O44: 0 | P44: 41
A45: 42 | C45: =OR_VEH!B244 -> NO UTILICE | E45: 439E | F45: ='Page5eB&P'!F45 -> 0 | G45: 0 | H45: ='Page5eB&P'!G45-'Page5eB&P'!J45 -> 0 | I45: 0 | J45: 0 | K45: ='Page5eB&P'!K45 -> 0 | L45: 0 | M45: ='Page5eB&P'!L45-'Page5eB&P'!O45 -> 0 | N45: 0 | O45: 0 | P45: 42 | Q45: 0 | R45: 0 | S45: =IF(K45=0,0,IF(OR(L45<0,L45/K45>Q45),1,0)) -> 0 | T45: =IF(OR(F45<0,AND(G45>0,F45=0),AND(G45=0,F45>0)),1,0) -> 0 | U45: =IF(OR(K45<0,AND(L45>0,K45=0),AND(K45>0,L45=0)),1,0) -> 0
A46: 43 | C46: =OR_VEH!B245 -> FLOTILLAS | E46: 440E | F46: =IFERROR(IF(Flag=TRUE,K46-TBIn!E584,TBIn!D584),0) -> 0 | G46: =IFERROR(IF(Flag=TRUE,L46-TBIn!E1974,TBIn!D1974),0) -> 0 | H46: ='Page5eB&P'!G46-'Page5eB&P'!J46 -> 0 | I46: =G46-H46 -> 0 | J46: 0 | K46: =IFERROR(TBIn!E584,0) -> 0 | L46: =IFERROR(TBIn!E1974,0) -> 0 | M46: ='Page5eB&P'!L46-'Page5eB&P'!O46 -> 0 | N46: =L46-M46 -> 0 | O46: 0 | P46: 43 | Q46: 0 | R46: 0 | S46: =IF(K46=0,0,IF(OR(L46<0,L46/K46>Q46),1,0)) -> 0 | T46: =IF(OR(F46<0,AND(G46>0,F46=0),AND(G46=0,F46>0)),1,0) -> 0 | U46: =IF(OR(K46<0,AND(L46>0,K46=0),AND(K46>0,L46=0)),1,0) -> 0
A47: 44 | C47: =OR_VEH!B246 -> INTERNAS | E47: 441E | F47: =IFERROR(IF(Flag=TRUE,K47-TBIn!E585,TBIn!D585),0) -> 0 | G47: =IFERROR(IF(Flag=TRUE,L47-TBIn!E1975,TBIn!D1975),0) -> 0 | H47: ='Page5eB&P'!G47-'Page5eB&P'!J47 -> 0 | I47: =G47-H47 -> 0 | J47: 0 | K47: =IFERROR(TBIn!E585,0) -> 0 | L47: =IFERROR(TBIn!E1975,0) -> 0 | M47: ='Page5eB&P'!L47-'Page5eB&P'!O47 -> 0 | N47: =L47-M47 -> 0 | O47: 0 | P47: 44 | Q47: 0 | R47: 0 | S47: =IF(K47=0,0,IF(OR(L47<0,L47/K47>Q47),1,0)) -> 0 | T47: =IF(OR(F47<0,AND(G47>0,F47=0),AND(G47=0,F47>0)),1,0) -> 0 | U47: =IF(OR(K47<0,AND(L47>0,K47=0),AND(K47>0,L47=0)),1,0) -> 0
A48: 45 | C48: TOTAL COM. Y CAM. NUEVOS | E48: (Lineas 41 a 44) | F48: =SUM(F44:F47) -> 0 | G48: =SUM(G44:G47) -> 0 | H48: =SUM(H44:H47) -> 0 | I48: =SUM(I44:I47) -> 0 | J48: 0 | K48: =SUM(K44:K47) -> 0 | L48: =SUM(L44:L47) -> 0 | M48: =SUM(M44:M47) -> 0 | N48: =SUM(N44:N47) -> 0 | O48: 0 | P48: 45
A49: 46 | C49: =OR_VEH!B248 -> NO UTILICE | E49: =IF(C49<>"--------","445E","") -> 445E | P49: 46 | Q49: 0 | R49: =IF(F49=0,0,IF(G49/F49>Q49,1,0)) -> 0 | S49: =IF(K49=0,0,IF(OR(L49<0,L49/K49>Q49),1,0)) -> 0 | T49: =IF(OR(F49<0,AND(G49>0,F49=0),AND(G49=0,F49>0)),1,0) -> 0 | U49: =IF(OR(K49<0,AND(L49>0,K49=0),AND(K49>0,L49=0)),1,0) -> 0
A50: 47 | C50: =OR_VEH!B249 -> VENTA DE ACCESORIOS PARA VEHÍCULOS LISTADOS EN ESTA PAGINA | E50: 457E | F50: =IFERROR(IF(Flag=TRUE,K50-TBIn!E586,TBIn!D586),0) -> 0 | G50: =IFERROR(IF(Flag=TRUE,L50-TBIn!E1976,TBIn!D1976),0) -> 0 | H50: ='Page5eB&P'!G50 -> 0 | I50: =G50-H50 -> 0 | J50: =IFERROR(I50/F$51,0) -> 0 | K50: =IFERROR(TBIn!E586,0) -> 0 | L50: =IFERROR(TBIn!E1976,0) -> 0 | M50: ='Page5eB&P'!L50 -> 0 | N50: =L50-M50 -> 0 | O50: =IFERROR(N50/K$51,0) -> 0 | P50: 47 | Q50: 0 | R50: 0 | S50: =IF(K50=0,0,IF(OR(L50<0,L50/K50>Q50),1,0)) -> 0 | T50: =IF(OR(F50<0,AND(G50>0,F50=0),AND(G50=0,F50>0)),1,0) -> 0 | U50: =IF(OR(K50<0,AND(L50>0,K50=0),AND(K50>0,L50=0)),1,0) -> 0
A51: 48 | C51: TOTAL VEHICULOS NUEVOS | F51: =IFERROR(IF(Flag=TRUE,F27+F48,TBIn!D587),0) -> 0 | G51: =G27+G48+G50 -> 0 | H51: =H27+H48+H50 -> 0 | I51: =IFERROR(IF(Flag=TRUE,I27+I48+I49+I50,TBIn!D2017),0) -> 0 | J51: =IFERROR(I51/F$51,0) -> 0 | K51: =IFERROR(IF(Flag=TRUE,K27+K48,TBIn!E587),0) -> 0 | L51: =L27+L48+L50 -> 0 | M51: =M27+M48+M50 -> 0 | N51: =IFERROR(IF(Flag=TRUE,N27+N48+N49+N50,TBIn!E2017),0) -> 0 | O51: =IFERROR(N51/K$51,0) -> 0 | P51: 48
J52: PUNV | O52: PUNV

Sheet Page5eB&P
B1: =OR_VEH!B202 -> GMC | H1: VEHICULOS NUEVOS - BONIFICACIONES Y PREMIOS | P1: =TBIn!$E$2591&" - "&TBIn!$AH$10&" - PAGINA 5eB&P" -> 122112 - 201801 - PAGINA 5eB&P | Q1: Per Unit | R1: Month | S1: YTD | T1: Month | U1: YTD
A2: Lin | H2: MES | L2: AÑO A LA FECHA | Q2: Sales | R2: Sales | S2: Sales | T2: Unit | U2: Unit
A3: NO. | E3: CTA. | F3: UNIDADES VENDIDAS | G3: FACTURA GM (CDO) | H3: BONIFICACIÓN | I3: PREMIOS | J3: BONIFICACIÓN Y PREMIOS | K3: UNIDADES VENDIDAS | L3: FACTURA GM (CDO) | M3: BONIFICACIÓN | N3: PREMIOS | O3: BONIFICACIÓN Y PREMIOS | P3: NO. | Q3: Max | R3: Flag | S3: Flag | T3: Flag | U3: Flag | V3: ACC.
A4: 1 | B4: VENTAS D E AUTOS NUEVOS | C4: =OR_VEH!B203 -> NO UTILICE | E4: 400E | F4: =Page5e!F4 -> 0 | G4: =IFERROR(IF(Flag=TRUE,L4-TBIn!E1977,TBIn!D1977),0) -> 0 | H4: =IFERROR(IF(Flag=TRUE,M4-TBIn!E629,TBIn!D629),0) -> 0 | I4: =IFERROR(IF(Flag=TRUE,N4-TBIn!E588,TBIn!D588),0) -> 0 | J4: =H4+I4 -> 0 | K4: =Page5e!K4 -> 0 | L4: =IFERROR(TBIn!E1977,0) -> 0 | M4: =IFERROR(TBIn!E629,0) -> 0 | N4: =IFERROR(TBIn!E588,0) -> 0 | O4: =M4+N4 -> 0 | P4: 1 | Q4: 50000 | R4: 0 | S4: 0 | T4: 0 | U4: 0 | V4: #REF!
A5: 2 | C5: =OR_VEH!B204 -> NO UTILICE | E5: 401E | F5: =Page5e!F5 -> 0 | G5: =IFERROR(IF(Flag=TRUE,L5-TBIn!E1978,TBIn!D1978),0) -> 0 | H5: =IFERROR(IF(Flag=TRUE,M5-TBIn!E630,TBIn!D630),0) -> 0 | I5: =IFERROR(IF(Flag=TRUE,N5-TBIn!E589,TBIn!D589),0) -> 0 | J5: =H5+I5 -> 0 | K5: =Page5e!K5 -> 0 | L5: =IFERROR(TBIn!E1978,0) -> 0 | M5: =IFERROR(TBIn!E630,0) -> 0 | N5: =IFERROR(TBIn!E589,0) -> 0 | O5: =M5+N5 -> 0 | P5: 2 | Q5: 50000 | R5: 0 | S5: 0 | T5: 0 | U5: 0 | V5: #REF!
A6: 3 | C6: =OR_VEH!B205 -> NO UTILICE | E6: 402E | F6: =Page5e!F6 -> 0 | G6: =IFERROR(IF(Flag=TRUE,L6-TBIn!E1979,TBIn!D1979),0) -> 0 | H6: =IFERROR(IF(Flag=TRUE,M6-TBIn!E631,TBIn!D631),0) -> 0 | I6: =IFERROR(IF(Flag=TRUE,N6-TBIn!E590,TBIn!D590),0) -> 0 | J6: 0 | K6: =Page5e!K6 -> 0 | L6: =IFERROR(TBIn!E1979,0) -> 0 | M6: =IFERROR(TBIn!E631,0) -> 0 | N6: =IFERROR(TBIn!E590,0) -> 0 | O6: 0 | P6: 3 | Q6: 50000 | R6: 0 | S6: 0 | T6: 0 | U6: 0 | V6: #REF!
A7: 4 | C7: =OR_VEH!B206 -> NO UTILICE | E7: 403E | F7: =Page5e!F7 -> 0 | G7: =IFERROR(IF(Flag=TRUE,L7-TBIn!E1980,TBIn!D1980),0) -> 0 | H7: =IFERROR(IF(Flag=TRUE,M7-TBIn!E632,TBIn!D632),0) -> 0 | I7: =IFERROR(IF(Flag=TRUE,N7-TBIn!E591,TBIn!D591),0) -> 0 | J7: 0 | K7: =Page5e!K7 -> 0 | L7: =IFERROR(TBIn!E1980,0) -> 0 | M7: =IFERROR(TBIn!E632,0) -> 0 | N7: =IFERROR(TBIn!E591,0) -> 0 | O7: 0 | P7: 4 | Q7: 50000 | R7: 0 | S7: 0 | T7: 0 | U7: 0 | V7: #REF!
A8: 5 | C8: =OR_VEH!B207 -> NO UTILICE | E8: 404E | F8: =Page5e!F8 -> 0 | G8: =IFERROR(IF(Flag=TRUE,L8-TBIn!E1981,TBIn!D1981),0) -> 0 | H8: =IFERROR(IF(Flag=TRUE,M8-TBIn!E633,TBIn!D633),0) -> 0 | I8: =IFERROR(IF(Flag=TRUE,N8-TBIn!E592,TBIn!D592),0) -> 0 | J8: 0 | K8: =Page5e!K8 -> 0 | L8: =IFERROR(TBIn!E1981,0) -> 0 | M8: =IFERROR(TBIn!E633,0) -> 0 | N8: =IFERROR(TBIn!E592,0) -> 0 | O8: 0 | P8: 5 | T8: 0 | U8: 0 | V8: #REF!
A9: 6 | C9: =OR_VEH!B208 -> NO UTILICE | E9: 405E | F9: =Page5e!F9 -> 0 | G9: =IFERROR(IF(Flag=TRUE,L9-TBIn!E1982,TBIn!D1982),0) -> 0 | H9: =IFERROR(IF(Flag=TRUE,M9-TBIn!E634,TBIn!D634),0) -> 0 | I9: =IFERROR(IF(Flag=TRUE,N9-TBIn!E593,TBIn!D593),0) -> 0 | J9: 0 | K9: =Page5e!K9 -> 0 | L9: =IFERROR(TBIn!E1982,0) -> 0 | M9: =IFERROR(TBIn!E634,0) -> 0 | N9: =IFERROR(TBIn!E593,0) -> 0 | O9: 0 | P9: 6 | Q9: 50000 | R9: 0 | S9: 0 | T9: 0 | U9: 0 | V9: #REF!
A10: 7 | C10: =OR_VEH!B209 -> NO UTILICE | E10: 406E | F10: =Page5e!F10 -> 0 | G10: =IFERROR(IF(Flag=TRUE,L10-TBIn!E1983,TBIn!D1983),0) -> 0 | H10: =IFERROR(IF(Flag=TRUE,M10-TBIn!E635,TBIn!D635),0) -> 0 | I10: =IFERROR(IF(Flag=TRUE,N10-TBIn!E594,TBIn!D594),0) -> 0 | J10: 0 | K10: =Page5e!K10 -> 0 | L10: =IFERROR(TBIn!E1983,0) -> 0 | M10: =IFERROR(TBIn!E635,0) -> 0 | N10: =IFERROR(TBIn!E594,0) -> 0 | O10: 0 | P10: 7 | Q10: 50000 | R10: 0 | S10: 0 | T10: 0 | U10: 0 | V10: #REF!
A11: 8 | C11: =OR_VEH!B210 -> NO UTILICE | E11: 407E | F11: =Page5e!F11 -> 0 | G11: =IFERROR(IF(Flag=TRUE,L11-TBIn!E1984,TBIn!D1984),0) -> 0 | H11: =IFERROR(IF(Flag=TRUE,M11-TBIn!E636,TBIn!D636),0) -> 0 | I11: =IFERROR(IF(Flag=TRUE,N11-TBIn!E595,TBIn!D595),0) -> 0 | J11: 0 | K11: =Page5e!K11 -> 0 | L11: =IFERROR(TBIn!E1984,0) -> 0 | M11: =IFERROR(TBIn!E636,0) -> 0 | N11: =IFERROR(TBIn!E595,0) -> 0 | O11: 0 | P11: 8 | Q11: 50000 | R11: 0 | S11: 0 | T11: 0 | U11: 0 | V11: #REF!
A12: 9 | C12: =OR_VEH!B211 -> NO UTILICE | E12: 408E | F12: =Page5e!F12 -> 0 | G12: =IFERROR(IF(Flag=TRUE,L12-TBIn!E1985,TBIn!D1985),0) -> 0 | H12: =IFERROR(IF(Flag=TRUE,M12-TBIn!E637,TBIn!D637),0) -> 0 | I12: =IFERROR(IF(Flag=TRUE,N12-TBIn!E596,TBIn!D596),0) -> 0 | J12: 0 | K12: =Page5e!K12 -> 0 | L12: =IFERROR(TBIn!E1985,0) -> 0 | M12: =IFERROR(TBIn!E637,0) -> 0 | N12: =IFERROR(TBIn!E596,0) -> 0 | O12: 0 | P12: 9 | Q12: 50000 | R12: 0 | S12: 0 | T12: 0 | U12: 0 | V12: #REF!
A13: 10 | C13: =OR_VEH!B212 -> NO UTILICE | E13: 409E | F13: =Page5e!F13 -> 0 | G13: =IFERROR(IF(Flag=TRUE,L13-TBIn!E1986,TBIn!D1986),0) -> 0 | H13: =IFERROR(IF(Flag=TRUE,M13-TBIn!E638,TBIn!D638),0) -> 0 | I13: =IFERROR(IF(Flag=TRUE,N13-TBIn!E597,TBIn!D597),0) -> 0 | J13: 0 | K13: =Page5e!K13 -> 0 | L13: =IFERROR(TBIn!E1986,0) -> 0 | M13: =IFERROR(TBIn!E638,0) -> 0 | N13: =IFERROR(TBIn!E597,0) -> 0 | O13: 0 | P13: 10 | Q13: 50000 | R13: 0 | S13: 0 | T13: 0 | U13: 0 | V13: #REF!
A14: 11 | C14: =OR_VEH!B213 -> NO UTILICE | E14: 410E | F14: =Page5e!F14 -> 0 | G14: =IFERROR(IF(Flag=TRUE,L14-TBIn!E1987,TBIn!D1987),0) -> 0 | H14: =IFERROR(IF(Flag=TRUE,M14-TBIn!E639,TBIn!D639),0) -> 0 | I14: =IFERROR(IF(Flag=TRUE,N14-TBIn!E598,TBIn!D598),0) -> 0 | J14: 0 | K14: =Page5e!K14 -> 0 | L14: =IFERROR(TBIn!E1987,0) -> 0 | M14: =IFERROR(TBIn!E639,0) -> 0 | N14: =IFERROR(TBIn!E598,0) -> 0 | O14: 0 | P14: 11 | Q14: 50000 | R14: 0 | S14: 0 | T14: 0 | U14: 0 | V14: #REF!
A15: 12 | C15: =OR_VEH!B214 -> NO UTILICE | E15: 411E | F15: =Page5e!F15 -> 0 | G15: =IFERROR(IF(Flag=TRUE,L15-TBIn!E1988,TBIn!D1988),0) -> 0 | H15: =IFERROR(IF(Flag=TRUE,M15-TBIn!E640,TBIn!D640),0) -> 0 | I15: =IFERROR(IF(Flag=TRUE,N15-TBIn!E599,TBIn!D599),0) -> 0 | J15: 0 | K15: =Page5e!K15 -> 0 | L15: =IFERROR(TBIn!E1988,0) -> 0 | M15: =IFERROR(TBIn!E640,0) -> 0 | N15: =IFERROR(TBIn!E599,0) -> 0 | O15: 0 | P15: 12 | Q15: 50000 | R15: 0 | S15: 0 | T15: 0 | U15: 0 | V15: #REF!
A16: 13 | C16: =OR_VEH!B215 -> NO UTILICE | E16: 412E | F16: =Page5e!F16 -> 0 | G16: =IFERROR(IF(Flag=TRUE,L16-TBIn!E1989,TBIn!D1989),0) -> 0 | H16: =IFERROR(IF(Flag=TRUE,M16-TBIn!E641,TBIn!D641),0) -> 0 | I16: =IFERROR(IF(Flag=TRUE,N16-TBIn!E600,TBIn!D600),0) -> 0 | J16: 0 | K16: =Page5e!K16 -> 0 | L16: =IFERROR(TBIn!E1989,0) -> 0 | M16: =IFERROR(TBIn!E641,0) -> 0 | N16: =IFERROR(TBIn!E600,0) -> 0 | O16: 0 | P16: 13 | Q16: 50000 | R16: 0 | S16: 0 | T16: 0 | U16: 0 | V16: #REF!
A17: 14 | C17: =OR_VEH!B216 -> NO UTILICE | E17: 413E | F17: =Page5e!F17 -> 0 | G17: =IFERROR(IF(Flag=TRUE,L17-TBIn!E1990,TBIn!D1990),0) -> 0 | H17: =IFERROR(IF(Flag=TRUE,M17-TBIn!E642,TBIn!D642),0) -> 0 | I17: =IFERROR(IF(Flag=TRUE,N17-TBIn!E601,TBIn!D601),0) -> 0 | J17: 0 | K17: =Page5e!K17 -> 0 | L17: =IFERROR(TBIn!E1990,0) -> 0 | M17: =IFERROR(TBIn!E642,0) -> 0 | N17: =IFERROR(TBIn!E601,0) -> 0 | O17: 0 | P17: 14 | Q17: 50000 | R17: 0 | S17: 0 | T17: 0 | U17: 0 | V17: #REF!
A18: 15 | C18: =OR_VEH!B217 -> NO UTILICE | E18: 414E | F18: =Page5e!F18 -> 0 | G18: =IFERROR(IF(Flag=TRUE,L18-TBIn!E1991,TBIn!D1991),0) -> 0 | H18: =IFERROR(IF(Flag=TRUE,M18-TBIn!E643,TBIn!D643),0) -> 0 | I18: =IFERROR(IF(Flag=TRUE,N18-TBIn!E602,TBIn!D602),0) -> 0 | J18: 0 | K18: =Page5e!K18 -> 0 | L18: =IFERROR(TBIn!E1991,0) -> 0 | M18: =IFERROR(TBIn!E643,0) -> 0 | N18: =IFERROR(TBIn!E602,0) -> 0 | O18: 0 | P18: 15 | Q18: 50000 | R18: 0 | S18: 0 | T18: 0 | U18: 0 | V18: #REF!
A19: 16 | C19: =OR_VEH!B218 -> NO UTILICE | E19: 415E | F19: =Page5e!F19 -> 0 | G19: =IFERROR(IF(Flag=TRUE,L19-TBIn!E1992,TBIn!D1992),0) -> 0 | H19: =IFERROR(IF(Flag=TRUE,M19-TBIn!E644,TBIn!D644),0) -> 0 | I19: =IFERROR(IF(Flag=TRUE,N19-TBIn!E603,TBIn!D603),0) -> 0 | J19: 0 | K19: =Page5e!K19 -> 0 | L19: =IFERROR(TBIn!E1992,0) -> 0 | M19: =IFERROR(TBIn!E644,0) -> 0 | N19: =IFERROR(TBIn!E603,0) -> 0 | O19: 0 | P19: 16 | Q19: 50000 | R19: 0 | S19: 0 | T19: 0 | U19: 0 | V19: #REF!
A20: 17 | C20: =OR_VEH!B219 -> NO UTILICE | E20: 416E | F20: =Page5e!F20 -> 0 | G20: =IFERROR(IF(Flag=TRUE,L20-TBIn!E1993,TBIn!D1993),0) -> 0 | H20: =IFERROR(IF(Flag=TRUE,M20-TBIn!E645,TBIn!D645),0) -> 0 | I20: =IFERROR(IF(Flag=TRUE,N20-TBIn!E604,TBIn!D604),0) -> 0 | J20: 0 | K20: =Page5e!K20 -> 0 | L20: =IFERROR(TBIn!E1993,0) -> 0 | M20: =IFERROR(TBIn!E645,0) -> 0 | N20: =IFERROR(TBIn!E604,0) -> 0 | O20: 0 | P20: 17 | Q20: 50000 | R20: 0 | S20: 0 | T20: 0 | U20: 0 | V20: #REF!
A21: 18 | C21: =OR_VEH!B220 -> NO UTILICE | E21: 417E | F21: =Page5e!F21 -> 0 | G21: =IFERROR(IF(Flag=TRUE,L21-TBIn!E1994,TBIn!D1994),0) -> 0 | H21: =IFERROR(IF(Flag=TRUE,M21-TBIn!E646,TBIn!D646),0) -> 0 | I21: =IFERROR(IF(Flag=TRUE,N21-TBIn!E605,TBIn!D605),0) -> 0 | J21: 0 | K21: =Page5e!K21 -> 0 | L21: =IFERROR(TBIn!E1994,0) -> 0 | M21: =IFERROR(TBIn!E646,0) -> 0 | N21: =IFERROR(TBIn!E605,0) -> 0 | O21: 0 | P21: 18 | Q21: 50000 | R21: 0 | S21: 0 | T21: 0 | U21: 0 | V21: #REF!
A22: 19 | C22: =OR_VEH!B221 -> NO UTILICE | E22: 418E | F22: =Page5e!F22 -> 0 | G22: =IFERROR(IF(Flag=TRUE,L22-TBIn!E1995,TBIn!D1995),0) -> 0 | H22: =IFERROR(IF(Flag=TRUE,M22-TBIn!E647,TBIn!D647),0) -> 0 | I22: =IFERROR(IF(Flag=TRUE,N22-TBIn!E606,TBIn!D606),0) -> 0 | J22: 0 | K22: =Page5e!K22 -> 0 | L22: =IFERROR(TBIn!E1995,0) -> 0 | M22: =IFERROR(TBIn!E647,0) -> 0 | N22: =IFERROR(TBIn!E606,0) -> 0 | O22: 0 | P22: 19 | Q22: 50000 | R22: 0 | S22: 0 | T22: 0 | U22: 0 | V22: #REF!
A23: 20 | C23: TOTAL AUTOS NUEVOS MENUDEO | E23: (Lineas 1 a 19) | F23: =SUM(F4:F22) -> 0 | G23: 0 | H23: 0 | I23: 0 | J23: 0 | K23: 0 | L23: 0 | M23: 0 | N23: 0 | O23: 0 | P23: 20
A24: 21 | C24: =OR_VEH!B223 -> NO UTILICE | E24: 419E | P24: 21 | Q24: 50000 | R24: 0 | S24: 0 | T24: 0 | U24: 0 | V24: #REF!
A25: 22 | C25: =OR_VEH!B224 -> FLOTILLAS | E25: 420E | F25: =Page5e!F25 -> 0 | G25: =IFERROR(IF(Flag=TRUE,L25-TBIn!E1996,TBIn!D1996),0) -> 0 | H25: =IFERROR(IF(Flag=TRUE,M25-TBIn!E649,TBIn!D649),0) -> 0 | I25: =IFERROR(IF(Flag=TRUE,N25-TBIn!E608,TBIn!D608),0) -> 0 | J25: 0 | K25: =Page5e!K25 -> 0 | L25: =IFERROR(TBIn!E1996,0) -> 0 | M25: =IFERROR(TBIn!E649,0) -> 0 | N25: =IFERROR(TBIn!E608,0) -> 0 | O25: 0 | P25: 22 | Q25: 50000 | R25: 0 | S25: 0 | T25: 0 | U25: 0 | V25: #REF!
A26: 23 | C26: =OR_VEH!B225 -> INTERNAS | E26: 421E | F26: =Page5e!F26 -> 0 | G26: =IFERROR(IF(Flag=TRUE,L26-TBIn!E1997,TBIn!D1997),0) -> 0 | H26: =IFERROR(IF(Flag=TRUE,M26-TBIn!E650,TBIn!D650),0) -> 0 | I26: =IFERROR(IF(Flag=TRUE,N26-TBIn!E609,TBIn!D609),0) -> 0 | J26: 0 | K26: =Page5e!K26 -> 0 | L26: =IFERROR(TBIn!E1997,0) -> 0 | M26: =IFERROR(TBIn!E650,0) -> 0 | N26: =IFERROR(TBIn!E609,0) -> 0 | O26: 0 | P26: 23 | Q26: 50000 | R26: 0 | S26: 0 | T26: 0 | U26: 0 | V26: #REF!
A27: 24 | C27: TOTAL AUTOS NUEVOS | E27: (Lineas 20 a 23) | F27: =SUM(F23:F26) -> 0 | G27: 0 | H27: 0 | I27: 0 | J27: 0 | K27: 0 | L27: 0 | M27: 0 | N27: 0 | O27: 0 | P27: 24
A28: 25 | B28: VENTAS DE COM. Y CAM. NUEVOS | C28: =OR_VEH!B227 -> YUKON | E28: 423E | F28: =Page5e!F28 -> 0 | G28: =IFERROR(IF(Flag=TRUE,L28-TBIn!E1998,TBIn!D1998),0) -> 0 | H28: =IFERROR(IF(Flag=TRUE,M28-TBIn!E651,TBIn!D651),0) -> 0 | I28: =IFERROR(IF(Flag=TRUE,N28-TBIn!E610,TBIn!D610),0) -> 0 | J28: 0 | K28: =Page5e!K28 -> 0 | L28: =IFERROR(TBIn!E1998,0) -> 0 | M28: =IFERROR(TBIn!E651,0) -> 0 | N28: =IFERROR(TBIn!E610,0) -> 0 | O28: 0 | P28: 25 | Q28: 50000 | R28: 0 | S28: 0 | T28: 0 | U28: 0 | V28: #REF!
A29: 26 | C29: =OR_VEH!B228 -> CANYON | E29: 424E | F29: =Page5e!F29 -> 0 | G29: =IFERROR(IF(Flag=TRUE,L29-TBIn!E1999,TBIn!D1999),0) -> 0 | H29: =IFERROR(IF(Flag=TRUE,M29-TBIn!E652,TBIn!D652),0) -> 0 | I29: =IFERROR(IF(Flag=TRUE,N29-TBIn!E611,TBIn!D611),0) -> 0 | J29: 0 | K29: =Page5e!K29 -> 0 | L29: =IFERROR(TBIn!E1999,0) -> 0 | M29: =IFERROR(TBIn!E652,0) -> 0 | N29: =IFERROR(TBIn!E611,0) -> 0 | O29: 0 | P29: 26 | Q29: 50000 | R29: 0 | S29: 0 | T29: 0 | U29: 0 | V29: #REF!
A30: 27 | C30: =OR_VEH!B229 -> SIERRA CREW & REG CAB | E30: 425E | F30: =Page5e!F30 -> 0 | G30: =IFERROR(IF(Flag=TRUE,L30-TBIn!E2000,TBIn!D2000),0) -> 0 | H30: =IFERROR(IF(Flag=TRUE,M30-TBIn!E653,TBIn!D653),0) -> 0 | I30: =IFERROR(IF(Flag=TRUE,N30-TBIn!E612,TBIn!D612),0) -> 0 | J30: 0 | K30: =Page5e!K30 -> 0 | L30: =IFERROR(TBIn!E2000,0) -> 0 | M30: =IFERROR(TBIn!E653,0) -> 0 | N30: =IFERROR(TBIn!E612,0) -> 0 | O30: 0 | P30: 27 | Q30: 50000 | R30: 0 | S30: 0 | T30: 0 | U30: 0 | V30: #REF!
A31: 28 | C31: =OR_VEH!B230 -> ACADIA | E31: 426E | F31: =Page5e!F31 -> 0 | G31: =IFERROR(IF(Flag=TRUE,L31-TBIn!E2001,TBIn!D2001),0) -> 0 | H31: =IFERROR(IF(Flag=TRUE,M31-TBIn!E654,TBIn!D654),0) -> 0 | I31: =IFERROR(IF(Flag=TRUE,N31-TBIn!E613,TBIn!D613),0) -> 0 | J31: 0 | K31: =Page5e!K31 -> 0 | L31: =IFERROR(TBIn!E2001,0) -> 0 | M31: =IFERROR(TBIn!E654,0) -> 0 | N31: =IFERROR(TBIn!E613,0) -> 0 | O31: 0 | P31: 28 | Q31: 50000 | R31: 0 | S31: 0 | T31: 0 | U31: 0 | V31: #REF!
A32: 29 | C32: =OR_VEH!B231 -> TERRAIN | E32: 427E | F32: =Page5e!F32 -> 0 | G32: =IFERROR(IF(Flag=TRUE,L32-TBIn!E2002,TBIn!D2002),0) -> 0 | H32: =IFERROR(IF(Flag=TRUE,M32-TBIn!E655,TBIn!D655),0) -> 0 | I32: =IFERROR(IF(Flag=TRUE,N32-TBIn!E614,TBIn!D614),0) -> 0 | J32: 0 | K32: =Page5e!K32 -> 0 | L32: =IFERROR(TBIn!E2002,0) -> 0 | M32: =IFERROR(TBIn!E655,0) -> 0 | N32: =IFERROR(TBIn!E614,0) -> 0 | O32: 0 | P32: 29 | Q32: 50000 | R32: 0 | S32: 0 | T32: 0 | U32: 0 | V32: #REF!
A33: 30 | C33: =OR_VEH!B232 -> NO UTILICE | E33: 428E | F33: =Page5e!F33 -> 0 | G33: =IFERROR(IF(Flag=TRUE,L33-TBIn!E2003,TBIn!D2003),0) -> 0 | H33: =IFERROR(IF(Flag=TRUE,M33-TBIn!E656,TBIn!D656),0) -> 0 | I33: =IFERROR(IF(Flag=TRUE,N33-TBIn!E615,TBIn!D615),0) -> 0 | J33: 0 | K33: =Page5e!K33 -> 0 | L33: =IFERROR(TBIn!E2003,0) -> 0 | M33: =IFERROR(TBIn!E656,0) -> 0 | N33: =IFERROR(TBIn!E615,0) -> 0 | O33: 0 | P33: 30 | Q33: 50000 | R33: 0 | S33: 0 | T33: 0 | U33: 0 | V33: #REF!
A34: 31 | C34: =OR_VEH!B233 -> NO UTILICE | E34: 429E | F34: =Page5e!F34 -> 0 | G34: =IFERROR(IF(Flag=TRUE,L34-TBIn!E2004,TBIn!D2004),0) -> 0 | H34: =IFERROR(IF(Flag=TRUE,M34-TBIn!E657,TBIn!D657),0) -> 0 | I34: =IFERROR(IF(Flag=TRUE,N34-TBIn!E616,TBIn!D616),0) -> 0 | J34: 0 | K34: =Page5e!K34 -> 0 | L34: =IFERROR(TBIn!E2004,0) -> 0 | M34: =IFERROR(TBIn!E657,0) -> 0 | N34: =IFERROR(TBIn!E616,0) -> 0 | O34: 0 | P34: 31 | Q34: 50000 | R34: 0 | S34: 0 | T34: 0 | U34: 0 | V34: #REF!
A35: 32 | C35: =OR_VEH!B234 -> NO UTILICE | E35: 430E | F35: =Page5e!F35 -> 0 | G35: =IFERROR(IF(Flag=TRUE,L35-TBIn!E2005,TBIn!D2005),0) -> 0 | H35: =IFERROR(IF(Flag=TRUE,M35-TBIn!E658,TBIn!D658),0) -> 0 | I35: =IFERROR(IF(Flag=TRUE,N35-TBIn!E617,TBIn!D617),0) -> 0 | J35: 0 | K35: =Page5e!K35 -> 0 | L35: =IFERROR(TBIn!E2005,0) -> 0 | M35: =IFERROR(TBIn!E658,0) -> 0 | N35: =IFERROR(TBIn!E617,0) -> 0 | O35: 0 | P35: 32 | Q35: 50000 | R35: 0 | S35: 0 | T35: 0 | U35: 0 | V35: #REF!
A36: 33 | C36: =OR_VEH!B235 -> NO UTILICE | E36: 431E | F36: =Page5e!F36 -> 0 | G36: =IFERROR(IF(Flag=TRUE,L36-TBIn!E2006,TBIn!D2006),0) -> 0 | H36: =IFERROR(IF(Flag=TRUE,M36-TBIn!E659,TBIn!D659),0) -> 0 | I36: =IFERROR(IF(Flag=TRUE,N36-TBIn!E618,TBIn!D618),0) -> 0 | J36: 0 | K36: =Page5e!K36 -> 0 | L36: =IFERROR(TBIn!E2006,0) -> 0 | M36: =IFERROR(TBIn!E659,0) -> 0 | N36: =IFERROR(TBIn!E618,0) -> 0 | O36: 0 | P36: 33 | Q36: 50000 | R36: 0 | S36: 0 | T36: 0 | U36: 0 | V36: #REF!
A37: 34 | C37: =OR_VEH!B236 -> NO UTILICE | E37: 432E | F37: =Page5e!F37 -> 0 | G37: =IFERROR(IF(Flag=TRUE,L37-TBIn!E2007,TBIn!D2007),0) -> 0 | H37: =IFERROR(IF(Flag=TRUE,M37-TBIn!E660,TBIn!D660),0) -> 0 | I37: =IFERROR(IF(Flag=TRUE,N37-TBIn!E619,TBIn!D619),0) -> 0 | J37: 0 | K37: =Page5e!K37 -> 0 | L37: =IFERROR(TBIn!E2007,0) -> 0 | M37: =IFERROR(TBIn!E660,0) -> 0 | N37: =IFERROR(TBIn!E619,0) -> 0 | O37: 0 | P37: 34 | Q37: 50000 | R37: 0 | S37: 0 | T37: 0 | U37: 0 | V37: #REF!
A38: 35 | C38: =OR_VEH!B237 -> NO UTILICE | E38: 433E | F38: =Page5e!F38 -> 0 | G38: =IFERROR(IF(Flag=TRUE,L38-TBIn!E2008,TBIn!D2008),0) -> 0 | H38: =IFERROR(IF(Flag=TRUE,M38-TBIn!E661,TBIn!D661),0) -> 0 | I38: =IFERROR(IF(Flag=TRUE,N38-TBIn!E620,TBIn!D620),0) -> 0 | J38: 0 | K38: =Page5e!K38 -> 0 | L38: =IFERROR(TBIn!E2008,0) -> 0 | M38: =IFERROR(TBIn!E661,0) -> 0 | N38: =IFERROR(TBIn!E620,0) -> 0 | O38: 0 | P38: 35 | Q38: 50000 | R38: 0 | S38: 0 | T38: 0 | U38: 0 | V38: #REF!
A39: 36 | C39: =OR_VEH!B238 -> NO UTILICE | E39: 434E | F39: =Page5e!F39 -> 0 | G39: =IFERROR(IF(Flag=TRUE,L39-TBIn!E2009,TBIn!D2009),0) -> 0 | H39: =IFERROR(IF(Flag=TRUE,M39-TBIn!E662,TBIn!D662),0) -> 0 | I39: =IFERROR(IF(Flag=TRUE,N39-TBIn!E621,TBIn!D621),0) -> 0 | J39: 0 | K39: =Page5e!K39 -> 0 | L39: =IFERROR(TBIn!E2009,0) -> 0 | M39: =IFERROR(TBIn!E662,0) -> 0 | N39: =IFERROR(TBIn!E621,0) -> 0 | O39: 0 | P39: 36 | Q39: 50000 | R39: 0 | S39: 0 | T39: 0 | U39: 0 | V39: #REF!
A40: 37 | C40: =OR_VEH!B239 -> NO UTILICE | E40: 435E | F40: =Page5e!F40 -> 0 | G40: =IFERROR(IF(Flag=TRUE,L40-TBIn!E2010,TBIn!D2010),0) -> 0 | H40: =IFERROR(IF(Flag=TRUE,M40-TBIn!E663,TBIn!D663),0) -> 0 | I40: =IFERROR(IF(Flag=TRUE,N40-TBIn!E622,TBIn!D622),0) -> 0 | J40: 0 | K40: =Page5e!K40 -> 0 | L40: =IFERROR(TBIn!E2010,0) -> 0 | M40: =IFERROR(TBIn!E663,0) -> 0 | N40: =IFERROR(TBIn!E622,0) -> 0 | O40: 0 | P40: 37 | Q40: 50000 | R40: 0 | S40: 0 | T40: 0 | U40: 0 | V40: #REF!
A41: 38 | C41: =OR_VEH!B240 -> NO UTILICE | E41: 436E | F41: =Page5e!F41 -> 0 | G41: =IFERROR(IF(Flag=TRUE,L41-TBIn!E2011,TBIn!D2011),0) -> 0 | H41: =IFERROR(IF(Flag=TRUE,M41-TBIn!E664,TBIn!D664),0) -> 0 | I41: =IFERROR(IF(Flag=TRUE,N41-TBIn!E623,TBIn!D623),0) -> 0 | J41: 0 | K41: =Page5e!K41 -> 0 | L41: =IFERROR(TBIn!E2011,0) -> 0 | M41: =IFERROR(TBIn!E664,0) -> 0 | N41: =IFERROR(TBIn!E623,0) -> 0 | O41: 0 | P41: 38 | Q41: 50000 | R41: 0 | S41: 0 | T41: 0 | U41: 0 | V41: #REF!
A42: 39 | C42: =OR_VEH!B241 -> NO UTILICE | E42: 437E | F42: =Page5e!F42 -> 0 | G42: =IFERROR(IF(Flag=TRUE,L42-TBIn!E2012,TBIn!D2012),0) -> 0 | H42: =IFERROR(IF(Flag=TRUE,M42-TBIn!E665,TBIn!D665),0) -> 0 | I42: =IFERROR(IF(Flag=TRUE,N42-TBIn!E624,TBIn!D624),0) -> 0 | J42: 0 | K42: =Page5e!K42 -> 0 | L42: =IFERROR(TBIn!E2012,0) -> 0 | M42: =IFERROR(TBIn!E665,0) -> 0 | N42: =IFERROR(TBIn!E624,0) -> 0 | O42: 0 | P42: 39 | Q42: 50000 | R42: 0 | S42: 0 | T42: 0 | U42: 0 | V42: #REF!
A43: 40 | C43: =OR_VEH!B242 -> OTROS COM. GMC | E43: 438E | F43: =Page5e!F43 -> 0 | G43: =IFERROR(IF(Flag=TRUE,L43-TBIn!E2013,TBIn!D2013),0) -> 0 | H43: =IFERROR(IF(Flag=TRUE,M43-TBIn!E666,TBIn!D666),0) -> 0 | I43: =IFERROR(IF(Flag=TRUE,N43-TBIn!E625,TBIn!D625),0) -> 0 | J43: 0 | K43: =Page5e!K43 -> 0 | L43: =IFERROR(TBIn!E2013,0) -> 0 | M43: =IFERROR(TBIn!E666,0) -> 0 | N43: =IFERROR(TBIn!E625,0) -> 0 | O43: 0 | P43: 40 | Q43: 50000 | R43: 0 | S43: 0 | T43: 0 | U43: 0 | V43: #REF!
A44: 41 | C44: TOTAL COM. Y CAM. NUEVOS MENUDEO | E44: (Lineas 25 a 40) | F44: =SUM(F28:F43) -> 0 | G44: =SUM(G28:G43) -> 0 | H44: =SUM(H28:H43) -> 0 | I44: =SUM(I28:I43) -> 0 | J44: 0 | K44: 0 | L44: 0 | M44: 0 | N44: 0 | O44: 0 | P44: 41
A45: 42 | C45: =OR_VEH!B244 -> NO UTILICE | E45: 439E | P45: 42 | Q45: 50000 | R45: 0 | S45: 0 | T45: 0 | U45: 0 | V45: #REF!
A46: 43 | C46: =OR_VEH!B245 -> FLOTILLAS | E46: 440E | F46: =Page5e!F46 -> 0 | G46: =IFERROR(IF(Flag=TRUE,L46-TBIn!E2014,TBIn!D2014),0) -> 0 | H46: =IFERROR(IF(Flag=TRUE,M46-TBIn!E668,TBIn!D668),0) -> 0 | I46: =IFERROR(IF(Flag=TRUE,N46-TBIn!E627,TBIn!D627),0) -> 0 | J46: 0 | K46: =Page5e!K46 -> 0 | L46: =IFERROR(TBIn!E2014,0) -> 0 | M46: =IFERROR(TBIn!E668,0) -> 0 | N46: =IFERROR(TBIn!E627,0) -> 0 | O46: 0 | P46: 43 | Q46: 50000 | R46: 0 | S46: 0 | T46: 0 | U46: 0 | V46: #REF!
A47: 44 | C47: =OR_VEH!B246 -> INTERNAS | E47: 441E | F47: =Page5e!F47 -> 0 | G47: =IFERROR(IF(Flag=TRUE,L47-TBIn!E2015,TBIn!D2015),0) -> 0 | H47: =IFERROR(IF(Flag=TRUE,M47-TBIn!E669,TBIn!D669),0) -> 0 | I47: =IFERROR(IF(Flag=TRUE,N47-TBIn!E628,TBIn!D628),0) -> 0 | J47: 0 | K47: =Page5e!K47 -> 0 | L47: =IFERROR(TBIn!E2015,0) -> 0 | M47: =IFERROR(TBIn!E669,0) -> 0 | N47: =IFERROR(TBIn!E628,0) -> 0 | O47: 0 | P47: 44 | Q47: 50000 | R47: 0 | S47: 0 | T47: 0 | U47: 0 | V47: #REF!
A48: 45 | C48: TOTAL COM. Y CAM. NUEVOS | E48: (Lineas 41 a 44) | F48: =SUM(F44:F47) -> 0 | G48: 0 | H48: 0 | I48: 0 | J48: 0 | K48: 0 | L48: 0 | M48: 0 | N48: 0 | O48: 0 | P48: 45
A49: 46 | C49: =OR_VEH!B248 -> NO UTILICE | E49: 445E | P49: 46 | V49: #REF!
A50: 47 | C50: =OR_VEH!B249 -> VENTA DE ACCESORIOS PARA VEHÍCULOS LISTADOS EN ESTA PAGINA | E50: 457E | F50: =Page5e!F50 -> 0 | G50: =IFERROR(IF(Flag=TRUE,L50-TBIn!E2016,TBIn!D2016),0) -> 0 | K50: =Page5e!K50 -> 0 | L50: =IFERROR(TBIn!E2016,0) -> 0 | O50: 0 | P50: 47 | Q50: 10000 | R50: 0 | S50: 0 | T50: 0 | U50: 0 | V50: #REF!
A51: 48 | C51: TOTAL VEHICULOS NUEVOS | F51: =IFERROR(IF(Flag=TRUE,F27+F48,TBIn!D587),0) -> 0 | G51: =G27+G48+G50 -> 0 | H51: =H27+H48 -> 0 | I51: =I27+I48 -> 0 | J51: =J48+J27+J50 -> 0 | K51: =IFERROR(IF(Flag=TRUE,K27+K48,TBIn!E587),0) -> 0 | L51: =L48+L27+L50 -> 0 | M51: =M48+M27 -> 0 | N51: =N48+N27 -> 0 | O51: =O48+O27 -> 0 | P51: 48
J54: Unit Diff | K54: Actual Sums | M54: Actual Sums | O54: Gross Diff
J56: 0 | K56: 0 | M56: 0 | O56: 0
D57: TOTAL AUTOS NUEVOS MENUDEO | J57: 0 | K57: 0 | M57: 0 | O57: 0
D58: TOTAL AUTOS NUEVOS | J58: 0 | K58: 0 | M58: 0 | O58: 0
D59: TOTAL COM. Y CAM. NUEVOS MENUDEO | J59: 0 | K59: 0 | M59: 0 | O59: 0
D60: TOTAL COM. Y CAM. NUEVOS | M60: 0
D61: NO UTILICE | J61: 0 | K61: 0 | M61: 0 | O61: 0
D62: VENTA DE ACCESORIOS PARA VEHÍCULOS LISTADOS EN ESTA PAGINA | J62: 0 | K62: 0 | M62: 0 | O62: 0
D63: TOTAL VEHICULOS NUEVOS
B2355: PAGINA 5aB&P
A2357: BONIFIACION Y PREMIOS | B2357: NO.
E3581: Per Unit | F3581: Month | G3581: YTD | H3581: Month | I3581: YTD
E3582: Sales | F3582: Sales | G3582: Sales | H3582: Unit | I3582: Unit | K3582: BAC 0 -
E3583: Max | F3583: Flag | G3583: Flag | H3583: Flag | I3583: Flag | J3583: ACC.
E3584: 50000 | F3584: 0 | G3584: 0 | H3584: 0 | I3584: 0 | J3584: #REF!
E3585: 50000 | F3585: 0 | G3585: 0 | H3585: 0 | I3585: 0 | J3585: #REF!
E3586: 50000 | F3586: 0 | G3586: 0 | H3586: 0 | I3586: 0 | J3586: #REF!
E3587: 50000 | F3587: 0 | G3587: 0 | H3587: 0 | I3587: 0 | J3587: #REF!
H3588: 0 | I3588: 0 | J3588: #REF!
E3589: 50000 | F3589: 0 | G3589: 0 | H3589: 0 | I3589: 0 | J3589: #REF!
E3590: 50000 | F3590: 0 | G3590: 0 | H3590: 0 | I3590: 0 | J3590: #REF!
E3591: 50000 | F3591: 0 | G3591: 0 | H3591: 0 | I3591: 0 | J3591: #REF!
E3592: 50000 | F3592: 0 | G3592: 0 | H3592: 0 | I3592: 0 | J3592: #REF!
E3593: 50000 | F3593: 0 | G3593: 0 | H3593: 0 | I3593: 0 | J3593: #REF!
E3594: 50000 | F3594: 0 | G3594: 0 | H3594: 0 | I3594: 0 | J3594: #REF!
E3595: 50000 | F3595: 0 | G3595: 0 | H3595: 0 | I3595: 0 | J3595: #REF!
E3596: 50000 | F3596: 0 | G3596: 0 | H3596: 0 | I3596: 0 | J3596: #REF!
E3597: 50000 | F3597: 0 | G3597: 0 | H3597: 0 | I3597: 0 | J3597: #REF!
E3598: 50000 | F3598: 0 | G3598: 0 | H3598: 0 | I3598: 0 | J3598: #REF!
E3599: 50000 | F3599: 0 | G3599: 0 | H3599: 0 | I3599: 0 | J3599: #REF!
E3600: 50000 | F3600: 0 | G3600: 0 | H3600: 0 | I3600: 0 | J3600: #REF!
E3601: 50000 | F3601: 0 | G3601: 0 | H3601: 0 | I3601: 0 | J3601: #REF!

Sheet Page5f
B1: =OR_VEH!B252 -> BUICK | F1: VEHICULOS NUEVOS - ANALISIS DE VENTAS Y UTILIDAD BRUTA | P1: =TBIn!$E$2591&" - "&TBIn!$AH$10&" - PAGINA 5f" -> 122112 - 201801 - PAGINA 5f | Q1: Per Unit | R1: Month | S1: YTD | T1: Month | U1: YTD
A2: Lin. | D2: OPERACIONES | G2: MES | L2: AÑO A LA FECHA | P2: Lin. | Q2: Sales | R2: Sales | S2: Sales | T2: Unit | U2: Unit
A3: No. | D3: VARIABLES | E3: CTA. | F3: UNIDADES VENDIDAS | G3: VENTAS | H3: COSTO DE VENTAS | I3: UTILIDAD BRUTA | J3: POR VEHICULO VENDIDO | K3: UNIDADES VENDIDAS | L3: VENTAS | M3: COSTO DE VENTAS | N3: UTILIDAD BRUTA | O3: POR VEHICULO VENDIDO | P3: No. | Q3: Max | R3: Flag | S3: Flag | T3: Flag | U3: Flag
A4: 1 | B4: VENTAS D E AUTOS NUEVOS | C4: =OR_VEH!B253 -> LaCROSSE | E4: 400F | F4: =IFERROR(IF(Flag=TRUE,K4-TBIn!E670,TBIn!D670),0) -> 0 | G4: =IFERROR(IF(Flag=TRUE,L4-TBIn!E2018,TBIn!D2018),0) -> 0 | H4: ='Page5fB&P'!G4-'Page5fB&P'!J4 -> 0 | I4: =G4-H4 -> 0 | J4: =IFERROR(I4/F4,0) -> 0 | K4: =IFERROR(TBIn!E670,0) -> 0 | L4: =IFERROR(TBIn!E2018,0) -> 0 | M4: ='Page5fB&P'!L4-'Page5fB&P'!O4 -> 0 | N4: =L4-M4 -> 0 | O4: =IFERROR(N4/K4,0) -> 0 | P4: 1 | Q4: 0 | R4: =IF(F4=0,0,IF(G4/F4>Q4,1,0)) -> 0 | S4: =IF(K4=0,0,IF(OR(L4<0,L4/K4>Q4),1,0)) -> 0 | T4: =IF(OR(F4<0,AND(G4>0,F4=0),AND(G4=0,F4>0)),1,0) -> 0 | U4: =IF(OR(K4<0,AND(L4>0,K4=0),AND(K4>0,L4=0)),1,0) -> 0
A5: 2 | C5: =OR_VEH!B254 -> REGAL | E5: 401F | F5: =IFERROR(IF(Flag=TRUE,K5-TBIn!E671,TBIn!D671),0) -> 0 | G5: =IFERROR(IF(Flag=TRUE,L5-TBIn!E2019,TBIn!D2019),0) -> 0 | H5: ='Page5fB&P'!G5-'Page5fB&P'!J5 -> 0 | I5: =G5-H5 -> 0 | J5: 0 | K5: =IFERROR(TBIn!E671,0) -> 0 | L5: =IFERROR(TBIn!E2019,0) -> 0 | M5: ='Page5fB&P'!L5-'Page5fB&P'!O5 -> 0 | N5: =L5-M5 -> 0 | O5: 0 | P5: 2 | Q5: 0 | R5: =IF(F5=0,0,IF(G5/F5>Q5,1,0)) -> 0 | S5: =IF(K5=0,0,IF(OR(L5<0,L5/K5>Q5),1,0)) -> 0 | T5: =IF(OR(F5<0,AND(G5>0,F5=0),AND(G5=0,F5>0)),1,0) -> 0 | U5: =IF(OR(K5<0,AND(L5>0,K5=0),AND(K5>0,L5=0)),1,0) -> 0
A6: 3 | C6: =OR_VEH!B255 -> VERANO | E6: 402F | F6: =IFERROR(IF(Flag=TRUE,K6-TBIn!E672,TBIn!D672),0) -> 0 | G6: =IFERROR(IF(Flag=TRUE,L6-TBIn!E2020,TBIn!D2020),0) -> 0 | H6: ='Page5fB&P'!G6-'Page5fB&P'!J6 -> 0 | I6: 0 | J6: 0 | K6: =IFERROR(TBIn!E672,0) -> 0 | L6: =IFERROR(TBIn!E2020,0) -> 0 | M6: ='Page5fB&P'!L6-'Page5fB&P'!O6 -> 0 | N6: 0 | O6: 0 | P6: 3 | Q6: 0 | R6: 0 | S6: 0 | T6: 0 | U6: 0
A7: 4 | C7: =OR_VEH!B256 -> NO UTILICE | E7: 403F | F7: =IFERROR(IF(Flag=TRUE,K7-TBIn!E673,TBIn!D673),0) -> 0 | G7: =IFERROR(IF(Flag=TRUE,L7-TBIn!E2021,TBIn!D2021),0) -> 0 | H7: ='Page5fB&P'!G7-'Page5fB&P'!J7 -> 0 | I7: 0 | J7: 0 | K7: =IFERROR(TBIn!E673,0) -> 0 | L7: =IFERROR(TBIn!E2021,0) -> 0 | M7: ='Page5fB&P'!L7-'Page5fB&P'!O7 -> 0 | N7: 0 | O7: 0 | P7: 4 | Q7: 0 | R7: 0 | S7: 0 | T7: 0 | U7: 0
A8: 5 | C8: =OR_VEH!B257 -> NO UTILICE | E8: 404F | F8: =IFERROR(IF(Flag=TRUE,K8-TBIn!E674,TBIn!D674),0) -> 0 | G8: =IFERROR(IF(Flag=TRUE,L8-TBIn!E2022,TBIn!D2022),0) -> 0 | H8: ='Page5fB&P'!G8-'Page5fB&P'!J8 -> 0 | I8: 0 | J8: 0 | K8: =IFERROR(TBIn!E674,0) -> 0 | L8: =IFERROR(TBIn!E2022,0) -> 0 | M8: ='Page5fB&P'!L8-'Page5fB&P'!O8 -> 0 | N8: 0 | O8: 0 | P8: 5 | Q8: 0 | R8: 0 | S8: 0 | T8: 0 | U8: 0
A9: 6 | C9: =OR_VEH!B258 -> NO UTILICE | E9: 405F | F9: =IFERROR(IF(Flag=TRUE,K9-TBIn!E675,TBIn!D675),0) -> 0 | G9: =IFERROR(IF(Flag=TRUE,L9-TBIn!E2023,TBIn!D2023),0) -> 0 | H9: ='Page5fB&P'!G9-'Page5fB&P'!J9 -> 0 | I9: 0 | J9: 0 | K9: =IFERROR(TBIn!E675,0) -> 0 | L9: =IFERROR(TBIn!E2023,0) -> 0 | M9: ='Page5fB&P'!L9-'Page5fB&P'!O9 -> 0 | N9: 0 | O9: 0 | P9: 6 | Q9: 0 | R9: 0 | S9: 0 | T9: 0 | U9: 0
A10: 7 | C10: =OR_VEH!B259 -> NO UTILICE | E10: 406F | F10: =IFERROR(IF(Flag=TRUE,K10-TBIn!E676,TBIn!D676),0) -> 0 | G10: =IFERROR(IF(Flag=TRUE,L10-TBIn!E2024,TBIn!D2024),0) -> 0 | H10: ='Page5fB&P'!G10-'Page5fB&P'!J10 -> 0 | I10: 0 | J10: 0 | K10: =IFERROR(TBIn!E676,0) -> 0 | L10: =IFERROR(TBIn!E2024,0) -> 0 | M10: ='Page5fB&P'!L10-'Page5fB&P'!O10 -> 0 | N10: 0 | O10: 0 | P10: 7 | Q10: 0 | R10: 0 | S10: 0 | T10: 0 | U10: 0
A11: 8 | C11: =OR_VEH!B260 -> NO UTILICE | E11: 407F | F11: =IFERROR(IF(Flag=TRUE,K11-TBIn!E677,TBIn!D677),0) -> 0 | G11: =IFERROR(IF(Flag=TRUE,L11-TBIn!E2025,TBIn!D2025),0) -> 0 | H11: ='Page5fB&P'!G11-'Page5fB&P'!J11 -> 0 | I11: 0 | J11: 0 | K11: =IFERROR(TBIn!E677,0) -> 0 | L11: =IFERROR(TBIn!E2025,0) -> 0 | M11: ='Page5fB&P'!L11-'Page5fB&P'!O11 -> 0 | N11: 0 | O11: 0 | P11: 8 | Q11: 0 | R11: 0 | S11: 0 | T11: 0 | U11: 0
A12: 9 | C12: =OR_VEH!B261 -> NO UTILICE | E12: 408F | F12: =IFERROR(IF(Flag=TRUE,K12-TBIn!E678,TBIn!D678),0) -> 0 | G12: =IFERROR(IF(Flag=TRUE,L12-TBIn!E2026,TBIn!D2026),0) -> 0 | H12: ='Page5fB&P'!G12-'Page5fB&P'!J12 -> 0 | I12: 0 | J12: 0 | K12: =IFERROR(TBIn!E678,0) -> 0 | L12: =IFERROR(TBIn!E2026,0) -> 0 | M12: ='Page5fB&P'!L12-'Page5fB&P'!O12 -> 0 | N12: 0 | O12: 0 | P12: 9 | Q12: 0 | R12: 0 | S12: 0 | T12: 0 | U12: 0
A13: 10 | C13: =OR_VEH!B262 -> NO UTILICE | E13: 409F | F13: =IFERROR(IF(Flag=TRUE,K13-TBIn!E679,TBIn!D679),0) -> 0 | G13: =IFERROR(IF(Flag=TRUE,L13-TBIn!E2027,TBIn!D2027),0) -> 0 | H13: ='Page5fB&P'!G13-'Page5fB&P'!J13 -> 0 | I13: 0 | J13: 0 | K13: =IFERROR(TBIn!E679,0) -> 0 | L13: =IFERROR(TBIn!E2027,0) -> 0 | M13: ='Page5fB&P'!L13-'Page5fB&P'!O13 -> 0 | N13: 0 | O13: 0 | P13: 10 | Q13: 0 | R13: 0 | S13: 0 | T13: 0 | U13: 0
A14: 11 | C14: =OR_VEH!B263 -> NO UTILICE | E14: 410F | F14: =IFERROR(IF(Flag=TRUE,K14-TBIn!E680,TBIn!D680),0) -> 0 | G14: =IFERROR(IF(Flag=TRUE,L14-TBIn!E2028,TBIn!D2028),0) -> 0 | H14: ='Page5fB&P'!G14-'Page5fB&P'!J14 -> 0 | I14: 0 | J14: 0 | K14: =IFERROR(TBIn!E680,0) -> 0 | L14: =IFERROR(TBIn!E2028,0) -> 0 | M14: ='Page5fB&P'!L14-'Page5fB&P'!O14 -> 0 | N14: 0 | O14: 0 | P14: 11 | Q14: 0 | R14: 0 | S14: 0 | T14: 0 | U14: 0
A15: 12 | C15: =OR_VEH!B264 -> NO UTILICE | E15: 411F | F15: =IFERROR(IF(Flag=TRUE,K15-TBIn!E681,TBIn!D681),0) -> 0 | G15: =IFERROR(IF(Flag=TRUE,L15-TBIn!E2029,TBIn!D2029),0) -> 0 | H15: ='Page5fB&P'!G15-'Page5fB&P'!J15 -> 0 | I15: 0 | J15: 0 | K15: =IFERROR(TBIn!E681,0) -> 0 | L15: =IFERROR(TBIn!E2029,0) -> 0 | M15: ='Page5fB&P'!L15-'Page5fB&P'!O15 -> 0 | N15: 0 | O15: 0 | P15: 12 | Q15: 0 | R15: 0 | S15: 0 | T15: 0 | U15: 0
A16: 13 | C16: =OR_VEH!B265 -> NO UTILICE | E16: 412F | F16: =IFERROR(IF(Flag=TRUE,K16-TBIn!E682,TBIn!D682),0) -> 0 | G16: =IFERROR(IF(Flag=TRUE,L16-TBIn!E2030,TBIn!D2030),0) -> 0 | H16: ='Page5fB&P'!G16-'Page5fB&P'!J16 -> 0 | I16: 0 | J16: 0 | K16: =IFERROR(TBIn!E682,0) -> 0 | L16: =IFERROR(TBIn!E2030,0) -> 0 | M16: ='Page5fB&P'!L16-'Page5fB&P'!O16 -> 0 | N16: 0 | O16: 0 | P16: 13 | Q16: 0 | R16: 0 | S16: 0 | T16: 0 | U16: 0
A17: 14 | C17: =OR_VEH!B266 -> NO UTILICE | E17: 413F | F17: =IFERROR(IF(Flag=TRUE,K17-TBIn!E683,TBIn!D683),0) -> 0 | G17: =IFERROR(IF(Flag=TRUE,L17-TBIn!E2031,TBIn!D2031),0) -> 0 | H17: ='Page5fB&P'!G17-'Page5fB&P'!J17 -> 0 | I17: 0 | J17: 0 | K17: =IFERROR(TBIn!E683,0) -> 0 | L17: =IFERROR(TBIn!E2031,0) -> 0 | M17: ='Page5fB&P'!L17-'Page5fB&P'!O17 -> 0 | N17: 0 | O17: 0 | P17: 14 | Q17: 0 | R17: 0 | S17: 0 | T17: 0 | U17: 0
A18: 15 | C18: =OR_VEH!B267 -> NO UTILICE | E18: 414F | F18: =IFERROR(IF(Flag=TRUE,K18-TBIn!E684,TBIn!D684),0) -> 0 | G18: =IFERROR(IF(Flag=TRUE,L18-TBIn!E2032,TBIn!D2032),0) -> 0 | H18: ='Page5fB&P'!G18-'Page5fB&P'!J18 -> 0 | I18: 0 | J18: 0 | K18: =IFERROR(TBIn!E684,0) -> 0 | L18: =IFERROR(TBIn!E2032,0) -> 0 | M18: ='Page5fB&P'!L18-'Page5fB&P'!O18 -> 0 | N18: 0 | O18: 0 | P18: 15 | Q18: 0 | R18: 0 | S18: 0 | T18: 0 | U18: 0
A19: 16 | C19: =OR_VEH!B268 -> NO UTILICE | E19: 415F | F19: =IFERROR(IF(Flag=TRUE,K19-TBIn!E685,TBIn!D685),0) -> 0 | G19: =IFERROR(IF(Flag=TRUE,L19-TBIn!E2033,TBIn!D2033),0) -> 0 | H19: ='Page5fB&P'!G19-'Page5fB&P'!J19 -> 0 | I19: 0 | J19: 0 | K19: =IFERROR(TBIn!E685,0) -> 0 | L19: =IFERROR(TBIn!E2033,0) -> 0 | M19: ='Page5fB&P'!L19-'Page5fB&P'!O19 -> 0 | N19: 0 | O19: 0 | P19: 16 | Q19: 0 | R19: 0 | S19: 0 | T19: 0 | U19: 0
A20: 17 | C20: =OR_VEH!B269 -> NO UTILICE | E20: 416F | F20: =IFERROR(IF(Flag=TRUE,K20-TBIn!E686,TBIn!D686),0) -> 0 | G20: =IFERROR(IF(Flag=TRUE,L20-TBIn!E2034,TBIn!D2034),0) -> 0 | H20: ='Page5fB&P'!G20-'Page5fB&P'!J20 -> 0 | I20: 0 | J20: 0 | K20: =IFERROR(TBIn!E686,0) -> 0 | L20: =IFERROR(TBIn!E2034,0) -> 0 | M20: ='Page5fB&P'!L20-'Page5fB&P'!O20 -> 0 | N20: 0 | O20: 0 | P20: 17 | Q20: 0 | R20: 0 | S20: 0 | T20: 0 | U20: 0
A21: 18 | C21: =OR_VEH!B270 -> NO UTILICE | E21: 417F | F21: =IFERROR(IF(Flag=TRUE,K21-TBIn!E687,TBIn!D687),0) -> 0 | G21: =IFERROR(IF(Flag=TRUE,L21-TBIn!E2035,TBIn!D2035),0) -> 0 | H21: ='Page5fB&P'!G21-'Page5fB&P'!J21 -> 0 | I21: 0 | J21: 0 | K21: =IFERROR(TBIn!E687,0) -> 0 | L21: =IFERROR(TBIn!E2035,0) -> 0 | M21: ='Page5fB&P'!L21-'Page5fB&P'!O21 -> 0 | N21: 0 | O21: 0 | P21: 18 | Q21: 0 | R21: 0 | S21: 0 | T21: 0 | U21: 0
A22: 19 | C22: =OR_VEH!B271 -> OTROS AUTOS BUICK | E22: 418F | F22: =IFERROR(IF(Flag=TRUE,K22-TBIn!E688,TBIn!D688),0) -> 0 | G22: =IFERROR(IF(Flag=TRUE,L22-TBIn!E2036,TBIn!D2036),0) -> 0 | H22: ='Page5fB&P'!G22-'Page5fB&P'!J22 -> 0 | I22: 0 | J22: 0 | K22: =IFERROR(TBIn!E688,0) -> 0 | L22: =IFERROR(TBIn!E2036,0) -> 0 | M22: ='Page5fB&P'!L22-'Page5fB&P'!O22 -> 0 | N22: 0 | O22: 0 | P22: 19 | Q22: 0 | R22: 0 | S22: 0 | T22: 0 | U22: 0
A23: 20 | C23: TOTAL AUTOS NUEVOS MENUDEO | E23: (Lineas 1 a 19) | F23: ='Page5fB&P'!F23 -> 0 | G23: =SUM(G4:G22) -> 0 | H23: ='Page5fB&P'!G23-'Page5fB&P'!J23 -> 0 | I23: =SUM(I4:I22) -> 0 | J23: 0 | K23: ='Page5fB&P'!K23 -> 0 | L23: =SUM(L4:L22) -> 0 | M23: ='Page5fB&P'!L23-'Page5fB&P'!O23 -> 0 | N23: =SUM(N4:N22) -> 0 | O23: 0 | P23: 20
A24: 21 | C24: =OR_VEH!B273 -> NO UTILICE | E24: 419F | F24: ='Page5fB&P'!F24 -> 0 | G24: 0 | H24: ='Page5fB&P'!G24-'Page5fB&P'!J24 -> 0 | I24: 0 | J24: 0 | K24: ='Page5fB&P'!K24 -> 0 | L24: 0 | M24: ='Page5fB&P'!L24-'Page5fB&P'!O24 -> 0 | N24: 0 | O24: 0 | P24: 21 | Q24: 0 | R24: 0 | S24: =IF(K24=0,0,IF(OR(L24<0,L24/K24>Q24),1,0)) -> 0 | T24: =IF(OR(F24<0,AND(G24>0,F24=0),AND(G24=0,F24>0)),1,0) -> 0 | U24: =IF(OR(K24<0,AND(L24>0,K24=0),AND(K24>0,L24=0)),1,0) -> 0
A25: 22 | C25: =OR_VEH!B274 -> FLOTILLAS | E25: 420F | F25: =IFERROR(IF(Flag=TRUE,K25-TBIn!E690,TBIn!D690),0) -> 0 | G25: =IFERROR(IF(Flag=TRUE,L25-TBIn!E2037,TBIn!D2037),0) -> 0 | H25: ='Page5fB&P'!G25-'Page5fB&P'!J25 -> 0 | I25: =G25-H25 -> 0 | J25: 0 | K25: =IFERROR(TBIn!E690,0) -> 0 | L25: =IFERROR(TBIn!E2037,0) -> 0 | M25: ='Page5fB&P'!L25-'Page5fB&P'!O25 -> 0 | N25: =L25-M25 -> 0 | O25: 0 | P25: 22 | Q25: 0 | R25: 0 | S25: =IF(K25=0,0,IF(OR(L25<0,L25/K25>Q25),1,0)) -> 0 | T25: =IF(OR(F25<0,AND(G25>0,F25=0),AND(G25=0,F25>0)),1,0) -> 0 | U25: =IF(OR(K25<0,AND(L25>0,K25=0),AND(K25>0,L25=0)),1,0) -> 0
A26: 23 | C26: =OR_VEH!B275 -> INTERNAS | E26: 421F | F26: =IFERROR(IF(Flag=TRUE,K26-TBIn!E691,TBIn!D691),0) -> 0 | G26: =IFERROR(IF(Flag=TRUE,L26-TBIn!E2038,TBIn!D2038),0) -> 0 | H26: ='Page5fB&P'!G26-'Page5fB&P'!J26 -> 0 | I26: =G26-H26 -> 0 | J26: 0 | K26: =IFERROR(TBIn!E691,0) -> 0 | L26: =IFERROR(TBIn!E2038,0) -> 0 | M26: ='Page5fB&P'!L26-'Page5fB&P'!O26 -> 0 | N26: =L26-M26 -> 0 | O26: 0 | P26: 23 | Q26: 0 | R26: 0 | S26: =IF(K26=0,0,IF(OR(L26<0,L26/K26>Q26),1,0)) -> 0 | T26: =IF(OR(F26<0,AND(G26>0,F26=0),AND(G26=0,F26>0)),1,0) -> 0 | U26: =IF(OR(K26<0,AND(L26>0,K26=0),AND(K26>0,L26=0)),1,0) -> 0
A27: 24 | C27: TOTAL AUTOS NUEVOS | E27: (Lineas 20 a 23) | F27: ='Page5fB&P'!F27 -> 0 | G27: =SUM(G23:G26) -> 0 | H27: ='Page5fB&P'!G27-'Page5fB&P'!J27 -> 0 | I27: =SUM(I23:I26) -> 0 | J27: 0 | K27: ='Page5fB&P'!K27 -> 0 | L27: =SUM(L23:L26) -> 0 | M27: ='Page5fB&P'!L27-'Page5fB&P'!O27 -> 0 | N27: =SUM(N23:N26) -> 0 | O27: 0 | P27: 24
A28: 25 | B28: VENTAS DE COM. Y CAM. NUEVOS | C28: =OR_VEH!B277 -> ENCLAVE | E28: 423F | F28: =IFERROR(IF(Flag=TRUE,K28-TBIn!E692,TBIn!D692),0) -> 0 | G28: =IFERROR(IF(Flag=TRUE,L28-TBIn!E2039,TBIn!D2039),0) -> 0 | H28: ='Page5fB&P'!G28-'Page5fB&P'!J28 -> 0 | I28: =G28-H28 -> 0 | J28: 0 | K28: =IFERROR(TBIn!E692,0) -> 0 | L28: =IFERROR(TBIn!E2039,0) -> 0 | M28: ='Page5fB&P'!L28-'Page5fB&P'!O28 -> 0 | N28: =L28-M28 -> 0 | O28: 0 | P28: 25 | Q28: 0 | R28: 0 | S28: =IF(K28=0,0,IF(OR(L28<0,L28/K28>Q28),1,0)) -> 0 | T28: =IF(OR(F28<0,AND(G28>0,F28=0),AND(G28=0,F28>0)),1,0) -> 0 | U28: =IF(OR(K28<0,AND(L28>0,K28=0),AND(K28>0,L28=0)),1,0) -> 0
A29: 26 | C29: =OR_VEH!B278 -> ENCORE | E29: 424F | F29: =IFERROR(IF(Flag=TRUE,K29-TBIn!E693,TBIn!D693),0) -> 0 | G29: =IFERROR(IF(Flag=TRUE,L29-TBIn!E2040,TBIn!D2040),0) -> 0 | H29: ='Page5fB&P'!G29-'Page5fB&P'!J29 -> 0 | I29: 0 | J29: 0 | K29: =IFERROR(TBIn!E693,0) -> 0 | L29: =IFERROR(TBIn!E2040,0) -> 0 | M29: ='Page5fB&P'!L29-'Page5fB&P'!O29 -> 0 | N29: 0 | O29: 0 | P29: 26 | Q29: 0 | R29: 0 | S29: 0 | T29: 0 | U29: 0
A30: 27 | C30: =OR_VEH!B279 -> ENVISION | E30: 425F | F30: =IFERROR(IF(Flag=TRUE,K30-TBIn!E694,TBIn!D694),0) -> 0 | G30: =IFERROR(IF(Flag=TRUE,L30-TBIn!E2041,TBIn!D2041),0) -> 0 | H30: ='Page5fB&P'!G30-'Page5fB&P'!J30 -> 0 | I30: 0 | J30: 0 | K30: =IFERROR(TBIn!E694,0) -> 0 | L30: =IFERROR(TBIn!E2041,0) -> 0 | M30: ='Page5fB&P'!L30-'Page5fB&P'!O30 -> 0 | N30: 0 | O30: 0 | P30: 27 | Q30: 0 | R30: 0 | S30: 0 | T30: 0 | U30: 0
A31: 28 | C31: =OR_VEH!B280 -> NO UTILICE | E31: 426F | F31: =IFERROR(IF(Flag=TRUE,K31-TBIn!E695,TBIn!D695),0) -> 0 | G31: =IFERROR(IF(Flag=TRUE,L31-TBIn!E2042,TBIn!D2042),0) -> 0 | H31: ='Page5fB&P'!G31-'Page5fB&P'!J31 -> 0 | I31: 0 | J31: 0 | K31: =IFERROR(TBIn!E695,0) -> 0 | L31: =IFERROR(TBIn!E2042,0) -> 0 | M31: ='Page5fB&P'!L31-'Page5fB&P'!O31 -> 0 | N31: 0 | O31: 0 | P31: 28 | Q31: 0 | R31: 0 | S31: 0 | T31: 0 | U31: 0
